Workbook

Sheet Front Sheet
B3: National Grid
B5: Transmission Services Charges - calculation model
B6: including the calculation of Reference Prices and Reserve Prices for NTS Entry Capacity and NTS Exit Capacity Charges
B7: Contact for any questions: box.transmissioncapacityandcharging@nationalgrid.com
C9: Comments | F9: This is a copy of a draft NTS Tranmission Services Model that calculates charges associated to the Transmission Services as discussed as part of the development of the GB Gas Charging Review (incorporating the EU Network code on Tariffs.) This version is to allow Users to test sentivities of various combinations of potential changes and should not be used as any indication of actual charges.
C17: Disclaimer: This NTS Tranmission Services Model is provided to you by National Grid Gas plc (“NGG”) solely for the purposes of study in connection with the development of the GB Gas Charging Review and the work associated to the EU Network Code on Tariffs and is not to be used for any commercial purpose. The information that it contains is for guidance purposes only and is given in good faith. However, no warranty or representation or other obligation or commitment of any kind is given by NGG, its employees or advisors as to the accuracy or completeness of any such information. Neither NGG nor its employees or advisors shall be under any liability for any error or misstatement in the information provided. While certain precautions have been taken to detect computer viruses, we cannot guarantee that the Tariff Model is virus-free and NGG shall not be liable for any loss or damage which occurs as a result of any virus. Your use of the Tariff Model shall constitute your acceptance of the above.
B24: Model Software Change History - Specific to this copy produced for the development of the GB Gas Charging Review and incorporating aspects of the EU Tariff Code
E27: Version | F27: Date | I27: Produced by | K27: Description
E28: 1.0 | F28: 2017-04-06 | I28: National Grid | K28: Version Created for study purposes in connection with the development of the GB Gas Charging Review and the work associated to the EU Network Code on Tariffs. This has been tested on Excel 2010 only.
E29: 1.1 | F29: 2017-04-13 | I29: National Grid | K29: Minor corrections made and Model updated to include the option to provide discounts at LNG Sites and Interconnection Points.
E30: 1.2 | F30: 2017-04-28 | I30: National Grid | K30: Number of anticipated booking Scenarios increased and choice of denominators added for unit price adjustment in the Anticipated Revenue Recovery tabs.
E31: 1.3 | F31: 2017-06-05 | I31: National Grid | K31: Updated Exit formulas to take into account Interconnector discount for Yearly Standard Capacity products. Update current prices to include new Exit prices produced May 2017 for capacity from 1 October 2017 and new Annual Quarterly prices for IP points. Updated with latest available LT MAR forecast data - published on 2 June 2017. Updated "Set Adjustments" in User Inputs so if don't set an adjustment then will not produce a CRRC value.
E32: 1.4 | F32: 2017-09-20 | I32: National Grid | K32: Updated to change multipliers to correct auctions types to relate them to IP's and Non-IP's Two new sheets to allow a split down of Entry and Exit Capacity into User Groups - to apply Point Specific apportioning of capacity Updated with 01 October 2017 Commodity rates Updated Existing Contract Data to latest available information
E33: 2.0 | F33: 2018-02-23 | I33: National Grid | K33: Updated Revenues in line with Nov 2017 Long Term Revenue Forecast (latest publication) Added 2020/21 and 2021/22 data for Revenues and FCC Updated with new Exit Capacity, QSEC and April 2018 Commodity prices CWD Model has been seperated into two models, one for the transition period and one for the enduring period Data tables and charts added in as new sheets to compare the CWD outputs to current LRMC prices (capacity and commodity)
E34: 2.0 | F34: 2018-03-09 | I34: National Grid | K34: General fixes Updated Distance matrix Updated historical sold entry capacity values for 2016/17 onwards Updated historical sold exit capacity values for 2016/17 onwards
E35: 2.1 | F35: 2018-03-01 | I35: National Grid | K35: General fixes Updated Distance matrix Updated historical sold entry capacity values for 2016/17 onwards Updated historical sold exit capacity values for 2016/17 onwards
E36: 2.2 | F36: 2018-04-10 | I36: National Grid | K36: Updated flow forecasts for 2016/17 onwards Updated the zero price calculation to use weighted distances (previously was nearest point) Historic Entries sheet created which allows user inputs used to be captured
E37: 2.3 | F37: 2018-04-29 | I37: National Grid | K37: Updated to remove Rough as an Entry Point and leave only Easington as a Beach Terminal Inclusion of Moffat as an Entry Point in order to produce an interruptible price for Virtual Reverse General fixes
E38: 2.4 | F38: 2018-06-11 | I38: National Grid | K38: Updated to correct the algorithm to give a reference price to any zero priced Entry or Exit Point.

Sheet Model Assumptions
A1: Capacity Weighted Distance Reference Price Model
A4: Assumptions:
A5: The distance matrix is based on physical network as at December 2015 with any relevant new points added in.
A6: The distance matrix is based on the shortest physical path between points in an unconstrained network (where it is possible for capacity to flow from all NTS Entry Points to all NTS Exit points)
A7: Where the Forecast Contracted Capacity for a given point is zero or if the Forecasted Contracted Capacity is less than the Existing Contracts (where Existing contracts have been excluded from the calculations), the calculation results in an error or a negative price respectively. For the benefit of this illustrative model, where this is the case the reference price for the relevant ASEP/NTS Exit Point has been set to match that of the nearest ASEP/NTS Exit Point respectively.
A8: Only one form of Revenue Recovery Adjustment is used at a time
A9: Easington and Rough have been split in this model (following a request from the subgroup), the forecasted contracted capacity for each has been set such that the entry forecasts match the corresponding exit forecasts for Rough and any remaining capacity as been associated to Easington.

Sheet Tariff Network Code Calculation

Sheet Drop Down Inputs (hidden)
A1: Entry_CRRC_Denominators | C1: Adjustment_Types | E1: Exit_CRRC_Denominators | G1: Yes_or_No | I1: Entry_Flow_Scenarios | K1: Exit_Flow_Scenarios
A2: Historical Sold Entry Capacity Levels | C2: Revenue | E2: Historical Sold Exit Capacity Levels | G2: Yes | I2: Historical Entry Flow Levels | K2: Historical Exit Flow Levels
A3: Historical Entry Flow Levels | C3: Unit Reference Price | E3: Historical Exit Flow Levels | G3: No | I3: Forecast Entry Flow Levels | K3: Forecast Exit Flow Levels
A4: Forecast Entry Capacity | C4: Unit Reserve Price | E4: Forecast Exit Capacity
A5: Forecast Entry Flow Levels | C5: Scaling Factor | E5: Forecast Exit Flow Levels
C6: CRRC
A9: Entry_Sheet_Lookup | B9: Exit_Sheet_Lookup
A10: =VLOOKUP('User Inputs'!$C$7,$A$14:$F$29,5,FALSE) -> 19-20 FCC - Entry | B10: =VLOOKUP('User Inputs'!$C$7,$A$14:$F$29,6,FALSE) -> 19-20 FCC - Exit
A14: Gas Year | B14: Gas Year Start | C14: Gas Year End | D14: Number of days in Gas Year | E14: Entry Forecast Sheet | F14: Exit Forecast Sheet
A15: 01-Oct-2016 to 30-Sep-2017 | B15: 2016-10-01 | C15: 2017-09-30 | D15: =C15-B15+1 -> 365 | E15: 16-17 FCC - Entry | F15: 16-17 FCC - Exit
A16: 01-Oct-2017 to 30-Sep-2018 | B16: 2017-10-01 | C16: 2018-09-30 | D16: 365 | E16: 17-18 FCC - Entry | F16: 17-18 FCC - Exit
A17: 01-Oct-2018 to 30-Sep-2019 | B17: 2018-10-01 | C17: 2019-09-30 | D17: 365 | E17: 18-19 FCC - Entry | F17: 18-19 FCC - Exit
A18: 01-Oct-2019 to 30-Sep-2020 | B18: 2019-10-01 | C18: 2020-09-30 | D18: 366 | E18: 19-20 FCC - Entry | F18: 19-20 FCC - Exit
A19: 01-Oct-2020 to 30-Sep-2021 | B19: 2020-10-01 | C19: 2021-09-30 | D19: 365 | E19: 20-21 FCC - Entry | F19: 20-21 FCC - Exit
A20: 01-Oct-2021 to 30-Sep-2022 | B20: 2021-10-01 | C20: 2022-09-30 | D20: 365 | E20: 21-22 FCC - Entry | F20: 21-22 FCC - Exit
A21: 01-Oct-2022 to 30-Sep-2023 | B21: 2022-10-01 | C21: 2023-09-30 | D21: =C21-B21+1 -> 365 | E21: 21-22 FCC - Entry | F21: 21-22 FCC - Exit
A22: 01-Oct-2023 to 30-Sep-2024 | B22: 2023-10-01 | C22: 2024-09-30 | D22: 366 | E22: 21-22 FCC - Entry | F22: 21-22 FCC - Exit
A23: 01-Oct-2024 to 30-Sep-2025 | B23: 2024-10-01 | C23: 2025-09-30 | D23: 365 | E23: 21-22 FCC - Entry | F23: 21-22 FCC - Exit
A24: 01-Oct-2025 to 30-Sep-2026 | B24: 2025-10-01 | C24: 2026-09-30 | D24: 365 | E24: 21-22 FCC - Entry | F24: 21-22 FCC - Exit
A25: 01-Oct-2026 to 30-Sep-2027 | B25: 2026-10-01 | C25: 2027-09-30 | D25: 365 | E25: 21-22 FCC - Entry | F25: 21-22 FCC - Exit
A26: 01-Oct-2027 to 30-Sep-2028 | B26: 2027-10-01 | C26: 2028-09-30 | D26: 366 | E26: 21-22 FCC - Entry | F26: 21-22 FCC - Exit
A27: 01-Oct-2028 to 30-Sep-2029 | B27: 2028-10-01 | C27: 2029-09-30 | D27: 365 | E27: 21-22 FCC - Entry | F27: 21-22 FCC - Exit
A28: 01-Oct-2029 to 30-Sep-2030 | B28: 2029-10-01 | C28: 2030-09-30 | D28: 365 | E28: 21-22 FCC - Entry | F28: 21-22 FCC - Exit
A29: 01-Oct-2030 to 30-Sep-2031 | B29: 2030-10-01 | C29: 2031-09-30 | D29: 365 | E29: 21-22 FCC - Entry | F29: 21-22 FCC - Exit
A31: Entry_Adjustment_Denominators | C31: Exit_Adjustment_Denominators
A32: Historical Sold Entry Capacity Levels | C32: Historical Sold Exit Capacity Levels
A33: Historical Entry Flow Levels | C33: Historical Exit Flow Levels
A34: Anticipated Entry Capacity Bookings | C34: Anticipated Exit Capacity Bookings
A35: Forecast Entry Flow Levels | C35: Forecast Exit Flow Levels

Sheet User Inputs
A1: Capacity Weighted Distance Reference Price Model
A4: Reset Model | B4: Please click on the Reset button before the initial interation of the model
C6: Gas Year | D6: Number of Days in Gas Year
A7: Gas Year | B7: Please select relevant Gas Year from drop down list | C7: 01-Oct-2019 to 30-Sep-2020 | D7: =VLOOKUP(C7,'Drop Down Inputs'!$A$14:$D$29,4,FALSE) -> 366
C9: Revenue (£m)
A10: Revenue | B10: Part of the transmission services revenue to be recovered from capacity-based transmission tariffs (£m) | C10: =VLOOKUP(C7,'Revenue Input'!A10:B25,2,FALSE) -> 794.381
C12: Entry | D12: Exit
A13: Revenue Split | B13: Entry/Exit Split: Percentage of Revenue associated to capacity-based transmission tariffs at entry points (note: Exit percentage will automatically calculate) | C13: 50 | D13: =100-C13 -> 50
C15: Entry | D15: Exit
A16: Revenue Reconcilliation | B16: Please enter the relevant Entry or Exit 'K' adjustment figure from year t-2 (£) | C16: 0 | D16: 0
C18: Entry | D18: Exit
A19: Forecast Contracted Capacity | B19: Select scenario from drop down list | C19: Obligated Entry Capacity | D19: Obligated Exit Capacity
B20: Select a percentage multiplier to apply to the FCC for each NTS Entry/Exit point | C20: 100 | D20: 100
C22: Entry | D22: Exit
A23: Exclude Existing Contracts | B23: Removes Revenue and Capacity levels associated with Existing Contracts from the Target Revenue and Forecast Contracted Capacity respectively | C23: Yes | D23: Not Applicable
C25: Entry | D25: Exit
A26: Non-IP Multipliers | B26: Entry: MSEC | C26: 1 | D26: Not Applicable
B27: Entry: DADSEC Exit: Firm | C27: 1 | D27: 1
B28: Entry: WDDSEC | C28: 1 | D28: Not Applicable
C30: Entry | D30: Exit
A31: IP Multipliers | B31: Quarterly standard capacity products | C31: 1 | D31: 1
B32: Monthly standard capacity products | C32: 1 | D32: 1
B33: Daily standard capacity products | C33: 1 | D33: 1
B34: Within-day standard capacity products | C34: 1 | D34: 1
C36: Entry | D36: Exit
A37: Storage Discount | B37: Percentage Discount | C37: 86 | D37: 86
A38: LNG Discount | B38: Percentage Discount | C38: 0 | D38: Not Applicable
A39: IP Discount | B39: Percentage Discount | C39: 0 | D39: 0
C41: Entry | D41: Exit
A42: Probability of Interruption | B42: Please select the relevant tab to complete any required probabilities of interruption
A43: e
A45: Calculate Prices | B45: Please click on the 'Calculate Prices' button once your inputs have been selected and before proceeding to view the outputs in the following tabs
B46: Once you have received a message to say that prices have been calculated, please click on the relevant button to see the initial Entry or Exit Prices. Please note that these will be overwritten once adjustments have been applied.
C48: Entry | D48: Exit
A49: Estimated Capacity Booking Split
C51: Entry | D51: Exit
A52: Expected Revenue Recovery Results | B52: Total Revenue Recovered (£): | C52: =SUM('Entry Adjustment Calcs'!$Z$2:$Z$27)+IF($C$23="Yes",('Revenue Input'!$F$3)+( IF($C$60="Yes",C66*(HLOOKUP($C$7,'Existing Contracts - Entry'!$A$1:$E$30,29,FALSE)),0)),0) -> 330405602.6 | D52: =SUM('Exit Adjustment Calcs'!$Z$2:$Z$221) -> 368112832.9
B53: Target Revenue Recovery for Entry/Exit (£): | C53: =($C$13/100)* 'Revenue Input'!$B$3+C16 -> 397190500 | D53: =($D$13/100)* 'Revenue Input'!$B$3+$D$16 -> 397190500
B54: Difference to Target Recovery (£): | C54: =C52-C53 -> -66784897.35 | D54: =D52-D53 -> -29077667.08
B55: Difference to Target Recovery (£m): | C55: =C54/1000000 -> -66.78489735 | D55: =D54/1000000 -> -29.07766708
C57: Entry | D57: Exit
A58: Adjustments | B58: Type of adjustment: | C58: Revenue | D58: Revenue
B59: Basis for CRRC (if applicable): | C59: Forecast Entry Flow Levels | D59: Forecast Exit Flow Levels
B60: Include Existing Contracts if making Unit Reserve Price Adjustment? | C60: No | D60: Not Applicable
B61: Calculate adjusted prices: | C61: No
A62: "Capcture Input Selection" creates a record of all the input selections along with a timestamp
C63: Entry | D63: Exit
A64: Outputs | B64: Revenue Input Figure Adjustment (£): | C64: 0 | D64: 0
B65: Unit Reference Price Adjustment (p/kWh/d): | C65: 0 | D65: 0
B66: Unit Reserve Price Adjustment (p/kWh/d): | C66: 0 | D66: 0
B67: Scaling Factor Adjustment to Reference Price: | C67: 1 | D67: 1
B68: CRRC (p/kWh): | C68: =IF(C64="CRRC",100*(-$C$60/(HLOOKUP($C$65,'CRRC Inputs - Entry'!A:F,29,FALSE)*$D$7)),0) -> 0 | D68: =IF(D64="CRRC",100*(-$D$60/(HLOOKUP($D$65,'CRRC Inputs - Exit'!A:F,224,FALSE)*$D$7)),0) -> 0
B69: Expected Recovery including adjustments set by cell C/D66 (£): | C69: =$C$52+(HLOOKUP($C$59,'CRRC Inputs - Entry'!A:F,29,FALSE)*$D$7)*C68/100 -> 330405602.6 | D69: =$D$52+(HLOOKUP($D$59,'CRRC Inputs - Exit'!A:F,224,FALSE)*$D$7)*D74/100 -> 368112832.9
B70: Difference to target recovery following CRRC (£): | C70: =$C$69-$C$53 -> -66784897.35 | D70: =$D$69-$D$53 -> -29077667.08
A73: Adjusted Prices | B73: Please click on the relevant button to see the initial Entry or Exit Prices.
C76: Entry | D76: Exit
A77: If you have reason to believe that your selected FCC is not reflective of anticipated bookings then please use the following tabs to apply further adjustments:
C79: Variation from Entry booking scenario | D79: Variation from Exit booking scenario
A80: Adjust Booking Scenario | B80: This will alter the booking level which is applied to calculate the revenue recovered from capacity charges | C80: 1 | D80: 1

Sheet Current Input Selection (hidden)
A1: Date | B1: Time | C1: Gas Year | D1: Entry Revenue Split | E1: Entry Revenue Rec ("K") | F1: Exit Revenue Rec ("K") | G1: Entry FCC | H1: Entry FCC Multiplier | I1: Exit FCC | J1: Exit FCC Multiplier | K1: Exclude Existing Contracts | L1: Non-IP Entry MSEC Multiplier | M1: Non-IP Entry DADSEC Multiplier | N1: Non-IP Entry WEDDSEC Multiplier | O1: Non-IP Exit Firm Multiplier | P1: IP Entry Quarterly Multiplier | Q1: IP Entry Monthly Multiplier | R1: IP Entry Daily Multiplier | S1: IP Entry Within-day Multiplier | T1: IP Exit Quarterly Multiplier | U1: IP Exit Monthly Multiplier | V1: IP Exit Daily Multiplier | W1: IP Exit Within-day Multiplier | X1: Storage Entry Discount | Y1: Storage Exit Discount | Z1: LNG Entry Discount | AA1: IP Entry Discount | AB1: IP Exit Discount | AC1: Type of Entry Recovery Adjustment (enduring) | AD1: Type of Exit Recovery Adjustment (enduring)
A2: =TODAY() -> 2018-06-10 | B2: =NOW() -> 43261.54028 | C2: ='User Inputs'!$C$7 -> 01-Oct-2019 to 30-Sep-2020 | D2: ='User Inputs'!$C$13 -> 50 | E2: ='User Inputs'!$C$16 -> 0 | F2: ='User Inputs'!$D$16 -> 0 | G2: ='User Inputs'!$C$19 -> Obligated Entry Capacity | H2: ='User Inputs'!$C$20 -> 100 | I2: ='User Inputs'!$D$19 -> Obligated Exit Capacity | J2: ='User Inputs'!$D$20 -> 100 | K2: ='User Inputs'!$C$23 -> Yes | L2: ='User Inputs'!$C$26 -> 1 | M2: ='User Inputs'!$C$27 -> 1 | N2: ='User Inputs'!$C$28 -> 1 | O2: ='User Inputs'!$D$27 -> 1 | P2: ='User Inputs'!$C$31 -> 1 | Q2: ='User Inputs'!$C$32 -> 1 | R2: ='User Inputs'!$C$33 -> 1 | S2: ='User Inputs'!$C$34 -> 1 | T2: ='User Inputs'!$D$31 -> 1 | U2: ='User Inputs'!$D$32 -> 1 | V2: ='User Inputs'!$D$33 -> 1 | W2: ='User Inputs'!$D$34 -> 1 | X2: ='User Inputs'!$C$37 -> 86 | Y2: ='User Inputs'!$D$37 -> 86 | Z2: ='User Inputs'!$C$38 -> 0 | AA2: ='User Inputs'!$C$39 -> 0 | AB2: ='User Inputs'!$D$39 -> 0 | AC2: ='User Inputs'!$C$58 -> Revenue | AD2: ='User Inputs'!$D$58 -> Revenue

Sheet Historic Entries
A1: Date | B1: Time | C1: Gas Year | D1: Entry Revenue Split | E1: Entry Revenue Rec ("K") | F1: Exit Revenue Rec ("K") | G1: Entry FCC | H1: Entry FCC Multiplier | I1: Exit FCC | J1: Exit FCC Multiplier | K1: Exclude Existing Contracts | L1: Non-IP Entry MSEC Multiplier | M1: Non-IP Entry DADSEC Multiplier | N1: Non-IP Entry WEDDSEC Multiplier | O1: Non-IP Exit Firm Multiplier | P1: IP Entry Quarterly Multiplier | Q1: IP Entry Monthly Multiplier | R1: IP Entry Daily Multiplier | S1: IP Entry Within-day Multiplier | T1: IP Exit Quarterly Multiplier | U1: IP Exit Monthly Multiplier | V1: IP Exit Daily Multiplier | W1: IP Exit Within-day Multiplier | X1: Storage Entry Discount | Y1: Storage Exit Discount | Z1: LNG Entry Discount | AA1: IP Entry Discount | AB1: IP Exit Discount | AC1: Type of Entry Recovery Adjustment (enduring) | AD1: Type of Exit Recovery Adjustment (enduring)

Sheet Revenue Input
A1: Revenue Inputs
A2: Part of the transmission services revenue to be recovered from capacity-based transmission tariffs (£m) | B2: ='User Inputs'!$C$10 -> 794.381
A3: Part of the transmission services revenue to be recovered from capacity-based transmission tariffs (£) | B3: =B2*1000000 -> 794381000 | E3: Revenue associated to Existing Contracts for Entry Capacity (£) | F3: =HLOOKUP('User Inputs'!$C$7,'Existing Contracts - Entry'!$A$1:$P$30,30,FALSE) -> 49698418
A4: Part of the transmission services revenue to be recovered from capacity-based transmission tariffs (p) | B4: =B3*100 -> 79438100000 | E4: Revenue associated to Existing Contracts for Entry Capacity (p) | F4: =F3*100 -> 4969841800
A5: Part of the transmission services revenue to be recovered from capacity-based transmission tariffs at all entry points (R_∑En) - WITHOUT EXITING CONTRACTS IF APPLICABLE | B5: =(IF('User Inputs'!C23="Yes",((('User Inputs'!C13/100)*B4)-F4),('User Inputs'!C13/100)*B4))+100*(F6+'User Inputs'!C16) -> 3.47492082e+10
A6: Part of the transmission services revenue to be recovered from capacity-based transmission tariffs at all exit points (R_∑Ex) | B6: =(('User Inputs'!D13/100)*B4)+100*(F7+'User Inputs'!D16) -> 39719050000 | E6: Entry Revenue Adjustment (£) | F6: ='User Inputs'!C64 -> 0
E7: Exit Revenue Adjustment (£) | F7: ='User Inputs'!D64 -> 0
A10: Gas Year | B10: Part of the transmission services revenue to be recovered from capacity-based transmission tariffs (£m)
A11: 01-Oct-2016 to 30-Sep-2017 | B11: 736.017
A12: 01-Oct-2017 to 30-Sep-2018 | B12: 795.404
A13: 01-Oct-2018 to 30-Sep-2019 | B13: 659.889
A14: 01-Oct-2019 to 30-Sep-2020 | B14: 794.381
A15: 01-Oct-2020 to 30-Sep-2021 | B15: 823.192
A16: 01-Oct-2021 to 30-Sep-2022 | B16: 847.998
A17: 01-Oct-2022 to 30-Sep-2023 | B17: =B16*C17 -> 847.998 | C17: 1
A18: 01-Oct-2023 to 30-Sep-2024 | B18: =B17*C18 -> 847.998 | C18: 1
A19: 01-Oct-2024 to 30-Sep-2025 | B19: 847.998 | C19: 1
A20: 01-Oct-2025 to 30-Sep-2026 | B20: 847.998 | C20: 1
A21: 01-Oct-2026 to 30-Sep-2027 | B21: 847.998 | C21: 1
A22: 01-Oct-2027 to 30-Sep-2028 | B22: 847.998 | C22: 1
A23: 01-Oct-2028 to 30-Sep-2029 | B23: 847.998 | C23: 1
A24: 01-Oct-2029 to 30-Sep-2030 | B24: 847.998 | C24: 1
A25: 01-Oct-2030 to 30-Sep-2031 | B25: 847.998 | C25: 1

Sheet Entry Interruption Prob's
A1: Entry Point | B1: Entry Point Type | C1: Pro | D1: A | E1: Di_ex-ante (%)
A2: Avonmouth | B2: =VLOOKUP(A2,'Locations & Types'!$A:$B,2,FALSE) -> STORAGE SITE | C2: 0.1 | D2: 1 | E2: =C2*D2*100 -> 10
A3: Bacton IP | B3: =VLOOKUP(A3,'Locations & Types'!$A:$B,2,FALSE) -> INTERCONNECTION POINT | C3: 0.1 | D3: 1 | E3: =C3*D3*100 -> 10
A4: Bacton UKCS | B4: =VLOOKUP(A4,'Locations & Types'!$A:$B,2,FALSE) -> BEACH TERMINAL | C4: 0.1 | D4: 1 | E4: 10
A5: Burton Point | B5: =VLOOKUP(A5,'Locations & Types'!$A:$B,2,FALSE) -> ONSHORE FIELD | C5: 0.1 | D5: 1 | E5: 10
A6: Barrow | B6: =VLOOKUP(A6,'Locations & Types'!$A:$B,2,FALSE) -> BEACH TERMINAL | C6: 0.1 | D6: 1 | E6: 10
A7: Barton Stacey | B7: =VLOOKUP(A7,'Locations & Types'!$A:$B,2,FALSE) -> STORAGE SITE | C7: 0.1 | D7: 1 | E7: 10
A8: Canonbie | B8: =VLOOKUP(A8,'Locations & Types'!$A:$B,2,FALSE) -> ONSHORE FIELD | C8: 0.1 | D8: 1 | E8: 10
A9: Cheshire | B9: =VLOOKUP(A9,'Locations & Types'!$A:$B,2,FALSE) -> STORAGE SITE | C9: 0.1 | D9: 1 | E9: 10
A10: Caythorpe | B10: =VLOOKUP(A10,'Locations & Types'!$A:$B,2,FALSE) -> STORAGE SITE | C10: 0.1 | D10: 1 | E10: 10
A11: Dynevor Arms | B11: =VLOOKUP(A11,'Locations & Types'!$A:$B,2,FALSE) -> STORAGE SITE | C11: 0.1 | D11: 1 | E11: 10
A12: Easington | B12: =VLOOKUP(A12,'Locations & Types'!$A:$B,2,FALSE) -> BEACH TERMINAL | C12: 0.1 | D12: 1 | E12: 10
A13: Fleetwood | B13: =VLOOKUP(A13,'Locations & Types'!$A:$B,2,FALSE) -> STORAGE SITE | C13: 0.1 | D13: 1 | E13: 10
A14: Glenmavis | B14: =VLOOKUP(A14,'Locations & Types'!$A:$B,2,FALSE) -> STORAGE SITE | C14: 0.1 | D14: 1 | E14: 10
A15: Garton | B15: =VLOOKUP(A15,'Locations & Types'!$A:$B,2,FALSE) -> STORAGE SITE | C15: 0.1 | D15: 1 | E15: 10
A16: Hole House Farm | B16: =VLOOKUP(A16,'Locations & Types'!$A:$B,2,FALSE) -> STORAGE SITE | C16: 0.1 | D16: 1 | E16: 10
A17: Hatfield Moor (onshore) | B17: =VLOOKUP(A17,'Locations & Types'!$A:$B,2,FALSE) -> ONSHORE FIELD | C17: 0.1 | D17: 1 | E17: 10
A18: Hornsea | B18: =VLOOKUP(A18,'Locations & Types'!$A:$B,2,FALSE) -> STORAGE SITE | C18: 0.1 | D18: 1 | E18: 10
A19: Hatfield Moor (storage) | B19: =VLOOKUP(A19,'Locations & Types'!$A:$B,2,FALSE) -> STORAGE SITE | C19: 0.1 | D19: 1 | E19: 10
A20: Isle of Grain | B20: =VLOOKUP(A20,'Locations & Types'!$A:$B,2,FALSE) -> LNG IMPORTATION TERMINAL | C20: 0.1 | D20: 1 | E20: 10
A21: Milford Haven | B21: =VLOOKUP(A21,'Locations & Types'!$A:$B,2,FALSE) -> LNG IMPORTATION TERMINAL | C21: 0.1 | D21: 1 | E21: 10
A22: Partington | B22: =VLOOKUP(A22,'Locations & Types'!$A:$B,2,FALSE) -> STORAGE SITE | C22: 0.1 | D22: 1 | E22: 10
A23: Moffat (irish Interconnector) | B23: =VLOOKUP(A23,'Locations & Types'!$A:$B,2,FALSE) -> INTERCONNECTION POINT | C23: 0.1 | D23: 1 | E23: 10
A24: St Fergus | B24: =VLOOKUP(A24,'Locations & Types'!$A:$B,2,FALSE) -> BEACH TERMINAL | C24: 0.1 | D24: 1 | E24: 10
A25: Teesside | B25: =VLOOKUP(A25,'Locations & Types'!$A:$B,2,FALSE) -> BEACH TERMINAL | C25: 0.1 | D25: 1 | E25: 10
A26: Theddlethorpe | B26: =VLOOKUP(A26,'Locations & Types'!$A:$B,2,FALSE) -> BEACH TERMINAL | C26: 0.1 | D26: 1 | E26: 10
A27: Wytch Farm | B27: =VLOOKUP(A27,'Locations & Types'!$A:$B,2,FALSE) -> ONSHORE FIELD | C27: 0.1 | D27: 1 | E27: 10

Sheet Exit Interruption Prob's
A1: Exit Point | B1: Exit Point Type | C1: Pro | D1: A | E1: Di_ex-ante (%)
A2: Aberdeen | B2: =VLOOKUP(A2,'Locations & Types'!$E:$F,2,FALSE) -> GDN (SC) | C2: 0.1 | D2: 1 | E2: =C2*D2*100 -> 10
A3: Abson (Seabank Power Station phase I) | B3: =VLOOKUP(A3,'Locations & Types'!$E:$F,2,FALSE) -> DC | C3: 0.1 | D3: 1 | E3: =C3*D3*100 -> 10
A4: Alrewas (EM) | B4: =VLOOKUP(A4,'Locations & Types'!$E:$F,2,FALSE) -> GDN (EM) | C4: 0.1 | D4: 1 | E4: 10
A5: Alrewas (WM) | B5: =VLOOKUP(A5,'Locations & Types'!$E:$F,2,FALSE) -> GDN (WM) | C5: 0.1 | D5: 1 | E5: 10
A6: Apache (Sage Black Start) | B6: =VLOOKUP(A6,'Locations & Types'!$E:$F,2,FALSE) -> DC | C6: 0.1 | D6: 1 | E6: 10
A7: Armadale | B7: =VLOOKUP(A7,'Locations & Types'!$E:$F,2,FALSE) -> GDN (SC) | C7: 0.1 | D7: 1 | E7: 10
A8: Aspley | B8: =VLOOKUP(A8,'Locations & Types'!$E:$F,2,FALSE) -> GDN (WM) | C8: 0.1 | D8: 1 | E8: 10
A9: Asselby | B9: =VLOOKUP(A9,'Locations & Types'!$E:$F,2,FALSE) -> GDN (NE) | C9: 0.1 | D9: 1 | E9: 10
A10: Audley (NW) | B10: =VLOOKUP(A10,'Locations & Types'!$E:$F,2,FALSE) -> GDN (NW) | C10: 0.1 | D10: 1 | E10: 10
A11: Audley (WM) | B11: =VLOOKUP(A11,'Locations & Types'!$E:$F,2,FALSE) -> GDN (WM) | C11: 0.1 | D11: 1 | E11: 10
A12: Austrey | B12: =VLOOKUP(A12,'Locations & Types'!$E:$F,2,FALSE) -> GDN (WM) | C12: 0.1 | D12: 1 | E12: 10
A13: Avonmouth Max Refill | B13: =VLOOKUP(A13,'Locations & Types'!$E:$F,2,FALSE) -> STORAGE SITE | C13: 0.1 | D13: 1 | E13: 10
A14: Aylesbeare | B14: =VLOOKUP(A14,'Locations & Types'!$E:$F,2,FALSE) -> GDN (SW) | C14: 0.1 | D14: 1 | E14: 10
A15: Bacton | B15: =VLOOKUP(A15,'Locations & Types'!$E:$F,2,FALSE) -> GDN (EA) | C15: 0.1 | D15: 1 | E15: 10
A16: Bacton (Baird) | B16: =VLOOKUP(A16,'Locations & Types'!$E:$F,2,FALSE) -> STORAGE SITE | C16: 0.1 | D16: 1 | E16: 10
A17: Bacton (BBL) | B17: =VLOOKUP(A17,'Locations & Types'!$E:$F,2,FALSE) -> INTERCONNECTOR | C17: 0.1 | D17: 1 | E17: 10
A18: Bacton (Great Yarmouth) | B18: =VLOOKUP(A18,'Locations & Types'!$E:$F,2,FALSE) -> DC | C18: 0.1 | D18: 1 | E18: 10
A19: Bacton (IUK) | B19: =VLOOKUP(A19,'Locations & Types'!$E:$F,2,FALSE) -> INTERCONNECTOR | C19: 0.1 | D19: 1 | E19: 10
A20: Baldersby | B20: =VLOOKUP(A20,'Locations & Types'!$E:$F,2,FALSE) -> GDN (NE) | C20: 0.1 | D20: 1 | E20: 10
A21: Balgray | B21: =VLOOKUP(A21,'Locations & Types'!$E:$F,2,FALSE) -> GDN (SC) | C21: 0.1 | D21: 1 | E21: 10
A22: Barking (Horndon) | B22: =VLOOKUP(A22,'Locations & Types'!$E:$F,2,FALSE) -> DC | C22: 0.1 | D22: 1 | E22: 10
A23: Barrow (Bains) | B23: =VLOOKUP(A23,'Locations & Types'!$E:$F,2,FALSE) -> STORAGE SITE | C23: 0.1 | D23: 1 | E23: 10
A24: Barrow (Black Start) | B24: =VLOOKUP(A24,'Locations & Types'!$E:$F,2,FALSE) -> DC | C24: 0.1 | D24: 1 | E24: 10
A25: Barrow (Gateway) | B25: =VLOOKUP(A25,'Locations & Types'!$E:$F,2,FALSE) -> STORAGE SITE | C25: 0.1 | D25: 1 | E25: 10
A26: Barton Stacey Max Refill (Humbly Grove) | B26: =VLOOKUP(A26,'Locations & Types'!$E:$F,2,FALSE) -> STORAGE SITE | C26: 0.1 | D26: 1 | E26: 10
A27: Bathgate | B27: =VLOOKUP(A27,'Locations & Types'!$E:$F,2,FALSE) -> GDN (SC) | C27: 0.1 | D27: 1 | E27: 10
A28: Billingham ICI (Terra Billingham) | B28: =VLOOKUP(A28,'Locations & Types'!$E:$F,2,FALSE) -> DC | C28: 0.1 | D28: 1 | E28: =C28*D28*100 -> 10
A29: Bishop Auckland | B29: =VLOOKUP(A29,'Locations & Types'!$E:$F,2,FALSE) -> GDN (NO) | C29: 0.1 | D29: 1 | E29: 10
A30: Bishop Auckland (test facility) | B30: =VLOOKUP(A30,'Locations & Types'!$E:$F,2,FALSE) -> DC | C30: 0.1 | D30: 1 | E30: 10
A31: Blaby | B31: =VLOOKUP(A31,'Locations & Types'!$E:$F,2,FALSE) -> GDN (EM) | C31: 0.1 | D31: 1 | E31: 10
A32: Blackness (BP Grangemouth) | B32: =VLOOKUP(A32,'Locations & Types'!$E:$F,2,FALSE) -> DC | C32: 0.1 | D32: 1 | E32: 10
A33: Blackrod | B33: =VLOOKUP(A33,'Locations & Types'!$E:$F,2,FALSE) -> GDN (NW) | C33: 0.1 | D33: 1 | E33: 10
A34: Blyborough | B34: =VLOOKUP(A34,'Locations & Types'!$E:$F,2,FALSE) -> GDN (EM) | C34: 0.1 | D34: 1 | E34: 10
A35: Blyborough (Brigg) | B35: =VLOOKUP(A35,'Locations & Types'!$E:$F,2,FALSE) -> DC | C35: 0.1 | D35: 1 | E35: 10
A36: Blyborough (Cottam) | B36: =VLOOKUP(A36,'Locations & Types'!$E:$F,2,FALSE) -> DC | C36: 0.1 | D36: 1 | E36: 10
A37: Braishfield A | B37: =VLOOKUP(A37,'Locations & Types'!$E:$F,2,FALSE) -> GDN (SO) | C37: 0.1 | D37: 1 | E37: 10
A38: Braishfield B | B38: =VLOOKUP(A38,'Locations & Types'!$E:$F,2,FALSE) -> GDN (SO) | C38: 0.1 | D38: 1 | E38: 10
A39: Brine Field (Teesside) Power Station | B39: =VLOOKUP(A39,'Locations & Types'!$E:$F,2,FALSE) -> DC | C39: 0.1 | D39: 1 | E39: 10
A40: Brisley | B40: =VLOOKUP(A40,'Locations & Types'!$E:$F,2,FALSE) -> GDN (EA) | C40: 0.1 | D40: 1 | E40: 10
A41: Broxburn | B41: =VLOOKUP(A41,'Locations & Types'!$E:$F,2,FALSE) -> GDN (SC) | C41: 0.1 | D41: 1 | E41: 10
A42: Burley Bank | B42: =VLOOKUP(A42,'Locations & Types'!$E:$F,2,FALSE) -> GDN (NE) | C42: 0.1 | D42: 1 | E42: 10
A43: Burnhervie | B43: =VLOOKUP(A43,'Locations & Types'!$E:$F,2,FALSE) -> GDN (SC) | C43: 0.1 | D43: 1 | E43: 10
A44: Burton Point (Connahs Quay) | B44: =VLOOKUP(A44,'Locations & Types'!$E:$F,2,FALSE) -> DC | C44: 0.1 | D44: 1 | E44: 10
A45: Caldecott | B45: =VLOOKUP(A45,'Locations & Types'!$E:$F,2,FALSE) -> GDN (EM) | C45: 0.1 | D45: 1 | E45: 10
A46: Caldecott (Corby Power Station) | B46: =VLOOKUP(A46,'Locations & Types'!$E:$F,2,FALSE) -> DC | C46: 0.1 | D46: 1 | E46: 10
A47: Cambridge | B47: =VLOOKUP(A47,'Locations & Types'!$E:$F,2,FALSE) -> GDN (EA) | C47: 0.1 | D47: 1 | E47: 10
A48: Careston | B48: =VLOOKUP(A48,'Locations & Types'!$E:$F,2,FALSE) -> GDN (SC) | C48: 0.1 | D48: 1 | E48: 10
A49: Carrington (Partington) Power Station | B49: =VLOOKUP(A49,'Locations & Types'!$E:$F,2,FALSE) -> DC | C49: 0.1 | D49: 1 | E49: 10
A50: Caythorpe | B50: =VLOOKUP(A50,'Locations & Types'!$E:$F,2,FALSE) -> STORAGE SITE | C50: 0.1 | D50: 1 | E50: 10
A51: Centrax Industrial | B51: =VLOOKUP(A51,'Locations & Types'!$E:$F,2,FALSE) -> DC | C51: 0.1 | D51: 1 | E51: 10
A52: Cirencester | B52: =VLOOKUP(A52,'Locations & Types'!$E:$F,2,FALSE) -> GDN (SW) | C52: 0.1 | D52: 1 | E52: 10
A53: Cockenzie Power Station | B53: =VLOOKUP(A53,'Locations & Types'!$E:$F,2,FALSE) -> DC | C53: 0.1 | D53: 1 | E53: 10
A54: Coffinswell | B54: =VLOOKUP(A54,'Locations & Types'!$E:$F,2,FALSE) -> GDN (SW) | C54: 0.1 | D54: 1 | E54: 10
A55: Coldstream | B55: =VLOOKUP(A55,'Locations & Types'!$E:$F,2,FALSE) -> GDN (NO) | C55: 0.1 | D55: 1 | E55: 10
A56: Corbridge | B56: =VLOOKUP(A56,'Locations & Types'!$E:$F,2,FALSE) -> GDN (NO) | C56: 0.1 | D56: 1 | E56: 10
A57: Coryton 2 (Thames Haven) Power Station | B57: =VLOOKUP(A57,'Locations & Types'!$E:$F,2,FALSE) -> DC | C57: 0.1 | D57: 1 | E57: 10
A58: Cowpen Bewley | B58: =VLOOKUP(A58,'Locations & Types'!$E:$F,2,FALSE) -> GDN (NO) | C58: 0.1 | D58: 1 | E58: 10
A59: Crawley Down | B59: =VLOOKUP(A59,'Locations & Types'!$E:$F,2,FALSE) -> GDN (SO) | C59: 0.1 | D59: 1 | E59: 10
A60: Deborah Storage (Bacton) | B60: =VLOOKUP(A60,'Locations & Types'!$E:$F,2,FALSE) -> STORAGE SITE | C60: 0.1 | D60: 1 | E60: 10
A61: Deeside | B61: =VLOOKUP(A61,'Locations & Types'!$E:$F,2,FALSE) -> DC | C61: 0.1 | D61: 1 | E61: 10
A62: Didcot | B62: =VLOOKUP(A62,'Locations & Types'!$E:$F,2,FALSE) -> DC | C62: 0.1 | D62: 1 | E62: 10
A63: Dowlais | B63: =VLOOKUP(A63,'Locations & Types'!$E:$F,2,FALSE) -> GDN (WS) | C63: 0.1 | D63: 1 | E63: 10
A64: Drakelow Power Station | B64: =VLOOKUP(A64,'Locations & Types'!$E:$F,2,FALSE) -> DC | C64: 0.1 | D64: 1 | E64: 10
A65: Drointon | B65: =VLOOKUP(A65,'Locations & Types'!$E:$F,2,FALSE) -> GDN (EM) | C65: 0.1 | D65: 1 | E65: 10
A66: Drum | B66: =VLOOKUP(A66,'Locations & Types'!$E:$F,2,FALSE) -> GDN (SC) | C66: 0.1 | D66: 1 | E66: 10
A67: Dyffryn Clydach | B67: =VLOOKUP(A67,'Locations & Types'!$E:$F,2,FALSE) -> GDN (WS) | C67: 0.1 | D67: 1 | E67: 10
A68: Dynevor Max Refill | B68: =VLOOKUP(A68,'Locations & Types'!$E:$F,2,FALSE) -> STORAGE SITE | C68: 0.1 | D68: 1 | E68: 10
A69: Eastoft (Keadby Blackstart) | B69: =VLOOKUP(A69,'Locations & Types'!$E:$F,2,FALSE) -> DC | C69: 0.1 | D69: 1 | E69: 10
A70: Eastoft (Keadby) | B70: =VLOOKUP(A70,'Locations & Types'!$E:$F,2,FALSE) -> DC | C70: 0.1 | D70: 1 | E70: 10
A71: Easton Grey | B71: =VLOOKUP(A71,'Locations & Types'!$E:$F,2,FALSE) -> GDN (SW) | C71: 0.1 | D71: 1 | E71: 10
A72: Ecclestone | B72: =VLOOKUP(A72,'Locations & Types'!$E:$F,2,FALSE) -> GDN (NW) | C72: 0.1 | D72: 1 | E72: 10
A73: Elton | B73: =VLOOKUP(A73,'Locations & Types'!$E:$F,2,FALSE) -> GDN (NO) | C73: 0.1 | D73: 1 | E73: 10
A74: Enron Billingham | B74: =VLOOKUP(A74,'Locations & Types'!$E:$F,2,FALSE) -> DC | C74: 0.1 | D74: 1 | E74: 10
A75: Epping Green (Enfield Energy, aka Brimsdown) | B75: =VLOOKUP(A75,'Locations & Types'!$E:$F,2,FALSE) -> DC | C75: 0.1 | D75: 1 | E75: 10
A76: Evesham | B76: =VLOOKUP(A76,'Locations & Types'!$E:$F,2,FALSE) -> GDN (SW) | C76: 0.1 | D76: 1 | E76: 10
A77: Farningham | B77: =VLOOKUP(A77,'Locations & Types'!$E:$F,2,FALSE) -> GDN (SE) | C77: 0.1 | D77: 1 | E77: 10
A78: Farningham B | B78: =VLOOKUP(A78,'Locations & Types'!$E:$F,2,FALSE) -> GDN (SE) | C78: 0.1 | D78: 1 | E78: 10
A79: Ferny Knoll (AM Paper) | B79: =VLOOKUP(A79,'Locations & Types'!$E:$F,2,FALSE) -> DC | C79: 0.1 | D79: 1 | E79: 10
A80: Fiddington | B80: =VLOOKUP(A80,'Locations & Types'!$E:$F,2,FALSE) -> GDN (SW) | C80: 0.1 | D80: 1 | E80: 10
A81: Ganstead | B81: =VLOOKUP(A81,'Locations & Types'!$E:$F,2,FALSE) -> GDN (NE) | C81: 0.1 | D81: 1 | E81: 10
A82: Garton Max Refill (Aldbrough) | B82: =VLOOKUP(A82,'Locations & Types'!$E:$F,2,FALSE) -> STORAGE SITE | C82: 0.1 | D82: 1 | E82: 10
A83: Gilwern | B83: =VLOOKUP(A83,'Locations & Types'!$E:$F,2,FALSE) -> GDN (WS) | C83: 0.1 | D83: 1 | E83: 10
A84: Glenmavis | B84: =VLOOKUP(A84,'Locations & Types'!$E:$F,2,FALSE) -> GDN (SC) | C84: 0.1 | D84: 1 | E84: 10
A85: Glenmavis Max Refill | B85: =VLOOKUP(A85,'Locations & Types'!$E:$F,2,FALSE) -> STORAGE SITE | C85: 0.1 | D85: 1 | E85: 10
A86: Goole (Guardian Glass) | B86: =VLOOKUP(A86,'Locations & Types'!$E:$F,2,FALSE) -> DC | C86: 0.1 | D86: 1 | E86: 10
A87: Gosberton | B87: =VLOOKUP(A87,'Locations & Types'!$E:$F,2,FALSE) -> GDN (EM) | C87: 0.1 | D87: 1 | E87: 10
A88: Gowkhall (Longannet) | B88: =VLOOKUP(A88,'Locations & Types'!$E:$F,2,FALSE) -> DC | C88: 0.1 | D88: 1 | E88: 10
A89: Grain Power Station | B89: =VLOOKUP(A89,'Locations & Types'!$E:$F,2,FALSE) -> DC | C89: 0.1 | D89: 1 | E89: 10
A90: Great Wilbraham | B90: =VLOOKUP(A90,'Locations & Types'!$E:$F,2,FALSE) -> GDN (EA) | C90: 0.1 | D90: 1 | E90: 10
A91: Guyzance | B91: =VLOOKUP(A91,'Locations & Types'!$E:$F,2,FALSE) -> GDN (NO) | C91: 0.1 | D91: 1 | E91: 10
A92: Hardwick | B92: =VLOOKUP(A92,'Locations & Types'!$E:$F,2,FALSE) -> GDN (SO) | C92: 0.1 | D92: 1 | E92: =C92*D92*100 -> 10
A93: Harwarden (Shotton, aka Shotton Paper) | B93: =VLOOKUP(A93,'Locations & Types'!$E:$F,2,FALSE) -> DC | C93: 0.1 | D93: 1 | E93: 10
A94: Hatfield Moor Max Refill | B94: =VLOOKUP(A94,'Locations & Types'!$E:$F,2,FALSE) -> STORAGE SITE | C94: 0.1 | D94: 1 | E94: 10
A95: Hatfield Power Station | B95: =VLOOKUP(A95,'Locations & Types'!$E:$F,2,FALSE) -> DC | C95: 0.1 | D95: 1 | E95: 10
A96: Hill Top Farm (Hole House Farm) | B96: =VLOOKUP(A96,'Locations & Types'!$E:$F,2,FALSE) -> STORAGE SITE | C96: 0.1 | D96: 1 | E96: 10
A97: Hole House Max Refill | B97: =VLOOKUP(A97,'Locations & Types'!$E:$F,2,FALSE) -> STORAGE SITE | C97: 0.1 | D97: 1 | E97: 10
A98: Holford | B98: =VLOOKUP(A98,'Locations & Types'!$E:$F,2,FALSE) -> STORAGE SITE | C98: 0.1 | D98: 1 | E98: 10
A99: Hollingsgreen (Hays Chemicals) | B99: =VLOOKUP(A99,'Locations & Types'!$E:$F,2,FALSE) -> DC | C99: 0.1 | D99: 1 | E99: 10
A100: Holmes Chapel | B100: =VLOOKUP(A100,'Locations & Types'!$E:$F,2,FALSE) -> GDN (NW) | C100: 0.1 | D100: 1 | E100: 10
A101: Horndon | B101: =VLOOKUP(A101,'Locations & Types'!$E:$F,2,FALSE) -> GDN (NT) | C101: 0.1 | D101: 1 | E101: 10
A102: Hornsea Max Refill | B102: =VLOOKUP(A102,'Locations & Types'!$E:$F,2,FALSE) -> STORAGE SITE | C102: 0.1 | D102: 1 | E102: 10
A103: Humbleton | B103: =VLOOKUP(A103,'Locations & Types'!$E:$F,2,FALSE) -> GDN (NO) | C103: 0.1 | D103: 1 | E103: 10
A104: Hume | B104: =VLOOKUP(A104,'Locations & Types'!$E:$F,2,FALSE) -> GDN (SC) | C104: 0.1 | D104: 1 | E104: 10
A105: Ilchester | B105: =VLOOKUP(A105,'Locations & Types'!$E:$F,2,FALSE) -> GDN (SW) | C105: 0.1 | D105: 1 | E105: 10
A106: Ipsden | B106: =VLOOKUP(A106,'Locations & Types'!$E:$F,2,FALSE) -> GDN (SO) | C106: 0.1 | D106: 1 | E106: 10
A107: Ipsden 2 | B107: =VLOOKUP(A107,'Locations & Types'!$E:$F,2,FALSE) -> GDN (SO) | C107: 0.1 | D107: 1 | E107: 10
A108: Keld | B108: =VLOOKUP(A108,'Locations & Types'!$E:$F,2,FALSE) -> GDN (NO) | C108: 0.1 | D108: 1 | E108: 10
A109: Kenn | B109: =VLOOKUP(A109,'Locations & Types'!$E:$F,2,FALSE) -> GDN (SW) | C109: 0.1 | D109: 1 | E109: 10
A110: Kinknockie | B110: =VLOOKUP(A110,'Locations & Types'!$E:$F,2,FALSE) -> GDN (SC) | C110: 0.1 | D110: 1 | E110: 10
A111: Kirkstead | B111: =VLOOKUP(A111,'Locations & Types'!$E:$F,2,FALSE) -> GDN (EM) | C111: 0.1 | D111: 1 | E111: 10
A112: Langage Power Station | B112: =VLOOKUP(A112,'Locations & Types'!$E:$F,2,FALSE) -> DC | C112: 0.1 | D112: 1 | E112: 10
A113: Langholm | B113: =VLOOKUP(A113,'Locations & Types'!$E:$F,2,FALSE) -> GDN (SC) | C113: 0.1 | D113: 1 | E113: 10
A114: Lauderhill | B114: =VLOOKUP(A114,'Locations & Types'!$E:$F,2,FALSE) -> GDN (SC) | C114: 0.1 | D114: 1 | E114: 10
A115: Leamington | B115: =VLOOKUP(A115,'Locations & Types'!$E:$F,2,FALSE) -> GDN (WM) | C115: 0.1 | D115: 1 | E115: 10
A116: Little Burdon | B116: =VLOOKUP(A116,'Locations & Types'!$E:$F,2,FALSE) -> GDN (NO) | C116: 0.1 | D116: 1 | E116: 10
A117: Littleton Drew | B117: =VLOOKUP(A117,'Locations & Types'!$E:$F,2,FALSE) -> GDN (SW) | C117: 0.1 | D117: 1 | E117: 10
A118: Lockerbie | B118: =VLOOKUP(A118,'Locations & Types'!$E:$F,2,FALSE) -> GDN (SC) | C118: 0.1 | D118: 1 | E118: 10
A119: Lower Quinton | B119: =VLOOKUP(A119,'Locations & Types'!$E:$F,2,FALSE) -> GDN (WM) | C119: 0.1 | D119: 1 | E119: 10
A120: Lupton | B120: =VLOOKUP(A120,'Locations & Types'!$E:$F,2,FALSE) -> GDN (NW) | C120: 0.1 | D120: 1 | E120: 10
A121: Luxborough Lane | B121: =VLOOKUP(A121,'Locations & Types'!$E:$F,2,FALSE) -> GDN (NT) | C121: 0.1 | D121: 1 | E121: 10
A122: Lyneham (Choakford) | B122: =VLOOKUP(A122,'Locations & Types'!$E:$F,2,FALSE) -> GDN (SW) | C122: 0.1 | D122: 1 | E122: 10
A123: Maelor | B123: =VLOOKUP(A123,'Locations & Types'!$E:$F,2,FALSE) -> GDN (WN) | C123: 0.1 | D123: 1 | E123: 10
A124: Malpas | B124: =VLOOKUP(A124,'Locations & Types'!$E:$F,2,FALSE) -> GDN (NW) | C124: 0.1 | D124: 1 | E124: 10
A125: Mappowder | B125: =VLOOKUP(A125,'Locations & Types'!$E:$F,2,FALSE) -> GDN (SO) | C125: 0.1 | D125: 1 | E125: 10
A126: Marchwood Power Station | B126: =VLOOKUP(A126,'Locations & Types'!$E:$F,2,FALSE) -> DC | C126: 0.1 | D126: 1 | E126: 10
A127: Market Harborough | B127: =VLOOKUP(A127,'Locations & Types'!$E:$F,2,FALSE) -> GDN (EM) | C127: 0.1 | D127: 1 | E127: 10
A128: Matching Green | B128: =VLOOKUP(A128,'Locations & Types'!$E:$F,2,FALSE) -> GDN (EA) | C128: 0.1 | D128: 1 | E128: 10
A129: Medway (aka Isle of Grain Power Station, NOT Grain Power) | B129: =VLOOKUP(A129,'Locations & Types'!$E:$F,2,FALSE) -> DC | C129: 0.1 | D129: 1 | E129: 10
A130: Melkinthorpe | B130: =VLOOKUP(A130,'Locations & Types'!$E:$F,2,FALSE) -> GDN (NO) | C130: 0.1 | D130: 1 | E130: 10
A131: Mickle Trafford | B131: =VLOOKUP(A131,'Locations & Types'!$E:$F,2,FALSE) -> GDN (NW) | C131: 0.1 | D131: 1 | E131: 10
A132: Middle Stoke (Damhead Creek, aka Kingsnorth Power Station) | B132: =VLOOKUP(A132,'Locations & Types'!$E:$F,2,FALSE) -> DC | C132: 0.1 | D132: 1 | E132: 10
A133: Milwich | B133: =VLOOKUP(A133,'Locations & Types'!$E:$F,2,FALSE) -> GDN (WM) | C133: 0.1 | D133: 1 | E133: 10
A134: Moffat (Irish Interconnector) | B134: =VLOOKUP(A134,'Locations & Types'!$E:$F,2,FALSE) -> INTERCONNECTOR | C134: 0.1 | D134: 1 | E134: 10
A135: Netherhowcleugh | B135: =VLOOKUP(A135,'Locations & Types'!$E:$F,2,FALSE) -> GDN (SC) | C135: 0.1 | D135: 1 | E135: 10
A136: Pannal | B136: =VLOOKUP(A136,'Locations & Types'!$E:$F,2,FALSE) -> GDN (NE) | C136: 0.1 | D136: 1 | E136: 10
A137: Partington | B137: =VLOOKUP(A137,'Locations & Types'!$E:$F,2,FALSE) -> GDN (NW) | C137: 0.1 | D137: 1 | E137: 10
A138: Partington Max Refill | B138: =VLOOKUP(A138,'Locations & Types'!$E:$F,2,FALSE) -> STORAGE SITE | C138: 0.1 | D138: 1 | E138: 10
A139: Paull | B139: =VLOOKUP(A139,'Locations & Types'!$E:$F,2,FALSE) -> GDN (NE) | C139: 0.1 | D139: 1 | E139: 10
A140: Pembroke Power Station | B140: =VLOOKUP(A140,'Locations & Types'!$E:$F,2,FALSE) -> DC | C140: 0.1 | D140: 1 | E140: 10
A141: Peterborough (Peterborough Power Station) | B141: =VLOOKUP(A141,'Locations & Types'!$E:$F,2,FALSE) -> DC | C141: 0.1 | D141: 1 | E141: 10
A142: Peterborough Eye (Tee) | B142: =VLOOKUP(A142,'Locations & Types'!$E:$F,2,FALSE) -> GDN (EA) | C142: 0.1 | D142: 1 | E142: 10
A143: Peters Green | B143: =VLOOKUP(A143,'Locations & Types'!$E:$F,2,FALSE) -> GDN (NT) | C143: 0.1 | D143: 1 | E143: 10
A144: Peters Green South Mimms | B144: =VLOOKUP(A144,'Locations & Types'!$E:$F,2,FALSE) -> GDN (NT) | C144: 0.1 | D144: 1 | E144: 10
A145: Phillips Petroleum, Teesside | B145: =VLOOKUP(A145,'Locations & Types'!$E:$F,2,FALSE) -> DC | C145: 0.1 | D145: 1 | E145: 10
A146: Pickering | B146: =VLOOKUP(A146,'Locations & Types'!$E:$F,2,FALSE) -> GDN (NE) | C146: 0.1 | D146: 1 | E146: 10
A147: Pickmere (Winnington Power, aka Brunner Mond) | B147: =VLOOKUP(A147,'Locations & Types'!$E:$F,2,FALSE) -> DC | C147: 0.1 | D147: 1 | E147: 10
A148: Pitcairngreen | B148: =VLOOKUP(A148,'Locations & Types'!$E:$F,2,FALSE) -> GDN (SC) | C148: 0.1 | D148: 1 | E148: 10
A149: Pucklechurch | B149: =VLOOKUP(A149,'Locations & Types'!$E:$F,2,FALSE) -> GDN (SW) | C149: 0.1 | D149: 1 | E149: 10
A150: Rawcliffe | B150: =VLOOKUP(A150,'Locations & Types'!$E:$F,2,FALSE) -> GDN (NE) | C150: 0.1 | D150: 1 | E150: 10
A151: Rollswood Kintore | B151: =VLOOKUP(A151,'Locations & Types'!$E:$F,2,FALSE) -> DC | C151: 0.1 | D151: 1 | E151: 10
A152: Roosecote Power Station (Barrow) | B152: =VLOOKUP(A152,'Locations & Types'!$E:$F,2,FALSE) -> DC | C152: 0.1 | D152: 1 | E152: 10
A153: Rosehill (Saltend Power Station) | B153: =VLOOKUP(A153,'Locations & Types'!$E:$F,2,FALSE) -> DC | C153: 0.1 | D153: 1 | E153: 10
A154: Ross (SW) | B154: =VLOOKUP(A154,'Locations & Types'!$E:$F,2,FALSE) -> GDN (SW) | C154: 0.1 | D154: 1 | E154: 10
A155: Ross (WM) | B155: =VLOOKUP(A155,'Locations & Types'!$E:$F,2,FALSE) -> GDN (WM) | C155: 0.1 | D155: 1 | E155: 10
A156: Roudham Heath | B156: =VLOOKUP(A156,'Locations & Types'!$E:$F,2,FALSE) -> GDN (EA) | C156: 0.1 | D156: 1 | E156: =C156*D156*100 -> 10
A157: Royston | B157: =VLOOKUP(A157,'Locations & Types'!$E:$F,2,FALSE) -> GDN (EA) | C157: 0.1 | D157: 1 | E157: 10
A158: Rugby | B158: =VLOOKUP(A158,'Locations & Types'!$E:$F,2,FALSE) -> GDN (WM) | C158: 0.1 | D158: 1 | E158: 10
A159: Ryehouse | B159: =VLOOKUP(A159,'Locations & Types'!$E:$F,2,FALSE) -> DC | C159: 0.1 | D159: 1 | E159: 10
A160: Saddle Bow (Kings Lynn) | B160: =VLOOKUP(A160,'Locations & Types'!$E:$F,2,FALSE) -> DC | C160: 0.1 | D160: 1 | E160: 10
A161: Saltend BPHP (BP Saltend HP) | B161: =VLOOKUP(A161,'Locations & Types'!$E:$F,2,FALSE) -> DC | C161: 0.1 | D161: 1 | E161: 10
A162: Saltfleetby Storage (Theddlethorpe) | B162: =VLOOKUP(A162,'Locations & Types'!$E:$F,2,FALSE) -> STORAGE SITE | C162: 0.1 | D162: 1 | E162: 10
A163: Saltwick Pressure Controlled | B163: =VLOOKUP(A163,'Locations & Types'!$E:$F,2,FALSE) -> GDN (NO) | C163: 0.1 | D163: 1 | E163: 10
A164: Saltwick Volumetric Controlled | B164: =VLOOKUP(A164,'Locations & Types'!$E:$F,2,FALSE) -> GDN (NO) | C164: 0.1 | D164: 1 | E164: 10
A165: Samlesbury | B165: =VLOOKUP(A165,'Locations & Types'!$E:$F,2,FALSE) -> GDN (NW) | C165: 0.1 | D165: 1 | E165: 10
A166: Sandy Lane (Blackburn CHP, aka Sappi Paper Mill) | B166: =VLOOKUP(A166,'Locations & Types'!$E:$F,2,FALSE) -> DC | C166: 0.1 | D166: 1 | E166: 10
A167: Seabank (DN) | B167: =VLOOKUP(A167,'Locations & Types'!$E:$F,2,FALSE) -> GDN (SW) | C167: 0.1 | D167: 1 | E167: 10
A168: Seabank (Seabank Power Station phase II) | B168: =VLOOKUP(A168,'Locations & Types'!$E:$F,2,FALSE) -> DC | C168: 0.1 | D168: 1 | E168: 10
A169: Seal Sands TGPP | B169: =VLOOKUP(A169,'Locations & Types'!$E:$F,2,FALSE) -> DC | C169: 0.1 | D169: 1 | E169: 10
A170: Sellafield Power Station | B170: =VLOOKUP(A170,'Locations & Types'!$E:$F,2,FALSE) -> DC | C170: 0.1 | D170: 1 | E170: 10
A171: Shellstar (aka Kemira, not Kemira CHP) | B171: =VLOOKUP(A171,'Locations & Types'!$E:$F,2,FALSE) -> DC | C171: 0.1 | D171: 1 | E171: 10
A172: Shorne | B172: =VLOOKUP(A172,'Locations & Types'!$E:$F,2,FALSE) -> GDN (SE) | C172: 0.1 | D172: 1 | E172: 10
A173: Shotwick (Bridgewater Paper) | B173: =VLOOKUP(A173,'Locations & Types'!$E:$F,2,FALSE) -> DC | C173: 0.1 | D173: 1 | E173: 10
A174: Shustoke | B174: =VLOOKUP(A174,'Locations & Types'!$E:$F,2,FALSE) -> GDN (WM) | C174: 0.1 | D174: 1 | E174: 10
A175: Silk Willoughby | B175: =VLOOKUP(A175,'Locations & Types'!$E:$F,2,FALSE) -> GDN (EM) | C175: 0.1 | D175: 1 | E175: 10
A176: Soutra | B176: =VLOOKUP(A176,'Locations & Types'!$E:$F,2,FALSE) -> GDN (SC) | C176: 0.1 | D176: 1 | E176: 10
A177: Spalding 2 (South Holland) Power Station | B177: =VLOOKUP(A177,'Locations & Types'!$E:$F,2,FALSE) -> DC | C177: 0.1 | D177: 1 | E177: 10
A178: St Fergus | B178: =VLOOKUP(A178,'Locations & Types'!$E:$F,2,FALSE) -> GDN (SC) | C178: 0.1 | D178: 1 | E178: 10
A179: St. Fergus (Peterhead) | B179: =VLOOKUP(A179,'Locations & Types'!$E:$F,2,FALSE) -> DC | C179: 0.1 | D179: 1 | E179: 10
A180: St. Fergus (Shell Blackstart) | B180: =VLOOKUP(A180,'Locations & Types'!$E:$F,2,FALSE) -> DC | C180: 0.1 | D180: 1 | E180: 10
A181: St. Neots (Little Barford) | B181: =VLOOKUP(A181,'Locations & Types'!$E:$F,2,FALSE) -> DC | C181: 0.1 | D181: 1 | E181: 10
A182: Stallingborough | B182: =VLOOKUP(A182,'Locations & Types'!$E:$F,2,FALSE) -> DC | C182: 0.1 | D182: 1 | E182: 10
A183: Stanford Le Hope (Coryton) | B183: =VLOOKUP(A183,'Locations & Types'!$E:$F,2,FALSE) -> DC | C183: 0.1 | D183: 1 | E183: 10
A184: Staythorpe | B184: =VLOOKUP(A184,'Locations & Types'!$E:$F,2,FALSE) -> DC | C184: 0.1 | D184: 1 | E184: 10
A185: Stranraer | B185: =VLOOKUP(A185,'Locations & Types'!$E:$F,2,FALSE) -> GDN (SC) | C185: 0.1 | D185: 1 | E185: 10
A186: Stratford-upon-Avon | B186: =VLOOKUP(A186,'Locations & Types'!$E:$F,2,FALSE) -> GDN (WM) | C186: 0.1 | D186: 1 | E186: 10
A187: Stublach (Cheshire) | B187: =VLOOKUP(A187,'Locations & Types'!$E:$F,2,FALSE) -> STORAGE SITE | C187: 0.1 | D187: 1 | E187: 10
A188: Sutton Bridge | B188: =VLOOKUP(A188,'Locations & Types'!$E:$F,2,FALSE) -> GDN (EM) | C188: 0.1 | D188: 1 | E188: 10
A189: Sutton Bridge Power Station | B189: =VLOOKUP(A189,'Locations & Types'!$E:$F,2,FALSE) -> DC | C189: 0.1 | D189: 1 | E189: 10
A190: Tatsfield | B190: =VLOOKUP(A190,'Locations & Types'!$E:$F,2,FALSE) -> GDN (SE) | C190: 0.1 | D190: 1 | E190: 10
A191: Teesside (BASF, aka BASF Teesside) | B191: =VLOOKUP(A191,'Locations & Types'!$E:$F,2,FALSE) -> DC | C191: 0.1 | D191: 1 | E191: 10
A192: Teesside Hydrogen | B192: =VLOOKUP(A192,'Locations & Types'!$E:$F,2,FALSE) -> DC | C192: 0.1 | D192: 1 | E192: 10
A193: Terra Nitrogen (aka ICI, Terra Severnside) | B193: =VLOOKUP(A193,'Locations & Types'!$E:$F,2,FALSE) -> DC | C193: 0.1 | D193: 1 | E193: 10
A194: Thornton Curtis (DN) | B194: =VLOOKUP(A194,'Locations & Types'!$E:$F,2,FALSE) -> GDN (EM) | C194: 0.1 | D194: 1 | E194: 10
A195: Thornton Curtis (Humber Refinery, aka Immingham) | B195: =VLOOKUP(A195,'Locations & Types'!$E:$F,2,FALSE) -> DC | C195: 0.1 | D195: 1 | E195: 10
A196: Thornton Curtis (Killingholme) | B196: =VLOOKUP(A196,'Locations & Types'!$E:$F,2,FALSE) -> DC | C196: 0.1 | D196: 1 | E196: 10
A197: Thrintoft | B197: =VLOOKUP(A197,'Locations & Types'!$E:$F,2,FALSE) -> GDN (NO) | C197: 0.1 | D197: 1 | E197: 10
A198: Tilbury Power Station | B198: =VLOOKUP(A198,'Locations & Types'!$E:$F,2,FALSE) -> DC | C198: 0.1 | D198: 1 | E198: 10
A199: Tonna (Baglan Bay) | B199: =VLOOKUP(A199,'Locations & Types'!$E:$F,2,FALSE) -> DC | C199: 0.1 | D199: 1 | E199: 10
A200: Towlaw | B200: =VLOOKUP(A200,'Locations & Types'!$E:$F,2,FALSE) -> GDN (NO) | C200: 0.1 | D200: 1 | E200: 10
... 22 more rows

Sheet Locations & Types (hidden)
A1: Entry Point | B1: Location Type | E1: Exit Point | F1: Location Type | G1: Exit Zone (if applicable) | H1: Location Type | I1: Location Type
A2: Avonmouth | B2: STORAGE SITE | E2: Aberdeen | F2: GDN (SC) | G2: SC1 | H2: GDN (SC) | I2: DNO
A3: Bacton IP | B3: INTERCONNECTION POINT | E3: Abson (Seabank Power Station phase I) | F3: DC | G3: Other | H3: POWER STATION | I3: POWER STATION
A4: Bacton UKCS | B4: BEACH TERMINAL | E4: Alrewas (EM) | F4: GDN (EM) | G4: EM3 | H4: GDN (EM) | I4: DNO
A5: Barrow | B5: BEACH TERMINAL | E5: Alrewas (WM) | F5: GDN (WM) | G5: WM2 | H5: GDN (WM) | I5: DNO
A6: Barton Stacey | B6: STORAGE SITE | E6: Apache (Sage Black Start) | F6: DC | G6: Other | H6: POWER STATION | I6: POWER STATION
A7: Burton Point | B7: ONSHORE FIELD | E7: Armadale | F7: GDN (SC) | G7: SC2 | H7: GDN (SC) | I7: DNO
A8: Canonbie | B8: ONSHORE FIELD | E8: Aspley | F8: GDN (WM) | G8: WM1 | H8: GDN (WM) | I8: DNO
A9: Caythorpe | B9: STORAGE SITE | E9: Asselby | F9: GDN (NE) | G9: NE1 | H9: GDN (NE) | I9: DNO
A10: Cheshire | B10: STORAGE SITE | E10: Audley (NW) | F10: GDN (NW) | G10: NW2 | H10: GDN (NW) | I10: DNO
A11: Dynevor Arms | B11: STORAGE SITE | E11: Audley (WM) | F11: GDN (WM) | G11: WM1 | H11: GDN (WM) | I11: DNO
A12: Easington | B12: BEACH TERMINAL | E12: Austrey | F12: GDN (WM) | G12: WM2 | H12: GDN (WM) | I12: DNO
A13: Fleetwood | B13: STORAGE SITE | E13: Avonmouth Max Refill | F13: STORAGE SITE | G13: Other | H13: STORAGE SITE | I13: STORAGE SITE
A14: Garton | B14: STORAGE SITE | E14: Aylesbeare | F14: GDN (SW) | G14: SW3 | H14: GDN (SW) | I14: DNO
A15: Glenmavis | B15: STORAGE SITE | E15: Bacton | F15: GDN (EA) | G15: EA1 | H15: GDN (EA) | I15: DNO
A16: Hatfield Moor (onshore) | B16: ONSHORE FIELD | E16: Bacton (Baird) | F16: STORAGE SITE | G16: Other | H16: STORAGE SITE | I16: STORAGE SITE
A17: Hatfield Moor (storage) | B17: STORAGE SITE | E17: Bacton (BBL) | F17: INTERCONNECTOR | G17: Other | H17: INTERCONNECTOR | I17: INTERCONNECTOR
A18: Hole House Farm | B18: STORAGE SITE | E18: Bacton (Great Yarmouth) | F18: DC | G18: Other | H18: POWER STATION | I18: POWER STATION
A19: Hornsea | B19: STORAGE SITE | E19: Bacton (IUK) | F19: INTERCONNECTOR | G19: Other | H19: INTERCONNECTOR | I19: INTERCONNECTOR
A20: Isle of Grain | B20: LNG IMPORTATION TERMINAL | E20: Baldersby | F20: GDN (NE) | G20: NE1 | H20: GDN (NE) | I20: DNO
A21: Milford Haven | B21: LNG IMPORTATION TERMINAL | E21: Balgray | F21: GDN (SC) | G21: SC1 | H21: GDN (SC) | I21: DNO
A22: Partington | B22: STORAGE SITE | E22: Barking (Horndon) | F22: DC | G22: Other | H22: POWER STATION | I22: POWER STATION
A23: Moffat (Irish Interconnector) | B23: INTERCONNECTION POINT | E23: Barrow (Bains) | F23: STORAGE SITE | G23: Other | H23: STORAGE SITE | I23: STORAGE SITE
A24: St Fergus | B24: BEACH TERMINAL | E24: Barrow (Black Start) | F24: DC | G24: Other | H24: INDUSTRIAL | I24: INDUSTRIAL
A25: Teesside | B25: BEACH TERMINAL | E25: Barrow (Gateway) | F25: STORAGE SITE | G25: Other | H25: STORAGE SITE | I25: STORAGE SITE
A26: Theddlethorpe | B26: BEACH TERMINAL | E26: Barton Stacey Max Refill (Humbly Grove) | F26: STORAGE SITE | G26: Other | H26: STORAGE SITE | I26: STORAGE SITE
A27: Wytch Farm | B27: ONSHORE FIELD | E27: Bathgate | F27: GDN (SC) | G27: SC4 | H27: GDN (SC) | I27: DNO
E28: Billingham ICI (Terra Billingham) | F28: DC | G28: Other | H28: INDUSTRIAL | I28: INDUSTRIAL
E29: Bishop Auckland | F29: GDN (NO) | G29: NO1 | H29: GDN (NO) | I29: DNO
E30: Bishop Auckland (test facility) | F30: DC | G30: Other | H30: INDUSTRIAL | I30: INDUSTRIAL
E31: Blaby | F31: GDN (EM) | G31: EM3 | H31: GDN (EM) | I31: DNO
E32: Blackness (BP Grangemouth) | F32: DC | G32: Other | H32: INDUSTRIAL | I32: INDUSTRIAL
E33: Blackrod | F33: GDN (NW) | G33: NW1 | H33: GDN (NW) | I33: DNO
E34: Blyborough | F34: GDN (EM) | G34: EM2 | H34: GDN (EM) | I34: DNO
E35: Blyborough (Brigg) | F35: DC | G35: Other | H35: POWER STATION | I35: POWER STATION
E36: Blyborough (Cottam) | F36: DC | G36: Other | H36: POWER STATION | I36: POWER STATION
E37: Braishfield A | F37: GDN (SO) | G37: SO2 | H37: GDN (SO) | I37: DNO
E38: Braishfield B | F38: GDN (SO) | G38: SO2 | H38: GDN (SO) | I38: DNO
E39: Brine Field (Teesside) Power Station | F39: DC | G39: Other | H39: POWER STATION | I39: POWER STATION
E40: Brisley | F40: GDN (EA) | G40: EA1 | H40: GDN (EA) | I40: DNO
E41: Broxburn | F41: GDN (SC) | G41: SC2 | H41: GDN (SC) | I41: DNO
E42: Burley Bank | F42: GDN (NE) | G42: NE1 | H42: GDN (NE) | I42: DNO
E43: Burnhervie | F43: GDN (SC) | G43: SC1 | H43: GDN (SC) | I43: DNO
E44: Burton Point (Connahs Quay) | F44: DC | G44: Other | H44: POWER STATION | I44: POWER STATION
E45: Caldecott | F45: GDN (EM) | G45: EM4 | H45: GDN (EM) | I45: DNO
E46: Caldecott (Corby Power Station) | F46: DC | G46: Other | H46: POWER STATION | I46: POWER STATION
E47: Cambridge | F47: GDN (EA) | G47: EA4 | H47: GDN (EA) | I47: DNO
E48: Careston | F48: GDN (SC) | G48: SC1 | H48: GDN (SC) | I48: DNO
E49: Carrington (Partington) Power Station | F49: DC | G49: Other | H49: POWER STATION | I49: POWER STATION
E50: Caythorpe | F50: STORAGE SITE | G50: Other | H50: STORAGE SITE | I50: STORAGE SITE
E51: Centrax Industrial | F51: DC | G51: Other | H51: INDUSTRIAL | I51: INDUSTRIAL
E52: Cirencester | F52: GDN (SW) | G52: SW2 | H52: GDN (SW) | I52: DNO
E53: Cockenzie Power Station | F53: DC | G53: Other | H53: POWER STATION | I53: POWER STATION
E54: Coffinswell | F54: GDN (SW) | G54: SW3 | H54: GDN (SW) | I54: DNO
E55: Coldstream | F55: GDN (NO) | G55: NO1 | H55: GDN (NO) | I55: DNO
E56: Corbridge | F56: GDN (NO) | G56: NO1 | H56: GDN (NO) | I56: DNO
E57: Coryton 2 (Thames Haven) Power Station | F57: DC | G57: Other | H57: POWER STATION | I57: POWER STATION
E58: Cowpen Bewley | F58: GDN (NO) | G58: NO1 | H58: GDN (NO) | I58: DNO
E59: Crawley Down | F59: GDN (SO) | G59: SO2 | H59: GDN (SO) | I59: DNO
E60: Deborah Storage (Bacton) | F60: STORAGE SITE | G60: Other | H60: STORAGE SITE | I60: STORAGE SITE
E61: Deeside | F61: DC | G61: Other | H61: POWER STATION | I61: POWER STATION
E62: Didcot | F62: DC | G62: Other | H62: POWER STATION | I62: POWER STATION
E63: Dowlais | F63: GDN (WS) | G63: WS | H63: GDN (WS) | I63: DNO
E64: Drakelow Power Station | F64: DC | G64: Other | H64: POWER STATION | I64: POWER STATION
E65: Drointon | F65: GDN (EM) | G65: EM3 | H65: GDN (EM) | I65: DNO
E66: Drum | F66: GDN (SC) | G66: SC4 | H66: GDN (SC) | I66: DNO
E67: Dyffryn Clydach | F67: GDN (WS) | G67: WS | H67: GDN (WS) | I67: DNO
E68: Dynevor Max Refill | F68: STORAGE SITE | G68: Other | H68: STORAGE SITE | I68: STORAGE SITE
E69: Eastoft (Keadby Blackstart) | F69: DC | G69: Other | H69: POWER STATION | I69: POWER STATION
E70: Eastoft (Keadby) | F70: DC | G70: Other | H70: POWER STATION | I70: POWER STATION
E71: Easton Grey | F71: GDN (SW) | G71: SW2 | H71: GDN (SW) | I71: DNO
E72: Ecclestone | F72: GDN (NW) | G72: NW2 | H72: GDN (NW) | I72: DNO
E73: Elton | F73: GDN (NO) | G73: NO1 | H73: GDN (NO) | I73: DNO
E74: Enron Billingham | F74: DC | G74: Other | H74: POWER STATION | I74: POWER STATION
E75: Epping Green (Enfield Energy, aka Brimsdown) | F75: DC | G75: Other | H75: POWER STATION | I75: POWER STATION
E76: Evesham | F76: GDN (SW) | G76: SW1 | H76: GDN (SW) | I76: DNO
E77: Farningham | F77: GDN (SE) | G77: SE1 | H77: GDN (SE) | I77: DNO
E78: Farningham B | F78: GDN (SE) | G78: SE1 | H78: GDN (SE) | I78: DNO
E79: Ferny Knoll (AM Paper) | F79: DC | G79: Other | H79: INDUSTRIAL | I79: INDUSTRIAL
E80: Fiddington | F80: GDN (SW) | G80: SW1 | H80: GDN (SW) | I80: DNO
E81: Ganstead | F81: GDN (NE) | G81: NE2 | H81: GDN (NE) | I81: DNO
E82: Garton Max Refill (Aldbrough) | F82: STORAGE SITE | G82: Other | H82: STORAGE SITE | I82: STORAGE SITE
E83: Gilwern | F83: GDN (WS) | G83: WS | H83: GDN (WS) | I83: DNO
E84: Glenmavis | F84: GDN (SC) | G84: SC4 | H84: GDN (SC) | I84: DNO
E85: Glenmavis Max Refill | F85: STORAGE SITE | G85: Other | H85: STORAGE SITE | I85: STORAGE SITE
E86: Goole (Guardian Glass) | F86: DC | G86: Other | H86: INDUSTRIAL | I86: INDUSTRIAL
E87: Gosberton | F87: GDN (EM) | G87: EM2 | H87: GDN (EM) | I87: DNO
E88: Gowkhall (Longannet) | F88: DC | G88: Other | H88: POWER STATION | I88: POWER STATION
E89: Grain Power Station | F89: DC | G89: Other | H89: POWER STATION | I89: POWER STATION
E90: Great Wilbraham | F90: GDN (EA) | G90: EA2 | H90: GDN (EA) | I90: DNO
E91: Guyzance | F91: GDN (NO) | G91: NO1 | H91: GDN (NO) | I91: DNO
E92: Hardwick | F92: GDN (SO) | G92: SO1 | H92: GDN (SO) | I92: DNO
E93: Harwarden (Shotton, aka Shotton Paper) | F93: DC | G93: Other | H93: INDUSTRIAL | I93: INDUSTRIAL
E94: Hatfield Moor Max Refill | F94: STORAGE SITE | G94: Other | H94: STORAGE SITE | I94: STORAGE SITE
E95: Hatfield Power Station | F95: DC | G95: Other | H95: POWER STATION | I95: POWER STATION
E96: Hill Top Farm (Hole House Farm) | F96: STORAGE SITE | G96: Other | H96: STORAGE SITE | I96: STORAGE SITE
E97: Hole House Max Refill | F97: STORAGE SITE | G97: Other | H97: STORAGE SITE | I97: STORAGE SITE
E98: Holford | F98: STORAGE SITE | G98: Other | H98: STORAGE SITE | I98: STORAGE SITE
E99: Hollingsgreen (Hays Chemicals) | F99: DC | G99: Other | H99: INDUSTRIAL | I99: INDUSTRIAL
E100: Holmes Chapel | F100: GDN (NW) | G100: NW2 | H100: GDN (NW) | I100: DNO
E101: Horndon | F101: GDN (NT) | G101: NT2 | H101: GDN (NT) | I101: DNO
E102: Hornsea Max Refill | F102: STORAGE SITE | G102: Other | H102: STORAGE SITE | I102: STORAGE SITE
E103: Humbleton | F103: GDN (NO) | G103: NO1 | H103: GDN (NO) | I103: DNO
E104: Hume | F104: GDN (SC) | G104: SC2 | H104: GDN (SC) | I104: DNO
E105: Ilchester | F105: GDN (SW) | G105: SW2 | H105: GDN (SW) | I105: DNO
E106: Ipsden | F106: GDN (SO) | G106: SO2 | H106: GDN (SO) | I106: DNO
E107: Ipsden 2 | F107: GDN (SO) | G107: SO2 | H107: GDN (SO) | I107: DNO
E108: Keld | F108: GDN (NO) | G108: NO2 | H108: GDN (NO) | I108: DNO
E109: Kenn | F109: GDN (SW) | G109: SW3 | H109: GDN (SW) | I109: DNO
E110: Kinknockie | F110: GDN (SC) | G110: SC1 | H110: GDN (SC) | I110: DNO
E111: Kirkstead | F111: GDN (EM) | G111: EM2 | H111: GDN (EM) | I111: DNO
E112: Langage Power Station | F112: DC | G112: Other | H112: POWER STATION | I112: POWER STATION
E113: Langholm | F113: GDN (SC) | G113: SC4 | H113: GDN (SC) | I113: DNO
E114: Lauderhill | F114: GDN (SC) | G114: SC2 | H114: GDN (SC) | I114: DNO
E115: Leamington | F115: GDN (WM) | G115: WM3 | H115: GDN (WM) | I115: DNO
E116: Little Burdon | F116: GDN (NO) | G116: NO1 | H116: GDN (NO) | I116: DNO
E117: Littleton Drew | F117: GDN (SW) | G117: SW2 | H117: GDN (SW) | I117: DNO
E118: Lockerbie | F118: GDN (SC) | G118: SC4 | H118: GDN (SC) | I118: DNO
E119: Lower Quinton | F119: GDN (WM) | G119: WM3 | H119: GDN (WM) | I119: DNO
E120: Lupton | F120: GDN (NW) | G120: NW1 | H120: GDN (NW) | I120: DNO
E121: Luxborough Lane | F121: GDN (NT) | G121: NT2 | H121: GDN (NT) | I121: DNO
E122: Lyneham (Choakford) | F122: GDN (SW) | G122: SW3 | H122: GDN (SW) | I122: DNO
E123: Maelor | F123: GDN (WN) | G123: WN | H123: GDN (WN) | I123: DNO
E124: Malpas | F124: GDN (NW) | G124: NW2 | H124: GDN (NW) | I124: DNO
E125: Mappowder | F125: GDN (SO) | G125: SO2 | H125: GDN (SO) | I125: DNO
E126: Marchwood Power Station | F126: DC | G126: Other | H126: POWER STATION | I126: POWER STATION
E127: Market Harborough | F127: GDN (EM) | G127: EM4 | H127: GDN (EM) | I127: DNO
E128: Matching Green | F128: GDN (EA) | G128: EA4 | H128: GDN (EA) | I128: DNO
E129: Medway (aka Isle of Grain Power Station, NOT Grain Power) | F129: DC | G129: Other | H129: POWER STATION | I129: POWER STATION
E130: Melkinthorpe | F130: GDN (NO) | G130: NO2 | H130: GDN (NO) | I130: DNO
E131: Mickle Trafford | F131: GDN (NW) | G131: NW2 | H131: GDN (NW) | I131: DNO
E132: Middle Stoke (Damhead Creek, aka Kingsnorth Power Station) | F132: DC | G132: Other | H132: POWER STATION | I132: POWER STATION
E133: Milwich | F133: GDN (WM) | G133: WM1 | H133: GDN (WM) | I133: DNO
E134: Moffat (Irish Interconnector) | F134: INTERCONNECTOR | G134: Other | H134: INTERCONNECTOR | I134: INTERCONNECTOR
E135: Netherhowcleugh | F135: GDN (SC) | G135: SC4 | H135: GDN (SC) | I135: DNO
E136: Pannal | F136: GDN (NE) | G136: NE1 | H136: GDN (NE) | I136: DNO
E137: Partington | F137: GDN (NW) | G137: NW2 | H137: GDN (NW) | I137: DNO
E138: Partington Max Refill | F138: STORAGE SITE | G138: Other | H138: STORAGE SITE | I138: STORAGE SITE
E139: Paull | F139: GDN (NE) | G139: NE3 | H139: GDN (NE) | I139: DNO
E140: Pembroke Power Station | F140: DC | G140: Other | H140: POWER STATION | I140: POWER STATION
E141: Peterborough (Peterborough Power Station) | F141: DC | G141: Other | H141: POWER STATION | I141: POWER STATION
E142: Peterborough Eye (Tee) | F142: GDN (EA) | G142: EA1 | H142: GDN (EA) | I142: DNO
E143: Peters Green | F143: GDN (NT) | G143: NT3 | H143: GDN (NT) | I143: DNO
E144: Peters Green South Mimms | F144: GDN (NT) | G144: NT3 | H144: GDN (NT) | I144: DNO
E145: Phillips Petroleum, Teesside | F145: DC | G145: Other | H145: INDUSTRIAL | I145: INDUSTRIAL
E146: Pickering | F146: GDN (NE) | G146: NE2 | H146: GDN (NE) | I146: DNO
E147: Pickmere (Winnington Power, aka Brunner Mond) | F147: DC | G147: Other | H147: INDUSTRIAL | I147: INDUSTRIAL
E148: Pitcairngreen | F148: GDN (SC) | G148: SC1 | H148: GDN (SC) | I148: DNO
E149: Pucklechurch | F149: GDN (SW) | G149: SW2 | H149: GDN (SW) | I149: DNO
E150: Rawcliffe | F150: GDN (NE) | G150: NE1 | H150: GDN (NE) | I150: DNO
E151: Rollswood Kintore | F151: DC | G151: Other | H151: INDUSTRIAL | I151: INDUSTRIAL
E152: Roosecote Power Station (Barrow) | F152: DC | G152: Other | H152: POWER STATION | I152: POWER STATION
E153: Rosehill (Saltend Power Station) | F153: DC | G153: Other | H153: POWER STATION | I153: POWER STATION
E154: Ross (SW) | F154: GDN (SW) | G154: SW1 | H154: GDN (SW) | I154: DNO
E155: Ross (WM) | F155: GDN (WM) | G155: WM3 | H155: GDN (WM) | I155: DNO
E156: Roudham Heath | F156: GDN (EA) | G156: EA2 | H156: GDN (EA) | I156: DNO
E157: Royston | F157: GDN (EA) | G157: EA4 | H157: GDN (EA) | I157: DNO
E158: Rugby | F158: GDN (WM) | G158: WM3 | H158: GDN (WM) | I158: DNO
E159: Ryehouse | F159: DC | G159: Other | H159: POWER STATION | I159: POWER STATION
E160: Saddle Bow (Kings Lynn) | F160: DC | G160: Other | H160: POWER STATION | I160: POWER STATION
E161: Saltend BPHP (BP Saltend HP) | F161: DC | G161: Other | H161: INDUSTRIAL | I161: INDUSTRIAL
E162: Saltfleetby Storage (Theddlethorpe) | F162: STORAGE SITE | G162: Other | H162: STORAGE SITE | I162: STORAGE SITE
E163: Saltwick Pressure Controlled | F163: GDN (NO) | G163: NO1 | H163: GDN (NO) | I163: DNO
E164: Saltwick Volumetric Controlled | F164: GDN (NO) | G164: NO1 | H164: GDN (NO) | I164: DNO
E165: Samlesbury | F165: GDN (NW) | G165: NW1 | H165: GDN (NW) | I165: DNO
E166: Sandy Lane (Blackburn CHP, aka Sappi Paper Mill) | F166: DC | G166: Other | H166: INDUSTRIAL | I166: INDUSTRIAL
E167: Seabank (DN) | F167: GDN (SW) | G167: SW2 | H167: GDN (SW) | I167: DNO
E168: Seabank (Seabank Power Station phase II) | F168: DC | G168: Other | H168: POWER STATION | I168: POWER STATION
E169: Seal Sands TGPP | F169: DC | G169: Other | H169: INDUSTRIAL | I169: INDUSTRIAL
E170: Sellafield Power Station | F170: DC | G170: Other | H170: POWER STATION | I170: POWER STATION
E171: Shellstar (aka Kemira, not Kemira CHP) | F171: DC | G171: Other | H171: INDUSTRIAL | I171: INDUSTRIAL
E172: Shorne | F172: GDN (SE) | G172: SE1 | H172: GDN (SE) | I172: DNO
E173: Shotwick (Bridgewater Paper) | F173: DC | G173: Other | H173: INDUSTRIAL | I173: INDUSTRIAL
E174: Shustoke | F174: GDN (WM) | G174: WM2 | H174: GDN (WM) | I174: DNO
E175: Silk Willoughby | F175: GDN (EM) | G175: EM2 | H175: GDN (EM) | I175: DNO
E176: Soutra | F176: GDN (SC) | G176: SC2 | H176: GDN (SC) | I176: DNO
E177: Spalding 2 (South Holland) Power Station | F177: DC | G177: Other | H177: POWER STATION | I177: POWER STATION
E178: St Fergus | F178: GDN (SC) | G178: SC1 | H178: GDN (SC) | I178: DNO
E179: St. Fergus (Peterhead) | F179: DC | G179: Other | H179: POWER STATION | I179: POWER STATION
E180: St. Fergus (Shell Blackstart) | F180: DC | G180: Other | H180: INDUSTRIAL | I180: INDUSTRIAL
E181: St. Neots (Little Barford) | F181: DC | G181: Other | H181: POWER STATION | I181: POWER STATION
E182: Stallingborough | F182: DC | G182: Other | H182: POWER STATION | I182: POWER STATION
E183: Stanford Le Hope (Coryton) | F183: DC | G183: Other | H183: POWER STATION | I183: POWER STATION
E184: Staythorpe | F184: DC | G184: Other | H184: POWER STATION | I184: POWER STATION
E185: Stranraer | F185: GDN (SC) | G185: SC4 | H185: GDN (SC) | I185: DNO
E186: Stratford-upon-Avon | F186: GDN (WM) | G186: WM3 | H186: GDN (WM) | I186: DNO
E187: Stublach (Cheshire) | F187: STORAGE SITE | G187: Other | H187: STORAGE SITE | I187: STORAGE SITE
E188: Sutton Bridge | F188: GDN (EM) | G188: EM2 | H188: GDN (EM) | I188: DNO
E189: Sutton Bridge Power Station | F189: DC | G189: Other | H189: POWER STATION | I189: POWER STATION
E190: Tatsfield | F190: GDN (SE) | G190: SE1 | H190: GDN (SE) | I190: DNO
E191: Teesside (BASF, aka BASF Teesside) | F191: DC | G191: Other | H191: INDUSTRIAL | I191: INDUSTRIAL
E192: Teesside Hydrogen | F192: DC | G192: Other | H192: INDUSTRIAL | I192: INDUSTRIAL
E193: Terra Nitrogen (aka ICI, Terra Severnside) | F193: DC | G193: Other | H193: INDUSTRIAL | I193: INDUSTRIAL
E194: Thornton Curtis (DN) | F194: GDN (EM) | G194: EM1 | H194: GDN (EM) | I194: DNO
E195: Thornton Curtis (Humber Refinery, aka Immingham) | F195: DC | G195: Other | H195: INDUSTRIAL | I195: INDUSTRIAL
E196: Thornton Curtis (Killingholme) | F196: DC | G196: Other | H196: POWER STATION | I196: POWER STATION
E197: Thrintoft | F197: GDN (NO) | G197: NO1 | H197: GDN (NO) | I197: DNO
E198: Tilbury Power Station | F198: DC | G198: Other | H198: POWER STATION | I198: POWER STATION
E199: Tonna (Baglan Bay) | F199: DC | G199: Other | H199: POWER STATION | I199: POWER STATION
E200: Towlaw | F200: GDN (NO) | G200: NO2 | H200: GDN (NO) | I200: DNO
... 21 more rows

Sheet Existing Contracts - Entry
A1: Gas Year | B1: ='Drop Down Inputs'!A15 -> 01-Oct-2016 to 30-Sep-2017 | C1: ='Drop Down Inputs'!A16 -> 01-Oct-2017 to 30-Sep-2018 | D1: ='Drop Down Inputs'!A17 -> 01-Oct-2018 to 30-Sep-2019 | E1: ='Drop Down Inputs'!A18 -> 01-Oct-2019 to 30-Sep-2020 | F1: ='Drop Down Inputs'!A19 -> 01-Oct-2020 to 30-Sep-2021 | G1: ='Drop Down Inputs'!A20 -> 01-Oct-2021 to 30-Sep-2022 | H1: 01-Oct-2022 to 30-Sep-2023 | I1: 01-Oct-2023 to 30-Sep-2024 | J1: 01-Oct-2024 to 30-Sep-2025 | K1: 01-Oct-2025 to 30-Sep-2026 | L1: 01-Oct-2026 to 30-Sep-2027 | M1: 01-Oct-2027 to 30-Sep-2028 | N1: 01-Oct-2028 to 30-Sep-2029 | O1: 01-Oct-2029 to 30-Sep-2030 | P1: 01-Oct-2030 to 30-Sep-2031
A2: Entry Point | B2: Existing Contracts (kWh/d) | C2: Existing Contracts (kWh/d) | D2: Existing Contracts (kWh/d) | E2: Existing Contracts (kWh/d) | F2: Existing Contracts (kWh/d) | G2: Existing Contracts (kWh/d) | H2: Existing Contracts (kWh/d) | I2: Existing Contracts (kWh/d) | J2: Existing Contracts (kWh/d) | K2: Existing Contracts (kWh/d) | L2: Existing Contracts (kWh/d) | M2: Existing Contracts (kWh/d) | N2: Existing Contracts (kWh/d) | O2: Existing Contracts (kWh/d) | P2: Existing Contracts (kWh/d)
A3: Avonmouth | B3: 0 | C3: 0 | D3: 0 | E3: 0 | F3: 0 | G3: 0 | H3: 0 | I3: 0 | J3: 0 | K3: 0 | L3: 0 | M3: 0 | N3: 0 | O3: 0 | P3: 0
A4: Bacton IP | B4: 211850257.2 | C4: 135532701.6 | D4: 89136101.67 | E4: 89258918.6 | F4: 92162298.55 | G4: 44200041.86 | H4: 28676367.86 | I4: 28916392.61 | J4: 28598630.05 | K4: 0 | L4: 0 | M4: 0 | N4: 0 | O4: 0 | P4: 0
A5: Bacton UKCS | B5: 255185717.9 | C5: 248808024.8 | D5: 243317684.9 | E5: 239339580.5 | F5: 210556462.9 | G5: 203081277.9 | H5: 198902231.4 | I5: 274357136.4 | J5: 196760730.5 | K5: 152373059.2 | L5: 0 | M5: 0 | N5: 0 | O5: 0 | P5: 0
A6: Burton Point | B6: 39656912.17 | C6: 31243264.59 | D6: 14936970.81 | E6: 11545376.78 | F6: 7134731.107 | G6: 0 | H6: 0 | I6: 0 | J6: 0 | K6: 0 | L6: 0 | M6: 0 | N6: 0 | O6: 0 | P6: 0
A7: Barrow | B7: 98691763.19 | C7: 83639566.25 | D7: 75516797.68 | E7: 45116444.12 | F7: 28613480.99 | G7: 25140906.36 | H7: 17878570.79 | I7: 15836387.01 | J7: 372130.674 | K7: 0 | L7: 0 | M7: 0 | N7: 0 | O7: 0 | P7: 0
A8: Barton Stacey | B8: 90000000 | C8: 90000000 | D8: 90000000 | E8: 90246575.34 | F8: 44876712.33 | G8: 0 | H8: 0 | I8: 0 | J8: 0 | K8: 0 | L8: 0 | M8: 0 | N8: 0 | O8: 0 | P8: 0
A9: Canonbie | B9: 0 | C9: 0 | D9: 0 | E9: 0 | F9: 0 | G9: 0 | H9: 0 | I9: 0 | J9: 0 | K9: 0 | L9: 0 | M9: 0 | N9: 0 | O9: 0 | P9: 0
A10: Cheshire | B10: 514110000 | C10: 466327071.8 | D10: 514110000 | E10: 515518520.5 | F10: 514110000 | G10: 514110000 | H10: 514110000 | I10: 515518520.5 | J10: 514110000 | K10: 514110000 | L10: 514110000 | M10: 515518520.5 | N10: 514110000 | O10: 514110000 | P10: 514110000
A11: Caythorpe | B11: 90000000 | C11: 90000000 | D11: 90000000 | E11: 90246575.34 | F11: 90000000 | G11: 90000000 | H11: 90000000 | I11: 90246575.34 | J11: 44876712.33 | K11: 0 | L11: 0 | M11: 0 | N11: 0 | O11: 0 | P11: 0
A12: Dynevor Arms | B12: 0 | C12: 0 | D12: 0 | E12: 0 | F12: 0 | G12: 0 | H12: 0 | I12: 0 | J12: 0 | K12: 0 | L12: 0 | M12: 0 | N12: 0 | O12: 0 | P12: 0
A13: Easington | B13: 614523291.9 | C13: 740130504.5 | D13: 732283664.6 | E13: 705809099 | F13: 551783516.2 | G13: 333966265.3 | H13: 584865279.7 | I13: 492740191.8 | J13: 439116023.8 | K13: 393349125.9 | L13: 326978082.2 | M13: 241660274 | N13: 0 | O13: 0 | P13: 0
A14: Fleetwood | B14: 0 | C14: 0 | D14: 0 | E14: 0 | F14: 0 | G14: 0 | H14: 0 | I14: 0 | J14: 86301369.86 | K14: 0 | L14: 0 | M14: 0 | N14: 0 | O14: 0 | P14: 0
A15: Glenmavis | B15: 0 | C15: 0 | D15: 0 | E15: 0 | F15: 0 | G15: 0 | H15: 0 | I15: 0 | J15: 0 | K15: 0 | L15: 0 | M15: 0 | N15: 0 | O15: 0 | P15: 0
A16: Garton | B16: 420000000 | C16: 420000000 | D16: 420000000 | E16: 421150684.9 | F16: 420000000 | G16: 420000000 | H16: 279616438.4 | I16: 70191780.82 | J16: 0 | K16: 0 | L16: 0 | M16: 0 | N16: 0 | O16: 0 | P16: 0
A17: Hole House Farm | B17: 283440000 | C17: 283440000 | D17: 283440000 | E17: 284216547.9 | F17: 283440000 | G17: 283440000 | H17: 283440000 | I17: 284216547.9 | J17: 283440000 | K17: 283440000 | L17: 118440000 | M17: 118764493.2 | N17: 118440000 | O17: 0 | P17: 0
A18: Hatfield Moor (onshore) | B18: 0 | C18: 0 | D18: 0 | E18: 0 | F18: 0 | G18: 0 | H18: 0 | I18: 0 | J18: 0 | K18: 0 | L18: 0 | M18: 0 | N18: 0 | O18: 0 | P18: 0
A19: Hornsea | B19: 100674794.5 | C19: 100674794.5 | D19: 50742739.73 | E19: 51306547.95 | F19: 50742739.73 | G19: 50742739.73 | H19: 50742739.73 | I19: 0 | J19: 0 | K19: 0 | L19: 0 | M19: 0 | N19: 0 | O19: 0 | P19: 0
A20: Hatfield Moor (storage) | B20: 5424657.534 | C20: 5424657.534 | D20: 5424657.534 | E20: 5484931.507 | F20: 5424657.534 | G20: 5424657.534 | H20: 0 | I20: 5484931.507 | J20: 5424657.534 | K20: 0 | L20: 0 | M20: 0 | N20: 0 | O20: 0 | P20: 0
A21: Isle of Grain | B21: 608296985.8 | C21: 643392876.7 | D21: 643392876.7 | E21: 645212876.7 | F21: 643392876.7 | G21: 623338082.2 | H21: 623338082.2 | I21: 595075890.4 | J21: 482435616.4 | K21: 422600000 | L21: 422600000 | M21: 423757808.2 | N21: 350000000 | O21: 0 | P21: 0
A22: Milford Haven | B22: 876298630.1 | C22: 876298630.1 | D22: 876298630.1 | E22: 929038356.2 | F22: 649178082.2 | G22: 574383561.6 | H22: 398904109.6 | I22: 393408219.2 | J22: 361095890.4 | K22: 361095890.4 | L22: 361095890.4 | M22: 199452054.8 | N22: 197260274 | O22: 160273972.6 | P22: 0
A23: Partington | B23: 0 | C23: 0 | D23: 0 | E23: 0 | F23: 0 | G23: 0 | H23: 0 | I23: 0 | J23: 0 | K23: 0 | L23: 0 | M23: 0 | N23: 0 | O23: 0 | P23: 0
A24: Moffat (Irish Interconnector) | B24: 0 | C24: 0 | D24: 0 | E24: 0 | F24: 0 | G24: 0 | H24: 0 | I24: 0 | J24: 0 | K24: 0 | L24: 0 | M24: 0 | N24: 0 | O24: 0 | P24: 0
A25: St Fergus | B25: 253741793.2 | C25: 243377936.6 | D25: 121747002.1 | E25: 71325207.77 | F25: 50907040.28 | G25: 26953626.24 | H25: 22724183.88 | I25: 15591894.8 | J25: 5236705.808 | K25: 3005859.545 | L25: 0 | M25: 0 | N25: 0 | O25: 0 | P25: 0
A26: Teesside | B26: 163817316 | C26: 123628749.8 | D26: 95112509.79 | E26: 81794006.44 | F26: 51920075.96 | G26: 34038113.08 | H26: 9764066.775 | I26: 1866477.677 | J26: 863413.6274 | K26: 181819.726 | L26: 0 | M26: 0 | N26: 0 | O26: 0 | P26: 0
A27: Theddlethorpe | B27: 26073373.67 | C27: 16769692.16 | D27: 10700821.92 | E27: 8573424.658 | F27: 0 | G27: 0 | H27: 0 | I27: 0 | J27: 0 | K27: 0 | L27: 0 | M27: 0 | N27: 0 | O27: 0 | P27: 0
A28: Wytch Farm | B28: 0 | C28: 0 | D28: 0 | E28: 0 | F28: 0 | G28: 0 | H28: 0 | I28: 0 | J28: 0 | K28: 0 | L28: 0 | M28: 0 | N28: 0 | O28: 0 | P28: 0
A29: Total Capacity (kWh/d) | B29: =SUM(B3:B28) -> 4651785493 | C29: 4598688471 | D29: 4356160458 | E29: 4285183674 | F29: 3694242674 | G29: 3228819272 | H29: 3102962070 | I29: 2783450946 | J29: 2448631881 | K29: 2130155755 | L29: 1743223973 | M29: 1499153151 | N29: 1179810274 | O29: 674383972.6 | P29: 514110000
A30: Total Revenue (£/annum) | B30: 79512694.86 | C30: 78607734.24 | D30: 59783632.15 | E30: 49698418 | F30: 50986340.57 | G30: 46506799.9 | H30: 45842709.85 | I30: 60559773.46 | J30: 50339439.78 | K30: 45066118.26 | L30: 37394005.75 | M30: 25210526.9 | N30: 15151880.75 | O30: 12180664.26 | P30: 187650.15

Sheet 16-17 FCC - Entry (hidden)
A1: Entry Point | B1: Entry Point Type | C1: Obligated Entry Capacity | D1: Enduring Entry Capacity Scenario | E1: Historical Sold Entry Capacity Levels | F1: Historical Entry Flow Levels
C2: (kWh/d) | D2: (kWh/d) | E2: (kWh/d) | F2: (kWh/d)
A3: Avonmouth | B3: =VLOOKUP(A3,'Locations & Types'!$A:$B,2,FALSE) -> STORAGE SITE | C3: 179300000 | D3: =F3 -> 1520429.077 | E3: 95491112.66 | F3: 1520429.077
A4: Bacton IP | B4: =VLOOKUP(A4,'Locations & Types'!$A:$B,2,FALSE) -> INTERCONNECTION POINT | C4: 1297800000 | D4: =F4 -> 121923629.7 | E4: 709653797.2 | F4: 121923629.7
A5: Bacton UKCS | B5: =VLOOKUP(A5,'Locations & Types'!$A:$B,2,FALSE) -> BEACH TERMINAL | C5: 485600000 | D5: 314195775.5 | E5: 788918770.1 | F5: 314195775.5
A6: Burton Point | B6: =VLOOKUP(A6,'Locations & Types'!$A:$B,2,FALSE) -> ONSHORE FIELD | C6: 73500000 | D6: 8761255.096 | E6: 67706970.84 | F6: 8761255.096
A7: Barrow | B7: =VLOOKUP(A7,'Locations & Types'!$A:$B,2,FALSE) -> BEACH TERMINAL | C7: 340010000 | D7: 38682778.19 | E7: 246833253.4 | F7: 38682778.19
A8: Barton Stacey | B8: =VLOOKUP(A8,'Locations & Types'!$A:$B,2,FALSE) -> STORAGE SITE | C8: 172600000 | D8: 10261349.33 | E8: 90286722.05 | F8: 10261349.33
A9: Canonbie | B9: =VLOOKUP(A9,'Locations & Types'!$A:$B,2,FALSE) -> ONSHORE FIELD | C9: 0 | D9: 0 | E9: 0 | F9: 0
A10: Cheshire | B10: =VLOOKUP(A10,'Locations & Types'!$A:$B,2,FALSE) -> STORAGE SITE | C10: 542700000 | D10: 41530662.44 | E10: 550375322.4 | F10: 41530662.44
A11: Caythorpe | B11: =VLOOKUP(A11,'Locations & Types'!$A:$B,2,FALSE) -> STORAGE SITE | C11: 90000000 | D11: 0 | E11: 90246575.34 | F11: 0
A12: Dynevor Arms | B12: =VLOOKUP(A12,'Locations & Types'!$A:$B,2,FALSE) -> STORAGE SITE | C12: 49000000 | D12: 0 | E12: 0 | F12: 0
A13: Easington | B13: =VLOOKUP(A13,'Locations & Types'!$A:$B,2,FALSE) -> BEACH TERMINAL | C13: 1407150000 | D13: 624305440.6 | E13: 1745049080 | F13: 624305440.6
A14: Fleetwood | B14: =VLOOKUP(A14,'Locations & Types'!$A:$B,2,FALSE) -> STORAGE SITE | C14: 650000000 | D14: 0 | E14: 0 | F14: 0
A15: Glenmavis | B15: =VLOOKUP(A15,'Locations & Types'!$A:$B,2,FALSE) -> STORAGE SITE | C15: 99000000 | D15: 0 | E15: 0 | F15: 0
A16: Garton | B16: =VLOOKUP(A16,'Locations & Types'!$A:$B,2,FALSE) -> STORAGE SITE | C16: 420000000 | D16: 29593765.3 | E16: 421150684.9 | F16: 29593765.3
A17: Hole House Farm | B17: =VLOOKUP(A17,'Locations & Types'!$A:$B,2,FALSE) -> STORAGE SITE | C17: 296600000 | D17: 7788777.047 | E17: 297412602.7 | F17: 7788777.047
A18: Hatfield Moor (onshore) | B18: =VLOOKUP(A18,'Locations & Types'!$A:$B,2,FALSE) -> ONSHORE FIELD | C18: 300000 | D18: 0 | E18: 0 | F18: 0
A19: Hornsea | B19: =VLOOKUP(A19,'Locations & Types'!$A:$B,2,FALSE) -> STORAGE SITE | C19: 233100000 | D19: 14306813.68 | E19: 302361554.8 | F19: 14306813.68
A20: Hatfield Moor (storage) | B20: =VLOOKUP(A20,'Locations & Types'!$A:$B,2,FALSE) -> STORAGE SITE | C20: 25000000 | D20: 2854778.833 | E20: 20769863.01 | F20: 2854778.833
A21: Isle of Grain | B21: =VLOOKUP(A21,'Locations & Types'!$A:$B,2,FALSE) -> LNG IMPORTATION TERMINAL | C21: 699680000 | D21: 28632532.37 | E21: 867242640.7 | F21: 28632532.37
A22: Milford Haven | B22: =VLOOKUP(A22,'Locations & Types'!$A:$B,2,FALSE) -> LNG IMPORTATION TERMINAL | C22: 950000000 | D22: 350778725.9 | E22: 1098756297 | F22: 350778725.9
A23: Partington | B23: =VLOOKUP(A23,'Locations & Types'!$A:$B,2,FALSE) -> STORAGE SITE | C23: 215000000 | D23: 87671.23288 | E23: 0 | F23: 87671.23288
A24: Moffat (Irish Interconnector) | B24: =VLOOKUP(A24,'Locations & Types'!$A:$B,2,FALSE) -> INTERCONNECTION POINT
A25: St Fergus | B25: =VLOOKUP(A25,'Locations & Types'!$A:$B,2,FALSE) -> BEACH TERMINAL | C25: 1670700000 | D25: 798066433.2 | E25: 1775232509 | F25: 798066433.2
A26: Teesside | B26: =VLOOKUP(A26,'Locations & Types'!$A:$B,2,FALSE) -> BEACH TERMINAL | C26: 445090000 | D26: 168087469.5 | E26: 701067110.8 | F26: 168087469.5
A27: Theddlethorpe | B27: =VLOOKUP(A27,'Locations & Types'!$A:$B,2,FALSE) -> BEACH TERMINAL | C27: 610700000 | D27: 67045923.47 | E27: 462947532.4 | F27: 67045923.47
A28: Wytch Farm | B28: =VLOOKUP(A28,'Locations & Types'!$A:$B,2,FALSE) -> ONSHORE FIELD | C28: 3300000 | D28: 76995.00822 | E28: 5521556.121 | F28: 76995.00822

Sheet 17-18 FCC - Entry (hidden)
A1: Entry Point | B1: Entry Point Type | C1: Obligated Entry Capacity | D1: Enduring Entry Capacity Scenario | E1: Historical Sold Entry Capacity Levels | F1: Historical Entry Flow Levels
C2: (kWh/d) | D2: (kWh/d) | E2: (kWh/d) | F2: (kWh/d)
A3: Avonmouth | B3: =VLOOKUP(A3,'Locations & Types'!$A:$B,2,FALSE) -> STORAGE SITE | C3: 179300000 | D3: =F3 -> 0 | E3: 0 | F3: 0
A4: Bacton IP | B4: =VLOOKUP(A4,'Locations & Types'!$A:$B,2,FALSE) -> INTERCONNECTION POINT | C4: 1297800000 | D4: =F4 -> 242874727.7 | E4: 711552904.4 | F4: 242874727.7
A5: Bacton UKCS | B5: =VLOOKUP(A5,'Locations & Types'!$A:$B,2,FALSE) -> BEACH TERMINAL | C5: 485600000 | D5: 321507448.8 | E5: 687909082.7 | F5: 321507448.8
A6: Burton Point | B6: =VLOOKUP(A6,'Locations & Types'!$A:$B,2,FALSE) -> ONSHORE FIELD | C6: 73500000 | D6: 19700743.84 | E6: 217743716.3 | F6: 19700743.84
A7: Barrow | B7: =VLOOKUP(A7,'Locations & Types'!$A:$B,2,FALSE) -> BEACH TERMINAL | C7: 340010000 | D7: 10895776.51 | E7: 196525764.7 | F7: 10895776.51
A8: Barton Stacey | B8: =VLOOKUP(A8,'Locations & Types'!$A:$B,2,FALSE) -> STORAGE SITE | C8: 172600000 | D8: 10306358.99 | E8: 90005479.45 | F8: 10306358.99
A9: Canonbie | B9: =VLOOKUP(A9,'Locations & Types'!$A:$B,2,FALSE) -> ONSHORE FIELD | C9: 0 | D9: 0 | E9: 0 | F9: 0
A10: Cheshire | B10: =VLOOKUP(A10,'Locations & Types'!$A:$B,2,FALSE) -> STORAGE SITE | C10: 542700000 | D10: 64961377.89 | E10: 514178767.1 | F10: 64961377.89
A11: Caythorpe | B11: =VLOOKUP(A11,'Locations & Types'!$A:$B,2,FALSE) -> STORAGE SITE | C11: 90000000 | D11: 0 | E11: 90000000 | F11: 0
A12: Dynevor Arms | B12: =VLOOKUP(A12,'Locations & Types'!$A:$B,2,FALSE) -> STORAGE SITE | C12: 49000000 | D12: 0 | E12: 0 | F12: 0
A13: Easington | B13: =VLOOKUP(A13,'Locations & Types'!$A:$B,2,FALSE) -> BEACH TERMINAL | C13: 1407150000 | D13: 688575841.9 | E13: 2004198973 | F13: 688575841.9
A14: Fleetwood | B14: =VLOOKUP(A14,'Locations & Types'!$A:$B,2,FALSE) -> STORAGE SITE | C14: 650000000 | D14: 0 | E14: 0 | F14: 0
A15: Glenmavis | B15: =VLOOKUP(A15,'Locations & Types'!$A:$B,2,FALSE) -> STORAGE SITE | C15: 99000000 | D15: 0 | E15: 0 | F15: 0
A16: Garton | B16: =VLOOKUP(A16,'Locations & Types'!$A:$B,2,FALSE) -> STORAGE SITE | C16: 420000000 | D16: 45297728.47 | E16: 454931506.8 | F16: 45297728.47
A17: Hole House Farm | B17: =VLOOKUP(A17,'Locations & Types'!$A:$B,2,FALSE) -> STORAGE SITE | C17: 296600000 | D17: 8650415.37 | E17: 283509494.7 | F17: 8650415.37
A18: Hatfield Moor (onshore) | B18: =VLOOKUP(A18,'Locations & Types'!$A:$B,2,FALSE) -> ONSHORE FIELD | C18: 300000 | D18: 0 | E18: 0 | F18: 0
A19: Hornsea | B19: =VLOOKUP(A19,'Locations & Types'!$A:$B,2,FALSE) -> STORAGE SITE | C19: 233100000 | D19: 22055396.3 | E19: 235011052 | F19: 22055396.3
A20: Hatfield Moor (storage) | B20: =VLOOKUP(A20,'Locations & Types'!$A:$B,2,FALSE) -> STORAGE SITE | C20: 25000000 | D20: 3158272.082 | E20: 10987123.28 | F20: 3158272.082
A21: Isle of Grain | B21: =VLOOKUP(A21,'Locations & Types'!$A:$B,2,FALSE) -> LNG IMPORTATION TERMINAL | C21: 699680000 | D21: 535152.411 | E21: 826319040.5 | F21: 535152.411
A22: Milford Haven | B22: =VLOOKUP(A22,'Locations & Types'!$A:$B,2,FALSE) -> LNG IMPORTATION TERMINAL | C22: 950000000 | D22: 155630305.5 | E22: 1051990568 | F22: 155630305.5
A23: Partington | B23: =VLOOKUP(A23,'Locations & Types'!$A:$B,2,FALSE) -> STORAGE SITE | C23: 215000000 | D23: 0 | E23: 0 | F23: 0
A24: Moffat (Irish Interconnector) | B24: =VLOOKUP(A24,'Locations & Types'!$A:$B,2,FALSE) -> INTERCONNECTION POINT
A25: St Fergus | B25: =VLOOKUP(A25,'Locations & Types'!$A:$B,2,FALSE) -> BEACH TERMINAL | C25: 1670700000 | D25: 909837720.9 | E25: 1802759521 | F25: 909837720.9
A26: Teesside | B26: =VLOOKUP(A26,'Locations & Types'!$A:$B,2,FALSE) -> BEACH TERMINAL | C26: 445090000 | D26: 179317171.6 | E26: 516343996.2 | F26: 179317171.6
A27: Theddlethorpe | B27: =VLOOKUP(A27,'Locations & Types'!$A:$B,2,FALSE) -> BEACH TERMINAL | C27: 610700000 | D27: 65613435.59 | E27: 381257691.3 | F27: 65613435.59
A28: Wytch Farm | B28: =VLOOKUP(A28,'Locations & Types'!$A:$B,2,FALSE) -> ONSHORE FIELD | C28: 3300000 | D28: 39807.94521 | E28: 3636434.033 | F28: 39807.94521

Sheet 18-19 FCC - Entry (hidden)
A1: Entry Point | B1: Entry Point Type | C1: Obligated Entry Capacity | D1: Enduring Entry Capacity Scenario | E1: Historical Sold Entry Capacity Levels | F1: Historical Entry Flow Levels
C2: (kWh/d) | D2: (kWh/d) | E2: (kWh/d) | F2: (kWh/d)
A3: Avonmouth | B3: =VLOOKUP(A3,'Locations & Types'!$A:$B,2,FALSE) -> STORAGE SITE | C3: 179300000 | D3: =F3 -> 0 | E3: 0 | F3: 0
A4: Bacton IP | B4: =VLOOKUP(A4,'Locations & Types'!$A:$B,2,FALSE) -> INTERCONNECTION POINT | C4: 1297800000 | D4: =F4 -> 242874727.7 | E4: 635235348.8 | F4: 242874727.7
A5: Bacton UKCS | B5: =VLOOKUP(A5,'Locations & Types'!$A:$B,2,FALSE) -> BEACH TERMINAL | C5: 485600000 | D5: 321507448.8 | E5: 681531389.6 | F5: 321507448.8
A6: Burton Point | B6: =VLOOKUP(A6,'Locations & Types'!$A:$B,2,FALSE) -> ONSHORE FIELD | C6: 73500000 | D6: 19700743.84 | E6: 209330068.7 | F6: 19700743.84
A7: Barrow | B7: =VLOOKUP(A7,'Locations & Types'!$A:$B,2,FALSE) -> BEACH TERMINAL | C7: 340010000 | D7: 10895776.51 | E7: 207982362.2 | F7: 10895776.51
A8: Barton Stacey | B8: =VLOOKUP(A8,'Locations & Types'!$A:$B,2,FALSE) -> STORAGE SITE | C8: 172600000 | D8: 10306358.99 | E8: 90005479.45 | F8: 10306358.99
A9: Canonbie | B9: =VLOOKUP(A9,'Locations & Types'!$A:$B,2,FALSE) -> ONSHORE FIELD | C9: 0 | D9: 0 | E9: 0 | F9: 0
A10: Cheshire | B10: =VLOOKUP(A10,'Locations & Types'!$A:$B,2,FALSE) -> STORAGE SITE | C10: 542700000 | D10: 64961377.89 | E10: 514178767.1 | F10: 64961377.89
A11: Caythorpe | B11: =VLOOKUP(A11,'Locations & Types'!$A:$B,2,FALSE) -> STORAGE SITE | C11: 90000000 | D11: 0 | E11: 90000000 | F11: 0
A12: Dynevor Arms | B12: =VLOOKUP(A12,'Locations & Types'!$A:$B,2,FALSE) -> STORAGE SITE | C12: 49000000 | D12: 0 | E12: 0 | F12: 0
A13: Easington | B13: =VLOOKUP(A13,'Locations & Types'!$A:$B,2,FALSE) -> BEACH TERMINAL | C13: 1407150000 | D13: 688575841.9 | E13: 2139400706 | F13: 688575841.9
A14: Fleetwood | B14: =VLOOKUP(A14,'Locations & Types'!$A:$B,2,FALSE) -> STORAGE SITE | C14: 650000000 | D14: 0 | E14: 0 | F14: 0
A15: Glenmavis | B15: =VLOOKUP(A15,'Locations & Types'!$A:$B,2,FALSE) -> STORAGE SITE | C15: 99000000 | D15: 0 | E15: 0 | F15: 0
A16: Garton | B16: =VLOOKUP(A16,'Locations & Types'!$A:$B,2,FALSE) -> STORAGE SITE | C16: 420000000 | D16: 45297728.47 | E16: 454931506.8 | F16: 45297728.47
A17: Hole House Farm | B17: =VLOOKUP(A17,'Locations & Types'!$A:$B,2,FALSE) -> STORAGE SITE | C17: 296600000 | D17: 8650415.37 | E17: 283509494.7 | F17: 8650415.37
A18: Hatfield Moor (onshore) | B18: =VLOOKUP(A18,'Locations & Types'!$A:$B,2,FALSE) -> ONSHORE FIELD | C18: 300000 | D18: 0 | E18: 0 | F18: 0
A19: Hornsea | B19: =VLOOKUP(A19,'Locations & Types'!$A:$B,2,FALSE) -> STORAGE SITE | C19: 233100000 | D19: 22055396.3 | E19: 235011052 | F19: 22055396.3
A20: Hatfield Moor (storage) | B20: =VLOOKUP(A20,'Locations & Types'!$A:$B,2,FALSE) -> STORAGE SITE | C20: 25000000 | D20: 3158272.082 | E20: 10987123.28 | F20: 3158272.082
A21: Isle of Grain | B21: =VLOOKUP(A21,'Locations & Types'!$A:$B,2,FALSE) -> LNG IMPORTATION TERMINAL | C21: 699680000 | D21: 535152.411 | E21: 861414930.9 | F21: 535152.411
A22: Milford Haven | B22: =VLOOKUP(A22,'Locations & Types'!$A:$B,2,FALSE) -> LNG IMPORTATION TERMINAL | C22: 950000000 | D22: 155630305.5 | E22: 1051990568 | F22: 155630305.5
A23: Partington | B23: =VLOOKUP(A23,'Locations & Types'!$A:$B,2,FALSE) -> STORAGE SITE | C23: 215000000 | D23: 0 | E23: 0 | F23: 0
A24: Moffat (Irish Interconnector) | B24: =VLOOKUP(A24,'Locations & Types'!$A:$B,2,FALSE) -> INTERCONNECTION POINT
A25: St Fergus | B25: =VLOOKUP(A25,'Locations & Types'!$A:$B,2,FALSE) -> BEACH TERMINAL | C25: 1670700000 | D25: 909837720.9 | E25: 1792395664 | F25: 909837720.9
A26: Teesside | B26: =VLOOKUP(A26,'Locations & Types'!$A:$B,2,FALSE) -> BEACH TERMINAL | C26: 445090000 | D26: 179317171.6 | E26: 476155430 | F26: 179317171.6
A27: Theddlethorpe | B27: =VLOOKUP(A27,'Locations & Types'!$A:$B,2,FALSE) -> BEACH TERMINAL | C27: 610700000 | D27: 65613435.59 | E27: 371954009.8 | F27: 65613435.59
A28: Wytch Farm | B28: =VLOOKUP(A28,'Locations & Types'!$A:$B,2,FALSE) -> ONSHORE FIELD | C28: 3300000 | D28: 39807.94521 | E28: 3636434.033 | F28: 39807.94521

Sheet 19-20 FCC - Entry (hidden)
A1: Entry Point | B1: Entry Point Type | C1: Obligated Entry Capacity | D1: Enduring Entry Capacity Scenario | E1: Historical Sold Entry Capacity Levels | F1: Historical Entry Flow Levels
C2: (kWh/d) | D2: (kWh/d) | E2: (kWh/d) | F2: (kWh/d)
A3: Avonmouth | B3: =VLOOKUP(A3,'Locations & Types'!$A:$B,2,FALSE) -> STORAGE SITE | C3: 179300000 | D3: =F3 -> 0 | E3: 0 | F3: 0
A4: Bacton IP | B4: =VLOOKUP(A4,'Locations & Types'!$A:$B,2,FALSE) -> INTERCONNECTION POINT | C4: 1297800000 | D4: =F4 -> 242874727.7 | E4: 588838748.9 | F4: 242874727.7
A5: Bacton UKCS | B5: =VLOOKUP(A5,'Locations & Types'!$A:$B,2,FALSE) -> BEACH TERMINAL | C5: 485600000 | D5: 321507448.8 | E5: 676041049.7 | F5: 321507448.8
A6: Burton Point | B6: =VLOOKUP(A6,'Locations & Types'!$A:$B,2,FALSE) -> ONSHORE FIELD | C6: 73500000 | D6: 19700743.84 | E6: 193023774.9 | F6: 19700743.84
A7: Barrow | B7: =VLOOKUP(A7,'Locations & Types'!$A:$B,2,FALSE) -> BEACH TERMINAL | C7: 340010000 | D7: 10895776.51 | E7: 201733566.3 | F7: 10895776.51
A8: Barton Stacey | B8: =VLOOKUP(A8,'Locations & Types'!$A:$B,2,FALSE) -> STORAGE SITE | C8: 172600000 | D8: 10306358.99 | E8: 90005479.45 | F8: 10306358.99
A9: Canonbie | B9: =VLOOKUP(A9,'Locations & Types'!$A:$B,2,FALSE) -> ONSHORE FIELD | C9: 0 | D9: 0 | E9: 0 | F9: 0
A10: Cheshire | B10: =VLOOKUP(A10,'Locations & Types'!$A:$B,2,FALSE) -> STORAGE SITE | C10: 542700000 | D10: 64961377.89 | E10: 514178767.1 | F10: 64961377.89
A11: Caythorpe | B11: =VLOOKUP(A11,'Locations & Types'!$A:$B,2,FALSE) -> STORAGE SITE | C11: 90000000 | D11: 0 | E11: 90000000 | F11: 0
A12: Dynevor Arms | B12: =VLOOKUP(A12,'Locations & Types'!$A:$B,2,FALSE) -> STORAGE SITE | C12: 49000000 | D12: 0 | E12: 0 | F12: 0
A13: Easington | B13: =VLOOKUP(A13,'Locations & Types'!$A:$B,2,FALSE) -> BEACH TERMINAL | C13: 1407150000 | D13: 688575841.9 | E13: 2129461812 | F13: 688575841.9
A14: Fleetwood | B14: =VLOOKUP(A14,'Locations & Types'!$A:$B,2,FALSE) -> STORAGE SITE | C14: 650000000 | D14: 0 | E14: 0 | F14: 0
A15: Glenmavis | B15: =VLOOKUP(A15,'Locations & Types'!$A:$B,2,FALSE) -> STORAGE SITE | C15: 99000000 | D15: 0 | E15: 0 | F15: 0
A16: Garton | B16: =VLOOKUP(A16,'Locations & Types'!$A:$B,2,FALSE) -> STORAGE SITE | C16: 420000000 | D16: 45297728.47 | E16: 454931506.8 | F16: 45297728.47
A17: Hole House Farm | B17: =VLOOKUP(A17,'Locations & Types'!$A:$B,2,FALSE) -> STORAGE SITE | C17: 296600000 | D17: 8650415.37 | E17: 283509494.7 | F17: 8650415.37
A18: Hatfield Moor (onshore) | B18: =VLOOKUP(A18,'Locations & Types'!$A:$B,2,FALSE) -> ONSHORE FIELD | C18: 300000 | D18: 0 | E18: 0 | F18: 0
A19: Hornsea | B19: =VLOOKUP(A19,'Locations & Types'!$A:$B,2,FALSE) -> STORAGE SITE | C19: 233100000 | D19: 22055396.3 | E19: 185078997.2 | F19: 22055396.3
A20: Hatfield Moor (storage) | B20: =VLOOKUP(A20,'Locations & Types'!$A:$B,2,FALSE) -> STORAGE SITE | C20: 25000000 | D20: 3158272.082 | E20: 10987123.28 | F20: 3158272.082
A21: Isle of Grain | B21: =VLOOKUP(A21,'Locations & Types'!$A:$B,2,FALSE) -> LNG IMPORTATION TERMINAL | C21: 699680000 | D21: 535152.411 | E21: 861414930.9 | F21: 535152.411
A22: Milford Haven | B22: =VLOOKUP(A22,'Locations & Types'!$A:$B,2,FALSE) -> LNG IMPORTATION TERMINAL | C22: 950000000 | D22: 155630305.5 | E22: 1051990568 | F22: 155630305.5
A23: Partington | B23: =VLOOKUP(A23,'Locations & Types'!$A:$B,2,FALSE) -> STORAGE SITE | C23: 215000000 | D23: 0 | E23: 0 | F23: 0
A24: Moffat (Irish Interconnector) | B24: =VLOOKUP(A24,'Locations & Types'!$A:$B,2,FALSE) -> INTERCONNECTION POINT
A25: St Fergus | B25: =VLOOKUP(A25,'Locations & Types'!$A:$B,2,FALSE) -> BEACH TERMINAL | C25: 1670700000 | D25: 909837720.9 | E25: 1670764730 | F25: 909837720.9
A26: Teesside | B26: =VLOOKUP(A26,'Locations & Types'!$A:$B,2,FALSE) -> BEACH TERMINAL | C26: 445090000 | D26: 179317171.6 | E26: 455392230.4 | F26: 179317171.6
A27: Theddlethorpe | B27: =VLOOKUP(A27,'Locations & Types'!$A:$B,2,FALSE) -> BEACH TERMINAL | C27: 610700000 | D27: 65613435.59 | E27: 365885139.6 | F27: 65613435.59
A28: Wytch Farm | B28: =VLOOKUP(A28,'Locations & Types'!$A:$B,2,FALSE) -> ONSHORE FIELD | C28: 3300000 | D28: 39807.94521 | E28: 3636434.033 | F28: 39807.94521

Sheet 20-21 FCC - Entry (hidden)
A1: Entry Point | B1: Entry Point Type | C1: Obligated Entry Capacity | D1: Enduring Entry Capacity Scenario | E1: Historical Sold Entry Capacity Levels | F1: Historical Entry Flow Levels
C2: (kWh/d) | D2: (kWh/d) | E2: (kWh/d) | F2: (kWh/d)
A3: Avonmouth | B3: =VLOOKUP(A3,'Locations & Types'!$A:$B,2,FALSE) -> STORAGE SITE | C3: 179300000 | D3: =F3 -> 0 | E3: 0 | F3: 0
A4: Bacton IP | B4: =VLOOKUP(A4,'Locations & Types'!$A:$B,2,FALSE) -> INTERCONNECTION POINT | C4: 1297800000 | D4: =F4 -> 242874727.7 | E4: 588961565.8 | F4: 242874727.7
A5: Bacton UKCS | B5: =VLOOKUP(A5,'Locations & Types'!$A:$B,2,FALSE) -> BEACH TERMINAL | C5: 485600000 | D5: 321507448.8 | E5: 672062945.3 | F5: 321507448.8
A6: Burton Point | B6: =VLOOKUP(A6,'Locations & Types'!$A:$B,2,FALSE) -> ONSHORE FIELD | C6: 73500000 | D6: 19700743.84 | E6: 189632180.9 | F6: 19700743.84
A7: Barrow | B7: =VLOOKUP(A7,'Locations & Types'!$A:$B,2,FALSE) -> BEACH TERMINAL | C7: 340010000 | D7: 10895776.51 | E7: 183811541.5 | F7: 10895776.51
A8: Barton Stacey | B8: =VLOOKUP(A8,'Locations & Types'!$A:$B,2,FALSE) -> STORAGE SITE | C8: 172600000 | D8: 10306358.99 | E8: 90252054.79 | F8: 10306358.99
A9: Canonbie | B9: =VLOOKUP(A9,'Locations & Types'!$A:$B,2,FALSE) -> ONSHORE FIELD | C9: 0 | D9: 0 | E9: 0 | F9: 0
A10: Cheshire | B10: =VLOOKUP(A10,'Locations & Types'!$A:$B,2,FALSE) -> STORAGE SITE | C10: 542700000 | D10: 64961377.89 | E10: 515587287.7 | F10: 64961377.89
A11: Caythorpe | B11: =VLOOKUP(A11,'Locations & Types'!$A:$B,2,FALSE) -> STORAGE SITE | C11: 90000000 | D11: 0 | E11: 90246575.34 | F11: 0
A12: Dynevor Arms | B12: =VLOOKUP(A12,'Locations & Types'!$A:$B,2,FALSE) -> STORAGE SITE | C12: 49000000 | D12: 0 | E12: 0 | F12: 0
A13: Easington | B13: =VLOOKUP(A13,'Locations & Types'!$A:$B,2,FALSE) -> BEACH TERMINAL | C13: 1407150000 | D13: 688575841.9 | E13: 2105759849 | F13: 688575841.9
A14: Fleetwood | B14: =VLOOKUP(A14,'Locations & Types'!$A:$B,2,FALSE) -> STORAGE SITE | C14: 650000000 | D14: 0 | E14: 0 | F14: 0
A15: Glenmavis | B15: =VLOOKUP(A15,'Locations & Types'!$A:$B,2,FALSE) -> STORAGE SITE | C15: 99000000 | D15: 0 | E15: 0 | F15: 0
A16: Garton | B16: =VLOOKUP(A16,'Locations & Types'!$A:$B,2,FALSE) -> STORAGE SITE | C16: 420000000 | D16: 45297728.47 | E16: 456082191.8 | F16: 45297728.47
A17: Hole House Farm | B17: =VLOOKUP(A17,'Locations & Types'!$A:$B,2,FALSE) -> STORAGE SITE | C17: 296600000 | D17: 8650415.37 | E17: 284286042.7 | F17: 8650415.37
A18: Hatfield Moor (onshore) | B18: =VLOOKUP(A18,'Locations & Types'!$A:$B,2,FALSE) -> ONSHORE FIELD | C18: 300000 | D18: 0 | E18: 0 | F18: 0
A19: Hornsea | B19: =VLOOKUP(A19,'Locations & Types'!$A:$B,2,FALSE) -> STORAGE SITE | C19: 233100000 | D19: 22055396.3 | E19: 185642805.4 | F19: 22055396.3
A20: Hatfield Moor (storage) | B20: =VLOOKUP(A20,'Locations & Types'!$A:$B,2,FALSE) -> STORAGE SITE | C20: 25000000 | D20: 3158272.082 | E20: 11047397.26 | F20: 3158272.082
A21: Isle of Grain | B21: =VLOOKUP(A21,'Locations & Types'!$A:$B,2,FALSE) -> LNG IMPORTATION TERMINAL | C21: 699680000 | D21: 535152.411 | E21: 863234930.9 | F21: 535152.411
A22: Milford Haven | B22: =VLOOKUP(A22,'Locations & Types'!$A:$B,2,FALSE) -> LNG IMPORTATION TERMINAL | C22: 950000000 | D22: 155630305.5 | E22: 1104730294 | F22: 155630305.5
A23: Partington | B23: =VLOOKUP(A23,'Locations & Types'!$A:$B,2,FALSE) -> STORAGE SITE | C23: 215000000 | D23: 0 | E23: 0 | F23: 0
A24: Moffat (Irish Interconnector) | B24: =VLOOKUP(A24,'Locations & Types'!$A:$B,2,FALSE) -> INTERCONNECTION POINT
A25: St Fergus | B25: =VLOOKUP(A25,'Locations & Types'!$A:$B,2,FALSE) -> BEACH TERMINAL | C25: 1670700000 | D25: 909837720.9 | E25: 1620617182 | F25: 909837720.9
A26: Teesside | B26: =VLOOKUP(A26,'Locations & Types'!$A:$B,2,FALSE) -> BEACH TERMINAL | C26: 445090000 | D26: 179317171.6 | E26: 434320686.7 | F26: 179317171.6
A27: Theddlethorpe | B27: =VLOOKUP(A27,'Locations & Types'!$A:$B,2,FALSE) -> BEACH TERMINAL | C27: 610700000 | D27: 65613435.59 | E27: 363757742.3 | F27: 65613435.59
A28: Wytch Farm | B28: =VLOOKUP(A28,'Locations & Types'!$A:$B,2,FALSE) -> ONSHORE FIELD | C28: 3300000 | D28: 39807.94521 | E28: 3636434.033 | F28: 39807.94521

Sheet 21-22 FCC - Entry (hidden)
A1: Entry Point | B1: Entry Point Type | C1: Obligated Entry Capacity | D1: Enduring Entry Capacity Scenario | E1: Historical Sold Entry Capacity Levels | F1: Historical Entry Flow Levels
C2: (kWh/d) | D2: (kWh/d) | E2: (kWh/d) | F2: (kWh/d)
A3: Avonmouth | B3: =VLOOKUP(A3,'Locations & Types'!$A:$B,2,FALSE) -> STORAGE SITE | C3: 179300000 | D3: =F3 -> 0 | E3: 0 | F3: 0
A4: Bacton IP | B4: =VLOOKUP(A4,'Locations & Types'!$A:$B,2,FALSE) -> INTERCONNECTION POINT | C4: 1297800000 | D4: =F4 -> 242874727.7 | E4: 588961565.8 | F4: 242874727.7
A5: Bacton UKCS | B5: =VLOOKUP(A5,'Locations & Types'!$A:$B,2,FALSE) -> BEACH TERMINAL | C5: 485600000 | D5: 321507448.8 | E5: 672062945.3 | F5: 321507448.8
A6: Burton Point | B6: =VLOOKUP(A6,'Locations & Types'!$A:$B,2,FALSE) -> ONSHORE FIELD | C6: 73500000 | D6: 19700743.84 | E6: 189632180.9 | F6: 19700743.84
A7: Barrow | B7: =VLOOKUP(A7,'Locations & Types'!$A:$B,2,FALSE) -> BEACH TERMINAL | C7: 340010000 | D7: 10895776.51 | E7: 183811541.5 | F7: 10895776.51
A8: Barton Stacey | B8: =VLOOKUP(A8,'Locations & Types'!$A:$B,2,FALSE) -> STORAGE SITE | C8: 172600000 | D8: 10306358.99 | E8: 90252054.79 | F8: 10306358.99
A9: Canonbie | B9: =VLOOKUP(A9,'Locations & Types'!$A:$B,2,FALSE) -> ONSHORE FIELD | C9: 0 | D9: 0 | E9: 0 | F9: 0
A10: Cheshire | B10: =VLOOKUP(A10,'Locations & Types'!$A:$B,2,FALSE) -> STORAGE SITE | C10: 542700000 | D10: 64961377.89 | E10: 515587287.7 | F10: 64961377.89
A11: Caythorpe | B11: =VLOOKUP(A11,'Locations & Types'!$A:$B,2,FALSE) -> STORAGE SITE | C11: 90000000 | D11: 0 | E11: 90246575.34 | F11: 0
A12: Dynevor Arms | B12: =VLOOKUP(A12,'Locations & Types'!$A:$B,2,FALSE) -> STORAGE SITE | C12: 49000000 | D12: 0 | E12: 0 | F12: 0
A13: Easington | B13: =VLOOKUP(A13,'Locations & Types'!$A:$B,2,FALSE) -> BEACH TERMINAL | C13: 1407150000 | D13: 688575841.9 | E13: 2105759849 | F13: 688575841.9
A14: Fleetwood | B14: =VLOOKUP(A14,'Locations & Types'!$A:$B,2,FALSE) -> STORAGE SITE | C14: 650000000 | D14: 0 | E14: 0 | F14: 0
A15: Glenmavis | B15: =VLOOKUP(A15,'Locations & Types'!$A:$B,2,FALSE) -> STORAGE SITE | C15: 99000000 | D15: 0 | E15: 0 | F15: 0
A16: Garton | B16: =VLOOKUP(A16,'Locations & Types'!$A:$B,2,FALSE) -> STORAGE SITE | C16: 420000000 | D16: 45297728.47 | E16: 456082191.8 | F16: 45297728.47
A17: Hole House Farm | B17: =VLOOKUP(A17,'Locations & Types'!$A:$B,2,FALSE) -> STORAGE SITE | C17: 296600000 | D17: 8650415.37 | E17: 284286042.7 | F17: 8650415.37
A18: Hatfield Moor (onshore) | B18: =VLOOKUP(A18,'Locations & Types'!$A:$B,2,FALSE) -> ONSHORE FIELD | C18: 300000 | D18: 0 | E18: 0 | F18: 0
A19: Hornsea | B19: =VLOOKUP(A19,'Locations & Types'!$A:$B,2,FALSE) -> STORAGE SITE | C19: 233100000 | D19: 22055396.3 | E19: 185642805.4 | F19: 22055396.3
A20: Hatfield Moor (storage) | B20: =VLOOKUP(A20,'Locations & Types'!$A:$B,2,FALSE) -> STORAGE SITE | C20: 25000000 | D20: 3158272.082 | E20: 11047397.26 | F20: 3158272.082
A21: Isle of Grain | B21: =VLOOKUP(A21,'Locations & Types'!$A:$B,2,FALSE) -> LNG IMPORTATION TERMINAL | C21: 699680000 | D21: 535152.411 | E21: 863234930.9 | F21: 535152.411
A22: Milford Haven | B22: =VLOOKUP(A22,'Locations & Types'!$A:$B,2,FALSE) -> LNG IMPORTATION TERMINAL | C22: 950000000 | D22: 155630305.5 | E22: 1104730294 | F22: 155630305.5
A23: Partington | B23: =VLOOKUP(A23,'Locations & Types'!$A:$B,2,FALSE) -> STORAGE SITE | C23: 215000000 | D23: 0 | E23: 0 | F23: 0
A24: Moffat (Irish Interconnector) | B24: =VLOOKUP(A24,'Locations & Types'!$A:$B,2,FALSE) -> INTERCONNECTION POINT
A25: St Fergus | B25: =VLOOKUP(A25,'Locations & Types'!$A:$B,2,FALSE) -> BEACH TERMINAL | C25: 1670700000 | D25: 909837720.9 | E25: 1620617182 | F25: 909837720.9
A26: Teesside | B26: =VLOOKUP(A26,'Locations & Types'!$A:$B,2,FALSE) -> BEACH TERMINAL | C26: 445090000 | D26: 179317171.6 | E26: 434320686.7 | F26: 179317171.6
A27: Theddlethorpe | B27: =VLOOKUP(A27,'Locations & Types'!$A:$B,2,FALSE) -> BEACH TERMINAL | C27: 610700000 | D27: 65613435.59 | E27: 363757742.3 | F27: 65613435.59
A28: Wytch Farm | B28: =VLOOKUP(A28,'Locations & Types'!$A:$B,2,FALSE) -> ONSHORE FIELD | C28: 3300000 | D28: 39807.94521 | E28: 3636434.033 | F28: 39807.94521

Sheet 16-17 FCC - Exit (hidden)
A1: Exit Point | B1: Exit Point Type | C1: Obligated Exit Capacity | D1: Enduring Exit Capacity Scenario | E1: Historical Sold Exit Capacity Levels | F1: Historical Exit Flow Levels
C2: (kWh/d) | D2: (kWh/d) | E2: (kWh/d) | F2: (kWh/d)
A3: Aberdeen | B3: =VLOOKUP(A3,'Locations & Types'!$E:$F,2,FALSE) -> GDN (SC) | C3: 23536855 | D3: =IF(LEFT($B3, 3)="GDN", $E3, $F3) -> 23947813.9 | E3: 23947813.9 | F3: 9164426.301
A4: Abson (Seabank Power Station phase I) | B4: =VLOOKUP(A4,'Locations & Types'!$E:$F,2,FALSE) -> DC | C4: 36590000 | D4: =IF(LEFT($B4, 3)="GDN", $E4, $F4) -> 17103649.19 | E4: 62667554.78 | F4: 17103649.19
A5: Alrewas (EM) | B5: =VLOOKUP(A5,'Locations & Types'!$E:$F,2,FALSE) -> GDN (EM) | C5: 139912893 | D5: 68237312.36 | E5: 68237312.36 | F5: 20803402.74
A6: Alrewas (WM) | B6: =VLOOKUP(A6,'Locations & Types'!$E:$F,2,FALSE) -> GDN (WM) | C6: 128480000 | D6: 72669637 | E6: 72669637 | F6: 17233865.75
A7: Apache (Sage Black Start) | B7: =VLOOKUP(A7,'Locations & Types'!$E:$F,2,FALSE) -> DC | C7: 0 | D7: 0 | E7: 0 | F7: 0
A8: Armadale | B8: =VLOOKUP(A8,'Locations & Types'!$E:$F,2,FALSE) -> GDN (SC) | C8: 16011750 | D8: 7861275 | E8: 7861275 | F8: 1823922.192
A9: Aspley | B9: =VLOOKUP(A9,'Locations & Types'!$E:$F,2,FALSE) -> GDN (WM) | C9: 84650000 | D9: 50992393 | E9: 50992393 | F9: 26605843.84
A10: Asselby | B10: =VLOOKUP(A10,'Locations & Types'!$E:$F,2,FALSE) -> GDN (NE) | C10: 4586470 | D10: 4586470 | E10: 4586470 | F10: 1556157.26
A11: Audley (NW) | B11: =VLOOKUP(A11,'Locations & Types'!$E:$F,2,FALSE) -> GDN (NW) | C11: 12140000 | D11: 8989765 | E11: 8989765 | F11: 3158527.397
A12: Audley (WM) | B12: =VLOOKUP(A12,'Locations & Types'!$E:$F,2,FALSE) -> GDN (WM) | C12: 21830000 | D12: 15330890 | E12: 15330890 | F12: 2438644.658
A13: Austrey | B13: =VLOOKUP(A13,'Locations & Types'!$E:$F,2,FALSE) -> GDN (WM) | C13: 87835508 | D13: 59601211 | E13: 59601211 | F13: 20205702.74
A14: Avonmouth Max Refill | B14: =VLOOKUP(A14,'Locations & Types'!$E:$F,2,FALSE) -> STORAGE SITE | C14: 2300000 | D14: 13357.72603 | E14: 3947455.882 | F14: 13357.72603
A15: Aylesbeare | B15: =VLOOKUP(A15,'Locations & Types'!$E:$F,2,FALSE) -> GDN (SW) | C15: 22680000 | D15: 19128874 | E15: 19128874 | F15: 5796565.205
A16: Bacton | B16: =VLOOKUP(A16,'Locations & Types'!$E:$F,2,FALSE) -> GDN (EA) | C16: 3660000 | D16: 2673627 | E16: 2673627 | F16: 884625.4795
A17: Bacton (Baird) | B17: =VLOOKUP(A17,'Locations & Types'!$E:$F,2,FALSE) -> STORAGE SITE | C17: 0 | D17: 0 | E17: 0 | F17: 0
A18: Bacton (BBL) | B18: =VLOOKUP(A18,'Locations & Types'!$E:$F,2,FALSE) -> INTERCONNECTOR | C18: 0 | D18: 1018.630137 | E18: 102941764.4 | F18: 1018.630137
A19: Bacton (Great Yarmouth) | B19: =VLOOKUP(A19,'Locations & Types'!$E:$F,2,FALSE) -> DC | C19: 20040000 | D19: 11454140.26 | E19: 24365504.03 | F19: 11454140.26
A20: Bacton (IUK) | B20: =VLOOKUP(A20,'Locations & Types'!$E:$F,2,FALSE) -> INTERCONNECTOR | C20: 651676940 | D20: 243075728.4 | E20: 633277992.7 | F20: 243075728.4
A21: Baldersby | B21: =VLOOKUP(A21,'Locations & Types'!$E:$F,2,FALSE) -> GDN (NE) | C21: 1340000 | D21: 1301089 | E21: 1301089 | F21: 461224.3836
A22: Balgray | B22: =VLOOKUP(A22,'Locations & Types'!$E:$F,2,FALSE) -> GDN (SC) | C22: 15723362 | D22: 15057981 | E22: 15057981 | F22: 5080518.356
A23: Barking (Horndon) | B23: =VLOOKUP(A23,'Locations & Types'!$E:$F,2,FALSE) -> DC | C23: 58590000 | D23: 0 | E23: 0 | F23: 0
A24: Barrow (Bains) | B24: =VLOOKUP(A24,'Locations & Types'!$E:$F,2,FALSE) -> STORAGE SITE | C24: 0 | D24: 0 | E24: 0 | F24: 0
A25: Barrow (Black Start) | B25: =VLOOKUP(A25,'Locations & Types'!$E:$F,2,FALSE) -> DC | C25: 1000000 | D25: 12345.05479 | E25: 1000000 | F25: 12345.05479
A26: Barrow (Gateway) | B26: =VLOOKUP(A26,'Locations & Types'!$E:$F,2,FALSE) -> STORAGE SITE | C26: 0 | D26: 0 | E26: 0 | F26: 0
A27: Barton Stacey Max Refill (Humbly Grove) | B27: =VLOOKUP(A27,'Locations & Types'!$E:$F,2,FALSE) -> STORAGE SITE | C27: 100940000 | D27: 7231466.301 | E27: 99178082.19 | F27: 7231466.301
A28: Bathgate | B28: =VLOOKUP(A28,'Locations & Types'!$E:$F,2,FALSE) -> GDN (SC) | C28: 24176039 | D28: 21109163.26 | E28: 21109163.26 | F28: 8303908.219
A29: Billingham ICI (Terra Billingham) | B29: =VLOOKUP(A29,'Locations & Types'!$E:$F,2,FALSE) -> DC | C29: 43540000 | D29: 14946298.58 | E29: 33654178.21 | F29: 14946298.58
A30: Bishop Auckland | B30: =VLOOKUP(A30,'Locations & Types'!$E:$F,2,FALSE) -> GDN (NO) | C30: 62130000 | D30: 57090000 | E30: 57090000 | F30: 23393264.38
A31: Bishop Auckland (test facility) | B31: =VLOOKUP(A31,'Locations & Types'!$E:$F,2,FALSE) -> DC | C31: 0 | D31: 416553.4247 | E31: 0 | F31: 416553.4247
A32: Blaby | B32: =VLOOKUP(A32,'Locations & Types'!$E:$F,2,FALSE) -> GDN (EM) | C32: 13400271 | D32: 9867513 | E32: 9867513 | F32: 5924105.479
A33: Blackness (BP Grangemouth) | B33: =VLOOKUP(A33,'Locations & Types'!$E:$F,2,FALSE) -> DC | C33: 27290000 | D33: 15426123.48 | E33: 27290410.96 | F33: 15426123.48
A34: Blackrod | B34: =VLOOKUP(A34,'Locations & Types'!$E:$F,2,FALSE) -> GDN (NW) | C34: 166545212 | D34: 135755882 | E34: 135755882 | F34: 47590495.89
A35: Blyborough | B35: =VLOOKUP(A35,'Locations & Types'!$E:$F,2,FALSE) -> GDN (EM) | C35: 79330000 | D35: 56288103 | E35: 56288103 | F35: 8190815.89
A36: Blyborough (Brigg) | B36: =VLOOKUP(A36,'Locations & Types'!$E:$F,2,FALSE) -> DC | C36: 16890000 | D36: 152750.3315 | E36: 11775342.47 | F36: 152750.3315
A37: Blyborough (Cottam) | B37: =VLOOKUP(A37,'Locations & Types'!$E:$F,2,FALSE) -> DC | C37: 19300000 | D37: 8065992.408 | E37: 20419178.08 | F37: 8065992.408
A38: Braishfield A | B38: =VLOOKUP(A38,'Locations & Types'!$E:$F,2,FALSE) -> GDN (SO) | C38: 107280000 | D38: 80189647 | E38: 80189647 | F38: 23502304.11
A39: Braishfield B | B39: =VLOOKUP(A39,'Locations & Types'!$E:$F,2,FALSE) -> GDN (SO) | C39: 58866000 | D39: 57139307 | E39: 57139307 | F39: 17449222.74
A40: Brine Field (Teesside) Power Station | B40: =VLOOKUP(A40,'Locations & Types'!$E:$F,2,FALSE) -> DC | C40: 0 | D40: 6267115.89 | E40: 0 | F40: 6267115.89
A41: Brisley | B41: =VLOOKUP(A41,'Locations & Types'!$E:$F,2,FALSE) -> GDN (EA) | C41: 3110000 | D41: 2554794 | E41: 2554794 | F41: 969764.3836
A42: Broxburn | B42: =VLOOKUP(A42,'Locations & Types'!$E:$F,2,FALSE) -> GDN (SC) | C42: 60444108 | D42: 56250554 | E42: 56250554 | F42: 19844689.04
A43: Burley Bank | B43: =VLOOKUP(A43,'Locations & Types'!$E:$F,2,FALSE) -> GDN (NE) | C43: 20310000 | D43: 18061165 | E43: 18061165 | F43: 7811654.521
A44: Burnhervie | B44: =VLOOKUP(A44,'Locations & Types'!$E:$F,2,FALSE) -> GDN (SC) | C44: 22380000 | D44: 20624435 | E44: 20624435 | F44: 9075728.767
A45: Burton Point (Connahs Quay) | B45: =VLOOKUP(A45,'Locations & Types'!$E:$F,2,FALSE) -> DC | C45: 73210000 | D45: 1057699.929 | E45: 72197260.27 | F45: 1057699.929
A46: Caldecott | B46: =VLOOKUP(A46,'Locations & Types'!$E:$F,2,FALSE) -> GDN (EM) | C46: 11080000 | D46: 8977861 | E46: 8977861 | F46: 3397459.452
A47: Caldecott (Corby Power Station) | B47: =VLOOKUP(A47,'Locations & Types'!$E:$F,2,FALSE) -> DC | C47: 21120000 | D47: 76615.48767 | E47: 21101384.97 | F47: 76615.48767
A48: Cambridge | B48: =VLOOKUP(A48,'Locations & Types'!$E:$F,2,FALSE) -> GDN (EA) | C48: 0 | D48: 0 | E48: 0 | F48: 0
A49: Careston | B49: =VLOOKUP(A49,'Locations & Types'!$E:$F,2,FALSE) -> GDN (SC) | C49: 3851761 | D49: 3576724 | E49: 3576724 | F49: 1712059.452
A50: Carrington (Partington) Power Station | B50: =VLOOKUP(A50,'Locations & Types'!$E:$F,2,FALSE) -> DC | C50: 45000000 | D50: 5502061.37 | E50: 45000273.97 | F50: 5502061.37
A51: Caythorpe | B51: =VLOOKUP(A51,'Locations & Types'!$E:$F,2,FALSE) -> STORAGE SITE | C51: 75000000 | D51: 0 | E51: 0 | F51: 0
A52: Centrax Industrial | B52: =VLOOKUP(A52,'Locations & Types'!$E:$F,2,FALSE) -> DC | C52: 85000 | D52: 19981.75342 | E52: 104520.5479 | F52: 19981.75342
A53: Cirencester | B53: =VLOOKUP(A53,'Locations & Types'!$E:$F,2,FALSE) -> GDN (SW) | C53: 8970000 | D53: 7743399 | E53: 7743399 | F53: 2093607.671
A54: Cockenzie Power Station | B54: =VLOOKUP(A54,'Locations & Types'!$E:$F,2,FALSE) -> DC | C54: 0 | D54: 0 | E54: 0 | F54: 0
A55: Coffinswell | B55: =VLOOKUP(A55,'Locations & Types'!$E:$F,2,FALSE) -> GDN (SW) | C55: 5150000 | D55: 4830571 | E55: 4830571 | F55: 1641062.74
A56: Coldstream | B56: =VLOOKUP(A56,'Locations & Types'!$E:$F,2,FALSE) -> GDN (NO) | C56: 2848927 | D56: 2848927 | E56: 2848927 | F56: 878328.2192
A57: Corbridge | B57: =VLOOKUP(A57,'Locations & Types'!$E:$F,2,FALSE) -> GDN (NO) | C57: 166692 | D57: 166692 | E57: 166692 | F57: 723951.5068
A58: Coryton 2 (Thames Haven) Power Station | B58: =VLOOKUP(A58,'Locations & Types'!$E:$F,2,FALSE) -> DC | C58: 0 | D58: 12760497.26 | E58: 0 | F58: 12760497.26
A59: Cowpen Bewley | B59: =VLOOKUP(A59,'Locations & Types'!$E:$F,2,FALSE) -> GDN (NO) | C59: 52120008 | D59: 41700000 | E59: 41700000 | F59: 16851200.55
A60: Crawley Down | B60: =VLOOKUP(A60,'Locations & Types'!$E:$F,2,FALSE) -> GDN (SO) | C60: 0 | D60: 0 | E60: 0 | F60: 0
A61: Deborah Storage (Bacton) | B61: =VLOOKUP(A61,'Locations & Types'!$E:$F,2,FALSE) -> STORAGE SITE | C61: 0 | D61: 0 | E61: 0 | F61: 0
A62: Deeside | B62: =VLOOKUP(A62,'Locations & Types'!$E:$F,2,FALSE) -> DC | C62: 28480000 | D62: 2905176.479 | E62: 26881008.22 | F62: 2905176.479
A63: Didcot | B63: =VLOOKUP(A63,'Locations & Types'!$E:$F,2,FALSE) -> DC | C63: 137760000 | D63: 29267580.14 | E63: 90256849.32 | F63: 29267580.14
A64: Dowlais | B64: =VLOOKUP(A64,'Locations & Types'!$E:$F,2,FALSE) -> GDN (WS) | C64: 105977456 | D64: 94743289 | E64: 94743289 | F64: 30837906.85
A65: Drakelow Power Station | B65: =VLOOKUP(A65,'Locations & Types'!$E:$F,2,FALSE) -> DC | C65: 0 | D65: 0 | E65: 0 | F65: 0
A66: Drointon | B66: =VLOOKUP(A66,'Locations & Types'!$E:$F,2,FALSE) -> GDN (EM) | C66: 74272791 | D66: 51005055.17 | E66: 51005055.17 | F66: 35389619.18
A67: Drum | B67: =VLOOKUP(A67,'Locations & Types'!$E:$F,2,FALSE) -> GDN (SC) | C67: 82525354 | D67: 82525354 | E67: 82525354 | F67: 17383023.01
A68: Dyffryn Clydach | B68: =VLOOKUP(A68,'Locations & Types'!$E:$F,2,FALSE) -> GDN (WS) | C68: 40231974 | D68: =IF(LEFT($B68, 3)="GDN", $E68, $F68) -> 40231974 | E68: 40231974 | F68: 12808069.86
A69: Dynevor Max Refill | B69: =VLOOKUP(A69,'Locations & Types'!$E:$F,2,FALSE) -> STORAGE SITE | C69: 2610000 | D69: 0 | E69: 23931 | F69: 0
A70: Eastoft (Keadby Blackstart) | B70: =VLOOKUP(A70,'Locations & Types'!$E:$F,2,FALSE) -> DC | C70: 2380000 | D70: 2620200 | E70: 1457215 | F70: 2620200
A71: Eastoft (Keadby) | B71: =VLOOKUP(A71,'Locations & Types'!$E:$F,2,FALSE) -> DC | C71: 36060000 | D71: 3498547.973 | E71: 36060000 | F71: 3498547.973
A72: Easton Grey | B72: =VLOOKUP(A72,'Locations & Types'!$E:$F,2,FALSE) -> GDN (SW) | C72: 29600000 | D72: 27391725 | E72: 27391725 | F72: 3652003.288
A73: Ecclestone | B73: =VLOOKUP(A73,'Locations & Types'!$E:$F,2,FALSE) -> GDN (NW) | C73: 21140000 | D73: 16565698 | E73: 16565698 | F73: 5686178.904
A74: Elton | B74: =VLOOKUP(A74,'Locations & Types'!$E:$F,2,FALSE) -> GDN (NO) | C74: 60212185 | D74: 60212185 | E74: 60212185 | F74: 17569241.92
A75: Enron Billingham | B75: =VLOOKUP(A75,'Locations & Types'!$E:$F,2,FALSE) -> DC | C75: 121510000 | D75: 0 | E75: 2357950.973 | F75: 0
A76: Epping Green (Enfield Energy, aka Brimsdown) | B76: =VLOOKUP(A76,'Locations & Types'!$E:$F,2,FALSE) -> DC | C76: 19600000 | D76: 5288306.899 | E76: 20451780.82 | F76: 5288306.899
A77: Evesham | B77: =VLOOKUP(A77,'Locations & Types'!$E:$F,2,FALSE) -> GDN (SW) | C77: 6570000 | D77: 5584329 | E77: 5584329 | F77: 3208869.041
A78: Farningham | B78: =VLOOKUP(A78,'Locations & Types'!$E:$F,2,FALSE) -> GDN (SE) | C78: 135120000 | D78: 142828886.5 | E78: 142828886.5 | F78: 65175373.7
A79: Farningham B | B79: =VLOOKUP(A79,'Locations & Types'!$E:$F,2,FALSE) -> GDN (SE) | C79: 117883000 | D79: 117883000 | E79: 117883000 | F79: 9786621.918
A80: Ferny Knoll (AM Paper) | B80: =VLOOKUP(A80,'Locations & Types'!$E:$F,2,FALSE) -> DC | C80: 1080000 | D80: 0 | E80: 0 | F80: 0
A81: Fiddington | B81: =VLOOKUP(A81,'Locations & Types'!$E:$F,2,FALSE) -> GDN (SW) | C81: 25952278 | D81: 22229864 | E81: 22229864 | F81: 8064418.904
A82: Ganstead | B82: =VLOOKUP(A82,'Locations & Types'!$E:$F,2,FALSE) -> GDN (NE) | C82: 23150000 | D82: 20000000 | E82: 20000000 | F82: 9583998.904
A83: Garton Max Refill (Aldbrough) | B83: =VLOOKUP(A83,'Locations & Types'!$E:$F,2,FALSE) -> STORAGE SITE | C83: 325510001 | D83: 29789023.74 | E83: 337535452.1 | F83: 29789023.74
A84: Gilwern | B84: =VLOOKUP(A84,'Locations & Types'!$E:$F,2,FALSE) -> GDN (WS) | C84: 82680000 | D84: 78188679 | E84: 78188679 | F84: 28707623.29
A85: Glenmavis | B85: =VLOOKUP(A85,'Locations & Types'!$E:$F,2,FALSE) -> GDN (SC) | C85: 145790000 | D85: 128262344 | E85: 128262344 | F85: 50641086.85
A86: Glenmavis Max Refill | B86: =VLOOKUP(A86,'Locations & Types'!$E:$F,2,FALSE) -> STORAGE SITE | C86: 1620000 | D86: 0 | E86: 488720 | F86: 0
A87: Goole (Guardian Glass) | B87: =VLOOKUP(A87,'Locations & Types'!$E:$F,2,FALSE) -> DC | C87: 1620000 | D87: 1406812.197 | E87: 0 | F87: 1406812.197
A88: Gosberton | B88: =VLOOKUP(A88,'Locations & Types'!$E:$F,2,FALSE) -> GDN (EM) | C88: 15230000 | D88: 12321120 | E88: 12321120 | F88: 5507812.329
A89: Gowkhall (Longannet) | B89: =VLOOKUP(A89,'Locations & Types'!$E:$F,2,FALSE) -> DC | C89: 43320000 | D89: 1198989.882 | E89: 43320000 | F89: 1198989.882
A90: Grain Power Station | B90: =VLOOKUP(A90,'Locations & Types'!$E:$F,2,FALSE) -> DC | C90: 0 | D90: 30508642.55 | E90: 63282191.78 | F90: 30508642.55
A91: Great Wilbraham | B91: =VLOOKUP(A91,'Locations & Types'!$E:$F,2,FALSE) -> GDN (EA) | C91: 35590000 | D91: 20622606 | E91: 20622606 | F91: 8422988.767
A92: Guyzance | B92: =VLOOKUP(A92,'Locations & Types'!$E:$F,2,FALSE) -> GDN (NO) | C92: 2190000 | D92: 2022861 | E92: 2022861 | F92: 3218003.836
A93: Hardwick | B93: =VLOOKUP(A93,'Locations & Types'!$E:$F,2,FALSE) -> GDN (SO) | C93: 123699000 | D93: 95134383 | E93: 95134383 | F93: 36792153.97
A94: Harwarden (Shotton, aka Shotton Paper) | B94: =VLOOKUP(A94,'Locations & Types'!$E:$F,2,FALSE) -> DC | C94: 11590000 | D94: 0 | E94: 0 | F94: 0
A95: Hatfield Moor Max Refill | B95: =VLOOKUP(A95,'Locations & Types'!$E:$F,2,FALSE) -> STORAGE SITE | C95: 30210000 | D95: 2585732.329 | E95: 30210000 | F95: 2585732.329
A96: Hatfield Power Station | B96: =VLOOKUP(A96,'Locations & Types'!$E:$F,2,FALSE) -> DC | C96: 0 | D96: 1405902.616 | E96: 0 | F96: 1405902.616
A97: Hill Top Farm (Hole House Farm) | B97: =VLOOKUP(A97,'Locations & Types'!$E:$F,2,FALSE) -> STORAGE SITE | C97: 0 | D97: 4412771.414 | E97: 65178082.19 | F97: 4412771.414
A98: Hole House Max Refill | B98: =VLOOKUP(A98,'Locations & Types'!$E:$F,2,FALSE) -> STORAGE SITE | C98: 119580000 | D98: 6439635.263 | E98: 131960467.7 | F98: 6439635.263
A99: Holford | B99: =VLOOKUP(A99,'Locations & Types'!$E:$F,2,FALSE) -> STORAGE SITE | C99: 0 | D99: 28976721.86 | E99: 249894796 | F99: 28976721.86
A100: Hollingsgreen (Hays Chemicals) | B100: =VLOOKUP(A100,'Locations & Types'!$E:$F,2,FALSE) -> DC | C100: 3250000 | D100: 422677.1534 | E100: 3008219.178 | F100: 422677.1534
A101: Holmes Chapel | B101: =VLOOKUP(A101,'Locations & Types'!$E:$F,2,FALSE) -> GDN (NW) | C101: 22199592 | D101: 19310179 | E101: 19310179 | F101: 7778879.178
A102: Horndon | B102: =VLOOKUP(A102,'Locations & Types'!$E:$F,2,FALSE) -> GDN (NT) | C102: 46410000 | D102: 35989679.7 | E102: 35989679.7 | F102: 9776233.699
A103: Hornsea Max Refill | B103: =VLOOKUP(A103,'Locations & Types'!$E:$F,2,FALSE) -> STORAGE SITE | C103: 44789585 | D103: 4615922.805 | E103: 64981318.36 | F103: 4615922.805
A104: Humbleton | B104: =VLOOKUP(A104,'Locations & Types'!$E:$F,2,FALSE) -> GDN (NO) | C104: 250000 | D104: 250000 | E104: 250000 | F104: 68357.80822
A105: Hume | B105: =VLOOKUP(A105,'Locations & Types'!$E:$F,2,FALSE) -> GDN (SC) | C105: 1684385 | D105: 1684385 | E105: 1684385 | F105: 544888.2192
A106: Ilchester | B106: =VLOOKUP(A106,'Locations & Types'!$E:$F,2,FALSE) -> GDN (SW) | C106: 34960000 | D106: 30242930 | E106: 30242930 | F106: 8574467.671
A107: Ipsden | B107: =VLOOKUP(A107,'Locations & Types'!$E:$F,2,FALSE) -> GDN (SO) | C107: 12390000 | D107: 9369284.904 | E107: 9369284.904 | F107: 385250.9589
A108: Ipsden 2 | B108: =VLOOKUP(A108,'Locations & Types'!$E:$F,2,FALSE) -> GDN (SO) | C108: 15678000 | D108: 11667297 | E108: 11667297 | F108: 1382804.658
A109: Keld | B109: =VLOOKUP(A109,'Locations & Types'!$E:$F,2,FALSE) -> GDN (NO) | C109: 1890000 | D109: 1858472 | E109: 1858472 | F109: 1329279.178
A110: Kenn | B110: =VLOOKUP(A110,'Locations & Types'!$E:$F,2,FALSE) -> GDN (SW) | C110: 15430000 | D110: 14000883 | E110: 14000883 | F110: 5452479.178
A111: Kinknockie | B111: =VLOOKUP(A111,'Locations & Types'!$E:$F,2,FALSE) -> GDN (SC) | C111: 3068392 | D111: 3068392 | E111: 3068392 | F111: 1073959.452
A112: Kirkstead | B112: =VLOOKUP(A112,'Locations & Types'!$E:$F,2,FALSE) -> GDN (EM) | C112: 1210000 | D112: 858703 | E112: 858703 | F112: 196038.9041
A113: Langage Power Station | B113: =VLOOKUP(A113,'Locations & Types'!$E:$F,2,FALSE) -> DC | C113: 41616008 | D113: 9021710.759 | E113: 41034246.58 | F113: 9021710.759
A114: Langholm | B114: =VLOOKUP(A114,'Locations & Types'!$E:$F,2,FALSE) -> GDN (SC) | C114: 249796 | D114: 155319 | E114: 155319 | F114: 38188.49315
A115: Lauderhill | B115: =VLOOKUP(A115,'Locations & Types'!$E:$F,2,FALSE) -> GDN (SC) | C115: 1790000 | D115: 0 | E115: 0 | F115: 0
A116: Leamington | B116: =VLOOKUP(A116,'Locations & Types'!$E:$F,2,FALSE) -> GDN (WM) | C116: 4260000 | D116: 2586215 | E116: 2586215 | F116: 444728.7671
A117: Little Burdon | B117: =VLOOKUP(A117,'Locations & Types'!$E:$F,2,FALSE) -> GDN (NO) | C117: 20919521 | D117: 20919521 | E117: 20919521 | F117: 3464650.959
A118: Littleton Drew | B118: =VLOOKUP(A118,'Locations & Types'!$E:$F,2,FALSE) -> GDN (SW) | C118: 2470000 | D118: 2299463 | E118: 2299463 | F118: 443673.6986
A119: Lockerbie | B119: =VLOOKUP(A119,'Locations & Types'!$E:$F,2,FALSE) -> GDN (SC) | C119: 7439745 | D119: 7177344 | E119: 7177344 | F119: 2452795.342
A120: Lower Quinton | B120: =VLOOKUP(A120,'Locations & Types'!$E:$F,2,FALSE) -> GDN (WM) | C120: 29910000 | D120: 26684207 | E120: 26684207 | F120: 4672810.959
A121: Lupton | B121: =VLOOKUP(A121,'Locations & Types'!$E:$F,2,FALSE) -> GDN (NW) | C121: 19815980 | D121: 19815980 | E121: 19815980 | F121: 11580617.26
A122: Luxborough Lane | B122: =VLOOKUP(A122,'Locations & Types'!$E:$F,2,FALSE) -> GDN (NT) | C122: 165300000 | D122: 95786050 | E122: 95786050 | F122: 29673002.74
A123: Lyneham (Choakford) | B123: =VLOOKUP(A123,'Locations & Types'!$E:$F,2,FALSE) -> GDN (SW) | C123: 50300000 | D123: 40420636 | E123: 40420636 | F123: 9540126.027
A124: Maelor | B124: =VLOOKUP(A124,'Locations & Types'!$E:$F,2,FALSE) -> GDN (WN) | C124: 57560000 | D124: 49258990 | E124: 49258990 | F124: 16184203.01
A125: Malpas | B125: =VLOOKUP(A125,'Locations & Types'!$E:$F,2,FALSE) -> GDN (NW) | C125: 990000 | D125: 805524 | E125: 805524 | F125: 261966.0274
A126: Mappowder | B126: =VLOOKUP(A126,'Locations & Types'!$E:$F,2,FALSE) -> GDN (SO) | C126: 47680000 | D126: 36407083 | E126: 36407083 | F126: 10423546.03
A127: Marchwood Power Station | B127: =VLOOKUP(A127,'Locations & Types'!$E:$F,2,FALSE) -> DC | C127: 39840000 | D127: 24362953.34 | E127: 49317367.44 | F127: 24362953.34
A128: Market Harborough | B128: =VLOOKUP(A128,'Locations & Types'!$E:$F,2,FALSE) -> GDN (EM) | C128: 9480000 | D128: 6965982 | E128: 6965982 | F128: 1242827.671
A129: Matching Green | B129: =VLOOKUP(A129,'Locations & Types'!$E:$F,2,FALSE) -> GDN (EA) | C129: 92341877 | D129: 79673961.74 | E129: 79673961.74 | F129: 24537628.77
A130: Medway (aka Isle of Grain Power Station, NOT Grain Power) | B130: =VLOOKUP(A130,'Locations & Types'!$E:$F,2,FALSE) -> DC | C130: 38120000 | D130: 12697891.57 | E130: 38119999 | F130: 12697891.57
A131: Melkinthorpe | B131: =VLOOKUP(A131,'Locations & Types'!$E:$F,2,FALSE) -> GDN (NO) | C131: 2432914 | D131: 2432914 | E131: 2432914 | F131: 1426415.616
A132: Mickle Trafford | B132: =VLOOKUP(A132,'Locations & Types'!$E:$F,2,FALSE) -> GDN (NW) | C132: 29209411 | D132: =IF(LEFT($B132, 3)="GDN", $E132, $F132) -> 29209411 | E132: 29209411 | F132: 11503170.68
A133: Middle Stoke (Damhead Creek, aka Kingsnorth Power Station) | B133: =VLOOKUP(A133,'Locations & Types'!$E:$F,2,FALSE) -> DC | C133: 40940000 | D133: 24029310.14 | E133: 40940000 | F133: 24029310.14
A134: Milwich | B134: =VLOOKUP(A134,'Locations & Types'!$E:$F,2,FALSE) -> GDN (WM) | C134: 21635242 | D134: 18949988 | E134: 18949988 | F134: 5232905.753
A135: Moffat (Irish Interconnector) | B135: =VLOOKUP(A135,'Locations & Types'!$E:$F,2,FALSE) -> INTERCONNECTOR | C135: 530089918 | D135: 120066092.3 | E135: 298235464.5 | F135: 120066092.3
A136: Netherhowcleugh | B136: =VLOOKUP(A136,'Locations & Types'!$E:$F,2,FALSE) -> GDN (SC) | C136: 322112 | D136: 322112 | E136: 322112 | F136: 2801512.329
A137: Pannal | B137: =VLOOKUP(A137,'Locations & Types'!$E:$F,2,FALSE) -> GDN (NE) | C137: 148410000 | D137: 139836023 | E137: 139836023 | F137: 50589246.03
A138: Partington | B138: =VLOOKUP(A138,'Locations & Types'!$E:$F,2,FALSE) -> GDN (NW) | C138: 87630000 | D138: 55607944 | E138: 55607944 | F138: 8318363.836
A139: Partington Max Refill | B139: =VLOOKUP(A139,'Locations & Types'!$E:$F,2,FALSE) -> STORAGE SITE | C139: 2410000 | D139: 0 | E139: 36478 | F139: 0
A140: Paull | B140: =VLOOKUP(A140,'Locations & Types'!$E:$F,2,FALSE) -> GDN (NE) | C140: 46858561 | D140: 46858561 | E140: 46858561 | F140: 14445262.19
A141: Pembroke Power Station | B141: =VLOOKUP(A141,'Locations & Types'!$E:$F,2,FALSE) -> DC | C141: 121200056 | D141: 72785150.04 | E141: 119214269.4 | F141: 72785150.04
A142: Peterborough (Peterborough Power Station) | B142: =VLOOKUP(A142,'Locations & Types'!$E:$F,2,FALSE) -> DC | C142: 23280000 | D142: 4488371.781 | E142: 14353424.66 | F142: 4488371.781
A143: Peterborough Eye (Tee) | B143: =VLOOKUP(A143,'Locations & Types'!$E:$F,2,FALSE) -> GDN (EA) | C143: 25450000 | D143: 22655074 | E143: 22655074 | F143: 5010800.397
A144: Peters Green | B144: =VLOOKUP(A144,'Locations & Types'!$E:$F,2,FALSE) -> GDN (NT) | C144: 151860000 | D144: 129945500 | E144: 129945500 | F144: 46493754.79
A145: Peters Green South Mimms | B145: =VLOOKUP(A145,'Locations & Types'!$E:$F,2,FALSE) -> GDN (NT) | C145: 197176511 | D145: 170162482 | E145: 170162482 | F145: 44798183.01
A146: Phillips Petroleum, Teesside | B146: =VLOOKUP(A146,'Locations & Types'!$E:$F,2,FALSE) -> DC | C146: 3690000 | D146: 258555.7644 | E146: 4692853.882 | F146: 258555.7644
A147: Pickering | B147: =VLOOKUP(A147,'Locations & Types'!$E:$F,2,FALSE) -> GDN (NE) | C147: 9380000 | D147: 8985676 | E147: 8985676 | F147: 2580735.616
A148: Pickmere (Winnington Power, aka Brunner Mond) | B148: =VLOOKUP(A148,'Locations & Types'!$E:$F,2,FALSE) -> DC | C148: 15380000 | D148: 4986082.518 | E148: 13000000 | F148: 4986082.518
A149: Pitcairngreen | B149: =VLOOKUP(A149,'Locations & Types'!$E:$F,2,FALSE) -> GDN (SC) | C149: 1915791 | D149: 3432229.356 | E149: 3432229.356 | F149: 392470.9589
A150: Pucklechurch | B150: =VLOOKUP(A150,'Locations & Types'!$E:$F,2,FALSE) -> GDN (SW) | C150: 25794765 | D150: 22688355 | E150: 22688355 | F150: 5232692.603
A151: Rawcliffe | B151: =VLOOKUP(A151,'Locations & Types'!$E:$F,2,FALSE) -> GDN (NE) | C151: 5046154 | D151: 5046154 | E151: 5046154 | F151: 1394433.699
A152: Rollswood Kintore | B152: =VLOOKUP(A152,'Locations & Types'!$E:$F,2,FALSE) -> DC | C152: 0 | D152: 0 | E152: 0 | F152: 0
A153: Roosecote Power Station (Barrow) | B153: =VLOOKUP(A153,'Locations & Types'!$E:$F,2,FALSE) -> DC | C153: 14730000 | D153: 0 | E153: 0 | F153: 0
A154: Rosehill (Saltend Power Station) | B154: =VLOOKUP(A154,'Locations & Types'!$E:$F,2,FALSE) -> DC | C154: 57830000 | D154: 36749959.53 | E154: 57830000 | F154: 36749959.53
A155: Ross (SW) | B155: =VLOOKUP(A155,'Locations & Types'!$E:$F,2,FALSE) -> GDN (SW) | C155: 4530000 | D155: 4023357 | E155: 4023357 | F155: 1931869.589
A156: Ross (WM) | B156: =VLOOKUP(A156,'Locations & Types'!$E:$F,2,FALSE) -> GDN (WM) | C156: 16520000 | D156: 10046347.27 | E156: 10046347.27 | F156: 17151793.97
A157: Roudham Heath | B157: =VLOOKUP(A157,'Locations & Types'!$E:$F,2,FALSE) -> GDN (EA) | C157: 25472176 | D157: 16310715.58 | E157: 16310715.58 | F157: 9993710.959
A158: Royston | B158: =VLOOKUP(A158,'Locations & Types'!$E:$F,2,FALSE) -> GDN (EA) | C158: 2700000 | D158: 2367780 | E158: 2367780 | F158: 4375035.068
A159: Rugby | B159: =VLOOKUP(A159,'Locations & Types'!$E:$F,2,FALSE) -> GDN (WM) | C159: 80080000 | D159: 63016793 | E159: 63016793 | F159: 30558887.4
A160: Ryehouse | B160: =VLOOKUP(A160,'Locations & Types'!$E:$F,2,FALSE) -> DC | C160: 38660000 | D160: 5025399.767 | E160: 38660000 | F160: 5025399.767
A161: Saddle Bow (Kings Lynn) | B161: =VLOOKUP(A161,'Locations & Types'!$E:$F,2,FALSE) -> DC | C161: 17980000 | D161: 0 | E161: 14500000 | F161: 0
A162: Saltend BPHP (BP Saltend HP) | B162: =VLOOKUP(A162,'Locations & Types'!$E:$F,2,FALSE) -> DC | C162: 9100000 | D162: 3914012.408 | E162: 9055895 | F162: 3914012.408
A163: Saltfleetby Storage (Theddlethorpe) | B163: =VLOOKUP(A163,'Locations & Types'!$E:$F,2,FALSE) -> STORAGE SITE | C163: 0 | D163: 0 | E163: 0 | F163: 0
A164: Saltwick Pressure Controlled | B164: =VLOOKUP(A164,'Locations & Types'!$E:$F,2,FALSE) -> GDN (NO) | C164: 9220000 | D164: 6640000 | E164: 6640000 | F164: 3441882.74
A165: Saltwick Volumetric Controlled | B165: =VLOOKUP(A165,'Locations & Types'!$E:$F,2,FALSE) -> GDN (NO) | C165: 69070000 | D165: 57090000 | E165: 57090000 | F165: 11459696.44
A166: Samlesbury | B166: =VLOOKUP(A166,'Locations & Types'!$E:$F,2,FALSE) -> GDN (NW) | C166: 110990000 | D166: 101500295 | E166: 101500295 | F166: 21155120.55
A167: Sandy Lane (Blackburn CHP, aka Sappi Paper Mill) | B167: =VLOOKUP(A167,'Locations & Types'!$E:$F,2,FALSE) -> DC | C167: 4550000 | D167: 187575.4548 | E167: 4550000 | F167: 187575.4548
A168: Seabank (DN) | B168: =VLOOKUP(A168,'Locations & Types'!$E:$F,2,FALSE) -> GDN (SW) | C168: 60740000 | D168: 52882417 | E168: 52882417 | F168: 18331680.82
A169: Seabank (Seabank Power Station phase II) | B169: =VLOOKUP(A169,'Locations & Types'!$E:$F,2,FALSE) -> DC | C169: 19100000 | D169: 1542395.014 | E169: 29458309.76 | F169: 1542395.014
A170: Seal Sands TGPP | B170: =VLOOKUP(A170,'Locations & Types'!$E:$F,2,FALSE) -> DC | C170: 0 | D170: 0 | E170: 1020000 | F170: 0
A171: Sellafield Power Station | B171: =VLOOKUP(A171,'Locations & Types'!$E:$F,2,FALSE) -> DC | C171: 12350000 | D171: 6262078.208 | E171: 12349999 | F171: 6262078.208
A172: Shellstar (aka Kemira, not Kemira CHP) | B172: =VLOOKUP(A172,'Locations & Types'!$E:$F,2,FALSE) -> DC | C172: 16240000 | D172: 0 | E172: 11732444 | F172: 0
A173: Shorne | B173: =VLOOKUP(A173,'Locations & Types'!$E:$F,2,FALSE) -> GDN (SE) | C173: 67060000 | D173: 48279307 | E173: 48279307 | F173: 23016.43836
A174: Shotwick (Bridgewater Paper) | B174: =VLOOKUP(A174,'Locations & Types'!$E:$F,2,FALSE) -> DC | C174: 5520000 | D174: 80702.43014 | E174: 3238858.447 | F174: 80702.43014
A175: Shustoke | B175: =VLOOKUP(A175,'Locations & Types'!$E:$F,2,FALSE) -> GDN (WM) | C175: 44760000 | D175: 1900753.91 | E175: 1900753.91 | F175: 36257.26027
A176: Silk Willoughby | B176: =VLOOKUP(A176,'Locations & Types'!$E:$F,2,FALSE) -> GDN (EM) | C176: 3530000 | D176: 2203090 | E176: 2203090 | F176: 761616.4384
A177: Soutra | B177: =VLOOKUP(A177,'Locations & Types'!$E:$F,2,FALSE) -> GDN (SC) | C177: 10726995 | D177: 10744803.22 | E177: 10744803.22 | F177: 2058972.877
A178: Spalding 2 (South Holland) Power Station | B178: =VLOOKUP(A178,'Locations & Types'!$E:$F,2,FALSE) -> DC | C178: 0 | D178: 0 | E178: 0 | F178: 0
A179: St Fergus | B179: =VLOOKUP(A179,'Locations & Types'!$E:$F,2,FALSE) -> GDN (SC) | C179: 1058074 | D179: 979235.2767 | E179: 979235.2767 | F179: 485983.8356
A180: St. Fergus (Peterhead) | B180: =VLOOKUP(A180,'Locations & Types'!$E:$F,2,FALSE) -> DC | C180: 108300000 | D180: 6623287.46 | E180: 108288000 | F180: 6623287.46
A181: St. Fergus (Shell Blackstart) | B181: =VLOOKUP(A181,'Locations & Types'!$E:$F,2,FALSE) -> DC | C181: 2583336 | D181: 3266.90411 | E181: 2584138.934 | F181: 3266.90411
A182: St. Neots (Little Barford) | B182: =VLOOKUP(A182,'Locations & Types'!$E:$F,2,FALSE) -> DC | C182: 35200000 | D182: 16078816.96 | E182: 36571522.19 | F182: 16078816.96
A183: Stallingborough | B183: =VLOOKUP(A183,'Locations & Types'!$E:$F,2,FALSE) -> DC | C183: 68012169 | D183: 12076753.19 | E183: 60390410.96 | F183: 12076753.19
A184: Stanford Le Hope (Coryton) | B184: =VLOOKUP(A184,'Locations & Types'!$E:$F,2,FALSE) -> DC | C184: 38600000 | D184: 5536769.838 | E184: 38705753.42 | F184: 5536769.838
A185: Staythorpe | B185: =VLOOKUP(A185,'Locations & Types'!$E:$F,2,FALSE) -> DC | C185: 82000000 | D185: 52401011.34 | E185: 84230136.99 | F185: 52401011.34
A186: Stranraer | B186: =VLOOKUP(A186,'Locations & Types'!$E:$F,2,FALSE) -> GDN (SC) | C186: 930433 | D186: 742435 | E186: 742435 | F186: 207378.0822
A187: Stratford-upon-Avon | B187: =VLOOKUP(A187,'Locations & Types'!$E:$F,2,FALSE) -> GDN (WM) | C187: 4680000 | D187: 3735040 | E187: 3735040 | F187: 1219883.562
A188: Stublach (Cheshire) | B188: =VLOOKUP(A188,'Locations & Types'!$E:$F,2,FALSE) -> STORAGE SITE | C188: 0 | D188: 14069556.88 | E188: 390785030.6 | F188: 14069556.88
A189: Sutton Bridge | B189: =VLOOKUP(A189,'Locations & Types'!$E:$F,2,FALSE) -> GDN (EM) | C189: 1710546 | D189: 1085248.825 | E189: 1085248.825 | F189: 377395.8904
A190: Sutton Bridge Power Station | B190: =VLOOKUP(A190,'Locations & Types'!$E:$F,2,FALSE) -> DC | C190: 37470000 | D190: 7981283.189 | E190: 37480397.26 | F190: 7981283.189
A191: Tatsfield | B191: =VLOOKUP(A191,'Locations & Types'!$E:$F,2,FALSE) -> GDN (SE) | C191: 276460000 | D191: 192774633 | E191: 192774633 | F191: 37304383.56
A192: Teesside (BASF, aka BASF Teesside) | B192: =VLOOKUP(A192,'Locations & Types'!$E:$F,2,FALSE) -> DC | C192: 9750000 | D192: 2980265.641 | E192: 9371853.882 | F192: 2980265.641
A193: Teesside Hydrogen | B193: =VLOOKUP(A193,'Locations & Types'!$E:$F,2,FALSE) -> DC | C193: 13276800 | D193: 4334318.545 | E193: 6638400 | F193: 4334318.545
A194: Terra Nitrogen (aka ICI, Terra Severnside) | B194: =VLOOKUP(A194,'Locations & Types'!$E:$F,2,FALSE) -> DC | C194: 13100000 | D194: 0 | E194: 0 | F194: 0
A195: Thornton Curtis (DN) | B195: =VLOOKUP(A195,'Locations & Types'!$E:$F,2,FALSE) -> GDN (EM) | C195: 118190411 | D195: =IF(LEFT($B195, 3)="GDN", $E195, $F195) -> 95532642 | E195: 95532642 | F195: 42109320.27
A196: Thornton Curtis (Humber Refinery, aka Immingham) | B196: =VLOOKUP(A196,'Locations & Types'!$E:$F,2,FALSE) -> DC | C196: 67000000 | D196: 46408598.46 | E196: 67000000 | F196: 46408598.46
A197: Thornton Curtis (Killingholme) | B197: =VLOOKUP(A197,'Locations & Types'!$E:$F,2,FALSE) -> DC | C197: 91000001 | D197: 7732385.545 | E197: 47056164.38 | F197: 7732385.545
A198: Thrintoft | B198: =VLOOKUP(A198,'Locations & Types'!$E:$F,2,FALSE) -> GDN (NO) | C198: 6921484 | D198: 6921484 | E198: 6921484 | F198: 1835889.315
A199: Tilbury Power Station | B199: =VLOOKUP(A199,'Locations & Types'!$E:$F,2,FALSE) -> DC | C199: 0 | D199: 0 | E199: 0 | F199: 0
A200: Tonna (Baglan Bay) | B200: =VLOOKUP(A200,'Locations & Types'!$E:$F,2,FALSE) -> DC | C200: 48650000 | D200: 12027063.34 | E200: 48650000 | F200: 12027063.34
... 22 more rows

Sheet 17-18 FCC - Exit (hidden)
A1: Exit Point | B1: Exit Point Type | C1: Obligated Exit Capacity | D1: Enduring Exit Capacity Scenario | E1: Historical Sold Exit Capacity Levels | F1: Historical Exit Flow Levels
C2: (kWh/d) | D2: (kWh/d) | E2: (kWh/d) | F2: (kWh/d)
A3: Aberdeen | B3: =VLOOKUP(A3,'Locations & Types'!$E:$F,2,FALSE) -> GDN (SC) | C3: 23536855 | D3: =IF(LEFT($B3, 3)="GDN", $E3, $F3) -> 21753046.63 | E3: 21753046.63 | F3: 8681891.945
A4: Abson (Seabank Power Station phase I) | B4: =VLOOKUP(A4,'Locations & Types'!$E:$F,2,FALSE) -> DC | C4: 36590000 | D4: =IF(LEFT($B4, 3)="GDN", $E4, $F4) -> 24750106.68 | E4: 51795479.45 | F4: 24750106.68
A5: Alrewas (EM) | B5: =VLOOKUP(A5,'Locations & Types'!$E:$F,2,FALSE) -> GDN (EM) | C5: 139912893 | D5: 68885112.87 | E5: 68885112.87 | F5: 19186591.78
A6: Alrewas (WM) | B6: =VLOOKUP(A6,'Locations & Types'!$E:$F,2,FALSE) -> GDN (WM) | C6: 128480000 | D6: 72669637 | E6: 72669637 | F6: 14251057.53
A7: Apache (Sage Black Start) | B7: =VLOOKUP(A7,'Locations & Types'!$E:$F,2,FALSE) -> DC | C7: 0 | D7: 0 | E7: 0 | F7: 0
A8: Armadale | B8: =VLOOKUP(A8,'Locations & Types'!$E:$F,2,FALSE) -> GDN (SC) | C8: 16011750 | D8: 7519525 | E8: 7519525 | F8: 1855666.849
A9: Aspley | B9: =VLOOKUP(A9,'Locations & Types'!$E:$F,2,FALSE) -> GDN (WM) | C9: 84650000 | D9: 54517861.26 | E9: 54517861.26 | F9: 36227725.48
A10: Asselby | B10: =VLOOKUP(A10,'Locations & Types'!$E:$F,2,FALSE) -> GDN (NE) | C10: 4586470 | D10: 4586470 | E10: 4586470 | F10: 1518337.534
A11: Audley (NW) | B11: =VLOOKUP(A11,'Locations & Types'!$E:$F,2,FALSE) -> GDN (NW) | C11: 12140000 | D11: 8037574 | E11: 8037574 | F11: 3298529.315
A12: Audley (WM) | B12: =VLOOKUP(A12,'Locations & Types'!$E:$F,2,FALSE) -> GDN (WM) | C12: 21830000 | D12: 15330890 | E12: 15330890 | F12: 32261.64384
A13: Austrey | B13: =VLOOKUP(A13,'Locations & Types'!$E:$F,2,FALSE) -> GDN (WM) | C13: 87835508 | D13: 59601211 | E13: 59601211 | F13: 17373716.44
A14: Avonmouth Max Refill | B14: =VLOOKUP(A14,'Locations & Types'!$E:$F,2,FALSE) -> STORAGE SITE | C14: 2300000 | D14: 0 | E14: 0 | F14: 0
A15: Aylesbeare | B15: =VLOOKUP(A15,'Locations & Types'!$E:$F,2,FALSE) -> GDN (SW) | C15: 22680000 | D15: 19128874 | E15: 19128874 | F15: 6249289.863
A16: Bacton | B16: =VLOOKUP(A16,'Locations & Types'!$E:$F,2,FALSE) -> GDN (EA) | C16: 3660000 | D16: 2472724 | E16: 2472724 | F16: 915982.0548
A17: Bacton (Baird) | B17: =VLOOKUP(A17,'Locations & Types'!$E:$F,2,FALSE) -> STORAGE SITE | C17: 0 | D17: 0 | E17: 0 | F17: 0
A18: Bacton (BBL) | B18: =VLOOKUP(A18,'Locations & Types'!$E:$F,2,FALSE) -> INTERCONNECTOR | C18: 0 | D18: 297523.7808 | E18: 158128898.6 | F18: 297523.7808
A19: Bacton (Great Yarmouth) | B19: =VLOOKUP(A19,'Locations & Types'!$E:$F,2,FALSE) -> DC | C19: 20040000 | D19: 11660088.78 | E19: 24737624.27 | F19: 11660088.78
A20: Bacton (IUK) | B20: =VLOOKUP(A20,'Locations & Types'!$E:$F,2,FALSE) -> INTERCONNECTOR | C20: 651676940 | D20: 241588739.7 | E20: 791442508.1 | F20: 241588739.7
A21: Baldersby | B21: =VLOOKUP(A21,'Locations & Types'!$E:$F,2,FALSE) -> GDN (NE) | C21: 1340000 | D21: 1126642 | E21: 1126642 | F21: 470479.9452
A22: Balgray | B22: =VLOOKUP(A22,'Locations & Types'!$E:$F,2,FALSE) -> GDN (SC) | C22: 15723362 | D22: 14957981 | E22: 14957981 | F22: 5140480.822
A23: Barking (Horndon) | B23: =VLOOKUP(A23,'Locations & Types'!$E:$F,2,FALSE) -> DC | C23: 58590000 | D23: 5044.931507 | E23: 0 | F23: 5044.931507
A24: Barrow (Bains) | B24: =VLOOKUP(A24,'Locations & Types'!$E:$F,2,FALSE) -> STORAGE SITE | C24: 0 | D24: 0 | E24: 0 | F24: 0
A25: Barrow (Black Start) | B25: =VLOOKUP(A25,'Locations & Types'!$E:$F,2,FALSE) -> DC | C25: 1000000 | D25: 0 | E25: 1017452.055 | F25: 0
A26: Barrow (Gateway) | B26: =VLOOKUP(A26,'Locations & Types'!$E:$F,2,FALSE) -> STORAGE SITE | C26: 0 | D26: 0 | E26: 0 | F26: 0
A27: Barton Stacey Max Refill (Humbly Grove) | B27: =VLOOKUP(A27,'Locations & Types'!$E:$F,2,FALSE) -> STORAGE SITE | C27: 100940000 | D27: 9623690.247 | E27: 91524953.41 | F27: 9623690.247
A28: Bathgate | B28: =VLOOKUP(A28,'Locations & Types'!$E:$F,2,FALSE) -> GDN (SC) | C28: 24176039 | D28: 21081766 | E28: 21081766 | F28: 7227144.658
A29: Billingham ICI (Terra Billingham) | B29: =VLOOKUP(A29,'Locations & Types'!$E:$F,2,FALSE) -> DC | C29: 43540000 | D29: 18854048.82 | E29: 33644543 | F29: 18854048.82
A30: Bishop Auckland | B30: =VLOOKUP(A30,'Locations & Types'!$E:$F,2,FALSE) -> GDN (NO) | C30: 62130000 | D30: 56394702 | E30: 56394702 | F30: 26238975.07
A31: Bishop Auckland (test facility) | B31: =VLOOKUP(A31,'Locations & Types'!$E:$F,2,FALSE) -> DC | C31: 0 | D31: 1144964.384 | E31: 0 | F31: 1144964.384
A32: Blaby | B32: =VLOOKUP(A32,'Locations & Types'!$E:$F,2,FALSE) -> GDN (EM) | C32: 13400271 | D32: 10075153.54 | E32: 10075153.54 | F32: 6404196.986
A33: Blackness (BP Grangemouth) | B33: =VLOOKUP(A33,'Locations & Types'!$E:$F,2,FALSE) -> DC | C33: 27290000 | D33: 16570018.16 | E33: 27299315.07 | F33: 16570018.16
A34: Blackrod | B34: =VLOOKUP(A34,'Locations & Types'!$E:$F,2,FALSE) -> GDN (NW) | C34: 166545212 | D34: 123939267 | E34: 123939267 | F34: 48538880.27
A35: Blyborough | B35: =VLOOKUP(A35,'Locations & Types'!$E:$F,2,FALSE) -> GDN (EM) | C35: 79330000 | D35: 56508567.65 | E35: 56508567.65 | F35: 10336260
A36: Blyborough (Brigg) | B36: =VLOOKUP(A36,'Locations & Types'!$E:$F,2,FALSE) -> DC | C36: 16890000 | D36: 304579.7534 | E36: 10550684.93 | F36: 304579.7534
A37: Blyborough (Cottam) | B37: =VLOOKUP(A37,'Locations & Types'!$E:$F,2,FALSE) -> DC | C37: 19300000 | D37: 13117551.23 | E37: 22000000 | F37: 13117551.23
A38: Braishfield A | B38: =VLOOKUP(A38,'Locations & Types'!$E:$F,2,FALSE) -> GDN (SO) | C38: 107280000 | D38: 77191727.89 | E38: 77191727.89 | F38: 39450128.77
A39: Braishfield B | B39: =VLOOKUP(A39,'Locations & Types'!$E:$F,2,FALSE) -> GDN (SO) | C39: 58866000 | D39: 57139307 | E39: 57139307 | F39: 15940642.47
A40: Brine Field (Teesside) Power Station | B40: =VLOOKUP(A40,'Locations & Types'!$E:$F,2,FALSE) -> DC | C40: 0 | D40: 0 | E40: 0 | F40: 0
A41: Brisley | B41: =VLOOKUP(A41,'Locations & Types'!$E:$F,2,FALSE) -> GDN (EA) | C41: 3110000 | D41: 2295523 | E41: 2295523 | F41: 886721.4521
A42: Broxburn | B42: =VLOOKUP(A42,'Locations & Types'!$E:$F,2,FALSE) -> GDN (SC) | C42: 60444108 | D42: 56250554 | E42: 56250554 | F42: 19304397.26
A43: Burley Bank | B43: =VLOOKUP(A43,'Locations & Types'!$E:$F,2,FALSE) -> GDN (NE) | C43: 20310000 | D43: 15295179 | E43: 15295179 | F43: 8288553.041
A44: Burnhervie | B44: =VLOOKUP(A44,'Locations & Types'!$E:$F,2,FALSE) -> GDN (SC) | C44: 22380000 | D44: 21487448.7 | E44: 21487448.7 | F44: 84283.20548
A45: Burton Point (Connahs Quay) | B45: =VLOOKUP(A45,'Locations & Types'!$E:$F,2,FALSE) -> DC | C45: 73210000 | D45: 19536466.22 | E45: 72000000 | F45: 19536466.22
A46: Caldecott | B46: =VLOOKUP(A46,'Locations & Types'!$E:$F,2,FALSE) -> GDN (EM) | C46: 11080000 | D46: 9033941.271 | E46: 9033941.271 | F46: 3177176.712
A47: Caldecott (Corby Power Station) | B47: =VLOOKUP(A47,'Locations & Types'!$E:$F,2,FALSE) -> DC | C47: 21120000 | D47: 53335.23288 | E47: 21101111 | F47: 53335.23288
A48: Cambridge | B48: =VLOOKUP(A48,'Locations & Types'!$E:$F,2,FALSE) -> GDN (EA) | C48: 0 | D48: 0 | E48: 0 | F48: 0
A49: Careston | B49: =VLOOKUP(A49,'Locations & Types'!$E:$F,2,FALSE) -> GDN (SC) | C49: 3851761 | D49: 3591867.836 | E49: 3591867.836 | F49: 1601877.562
A50: Carrington (Partington) Power Station | B50: =VLOOKUP(A50,'Locations & Types'!$E:$F,2,FALSE) -> DC | C50: 45000000 | D50: 27840552.77 | E50: 45000000 | F50: 27840552.77
A51: Caythorpe | B51: =VLOOKUP(A51,'Locations & Types'!$E:$F,2,FALSE) -> STORAGE SITE | C51: 75000000 | D51: 0 | E51: 0 | F51: 0
A52: Centrax Industrial | B52: =VLOOKUP(A52,'Locations & Types'!$E:$F,2,FALSE) -> DC | C52: 85000 | D52: 21270.9863 | E52: 85000 | F52: 21270.9863
A53: Cirencester | B53: =VLOOKUP(A53,'Locations & Types'!$E:$F,2,FALSE) -> GDN (SW) | C53: 8970000 | D53: 7743399 | E53: 7743399 | F53: 2294873.644
A54: Cockenzie Power Station | B54: =VLOOKUP(A54,'Locations & Types'!$E:$F,2,FALSE) -> DC | C54: 0 | D54: 0 | E54: 0 | F54: 0
A55: Coffinswell | B55: =VLOOKUP(A55,'Locations & Types'!$E:$F,2,FALSE) -> GDN (SW) | C55: 5150000 | D55: 4830571 | E55: 4830571 | F55: 1741179.452
A56: Coldstream | B56: =VLOOKUP(A56,'Locations & Types'!$E:$F,2,FALSE) -> GDN (NO) | C56: 2848927 | D56: 2848927 | E56: 2848927 | F56: 911664.9315
A57: Corbridge | B57: =VLOOKUP(A57,'Locations & Types'!$E:$F,2,FALSE) -> GDN (NO) | C57: 166692 | D57: 166692 | E57: 166692 | F57: 24001.39726
A58: Coryton 2 (Thames Haven) Power Station | B58: =VLOOKUP(A58,'Locations & Types'!$E:$F,2,FALSE) -> DC | C58: 0 | D58: 0 | E58: 0 | F58: 0
A59: Cowpen Bewley | B59: =VLOOKUP(A59,'Locations & Types'!$E:$F,2,FALSE) -> GDN (NO) | C59: 52120008 | D59: 39610384 | E59: 39610384 | F59: 15932110.68
A60: Crawley Down | B60: =VLOOKUP(A60,'Locations & Types'!$E:$F,2,FALSE) -> GDN (SO) | C60: 0 | D60: 0 | E60: 0 | F60: 0
A61: Deborah Storage (Bacton) | B61: =VLOOKUP(A61,'Locations & Types'!$E:$F,2,FALSE) -> STORAGE SITE | C61: 0 | D61: 0 | E61: 0 | F61: 0
A62: Deeside | B62: =VLOOKUP(A62,'Locations & Types'!$E:$F,2,FALSE) -> DC | C62: 28480000 | D62: 3083036.301 | E62: 26800000 | F62: 3083036.301
A63: Didcot | B63: =VLOOKUP(A63,'Locations & Types'!$E:$F,2,FALSE) -> DC | C63: 137760000 | D63: 37603017.21 | E63: 90000000 | F63: 37603017.21
A64: Dowlais | B64: =VLOOKUP(A64,'Locations & Types'!$E:$F,2,FALSE) -> GDN (WS) | C64: 105977456 | D64: 94743289 | E64: 94743289 | F64: 32842106.3
A65: Drakelow Power Station | B65: =VLOOKUP(A65,'Locations & Types'!$E:$F,2,FALSE) -> DC | C65: 0 | D65: 0 | E65: 0 | F65: 0
A66: Drointon | B66: =VLOOKUP(A66,'Locations & Types'!$E:$F,2,FALSE) -> GDN (EM) | C66: 74272791 | D66: 66750587 | E66: 66750587 | F66: 40005309.32
A67: Drum | B67: =VLOOKUP(A67,'Locations & Types'!$E:$F,2,FALSE) -> GDN (SC) | C67: 82525354 | D67: 67302057.32 | E67: 67302057.32 | F67: 15748293.15
A68: Dyffryn Clydach | B68: =VLOOKUP(A68,'Locations & Types'!$E:$F,2,FALSE) -> GDN (WS) | C68: 40231974 | D68: =IF(LEFT($B68, 3)="GDN", $E68, $F68) -> 40231974 | E68: 40231974 | F68: 13915479.18
A69: Dynevor Max Refill | B69: =VLOOKUP(A69,'Locations & Types'!$E:$F,2,FALSE) -> STORAGE SITE | C69: 2610000 | D69: 0 | E69: 23931 | F69: 0
A70: Eastoft (Keadby Blackstart) | B70: =VLOOKUP(A70,'Locations & Types'!$E:$F,2,FALSE) -> DC | C70: 2380000 | D70: 0 | E70: 1457215 | F70: 0
A71: Eastoft (Keadby) | B71: =VLOOKUP(A71,'Locations & Types'!$E:$F,2,FALSE) -> DC | C71: 36060000 | D71: 13283987.26 | E71: 37169253.39 | F71: 13283987.26
A72: Easton Grey | B72: =VLOOKUP(A72,'Locations & Types'!$E:$F,2,FALSE) -> GDN (SW) | C72: 29600000 | D72: 27391725 | E72: 27391725 | F72: 4550543.288
A73: Ecclestone | B73: =VLOOKUP(A73,'Locations & Types'!$E:$F,2,FALSE) -> GDN (NW) | C73: 21140000 | D73: 16370887 | E73: 16370887 | F73: 3895338.082
A74: Elton | B74: =VLOOKUP(A74,'Locations & Types'!$E:$F,2,FALSE) -> GDN (NO) | C74: 60212185 | D74: 60212185 | E74: 60212185 | F74: 20949113.34
A75: Enron Billingham | B75: =VLOOKUP(A75,'Locations & Types'!$E:$F,2,FALSE) -> DC | C75: 121510000 | D75: 0 | E75: 2297677 | F75: 0
A76: Epping Green (Enfield Energy, aka Brimsdown) | B76: =VLOOKUP(A76,'Locations & Types'!$E:$F,2,FALSE) -> DC | C76: 19600000 | D76: 7723033.397 | E76: 21000000 | F76: 7723033.397
A77: Evesham | B77: =VLOOKUP(A77,'Locations & Types'!$E:$F,2,FALSE) -> GDN (SW) | C77: 6570000 | D77: 5584329 | E77: 5584329 | F77: 2211332.11
A78: Farningham | B78: =VLOOKUP(A78,'Locations & Types'!$E:$F,2,FALSE) -> GDN (SE) | C78: 135120000 | D78: 141472722.1 | E78: 141472722.1 | F78: 63795437.26
A79: Farningham B | B79: =VLOOKUP(A79,'Locations & Types'!$E:$F,2,FALSE) -> GDN (SE) | C79: 117883000 | D79: 64718509.68 | E79: 64718509.68 | F79: 9340506.849
A80: Ferny Knoll (AM Paper) | B80: =VLOOKUP(A80,'Locations & Types'!$E:$F,2,FALSE) -> DC | C80: 1080000 | D80: 301.369863 | E80: 0 | F80: 301.369863
A81: Fiddington | B81: =VLOOKUP(A81,'Locations & Types'!$E:$F,2,FALSE) -> GDN (SW) | C81: 25952278 | D81: 22229864 | E81: 22229864 | F81: 8353903.288
A82: Ganstead | B82: =VLOOKUP(A82,'Locations & Types'!$E:$F,2,FALSE) -> GDN (NE) | C82: 23150000 | D82: 16864011 | E82: 16864011 | F82: 8924797.863
A83: Garton Max Refill (Aldbrough) | B83: =VLOOKUP(A83,'Locations & Types'!$E:$F,2,FALSE) -> STORAGE SITE | C83: 325510001 | D83: 41435157.73 | E83: 370427884.4 | F83: 41435157.73
A84: Gilwern | B84: =VLOOKUP(A84,'Locations & Types'!$E:$F,2,FALSE) -> GDN (WS) | C84: 82680000 | D84: 78188679 | E84: 78188679 | F84: 35737208.66
A85: Glenmavis | B85: =VLOOKUP(A85,'Locations & Types'!$E:$F,2,FALSE) -> GDN (SC) | C85: 145790000 | D85: 129618508.4 | E85: 129618508.4 | F85: 55270123.84
A86: Glenmavis Max Refill | B86: =VLOOKUP(A86,'Locations & Types'!$E:$F,2,FALSE) -> STORAGE SITE | C86: 1620000 | D86: 0 | E86: 488720 | F86: 0
A87: Goole (Guardian Glass) | B87: =VLOOKUP(A87,'Locations & Types'!$E:$F,2,FALSE) -> DC | C87: 1620000 | D87: 1437062.301 | E87: 1621643.836 | F87: 1437062.301
A88: Gosberton | B88: =VLOOKUP(A88,'Locations & Types'!$E:$F,2,FALSE) -> GDN (EM) | C88: 15230000 | D88: 12391193.85 | E88: 12391193.85 | F88: 5236542.466
A89: Gowkhall (Longannet) | B89: =VLOOKUP(A89,'Locations & Types'!$E:$F,2,FALSE) -> DC | C89: 43320000 | D89: 0 | E89: 43320000 | F89: 0
A90: Grain Power Station | B90: =VLOOKUP(A90,'Locations & Types'!$E:$F,2,FALSE) -> DC | C90: 0 | D90: 30858832.82 | E90: 63989041.1 | F90: 30858832.82
A91: Great Wilbraham | B91: =VLOOKUP(A91,'Locations & Types'!$E:$F,2,FALSE) -> GDN (EA) | C91: 35590000 | D91: 24004050 | E91: 24004050 | F91: 8985249.041
A92: Guyzance | B92: =VLOOKUP(A92,'Locations & Types'!$E:$F,2,FALSE) -> GDN (NO) | C92: 2190000 | D92: 1806988 | E92: 1806988 | F92: 726532.8219
A93: Hardwick | B93: =VLOOKUP(A93,'Locations & Types'!$E:$F,2,FALSE) -> GDN (SO) | C93: 123699000 | D93: 95134383 | E93: 95134383 | F93: 36918109.59
A94: Harwarden (Shotton, aka Shotton Paper) | B94: =VLOOKUP(A94,'Locations & Types'!$E:$F,2,FALSE) -> DC | C94: 11590000 | D94: 0 | E94: 0 | F94: 0
A95: Hatfield Moor Max Refill | B95: =VLOOKUP(A95,'Locations & Types'!$E:$F,2,FALSE) -> STORAGE SITE | C95: 30210000 | D95: 2828419.452 | E95: 30253835.62 | F95: 2828419.452
A96: Hatfield Power Station | B96: =VLOOKUP(A96,'Locations & Types'!$E:$F,2,FALSE) -> DC | C96: 0 | D96: 0 | E96: 0 | F96: 0
A97: Hill Top Farm (Hole House Farm) | B97: =VLOOKUP(A97,'Locations & Types'!$E:$F,2,FALSE) -> STORAGE SITE | C97: 0 | D97: 4472448.11 | E97: 65000000 | F97: 4472448.11
A98: Hole House Max Refill | B98: =VLOOKUP(A98,'Locations & Types'!$E:$F,2,FALSE) -> STORAGE SITE | C98: 119580000 | D98: 3883902.603 | E98: 131599920 | F98: 3883902.603
A99: Holford | B99: =VLOOKUP(A99,'Locations & Types'!$E:$F,2,FALSE) -> STORAGE SITE | C99: 0 | D99: 38083961.01 | E99: 250474005.2 | F99: 38083961.01
A100: Hollingsgreen (Hays Chemicals) | B100: =VLOOKUP(A100,'Locations & Types'!$E:$F,2,FALSE) -> DC | C100: 3250000 | D100: 554885.5068 | E100: 3410182.107 | F100: 554885.5068
A101: Holmes Chapel | B101: =VLOOKUP(A101,'Locations & Types'!$E:$F,2,FALSE) -> GDN (NW) | C101: 22199592 | D101: 18387106 | E101: 18387106 | F101: 8506092.055
A102: Horndon | B102: =VLOOKUP(A102,'Locations & Types'!$E:$F,2,FALSE) -> GDN (NT) | C102: 46410000 | D102: 42109188.73 | E102: 42109188.73 | F102: 10478961.95
A103: Hornsea Max Refill | B103: =VLOOKUP(A103,'Locations & Types'!$E:$F,2,FALSE) -> STORAGE SITE | C103: 44789585 | D103: 20557060.99 | E103: 60775582.83 | F103: 20557060.99
A104: Humbleton | B104: =VLOOKUP(A104,'Locations & Types'!$E:$F,2,FALSE) -> GDN (NO) | C104: 250000 | D104: 250000 | E104: 250000 | F104: 41458.24658
A105: Hume | B105: =VLOOKUP(A105,'Locations & Types'!$E:$F,2,FALSE) -> GDN (SC) | C105: 1684385 | D105: 1684385 | E105: 1684385 | F105: 563662.3014
A106: Ilchester | B106: =VLOOKUP(A106,'Locations & Types'!$E:$F,2,FALSE) -> GDN (SW) | C106: 34960000 | D106: 30242930 | E106: 30242930 | F106: 10910448.85
A107: Ipsden | B107: =VLOOKUP(A107,'Locations & Types'!$E:$F,2,FALSE) -> GDN (SO) | C107: 12390000 | D107: 11067915.04 | E107: 11067915.04 | F107: 631183.0137
A108: Ipsden 2 | B108: =VLOOKUP(A108,'Locations & Types'!$E:$F,2,FALSE) -> GDN (SO) | C108: 15678000 | D108: 11667297 | E108: 11667297 | F108: 1539547.945
A109: Keld | B109: =VLOOKUP(A109,'Locations & Types'!$E:$F,2,FALSE) -> GDN (NO) | C109: 1890000 | D109: 1424555 | E109: 1424555 | F109: 689364.8767
A110: Kenn | B110: =VLOOKUP(A110,'Locations & Types'!$E:$F,2,FALSE) -> GDN (SW) | C110: 15430000 | D110: 14000883 | E110: 14000883 | F110: 8790093.973
A111: Kinknockie | B111: =VLOOKUP(A111,'Locations & Types'!$E:$F,2,FALSE) -> GDN (SC) | C111: 3068392 | D111: 3071426.247 | E111: 3071426.247 | F111: 1057163.89
A112: Kirkstead | B112: =VLOOKUP(A112,'Locations & Types'!$E:$F,2,FALSE) -> GDN (EM) | C112: 1210000 | D112: 858703 | E112: 858703 | F112: 224817.3973
A113: Langage Power Station | B113: =VLOOKUP(A113,'Locations & Types'!$E:$F,2,FALSE) -> DC | C113: 41616008 | D113: 19805107.62 | E113: 60271439.77 | F113: 19805107.62
A114: Langholm | B114: =VLOOKUP(A114,'Locations & Types'!$E:$F,2,FALSE) -> GDN (SC) | C114: 249796 | D114: 155319 | E114: 155319 | F114: 38498.79452
A115: Lauderhill | B115: =VLOOKUP(A115,'Locations & Types'!$E:$F,2,FALSE) -> GDN (SC) | C115: 1790000 | D115: 0 | E115: 0 | F115: 0
A116: Leamington | B116: =VLOOKUP(A116,'Locations & Types'!$E:$F,2,FALSE) -> GDN (WM) | C116: 4260000 | D116: 2586215 | E116: 2586215 | F116: 98005.78082
A117: Little Burdon | B117: =VLOOKUP(A117,'Locations & Types'!$E:$F,2,FALSE) -> GDN (NO) | C117: 20919521 | D117: 20919521 | E117: 20919521 | F117: 3423966.082
A118: Littleton Drew | B118: =VLOOKUP(A118,'Locations & Types'!$E:$F,2,FALSE) -> GDN (SW) | C118: 2470000 | D118: 2299463 | E118: 2299463 | F118: 293868.7671
A119: Lockerbie | B119: =VLOOKUP(A119,'Locations & Types'!$E:$F,2,FALSE) -> GDN (SC) | C119: 7439745 | D119: 6757111 | E119: 6757111 | F119: 2596254.055
A120: Lower Quinton | B120: =VLOOKUP(A120,'Locations & Types'!$E:$F,2,FALSE) -> GDN (WM) | C120: 29910000 | D120: 26684207 | E120: 26684207 | F120: 7591356.164
A121: Lupton | B121: =VLOOKUP(A121,'Locations & Types'!$E:$F,2,FALSE) -> GDN (NW) | C121: 19815980 | D121: 19815980 | E121: 19815980 | F121: 11509412.71
A122: Luxborough Lane | B122: =VLOOKUP(A122,'Locations & Types'!$E:$F,2,FALSE) -> GDN (NT) | C122: 165300000 | D122: 76699052.05 | E122: 76699052.05 | F122: 51440098.63
A123: Lyneham (Choakford) | B123: =VLOOKUP(A123,'Locations & Types'!$E:$F,2,FALSE) -> GDN (SW) | C123: 50300000 | D123: 40420636 | E123: 40420636 | F123: 9010721.123
A124: Maelor | B124: =VLOOKUP(A124,'Locations & Types'!$E:$F,2,FALSE) -> GDN (WN) | C124: 57560000 | D124: 49258990 | E124: 49258990 | F124: 16875305.53
A125: Malpas | B125: =VLOOKUP(A125,'Locations & Types'!$E:$F,2,FALSE) -> GDN (NW) | C125: 990000 | D125: 685222 | E125: 685222 | F125: 231806.1644
A126: Mappowder | B126: =VLOOKUP(A126,'Locations & Types'!$E:$F,2,FALSE) -> GDN (SO) | C126: 47680000 | D126: 36407083 | E126: 36407083 | F126: 11984180.55
A127: Marchwood Power Station | B127: =VLOOKUP(A127,'Locations & Types'!$E:$F,2,FALSE) -> DC | C127: 39840000 | D127: 29722499.37 | E127: 49010714.24 | F127: 29722499.37
A128: Market Harborough | B128: =VLOOKUP(A128,'Locations & Types'!$E:$F,2,FALSE) -> GDN (EM) | C128: 9480000 | D128: 7132611.553 | E128: 7132611.553 | F128: 1858749.863
A129: Matching Green | B129: =VLOOKUP(A129,'Locations & Types'!$E:$F,2,FALSE) -> GDN (EA) | C129: 92341877 | D129: 57949003.03 | E129: 57949003.03 | F129: 21751580.82
A130: Medway (aka Isle of Grain Power Station, NOT Grain Power) | B130: =VLOOKUP(A130,'Locations & Types'!$E:$F,2,FALSE) -> DC | C130: 38120000 | D130: 13289481.84 | E130: 36376500.12 | F130: 13289481.84
A131: Melkinthorpe | B131: =VLOOKUP(A131,'Locations & Types'!$E:$F,2,FALSE) -> GDN (NO) | C131: 2432914 | D131: 2432914 | E131: 2432914 | F131: 699652.7397
A132: Mickle Trafford | B132: =VLOOKUP(A132,'Locations & Types'!$E:$F,2,FALSE) -> GDN (NW) | C132: 29209411 | D132: =IF(LEFT($B132, 3)="GDN", $E132, $F132) -> 29576167.25 | E132: 29576167.25 | F132: 12942603.01
A133: Middle Stoke (Damhead Creek, aka Kingsnorth Power Station) | B133: =VLOOKUP(A133,'Locations & Types'!$E:$F,2,FALSE) -> DC | C133: 40940000 | D133: 24627581.75 | E133: 40940000 | F133: 24627581.75
A134: Milwich | B134: =VLOOKUP(A134,'Locations & Types'!$E:$F,2,FALSE) -> GDN (WM) | C134: 21635242 | D134: 19027026.28 | E134: 19027026.28 | F134: 6272992.603
A135: Moffat (Irish Interconnector) | B135: =VLOOKUP(A135,'Locations & Types'!$E:$F,2,FALSE) -> INTERCONNECTOR | C135: 530089918 | D135: 101783883 | E135: 198848507.4 | F135: 101783883
A136: Netherhowcleugh | B136: =VLOOKUP(A136,'Locations & Types'!$E:$F,2,FALSE) -> GDN (SC) | C136: 322112 | D136: 322112 | E136: 322112 | F136: 78707.26027
A137: Pannal | B137: =VLOOKUP(A137,'Locations & Types'!$E:$F,2,FALSE) -> GDN (NE) | C137: 148410000 | D137: 127560152 | E137: 127560152 | F137: 53598939.64
A138: Partington | B138: =VLOOKUP(A138,'Locations & Types'!$E:$F,2,FALSE) -> GDN (NW) | C138: 87630000 | D138: 55217893.41 | E138: 55217893.41 | F138: 7278745.205
A139: Partington Max Refill | B139: =VLOOKUP(A139,'Locations & Types'!$E:$F,2,FALSE) -> STORAGE SITE | C139: 2410000 | D139: 0 | E139: 0 | F139: 0
A140: Paull | B140: =VLOOKUP(A140,'Locations & Types'!$E:$F,2,FALSE) -> GDN (NE) | C140: 46858561 | D140: 46858561 | E140: 46858561 | F140: 13626359.1
A141: Pembroke Power Station | B141: =VLOOKUP(A141,'Locations & Types'!$E:$F,2,FALSE) -> DC | C141: 121200056 | D141: 75132793.7 | E141: 126200000 | F141: 75132793.7
A142: Peterborough (Peterborough Power Station) | B142: =VLOOKUP(A142,'Locations & Types'!$E:$F,2,FALSE) -> DC | C142: 23280000 | D142: 328946.7123 | E142: 14734246.58 | F142: 328946.7123
A143: Peterborough Eye (Tee) | B143: =VLOOKUP(A143,'Locations & Types'!$E:$F,2,FALSE) -> GDN (EA) | C143: 25450000 | D143: 20423482 | E143: 20423482 | F143: 6028180.822
A144: Peters Green | B144: =VLOOKUP(A144,'Locations & Types'!$E:$F,2,FALSE) -> GDN (NT) | C144: 151860000 | D144: 111963144 | E144: 111963144 | F144: 46456441.64
A145: Peters Green South Mimms | B145: =VLOOKUP(A145,'Locations & Types'!$E:$F,2,FALSE) -> GDN (NT) | C145: 197176511 | D145: 164876045 | E145: 164876045 | F145: 61200832.6
A146: Phillips Petroleum, Teesside | B146: =VLOOKUP(A146,'Locations & Types'!$E:$F,2,FALSE) -> DC | C146: 3690000 | D146: 180530.4932 | E146: 4690000 | F146: 180530.4932
A147: Pickering | B147: =VLOOKUP(A147,'Locations & Types'!$E:$F,2,FALSE) -> GDN (NE) | C147: 9380000 | D147: 8379084 | E147: 8379084 | F147: 2915916.164
A148: Pickmere (Winnington Power, aka Brunner Mond) | B148: =VLOOKUP(A148,'Locations & Types'!$E:$F,2,FALSE) -> DC | C148: 15380000 | D148: 5454179.123 | E148: 8000000 | F148: 5454179.123
A149: Pitcairngreen | B149: =VLOOKUP(A149,'Locations & Types'!$E:$F,2,FALSE) -> GDN (SC) | C149: 1915791 | D149: 3440448.534 | E149: 3440448.534 | F149: 584030.6849
A150: Pucklechurch | B150: =VLOOKUP(A150,'Locations & Types'!$E:$F,2,FALSE) -> GDN (SW) | C150: 25794765 | D150: 22688355 | E150: 22688355 | F150: 6886117.534
A151: Rawcliffe | B151: =VLOOKUP(A151,'Locations & Types'!$E:$F,2,FALSE) -> GDN (NE) | C151: 5046154 | D151: 5046154 | E151: 5046154 | F151: 1292399.342
A152: Rollswood Kintore | B152: =VLOOKUP(A152,'Locations & Types'!$E:$F,2,FALSE) -> DC | C152: 0 | D152: 0 | E152: 0 | F152: 0
A153: Roosecote Power Station (Barrow) | B153: =VLOOKUP(A153,'Locations & Types'!$E:$F,2,FALSE) -> DC | C153: 14730000 | D153: 0 | E153: 0 | F153: 0
A154: Rosehill (Saltend Power Station) | B154: =VLOOKUP(A154,'Locations & Types'!$E:$F,2,FALSE) -> DC | C154: 57830000 | D154: 42303853.04 | E154: 57830000 | F154: 42303853.04
A155: Ross (SW) | B155: =VLOOKUP(A155,'Locations & Types'!$E:$F,2,FALSE) -> GDN (SW) | C155: 4530000 | D155: 4023357 | E155: 4023357 | F155: 1613602.356
A156: Ross (WM) | B156: =VLOOKUP(A156,'Locations & Types'!$E:$F,2,FALSE) -> GDN (WM) | C156: 16520000 | D156: 10023883.36 | E156: 10023883.36 | F156: 6064997.671
A157: Roudham Heath | B157: =VLOOKUP(A157,'Locations & Types'!$E:$F,2,FALSE) -> GDN (EA) | C157: 25472176 | D157: 21854639 | E157: 21854639 | F157: 10683166.85
A158: Royston | B158: =VLOOKUP(A158,'Locations & Types'!$E:$F,2,FALSE) -> GDN (EA) | C158: 2700000 | D158: 2367780 | E158: 2367780 | F158: 1080649.342
A159: Rugby | B159: =VLOOKUP(A159,'Locations & Types'!$E:$F,2,FALSE) -> GDN (WM) | C159: 80080000 | D159: 63016793 | E159: 63016793 | F159: 32822924.11
A160: Ryehouse | B160: =VLOOKUP(A160,'Locations & Types'!$E:$F,2,FALSE) -> DC | C160: 38660000 | D160: 6914581.918 | E160: 38660000 | F160: 6914581.918
A161: Saddle Bow (Kings Lynn) | B161: =VLOOKUP(A161,'Locations & Types'!$E:$F,2,FALSE) -> DC | C161: 17980000 | D161: 30.1369863 | E161: 14500000 | F161: 30.1369863
A162: Saltend BPHP (BP Saltend HP) | B162: =VLOOKUP(A162,'Locations & Types'!$E:$F,2,FALSE) -> DC | C162: 9100000 | D162: 4454952.082 | E162: 9055895 | F162: 4454952.082
A163: Saltfleetby Storage (Theddlethorpe) | B163: =VLOOKUP(A163,'Locations & Types'!$E:$F,2,FALSE) -> STORAGE SITE | C163: 0 | D163: 0 | E163: 0 | F163: 0
A164: Saltwick Pressure Controlled | B164: =VLOOKUP(A164,'Locations & Types'!$E:$F,2,FALSE) -> GDN (NO) | C164: 9220000 | D164: 6171601 | E164: 6171601 | F164: 10012257.26
A165: Saltwick Volumetric Controlled | B165: =VLOOKUP(A165,'Locations & Types'!$E:$F,2,FALSE) -> GDN (NO) | C165: 69070000 | D165: 39749273 | E165: 39749273 | F165: 2071863.562
A166: Samlesbury | B166: =VLOOKUP(A166,'Locations & Types'!$E:$F,2,FALSE) -> GDN (NW) | C166: 110990000 | D166: 99858652 | E166: 99858652 | F166: 24550584.16
A167: Sandy Lane (Blackburn CHP, aka Sappi Paper Mill) | B167: =VLOOKUP(A167,'Locations & Types'!$E:$F,2,FALSE) -> DC | C167: 4550000 | D167: 300857.5342 | E167: 3433103 | F167: 300857.5342
A168: Seabank (DN) | B168: =VLOOKUP(A168,'Locations & Types'!$E:$F,2,FALSE) -> GDN (SW) | C168: 60740000 | D168: 50999376 | E168: 50999376 | F168: 16855328.63
A169: Seabank (Seabank Power Station phase II) | B169: =VLOOKUP(A169,'Locations & Types'!$E:$F,2,FALSE) -> DC | C169: 19100000 | D169: 7693086.877 | E169: 28316938 | F169: 7693086.877
A170: Seal Sands TGPP | B170: =VLOOKUP(A170,'Locations & Types'!$E:$F,2,FALSE) -> DC | C170: 0 | D170: 0 | E170: 1500000 | F170: 0
A171: Sellafield Power Station | B171: =VLOOKUP(A171,'Locations & Types'!$E:$F,2,FALSE) -> DC | C171: 12350000 | D171: 5429590.356 | E171: 12349999 | F171: 5429590.356
A172: Shellstar (aka Kemira, not Kemira CHP) | B172: =VLOOKUP(A172,'Locations & Types'!$E:$F,2,FALSE) -> DC | C172: 16240000 | D172: 10523405.26 | E172: 11732444 | F172: 10523405.26
A173: Shorne | B173: =VLOOKUP(A173,'Locations & Types'!$E:$F,2,FALSE) -> GDN (SE) | C173: 67060000 | D173: 48279307 | E173: 48279307 | F173: 18549.31507
A174: Shotwick (Bridgewater Paper) | B174: =VLOOKUP(A174,'Locations & Types'!$E:$F,2,FALSE) -> DC | C174: 5520000 | D174: 165445.4247 | E174: 5292399.712 | F174: 165445.4247
A175: Shustoke | B175: =VLOOKUP(A175,'Locations & Types'!$E:$F,2,FALSE) -> GDN (WM) | C175: 44760000 | D175: 2793774.025 | E175: 2793774.025 | F175: 13019.17808
A176: Silk Willoughby | B176: =VLOOKUP(A176,'Locations & Types'!$E:$F,2,FALSE) -> GDN (EM) | C176: 3530000 | D176: 2203090 | E176: 2203090 | F176: 827238.274
A177: Soutra | B177: =VLOOKUP(A177,'Locations & Types'!$E:$F,2,FALSE) -> GDN (SC) | C177: 10726995 | D177: 10726995 | E177: 10726995 | F177: 2058121.096
A178: Spalding 2 (South Holland) Power Station | B178: =VLOOKUP(A178,'Locations & Types'!$E:$F,2,FALSE) -> DC | C178: 0 | D178: 0 | E178: 0 | F178: 0
A179: St Fergus | B179: =VLOOKUP(A179,'Locations & Types'!$E:$F,2,FALSE) -> GDN (SC) | C179: 1058074 | D179: 1058951.247 | E179: 1058951.247 | F179: 426658.6575
A180: St. Fergus (Peterhead) | B180: =VLOOKUP(A180,'Locations & Types'!$E:$F,2,FALSE) -> DC | C180: 108300000 | D180: 9197395.342 | E180: 73267750 | F180: 9197395.342
A181: St. Fergus (Shell Blackstart) | B181: =VLOOKUP(A181,'Locations & Types'!$E:$F,2,FALSE) -> DC | C181: 2583336 | D181: 0 | E181: 2583336 | F181: 0
A182: St. Neots (Little Barford) | B182: =VLOOKUP(A182,'Locations & Types'!$E:$F,2,FALSE) -> DC | C182: 35200000 | D182: 22918098.88 | E182: 36471600 | F182: 22918098.88
A183: Stallingborough | B183: =VLOOKUP(A183,'Locations & Types'!$E:$F,2,FALSE) -> DC | C183: 68012169 | D183: 13104679.12 | E183: 65697260.27 | F183: 13104679.12
A184: Stanford Le Hope (Coryton) | B184: =VLOOKUP(A184,'Locations & Types'!$E:$F,2,FALSE) -> DC | C184: 38600000 | D184: 15744621.86 | E184: 38600000 | F184: 15744621.86
A185: Staythorpe | B185: =VLOOKUP(A185,'Locations & Types'!$E:$F,2,FALSE) -> DC | C185: 82000000 | D185: 44559838.22 | E185: 84000000 | F185: 44559838.22
A186: Stranraer | B186: =VLOOKUP(A186,'Locations & Types'!$E:$F,2,FALSE) -> GDN (SC) | C186: 930433 | D186: 742435 | E186: 742435 | F186: 0
A187: Stratford-upon-Avon | B187: =VLOOKUP(A187,'Locations & Types'!$E:$F,2,FALSE) -> GDN (WM) | C187: 4680000 | D187: 3735040 | E187: 3735040 | F187: 1240482.959
A188: Stublach (Cheshire) | B188: =VLOOKUP(A188,'Locations & Types'!$E:$F,2,FALSE) -> STORAGE SITE | C188: 0 | D188: 20472085.23 | E188: 395763835.6 | F188: 20472085.23
A189: Sutton Bridge | B189: =VLOOKUP(A189,'Locations & Types'!$E:$F,2,FALSE) -> GDN (EM) | C189: 1710546 | D189: 1087465.466 | E189: 1087465.466 | F189: 411510.6027
A190: Sutton Bridge Power Station | B190: =VLOOKUP(A190,'Locations & Types'!$E:$F,2,FALSE) -> DC | C190: 37470000 | D190: 14243437.7 | E190: 38063671.23 | F190: 14243437.7
A191: Tatsfield | B191: =VLOOKUP(A191,'Locations & Types'!$E:$F,2,FALSE) -> GDN (SE) | C191: 221742083 | D191: 192774633 | E191: 192774633 | F191: 42243637.53
A192: Teesside (BASF, aka BASF Teesside) | B192: =VLOOKUP(A192,'Locations & Types'!$E:$F,2,FALSE) -> DC | C192: 9750000 | D192: 5571337.562 | E192: 10750000 | F192: 5571337.562
A193: Teesside Hydrogen | B193: =VLOOKUP(A193,'Locations & Types'!$E:$F,2,FALSE) -> DC | C193: 13276800 | D193: 3355168.948 | E193: 13276800 | F193: 3355168.948
A194: Terra Nitrogen (aka ICI, Terra Severnside) | B194: =VLOOKUP(A194,'Locations & Types'!$E:$F,2,FALSE) -> DC | C194: 13100000 | D194: 0 | E194: 0 | F194: 0
A195: Thornton Curtis (DN) | B195: =VLOOKUP(A195,'Locations & Types'!$E:$F,2,FALSE) -> GDN (EM) | C195: 118190411 | D195: =IF(LEFT($B195, 3)="GDN", $E195, $F195) -> 95750570.37 | E195: 95750570.37 | F195: 43926492.88
A196: Thornton Curtis (Humber Refinery, aka Immingham) | B196: =VLOOKUP(A196,'Locations & Types'!$E:$F,2,FALSE) -> DC | C196: 67000000 | D196: 45203238.16 | E196: 67000000 | F196: 45203238.16
A197: Thornton Curtis (Killingholme) | B197: =VLOOKUP(A197,'Locations & Types'!$E:$F,2,FALSE) -> DC | C197: 91000001 | D197: 7458246.219 | E197: 44089315.07 | F197: 7458246.219
A198: Thrintoft | B198: =VLOOKUP(A198,'Locations & Types'!$E:$F,2,FALSE) -> GDN (NO) | C198: 6921484 | D198: 6921484 | E198: 6921484 | F198: 1847855.945
A199: Tilbury Power Station | B199: =VLOOKUP(A199,'Locations & Types'!$E:$F,2,FALSE) -> DC | C199: 0 | D199: 0 | E199: 0 | F199: 0
A200: Tonna (Baglan Bay) | B200: =VLOOKUP(A200,'Locations & Types'!$E:$F,2,FALSE) -> DC | C200: 48650000 | D200: 9566617.123 | E200: 48650000 | F200: 9566617.123
... 22 more rows

Sheet 18-19 FCC - Exit (hidden)
A1: Exit Point | B1: Exit Point Type | C1: Obligated Exit Capacity | D1: Enduring Exit Capacity Scenario | E1: Historical Sold Exit Capacity Levels | F1: Historical Exit Flow Levels
C2: (kWh/d) | D2: (kWh/d) | E2: (kWh/d) | F2: (kWh/d)
A3: Aberdeen | B3: =VLOOKUP(A3,'Locations & Types'!$E:$F,2,FALSE) -> GDN (SC) | C3: 23536855 | D3: =IF(LEFT($B3, 3)="GDN", $E3, $F3) -> 22903731.56 | E3: 22903731.56 | F3: 8681891.945
A4: Abson (Seabank Power Station phase I) | B4: =VLOOKUP(A4,'Locations & Types'!$E:$F,2,FALSE) -> DC | C4: 36590000 | D4: =IF(LEFT($B4, 3)="GDN", $E4, $F4) -> 24750106.68 | E4: 53562602.74 | F4: 24750106.68
A5: Alrewas (EM) | B5: =VLOOKUP(A5,'Locations & Types'!$E:$F,2,FALSE) -> GDN (EM) | C5: 139912893 | D5: 70420657.79 | E5: 70420657.79 | F5: 19186591.78
A6: Alrewas (WM) | B6: =VLOOKUP(A6,'Locations & Types'!$E:$F,2,FALSE) -> GDN (WM) | C6: 128480000 | D6: 74408500.92 | E6: 74408500.92 | F6: 14251057.53
A7: Apache (Sage Black Start) | B7: =VLOOKUP(A7,'Locations & Types'!$E:$F,2,FALSE) -> DC | C7: 0 | D7: 0 | E7: 0 | F7: 0
A8: Armadale | B8: =VLOOKUP(A8,'Locations & Types'!$E:$F,2,FALSE) -> GDN (SC) | C8: 16011750 | D8: 7519525 | E8: 7519525 | F8: 1855666.849
A9: Aspley | B9: =VLOOKUP(A9,'Locations & Types'!$E:$F,2,FALSE) -> GDN (WM) | C9: 84650000 | D9: 58622167.26 | E9: 58622167.26 | F9: 36227725.48
A10: Asselby | B10: =VLOOKUP(A10,'Locations & Types'!$E:$F,2,FALSE) -> GDN (NE) | C10: 4586470 | D10: 4586470 | E10: 4586470 | F10: 1518337.534
A11: Audley (NW) | B11: =VLOOKUP(A11,'Locations & Types'!$E:$F,2,FALSE) -> GDN (NW) | C11: 12140000 | D11: 8037574 | E11: 8037574 | F11: 3298529.315
A12: Audley (WM) | B12: =VLOOKUP(A12,'Locations & Types'!$E:$F,2,FALSE) -> GDN (WM) | C12: 21830000 | D12: 15330890 | E12: 15330890 | F12: 32261.64384
A13: Austrey | B13: =VLOOKUP(A13,'Locations & Types'!$E:$F,2,FALSE) -> GDN (WM) | C13: 87835508 | D13: 60640352.3 | E13: 60640352.3 | F13: 17373716.44
A14: Avonmouth Max Refill | B14: =VLOOKUP(A14,'Locations & Types'!$E:$F,2,FALSE) -> STORAGE SITE | C14: 2300000 | D14: 0 | E14: 0 | F14: 0
A15: Aylesbeare | B15: =VLOOKUP(A15,'Locations & Types'!$E:$F,2,FALSE) -> GDN (SW) | C15: 22680000 | D15: 19128874 | E15: 19128874 | F15: 6249289.863
A16: Bacton | B16: =VLOOKUP(A16,'Locations & Types'!$E:$F,2,FALSE) -> GDN (EA) | C16: 3660000 | D16: 2483918.827 | E16: 2483918.827 | F16: 915982.0548
A17: Bacton (Baird) | B17: =VLOOKUP(A17,'Locations & Types'!$E:$F,2,FALSE) -> STORAGE SITE | C17: 0 | D17: 0 | E17: 0 | F17: 0
A18: Bacton (BBL) | B18: =VLOOKUP(A18,'Locations & Types'!$E:$F,2,FALSE) -> INTERCONNECTOR | C18: 0 | D18: 297523.7808 | E18: 157931638.4 | F18: 297523.7808
A19: Bacton (Great Yarmouth) | B19: =VLOOKUP(A19,'Locations & Types'!$E:$F,2,FALSE) -> DC | C19: 20040000 | D19: 11660088.78 | E19: 24928850.02 | F19: 11660088.78
A20: Bacton (IUK) | B20: =VLOOKUP(A20,'Locations & Types'!$E:$F,2,FALSE) -> INTERCONNECTOR | C20: 651676940 | D20: 241588739.7 | E20: 670064334.8 | F20: 241588739.7
A21: Baldersby | B21: =VLOOKUP(A21,'Locations & Types'!$E:$F,2,FALSE) -> GDN (NE) | C21: 1340000 | D21: 1126642 | E21: 1126642 | F21: 470479.9452
A22: Balgray | B22: =VLOOKUP(A22,'Locations & Types'!$E:$F,2,FALSE) -> GDN (SC) | C22: 15723362 | D22: 14957981 | E22: 14957981 | F22: 5140480.822
A23: Barking (Horndon) | B23: =VLOOKUP(A23,'Locations & Types'!$E:$F,2,FALSE) -> DC | C23: 58590000 | D23: 5044.931507 | E23: 0 | F23: 5044.931507
A24: Barrow (Bains) | B24: =VLOOKUP(A24,'Locations & Types'!$E:$F,2,FALSE) -> STORAGE SITE | C24: 0 | D24: 0 | E24: 0 | F24: 0
A25: Barrow (Black Start) | B25: =VLOOKUP(A25,'Locations & Types'!$E:$F,2,FALSE) -> DC | C25: 1000000 | D25: 0 | E25: 1974575.342 | F25: 0
A26: Barrow (Gateway) | B26: =VLOOKUP(A26,'Locations & Types'!$E:$F,2,FALSE) -> STORAGE SITE | C26: 0 | D26: 0 | E26: 0 | F26: 0
A27: Barton Stacey Max Refill (Humbly Grove) | B27: =VLOOKUP(A27,'Locations & Types'!$E:$F,2,FALSE) -> STORAGE SITE | C27: 100940000 | D27: 9623690.247 | E27: 91250980.8 | F27: 9623690.247
A28: Bathgate | B28: =VLOOKUP(A28,'Locations & Types'!$E:$F,2,FALSE) -> GDN (SC) | C28: 24176039 | D28: 21081766 | E28: 21081766 | F28: 7227144.658
A29: Billingham ICI (Terra Billingham) | B29: =VLOOKUP(A29,'Locations & Types'!$E:$F,2,FALSE) -> DC | C29: 43540000 | D29: 18854048.82 | E29: 33644543 | F29: 18854048.82
A30: Bishop Auckland | B30: =VLOOKUP(A30,'Locations & Types'!$E:$F,2,FALSE) -> GDN (NO) | C30: 62130000 | D30: 52568615 | E30: 52568615 | F30: 26238975.07
A31: Bishop Auckland (test facility) | B31: =VLOOKUP(A31,'Locations & Types'!$E:$F,2,FALSE) -> DC | C31: 0 | D31: 1144964.384 | E31: 0 | F31: 1144964.384
A32: Blaby | B32: =VLOOKUP(A32,'Locations & Types'!$E:$F,2,FALSE) -> GDN (EM) | C32: 13400271 | D32: 10177324.21 | E32: 10177324.21 | F32: 6404196.986
A33: Blackness (BP Grangemouth) | B33: =VLOOKUP(A33,'Locations & Types'!$E:$F,2,FALSE) -> DC | C33: 27290000 | D33: 16570018.16 | E33: 27290000 | F33: 16570018.16
A34: Blackrod | B34: =VLOOKUP(A34,'Locations & Types'!$E:$F,2,FALSE) -> GDN (NW) | C34: 166545212 | D34: 126857311.7 | E34: 126857311.7 | F34: 48538880.27
A35: Blyborough | B35: =VLOOKUP(A35,'Locations & Types'!$E:$F,2,FALSE) -> GDN (EM) | C35: 79330000 | D35: 63187749.07 | E35: 63187749.07 | F35: 10336260
A36: Blyborough (Brigg) | B36: =VLOOKUP(A36,'Locations & Types'!$E:$F,2,FALSE) -> DC | C36: 16890000 | D36: 304579.7534 | E36: 10526027.4 | F36: 304579.7534
A37: Blyborough (Cottam) | B37: =VLOOKUP(A37,'Locations & Types'!$E:$F,2,FALSE) -> DC | C37: 19300000 | D37: 13117551.23 | E37: 21939726.03 | F37: 13117551.23
A38: Braishfield A | B38: =VLOOKUP(A38,'Locations & Types'!$E:$F,2,FALSE) -> GDN (SO) | C38: 107280000 | D38: 72221179.95 | E38: 72221179.95 | F38: 39450128.77
A39: Braishfield B | B39: =VLOOKUP(A39,'Locations & Types'!$E:$F,2,FALSE) -> GDN (SO) | C39: 58866000 | D39: 57139307 | E39: 57139307 | F39: 15940642.47
A40: Brine Field (Teesside) Power Station | B40: =VLOOKUP(A40,'Locations & Types'!$E:$F,2,FALSE) -> DC | C40: 0 | D40: 0 | E40: 0 | F40: 0
A41: Brisley | B41: =VLOOKUP(A41,'Locations & Types'!$E:$F,2,FALSE) -> GDN (EA) | C41: 3110000 | D41: 2304790.564 | E41: 2304790.564 | F41: 886721.4521
A42: Broxburn | B42: =VLOOKUP(A42,'Locations & Types'!$E:$F,2,FALSE) -> GDN (SC) | C42: 60444108 | D42: 56250554 | E42: 56250554 | F42: 19304397.26
A43: Burley Bank | B43: =VLOOKUP(A43,'Locations & Types'!$E:$F,2,FALSE) -> GDN (NE) | C43: 20310000 | D43: 14453143 | E43: 14453143 | F43: 8288553.041
A44: Burnhervie | B44: =VLOOKUP(A44,'Locations & Types'!$E:$F,2,FALSE) -> GDN (SC) | C44: 22380000 | D44: 20624435 | E44: 20624435 | F44: 84283.20548
A45: Burton Point (Connahs Quay) | B45: =VLOOKUP(A45,'Locations & Types'!$E:$F,2,FALSE) -> DC | C45: 73210000 | D45: 19536466.22 | E45: 71802739.73 | F45: 19536466.22
A46: Caldecott | B46: =VLOOKUP(A46,'Locations & Types'!$E:$F,2,FALSE) -> GDN (EM) | C46: 11080000 | D46: 9097523.814 | E46: 9097523.814 | F46: 3177176.712
A47: Caldecott (Corby Power Station) | B47: =VLOOKUP(A47,'Locations & Types'!$E:$F,2,FALSE) -> DC | C47: 21120000 | D47: 53335.23288 | E47: 21041573.71 | F47: 53335.23288
A48: Cambridge | B48: =VLOOKUP(A48,'Locations & Types'!$E:$F,2,FALSE) -> GDN (EA) | C48: 0 | D48: 0 | E48: 0 | F48: 0
A49: Careston | B49: =VLOOKUP(A49,'Locations & Types'!$E:$F,2,FALSE) -> GDN (SC) | C49: 3851761 | D49: 3576724 | E49: 3576724 | F49: 1601877.562
A50: Carrington (Partington) Power Station | B50: =VLOOKUP(A50,'Locations & Types'!$E:$F,2,FALSE) -> DC | C50: 45000000 | D50: 27840552.77 | E50: 44876712.33 | F50: 27840552.77
A51: Caythorpe | B51: =VLOOKUP(A51,'Locations & Types'!$E:$F,2,FALSE) -> STORAGE SITE | C51: 75000000 | D51: 0 | E51: 0 | F51: 0
A52: Centrax Industrial | B52: =VLOOKUP(A52,'Locations & Types'!$E:$F,2,FALSE) -> DC | C52: 85000 | D52: 21270.9863 | E52: 85000 | F52: 21270.9863
A53: Cirencester | B53: =VLOOKUP(A53,'Locations & Types'!$E:$F,2,FALSE) -> GDN (SW) | C53: 8970000 | D53: 7743399 | E53: 7743399 | F53: 2294873.644
A54: Cockenzie Power Station | B54: =VLOOKUP(A54,'Locations & Types'!$E:$F,2,FALSE) -> DC | C54: 0 | D54: 0 | E54: 0 | F54: 0
A55: Coffinswell | B55: =VLOOKUP(A55,'Locations & Types'!$E:$F,2,FALSE) -> GDN (SW) | C55: 5150000 | D55: 4830571 | E55: 4830571 | F55: 1741179.452
A56: Coldstream | B56: =VLOOKUP(A56,'Locations & Types'!$E:$F,2,FALSE) -> GDN (NO) | C56: 2848927 | D56: 2848927 | E56: 2848927 | F56: 911664.9315
A57: Corbridge | B57: =VLOOKUP(A57,'Locations & Types'!$E:$F,2,FALSE) -> GDN (NO) | C57: 166692 | D57: 166692 | E57: 166692 | F57: 24001.39726
A58: Coryton 2 (Thames Haven) Power Station | B58: =VLOOKUP(A58,'Locations & Types'!$E:$F,2,FALSE) -> DC | C58: 0 | D58: 0 | E58: 0 | F58: 0
A59: Cowpen Bewley | B59: =VLOOKUP(A59,'Locations & Types'!$E:$F,2,FALSE) -> GDN (NO) | C59: 52120008 | D59: 35635800 | E59: 35635800 | F59: 15932110.68
A60: Crawley Down | B60: =VLOOKUP(A60,'Locations & Types'!$E:$F,2,FALSE) -> GDN (SO) | C60: 0 | D60: 0 | E60: 0 | F60: 0
A61: Deborah Storage (Bacton) | B61: =VLOOKUP(A61,'Locations & Types'!$E:$F,2,FALSE) -> STORAGE SITE | C61: 0 | D61: 0 | E61: 0 | F61: 0
A62: Deeside | B62: =VLOOKUP(A62,'Locations & Types'!$E:$F,2,FALSE) -> DC | C62: 28480000 | D62: 3083036.301 | E62: 26726575.34 | F62: 3083036.301
A63: Didcot | B63: =VLOOKUP(A63,'Locations & Types'!$E:$F,2,FALSE) -> DC | C63: 137760000 | D63: 37603017.21 | E63: 89904657.53 | F63: 37603017.21
A64: Dowlais | B64: =VLOOKUP(A64,'Locations & Types'!$E:$F,2,FALSE) -> GDN (WS) | C64: 105977456 | D64: 94743289 | E64: 94743289 | F64: 32842106.3
A65: Drakelow Power Station | B65: =VLOOKUP(A65,'Locations & Types'!$E:$F,2,FALSE) -> DC | C65: 0 | D65: 0 | E65: 0 | F65: 0
A66: Drointon | B66: =VLOOKUP(A66,'Locations & Types'!$E:$F,2,FALSE) -> GDN (EM) | C66: 74272791 | D66: 62266492.25 | E66: 62266492.25 | F66: 40005309.32
A67: Drum | B67: =VLOOKUP(A67,'Locations & Types'!$E:$F,2,FALSE) -> GDN (SC) | C67: 82525354 | D67: 66956781 | E67: 66956781 | F67: 15748293.15
A68: Dyffryn Clydach | B68: =VLOOKUP(A68,'Locations & Types'!$E:$F,2,FALSE) -> GDN (WS) | C68: 40231974 | D68: =IF(LEFT($B68, 3)="GDN", $E68, $F68) -> 40231974 | E68: 40231974 | F68: 13915479.18
A69: Dynevor Max Refill | B69: =VLOOKUP(A69,'Locations & Types'!$E:$F,2,FALSE) -> STORAGE SITE | C69: 2610000 | D69: 0 | E69: 23931 | F69: 0
A70: Eastoft (Keadby Blackstart) | B70: =VLOOKUP(A70,'Locations & Types'!$E:$F,2,FALSE) -> DC | C70: 2380000 | D70: 0 | E70: 1457215 | F70: 0
A71: Eastoft (Keadby) | B71: =VLOOKUP(A71,'Locations & Types'!$E:$F,2,FALSE) -> DC | C71: 36060000 | D71: 13283987.26 | E71: 50380847.91 | F71: 13283987.26
A72: Easton Grey | B72: =VLOOKUP(A72,'Locations & Types'!$E:$F,2,FALSE) -> GDN (SW) | C72: 29600000 | D72: 27391725 | E72: 27391725 | F72: 4550543.288
A73: Ecclestone | B73: =VLOOKUP(A73,'Locations & Types'!$E:$F,2,FALSE) -> GDN (NW) | C73: 21140000 | D73: 16496286.8 | E73: 16496286.8 | F73: 3895338.082
A74: Elton | B74: =VLOOKUP(A74,'Locations & Types'!$E:$F,2,FALSE) -> GDN (NO) | C74: 60212185 | D74: 60212185 | E74: 60212185 | F74: 20949113.34
A75: Enron Billingham | B75: =VLOOKUP(A75,'Locations & Types'!$E:$F,2,FALSE) -> DC | C75: 121510000 | D75: 0 | E75: 2297677 | F75: 0
A76: Epping Green (Enfield Energy, aka Brimsdown) | B76: =VLOOKUP(A76,'Locations & Types'!$E:$F,2,FALSE) -> DC | C76: 19600000 | D76: 7723033.397 | E76: 20967671.23 | F76: 7723033.397
A77: Evesham | B77: =VLOOKUP(A77,'Locations & Types'!$E:$F,2,FALSE) -> GDN (SW) | C77: 6570000 | D77: 5584329 | E77: 5584329 | F77: 2211332.11
A78: Farningham | B78: =VLOOKUP(A78,'Locations & Types'!$E:$F,2,FALSE) -> GDN (SE) | C78: 135120000 | D78: 142075461.8 | E78: 142075461.8 | F78: 63795437.26
A79: Farningham B | B79: =VLOOKUP(A79,'Locations & Types'!$E:$F,2,FALSE) -> GDN (SE) | C79: 117883000 | D79: 74376043.93 | E79: 74376043.93 | F79: 9340506.849
A80: Ferny Knoll (AM Paper) | B80: =VLOOKUP(A80,'Locations & Types'!$E:$F,2,FALSE) -> DC | C80: 1080000 | D80: 301.369863 | E80: 0 | F80: 301.369863
A81: Fiddington | B81: =VLOOKUP(A81,'Locations & Types'!$E:$F,2,FALSE) -> GDN (SW) | C81: 25952278 | D81: 22229864 | E81: 22229864 | F81: 8353903.288
A82: Ganstead | B82: =VLOOKUP(A82,'Locations & Types'!$E:$F,2,FALSE) -> GDN (NE) | C82: 23150000 | D82: 16864011 | E82: 16864011 | F82: 8924797.863
A83: Garton Max Refill (Aldbrough) | B83: =VLOOKUP(A83,'Locations & Types'!$E:$F,2,FALSE) -> STORAGE SITE | C83: 325510001 | D83: 41435157.73 | E83: 377085418.7 | F83: 41435157.73
A84: Gilwern | B84: =VLOOKUP(A84,'Locations & Types'!$E:$F,2,FALSE) -> GDN (WS) | C84: 82680000 | D84: 78188679 | E84: 78188679 | F84: 35737208.66
A85: Glenmavis | B85: =VLOOKUP(A85,'Locations & Types'!$E:$F,2,FALSE) -> GDN (SC) | C85: 145790000 | D85: 128262344 | E85: 128262344 | F85: 55270123.84
A86: Glenmavis Max Refill | B86: =VLOOKUP(A86,'Locations & Types'!$E:$F,2,FALSE) -> STORAGE SITE | C86: 1620000 | D86: 0 | E86: 488720 | F86: 0
A87: Goole (Guardian Glass) | B87: =VLOOKUP(A87,'Locations & Types'!$E:$F,2,FALSE) -> DC | C87: 1620000 | D87: 1437062.301 | E87: 0 | F87: 1437062.301
A88: Gosberton | B88: =VLOOKUP(A88,'Locations & Types'!$E:$F,2,FALSE) -> GDN (EM) | C88: 15230000 | D88: 12360472.56 | E88: 12360472.56 | F88: 5236542.466
A89: Gowkhall (Longannet) | B89: =VLOOKUP(A89,'Locations & Types'!$E:$F,2,FALSE) -> DC | C89: 43320000 | D89: 0 | E89: 43320000 | F89: 0
A90: Grain Power Station | B90: =VLOOKUP(A90,'Locations & Types'!$E:$F,2,FALSE) -> DC | C90: 0 | D90: 30858832.82 | E90: 63813698.63 | F90: 30858832.82
A91: Great Wilbraham | B91: =VLOOKUP(A91,'Locations & Types'!$E:$F,2,FALSE) -> GDN (EA) | C91: 35590000 | D91: 20689216.25 | E91: 20689216.25 | F91: 8985249.041
A92: Guyzance | B92: =VLOOKUP(A92,'Locations & Types'!$E:$F,2,FALSE) -> GDN (NO) | C92: 2190000 | D92: 1806988 | E92: 1806988 | F92: 726532.8219
A93: Hardwick | B93: =VLOOKUP(A93,'Locations & Types'!$E:$F,2,FALSE) -> GDN (SO) | C93: 123699000 | D93: 95134383 | E93: 95134383 | F93: 36918109.59
A94: Harwarden (Shotton, aka Shotton Paper) | B94: =VLOOKUP(A94,'Locations & Types'!$E:$F,2,FALSE) -> DC | C94: 11590000 | D94: 0 | E94: 0 | F94: 0
A95: Hatfield Moor Max Refill | B95: =VLOOKUP(A95,'Locations & Types'!$E:$F,2,FALSE) -> STORAGE SITE | C95: 30210000 | D95: 2828419.452 | E95: 30210000 | F95: 2828419.452
A96: Hatfield Power Station | B96: =VLOOKUP(A96,'Locations & Types'!$E:$F,2,FALSE) -> DC | C96: 0 | D96: 0 | E96: 0 | F96: 0
A97: Hill Top Farm (Hole House Farm) | B97: =VLOOKUP(A97,'Locations & Types'!$E:$F,2,FALSE) -> STORAGE SITE | C97: 0 | D97: 4472448.11 | E97: 64821917.81 | F97: 4472448.11
A98: Hole House Max Refill | B98: =VLOOKUP(A98,'Locations & Types'!$E:$F,2,FALSE) -> STORAGE SITE | C98: 119580000 | D98: 3883902.603 | E98: 131239372.3 | F98: 3883902.603
A99: Holford | B99: =VLOOKUP(A99,'Locations & Types'!$E:$F,2,FALSE) -> STORAGE SITE | C99: 0 | D99: 38083961.01 | E99: 245293783.9 | F99: 38083961.01
A100: Hollingsgreen (Hays Chemicals) | B100: =VLOOKUP(A100,'Locations & Types'!$E:$F,2,FALSE) -> DC | C100: 3250000 | D100: 554885.5068 | E100: 2923219.321 | F100: 554885.5068
A101: Holmes Chapel | B101: =VLOOKUP(A101,'Locations & Types'!$E:$F,2,FALSE) -> GDN (NW) | C101: 22199592 | D101: 18387106 | E101: 18387106 | F101: 8506092.055
A102: Horndon | B102: =VLOOKUP(A102,'Locations & Types'!$E:$F,2,FALSE) -> GDN (NT) | C102: 46410000 | D102: 50333830.9 | E102: 50333830.9 | F102: 10478961.95
A103: Hornsea Max Refill | B103: =VLOOKUP(A103,'Locations & Types'!$E:$F,2,FALSE) -> STORAGE SITE | C103: 44789585 | D103: 20557060.99 | E103: 58239379.01 | F103: 20557060.99
A104: Humbleton | B104: =VLOOKUP(A104,'Locations & Types'!$E:$F,2,FALSE) -> GDN (NO) | C104: 250000 | D104: 250000 | E104: 250000 | F104: 41458.24658
A105: Hume | B105: =VLOOKUP(A105,'Locations & Types'!$E:$F,2,FALSE) -> GDN (SC) | C105: 1684385 | D105: 1684385 | E105: 1684385 | F105: 563662.3014
A106: Ilchester | B106: =VLOOKUP(A106,'Locations & Types'!$E:$F,2,FALSE) -> GDN (SW) | C106: 34960000 | D106: 30242930 | E106: 30242930 | F106: 10910448.85
A107: Ipsden | B107: =VLOOKUP(A107,'Locations & Types'!$E:$F,2,FALSE) -> GDN (SO) | C107: 12390000 | D107: 8958326 | E107: 8958326 | F107: 631183.0137
A108: Ipsden 2 | B108: =VLOOKUP(A108,'Locations & Types'!$E:$F,2,FALSE) -> GDN (SO) | C108: 15678000 | D108: 11667297 | E108: 11667297 | F108: 1539547.945
A109: Keld | B109: =VLOOKUP(A109,'Locations & Types'!$E:$F,2,FALSE) -> GDN (NO) | C109: 1890000 | D109: 1424555 | E109: 1424555 | F109: 689364.8767
A110: Kenn | B110: =VLOOKUP(A110,'Locations & Types'!$E:$F,2,FALSE) -> GDN (SW) | C110: 15430000 | D110: 14000883 | E110: 14000883 | F110: 8790093.973
A111: Kinknockie | B111: =VLOOKUP(A111,'Locations & Types'!$E:$F,2,FALSE) -> GDN (SC) | C111: 3068392 | D111: 3068392 | E111: 3068392 | F111: 1057163.89
A112: Kirkstead | B112: =VLOOKUP(A112,'Locations & Types'!$E:$F,2,FALSE) -> GDN (EM) | C112: 1210000 | D112: 858703 | E112: 858703 | F112: 224817.3973
A113: Langage Power Station | B113: =VLOOKUP(A113,'Locations & Types'!$E:$F,2,FALSE) -> DC | C113: 41616008 | D113: 19805107.62 | E113: 61641250.35 | F113: 19805107.62
A114: Langholm | B114: =VLOOKUP(A114,'Locations & Types'!$E:$F,2,FALSE) -> GDN (SC) | C114: 249796 | D114: 155319 | E114: 155319 | F114: 38498.79452
A115: Lauderhill | B115: =VLOOKUP(A115,'Locations & Types'!$E:$F,2,FALSE) -> GDN (SC) | C115: 1790000 | D115: 0 | E115: 0 | F115: 0
A116: Leamington | B116: =VLOOKUP(A116,'Locations & Types'!$E:$F,2,FALSE) -> GDN (WM) | C116: 4260000 | D116: 2586215 | E116: 2586215 | F116: 98005.78082
A117: Little Burdon | B117: =VLOOKUP(A117,'Locations & Types'!$E:$F,2,FALSE) -> GDN (NO) | C117: 20919521 | D117: 20919521 | E117: 20919521 | F117: 3423966.082
A118: Littleton Drew | B118: =VLOOKUP(A118,'Locations & Types'!$E:$F,2,FALSE) -> GDN (SW) | C118: 2470000 | D118: 2299463 | E118: 2299463 | F118: 293868.7671
A119: Lockerbie | B119: =VLOOKUP(A119,'Locations & Types'!$E:$F,2,FALSE) -> GDN (SC) | C119: 7439745 | D119: 6757111 | E119: 6757111 | F119: 2596254.055
A120: Lower Quinton | B120: =VLOOKUP(A120,'Locations & Types'!$E:$F,2,FALSE) -> GDN (WM) | C120: 29910000 | D120: 26684207 | E120: 26684207 | F120: 7591356.164
A121: Lupton | B121: =VLOOKUP(A121,'Locations & Types'!$E:$F,2,FALSE) -> GDN (NW) | C121: 19815980 | D121: 15464650 | E121: 15464650 | F121: 11509412.71
A122: Luxborough Lane | B122: =VLOOKUP(A122,'Locations & Types'!$E:$F,2,FALSE) -> GDN (NT) | C122: 165300000 | D122: 78757457.86 | E122: 78757457.86 | F122: 51440098.63
A123: Lyneham (Choakford) | B123: =VLOOKUP(A123,'Locations & Types'!$E:$F,2,FALSE) -> GDN (SW) | C123: 50300000 | D123: 40420636 | E123: 40420636 | F123: 9010721.123
A124: Maelor | B124: =VLOOKUP(A124,'Locations & Types'!$E:$F,2,FALSE) -> GDN (WN) | C124: 57560000 | D124: 49258990 | E124: 49258990 | F124: 16875305.53
A125: Malpas | B125: =VLOOKUP(A125,'Locations & Types'!$E:$F,2,FALSE) -> GDN (NW) | C125: 990000 | D125: 685222 | E125: 685222 | F125: 231806.1644
A126: Mappowder | B126: =VLOOKUP(A126,'Locations & Types'!$E:$F,2,FALSE) -> GDN (SO) | C126: 47680000 | D126: 36407083 | E126: 36407083 | F126: 11984180.55
A127: Marchwood Power Station | B127: =VLOOKUP(A127,'Locations & Types'!$E:$F,2,FALSE) -> DC | C127: 39840000 | D127: 29722499.37 | E127: 48594285.93 | F127: 29722499.37
A128: Market Harborough | B128: =VLOOKUP(A128,'Locations & Types'!$E:$F,2,FALSE) -> GDN (EM) | C128: 9480000 | D128: 7174600.408 | E128: 7174600.408 | F128: 1858749.863
A129: Matching Green | B129: =VLOOKUP(A129,'Locations & Types'!$E:$F,2,FALSE) -> GDN (EA) | C129: 92341877 | D129: 68130761.85 | E129: 68130761.85 | F129: 21751580.82
A130: Medway (aka Isle of Grain Power Station, NOT Grain Power) | B130: =VLOOKUP(A130,'Locations & Types'!$E:$F,2,FALSE) -> DC | C130: 38120000 | D130: 13289481.84 | E130: 39718965.88 | F130: 13289481.84
A131: Melkinthorpe | B131: =VLOOKUP(A131,'Locations & Types'!$E:$F,2,FALSE) -> GDN (NO) | C131: 2432914 | D131: 2432914 | E131: 2432914 | F131: 699652.7397
A132: Mickle Trafford | B132: =VLOOKUP(A132,'Locations & Types'!$E:$F,2,FALSE) -> GDN (NW) | C132: 29209411 | D132: =IF(LEFT($B132, 3)="GDN", $E132, $F132) -> 29361375.66 | E132: 29361375.66 | F132: 12942603.01
A133: Middle Stoke (Damhead Creek, aka Kingsnorth Power Station) | B133: =VLOOKUP(A133,'Locations & Types'!$E:$F,2,FALSE) -> DC | C133: 40940000 | D133: 24627581.75 | E133: 95336184 | F133: 24627581.75
A134: Milwich | B134: =VLOOKUP(A134,'Locations & Types'!$E:$F,2,FALSE) -> GDN (WM) | C134: 21635242 | D134: 18949988 | E134: 18949988 | F134: 6272992.603
A135: Moffat (Irish Interconnector) | B135: =VLOOKUP(A135,'Locations & Types'!$E:$F,2,FALSE) -> INTERCONNECTOR | C135: 530089918 | D135: 101783883 | E135: 221513825.5 | F135: 101783883
A136: Netherhowcleugh | B136: =VLOOKUP(A136,'Locations & Types'!$E:$F,2,FALSE) -> GDN (SC) | C136: 322112 | D136: 322112 | E136: 322112 | F136: 78707.26027
A137: Pannal | B137: =VLOOKUP(A137,'Locations & Types'!$E:$F,2,FALSE) -> GDN (NE) | C137: 148410000 | D137: 127560152 | E137: 127560152 | F137: 53598939.64
A138: Partington | B138: =VLOOKUP(A138,'Locations & Types'!$E:$F,2,FALSE) -> GDN (NW) | C138: 87630000 | D138: 54702858 | E138: 54702858 | F138: 7278745.205
A139: Partington Max Refill | B139: =VLOOKUP(A139,'Locations & Types'!$E:$F,2,FALSE) -> STORAGE SITE | C139: 2410000 | D139: 0 | E139: 0 | F139: 0
A140: Paull | B140: =VLOOKUP(A140,'Locations & Types'!$E:$F,2,FALSE) -> GDN (NE) | C140: 46858561 | D140: 46858561 | E140: 46858561 | F140: 13626359.1
A141: Pembroke Power Station | B141: =VLOOKUP(A141,'Locations & Types'!$E:$F,2,FALSE) -> DC | C141: 121200056 | D141: 75132793.7 | E141: 126186301.4 | F141: 75132793.7
A142: Peterborough (Peterborough Power Station) | B142: =VLOOKUP(A142,'Locations & Types'!$E:$F,2,FALSE) -> DC | C142: 23280000 | D142: 328946.7123 | E142: 14701369.86 | F142: 328946.7123
A143: Peterborough Eye (Tee) | B143: =VLOOKUP(A143,'Locations & Types'!$E:$F,2,FALSE) -> GDN (EA) | C143: 25450000 | D143: 20423482 | E143: 20423482 | F143: 6028180.822
A144: Peters Green | B144: =VLOOKUP(A144,'Locations & Types'!$E:$F,2,FALSE) -> GDN (NT) | C144: 151860000 | D144: 112982854.9 | E144: 112982854.9 | F144: 46456441.64
A145: Peters Green South Mimms | B145: =VLOOKUP(A145,'Locations & Types'!$E:$F,2,FALSE) -> GDN (NT) | C145: 197176511 | D145: 165327058.5 | E145: 165327058.5 | F145: 61200832.6
A146: Phillips Petroleum, Teesside | B146: =VLOOKUP(A146,'Locations & Types'!$E:$F,2,FALSE) -> DC | C146: 3690000 | D146: 180530.4932 | E146: 4687260.274 | F146: 180530.4932
A147: Pickering | B147: =VLOOKUP(A147,'Locations & Types'!$E:$F,2,FALSE) -> GDN (NE) | C147: 9380000 | D147: 8379084 | E147: 8379084 | F147: 2915916.164
A148: Pickmere (Winnington Power, aka Brunner Mond) | B148: =VLOOKUP(A148,'Locations & Types'!$E:$F,2,FALSE) -> DC | C148: 15380000 | D148: 5454179.123 | E148: 8000000 | F148: 5454179.123
A149: Pitcairngreen | B149: =VLOOKUP(A149,'Locations & Types'!$E:$F,2,FALSE) -> GDN (SC) | C149: 1915791 | D149: 3432229.356 | E149: 3432229.356 | F149: 584030.6849
A150: Pucklechurch | B150: =VLOOKUP(A150,'Locations & Types'!$E:$F,2,FALSE) -> GDN (SW) | C150: 25794765 | D150: 22688355 | E150: 22688355 | F150: 6886117.534
A151: Rawcliffe | B151: =VLOOKUP(A151,'Locations & Types'!$E:$F,2,FALSE) -> GDN (NE) | C151: 5046154 | D151: 5046154 | E151: 5046154 | F151: 1292399.342
A152: Rollswood Kintore | B152: =VLOOKUP(A152,'Locations & Types'!$E:$F,2,FALSE) -> DC | C152: 0 | D152: 0 | E152: 0 | F152: 0
A153: Roosecote Power Station (Barrow) | B153: =VLOOKUP(A153,'Locations & Types'!$E:$F,2,FALSE) -> DC | C153: 14730000 | D153: 0 | E153: 0 | F153: 0
A154: Rosehill (Saltend Power Station) | B154: =VLOOKUP(A154,'Locations & Types'!$E:$F,2,FALSE) -> DC | C154: 57830000 | D154: 42303853.04 | E154: 57830000 | F154: 42303853.04
A155: Ross (SW) | B155: =VLOOKUP(A155,'Locations & Types'!$E:$F,2,FALSE) -> GDN (SW) | C155: 4530000 | D155: 4023357 | E155: 4023357 | F155: 1613602.356
A156: Ross (WM) | B156: =VLOOKUP(A156,'Locations & Types'!$E:$F,2,FALSE) -> GDN (WM) | C156: 16520000 | D156: 10064779.68 | E156: 10064779.68 | F156: 6064997.671
A157: Roudham Heath | B157: =VLOOKUP(A157,'Locations & Types'!$E:$F,2,FALSE) -> GDN (EA) | C157: 25472176 | D157: 16611750.03 | E157: 16611750.03 | F157: 10683166.85
A158: Royston | B158: =VLOOKUP(A158,'Locations & Types'!$E:$F,2,FALSE) -> GDN (EA) | C158: 2700000 | D158: 2367780 | E158: 2367780 | F158: 1080649.342
A159: Rugby | B159: =VLOOKUP(A159,'Locations & Types'!$E:$F,2,FALSE) -> GDN (WM) | C159: 80080000 | D159: 64098590.29 | E159: 64098590.29 | F159: 32822924.11
A160: Ryehouse | B160: =VLOOKUP(A160,'Locations & Types'!$E:$F,2,FALSE) -> DC | C160: 38660000 | D160: 6914581.918 | E160: 38660000 | F160: 6914581.918
A161: Saddle Bow (Kings Lynn) | B161: =VLOOKUP(A161,'Locations & Types'!$E:$F,2,FALSE) -> DC | C161: 17980000 | D161: 30.1369863 | E161: 14500000 | F161: 30.1369863
A162: Saltend BPHP (BP Saltend HP) | B162: =VLOOKUP(A162,'Locations & Types'!$E:$F,2,FALSE) -> DC | C162: 9100000 | D162: 4454952.082 | E162: 9055895 | F162: 4454952.082
A163: Saltfleetby Storage (Theddlethorpe) | B163: =VLOOKUP(A163,'Locations & Types'!$E:$F,2,FALSE) -> STORAGE SITE | C163: 0 | D163: 0 | E163: 0 | F163: 0
A164: Saltwick Pressure Controlled | B164: =VLOOKUP(A164,'Locations & Types'!$E:$F,2,FALSE) -> GDN (NO) | C164: 9220000 | D164: 5673152 | E164: 5673152 | F164: 10012257.26
A165: Saltwick Volumetric Controlled | B165: =VLOOKUP(A165,'Locations & Types'!$E:$F,2,FALSE) -> GDN (NO) | C165: 69070000 | D165: 39749273 | E165: 39749273 | F165: 2071863.562
A166: Samlesbury | B166: =VLOOKUP(A166,'Locations & Types'!$E:$F,2,FALSE) -> GDN (NW) | C166: 110990000 | D166: 99858652 | E166: 99858652 | F166: 24550584.16
A167: Sandy Lane (Blackburn CHP, aka Sappi Paper Mill) | B167: =VLOOKUP(A167,'Locations & Types'!$E:$F,2,FALSE) -> DC | C167: 4550000 | D167: 300857.5342 | E167: 3433103 | F167: 300857.5342
A168: Seabank (DN) | B168: =VLOOKUP(A168,'Locations & Types'!$E:$F,2,FALSE) -> GDN (SW) | C168: 60740000 | D168: 50999376 | E168: 50999376 | F168: 16855328.63
A169: Seabank (Seabank Power Station phase II) | B169: =VLOOKUP(A169,'Locations & Types'!$E:$F,2,FALSE) -> DC | C169: 19100000 | D169: 7693086.877 | E169: 28289540.74 | F169: 7693086.877
A170: Seal Sands TGPP | B170: =VLOOKUP(A170,'Locations & Types'!$E:$F,2,FALSE) -> DC | C170: 0 | D170: 0 | E170: 0 | F170: 0
A171: Sellafield Power Station | B171: =VLOOKUP(A171,'Locations & Types'!$E:$F,2,FALSE) -> DC | C171: 12350000 | D171: 5429590.356 | E171: 12349999 | F171: 5429590.356
A172: Shellstar (aka Kemira, not Kemira CHP) | B172: =VLOOKUP(A172,'Locations & Types'!$E:$F,2,FALSE) -> DC | C172: 16240000 | D172: 10523405.26 | E172: 11732444 | F172: 10523405.26
A173: Shorne | B173: =VLOOKUP(A173,'Locations & Types'!$E:$F,2,FALSE) -> GDN (SE) | C173: 67060000 | D173: 48279307 | E173: 48279307 | F173: 18549.31507
A174: Shotwick (Bridgewater Paper) | B174: =VLOOKUP(A174,'Locations & Types'!$E:$F,2,FALSE) -> DC | C174: 5520000 | D174: 165445.4247 | E174: 5282300.299 | F174: 165445.4247
A175: Shustoke | B175: =VLOOKUP(A175,'Locations & Types'!$E:$F,2,FALSE) -> GDN (WM) | C175: 44760000 | D175: 1855552.923 | E175: 1855552.923 | F175: 13019.17808
A176: Silk Willoughby | B176: =VLOOKUP(A176,'Locations & Types'!$E:$F,2,FALSE) -> GDN (EM) | C176: 3530000 | D176: 2203090 | E176: 2203090 | F176: 827238.274
A177: Soutra | B177: =VLOOKUP(A177,'Locations & Types'!$E:$F,2,FALSE) -> GDN (SC) | C177: 10726995 | D177: 10726995 | E177: 10726995 | F177: 2058121.096
A178: Spalding 2 (South Holland) Power Station | B178: =VLOOKUP(A178,'Locations & Types'!$E:$F,2,FALSE) -> DC | C178: 0 | D178: 0 | E178: 0 | F178: 0
A179: St Fergus | B179: =VLOOKUP(A179,'Locations & Types'!$E:$F,2,FALSE) -> GDN (SC) | C179: 1058074 | D179: 1055917 | E179: 1055917 | F179: 426658.6575
A180: St. Fergus (Peterhead) | B180: =VLOOKUP(A180,'Locations & Types'!$E:$F,2,FALSE) -> DC | C180: 108300000 | D180: 9197395.342 | E180: 73267750 | F180: 9197395.342
A181: St. Fergus (Shell Blackstart) | B181: =VLOOKUP(A181,'Locations & Types'!$E:$F,2,FALSE) -> DC | C181: 2583336 | D181: 0 | E181: 2583336 | F181: 0
A182: St. Neots (Little Barford) | B182: =VLOOKUP(A182,'Locations & Types'!$E:$F,2,FALSE) -> DC | C182: 35200000 | D182: 22918098.88 | E182: 36451349.04 | F182: 22918098.88
A183: Stallingborough | B183: =VLOOKUP(A183,'Locations & Types'!$E:$F,2,FALSE) -> DC | C183: 68012169 | D183: 13104679.12 | E183: 69310206.57 | F183: 13104679.12
A184: Stanford Le Hope (Coryton) | B184: =VLOOKUP(A184,'Locations & Types'!$E:$F,2,FALSE) -> DC | C184: 38600000 | D184: 15744621.86 | E184: 38494246.58 | F184: 15744621.86
A185: Staythorpe | B185: =VLOOKUP(A185,'Locations & Types'!$E:$F,2,FALSE) -> DC | C185: 82000000 | D185: 44559838.22 | E185: 83903452.05 | F185: 44559838.22
A186: Stranraer | B186: =VLOOKUP(A186,'Locations & Types'!$E:$F,2,FALSE) -> GDN (SC) | C186: 930433 | D186: 742435 | E186: 742435 | F186: 0
A187: Stratford-upon-Avon | B187: =VLOOKUP(A187,'Locations & Types'!$E:$F,2,FALSE) -> GDN (WM) | C187: 4680000 | D187: 3735040 | E187: 3735040 | F187: 1240482.959
A188: Stublach (Cheshire) | B188: =VLOOKUP(A188,'Locations & Types'!$E:$F,2,FALSE) -> STORAGE SITE | C188: 0 | D188: 20472085.23 | E188: 381309315.1 | F188: 20472085.23
A189: Sutton Bridge | B189: =VLOOKUP(A189,'Locations & Types'!$E:$F,2,FALSE) -> GDN (EM) | C189: 1710546 | D189: 1079269 | E189: 1079269 | F189: 411510.6027
A190: Sutton Bridge Power Station | B190: =VLOOKUP(A190,'Locations & Types'!$E:$F,2,FALSE) -> DC | C190: 37470000 | D190: 14243437.7 | E190: 37470000 | F190: 14243437.7
A191: Tatsfield | B191: =VLOOKUP(A191,'Locations & Types'!$E:$F,2,FALSE) -> GDN (SE) | C191: 221742083 | D191: 192774633 | E191: 192774633 | F191: 42243637.53
A192: Teesside (BASF, aka BASF Teesside) | B192: =VLOOKUP(A192,'Locations & Types'!$E:$F,2,FALSE) -> DC | C192: 9750000 | D192: 5571337.562 | E192: 10747260.27 | F192: 5571337.562
A193: Teesside Hydrogen | B193: =VLOOKUP(A193,'Locations & Types'!$E:$F,2,FALSE) -> DC | C193: 13277455 | D193: 3355168.948 | E193: 13276800 | F193: 3355168.948
A194: Terra Nitrogen (aka ICI, Terra Severnside) | B194: =VLOOKUP(A194,'Locations & Types'!$E:$F,2,FALSE) -> DC | C194: 13100000 | D194: 0 | E194: 0 | F194: 0
A195: Thornton Curtis (DN) | B195: =VLOOKUP(A195,'Locations & Types'!$E:$F,2,FALSE) -> GDN (EM) | C195: 118190411 | D195: =IF(LEFT($B195, 3)="GDN", $E195, $F195) -> 95532642 | E195: 95532642 | F195: 43926492.88
A196: Thornton Curtis (Humber Refinery, aka Immingham) | B196: =VLOOKUP(A196,'Locations & Types'!$E:$F,2,FALSE) -> DC | C196: 67000000 | D196: 45203238.16 | E196: 67000000 | F196: 45203238.16
A197: Thornton Curtis (Killingholme) | B197: =VLOOKUP(A197,'Locations & Types'!$E:$F,2,FALSE) -> DC | C197: 91000001 | D197: 7458246.219 | E197: 28177260.27 | F197: 7458246.219
A198: Thrintoft | B198: =VLOOKUP(A198,'Locations & Types'!$E:$F,2,FALSE) -> GDN (NO) | C198: 6921484 | D198: 6921484 | E198: 6921484 | F198: 1847855.945
A199: Tilbury Power Station | B199: =VLOOKUP(A199,'Locations & Types'!$E:$F,2,FALSE) -> DC | C199: 0 | D199: 0 | E199: 0 | F199: 0
A200: Tonna (Baglan Bay) | B200: =VLOOKUP(A200,'Locations & Types'!$E:$F,2,FALSE) -> DC | C200: 48650000 | D200: 9566617.123 | E200: 48650000 | F200: 9566617.123
... 22 more rows

Sheet 19-20 FCC - Exit (hidden)
A1: Exit Point | B1: Exit Point Type | C1: Obligated Exit Capacity | D1: Enduring Exit Capacity Scenario | E1: Historical Sold Exit Capacity Levels | F1: Historical Exit Flow Levels
C2: (kWh/d) | D2: (kWh/d) | E2: (kWh/d) | F2: (kWh/d)
A3: Aberdeen | B3: =VLOOKUP(A3,'Locations & Types'!$E:$F,2,FALSE) -> GDN (SC) | C3: 23536855 | D3: =IF(LEFT($B3, 3)="GDN", $E3, $F3) -> 22903731.56 | E3: 22903731.56 | F3: 8681891.945
A4: Abson (Seabank Power Station phase I) | B4: =VLOOKUP(A4,'Locations & Types'!$E:$F,2,FALSE) -> DC | C4: 36590000 | D4: =IF(LEFT($B4, 3)="GDN", $E4, $F4) -> 24750106.68 | E4: 53562602.74 | F4: 24750106.68
A5: Alrewas (EM) | B5: =VLOOKUP(A5,'Locations & Types'!$E:$F,2,FALSE) -> GDN (EM) | C5: 139912893 | D5: 70420657.79 | E5: 70420657.79 | F5: 19186591.78
A6: Alrewas (WM) | B6: =VLOOKUP(A6,'Locations & Types'!$E:$F,2,FALSE) -> GDN (WM) | C6: 128480000 | D6: 74408500.92 | E6: 74408500.92 | F6: 14251057.53
A7: Apache (Sage Black Start) | B7: =VLOOKUP(A7,'Locations & Types'!$E:$F,2,FALSE) -> DC | C7: 0 | D7: 0 | E7: 0 | F7: 0
A8: Armadale | B8: =VLOOKUP(A8,'Locations & Types'!$E:$F,2,FALSE) -> GDN (SC) | C8: 16011750 | D8: 7519525 | E8: 7519525 | F8: 1855666.849
A9: Aspley | B9: =VLOOKUP(A9,'Locations & Types'!$E:$F,2,FALSE) -> GDN (WM) | C9: 84650000 | D9: 58622167.26 | E9: 58622167.26 | F9: 36227725.48
A10: Asselby | B10: =VLOOKUP(A10,'Locations & Types'!$E:$F,2,FALSE) -> GDN (NE) | C10: 4586470 | D10: 4586470 | E10: 4586470 | F10: 1518337.534
A11: Audley (NW) | B11: =VLOOKUP(A11,'Locations & Types'!$E:$F,2,FALSE) -> GDN (NW) | C11: 12140000 | D11: 8037574 | E11: 8037574 | F11: 3298529.315
A12: Audley (WM) | B12: =VLOOKUP(A12,'Locations & Types'!$E:$F,2,FALSE) -> GDN (WM) | C12: 21830000 | D12: 15330890 | E12: 15330890 | F12: 32261.64384
A13: Austrey | B13: =VLOOKUP(A13,'Locations & Types'!$E:$F,2,FALSE) -> GDN (WM) | C13: 87835508 | D13: 60640352.3 | E13: 60640352.3 | F13: 17373716.44
A14: Avonmouth Max Refill | B14: =VLOOKUP(A14,'Locations & Types'!$E:$F,2,FALSE) -> STORAGE SITE | C14: 2300000 | D14: 0 | E14: 0 | F14: 0
A15: Aylesbeare | B15: =VLOOKUP(A15,'Locations & Types'!$E:$F,2,FALSE) -> GDN (SW) | C15: 22680000 | D15: 19128874 | E15: 19128874 | F15: 6249289.863
A16: Bacton | B16: =VLOOKUP(A16,'Locations & Types'!$E:$F,2,FALSE) -> GDN (EA) | C16: 3660000 | D16: 2483918.827 | E16: 2483918.827 | F16: 915982.0548
A17: Bacton (Baird) | B17: =VLOOKUP(A17,'Locations & Types'!$E:$F,2,FALSE) -> STORAGE SITE | C17: 0 | D17: 0 | E17: 0 | F17: 0
A18: Bacton (BBL) | B18: =VLOOKUP(A18,'Locations & Types'!$E:$F,2,FALSE) -> INTERCONNECTOR | C18: 0 | D18: 297523.7808 | E18: 157931638.4 | F18: 297523.7808
A19: Bacton (Great Yarmouth) | B19: =VLOOKUP(A19,'Locations & Types'!$E:$F,2,FALSE) -> DC | C19: 20040000 | D19: 11660088.78 | E19: 24928850.02 | F19: 11660088.78
A20: Bacton (IUK) | B20: =VLOOKUP(A20,'Locations & Types'!$E:$F,2,FALSE) -> INTERCONNECTOR | C20: 651676940 | D20: 241588739.7 | E20: 670064334.8 | F20: 241588739.7
A21: Baldersby | B21: =VLOOKUP(A21,'Locations & Types'!$E:$F,2,FALSE) -> GDN (NE) | C21: 1340000 | D21: 1126642 | E21: 1126642 | F21: 470479.9452
A22: Balgray | B22: =VLOOKUP(A22,'Locations & Types'!$E:$F,2,FALSE) -> GDN (SC) | C22: 15723362 | D22: 14957981 | E22: 14957981 | F22: 5140480.822
A23: Barking (Horndon) | B23: =VLOOKUP(A23,'Locations & Types'!$E:$F,2,FALSE) -> DC | C23: 58590000 | D23: 5044.931507 | E23: 0 | F23: 5044.931507
A24: Barrow (Bains) | B24: =VLOOKUP(A24,'Locations & Types'!$E:$F,2,FALSE) -> STORAGE SITE | C24: 0 | D24: 0 | E24: 0 | F24: 0
A25: Barrow (Black Start) | B25: =VLOOKUP(A25,'Locations & Types'!$E:$F,2,FALSE) -> DC | C25: 1000000 | D25: 0 | E25: 1974575.342 | F25: 0
A26: Barrow (Gateway) | B26: =VLOOKUP(A26,'Locations & Types'!$E:$F,2,FALSE) -> STORAGE SITE | C26: 0 | D26: 0 | E26: 0 | F26: 0
A27: Barton Stacey Max Refill (Humbly Grove) | B27: =VLOOKUP(A27,'Locations & Types'!$E:$F,2,FALSE) -> STORAGE SITE | C27: 100940000 | D27: 9623690.247 | E27: 91250980.8 | F27: 9623690.247
A28: Bathgate | B28: =VLOOKUP(A28,'Locations & Types'!$E:$F,2,FALSE) -> GDN (SC) | C28: 24176039 | D28: 21081766 | E28: 21081766 | F28: 7227144.658
A29: Billingham ICI (Terra Billingham) | B29: =VLOOKUP(A29,'Locations & Types'!$E:$F,2,FALSE) -> DC | C29: 43540000 | D29: 18854048.82 | E29: 33644543 | F29: 18854048.82
A30: Bishop Auckland | B30: =VLOOKUP(A30,'Locations & Types'!$E:$F,2,FALSE) -> GDN (NO) | C30: 62130000 | D30: 52568615 | E30: 52568615 | F30: 26238975.07
A31: Bishop Auckland (test facility) | B31: =VLOOKUP(A31,'Locations & Types'!$E:$F,2,FALSE) -> DC | C31: 0 | D31: 1144964.384 | E31: 0 | F31: 1144964.384
A32: Blaby | B32: =VLOOKUP(A32,'Locations & Types'!$E:$F,2,FALSE) -> GDN (EM) | C32: 13400271 | D32: 10177324.21 | E32: 10177324.21 | F32: 6404196.986
A33: Blackness (BP Grangemouth) | B33: =VLOOKUP(A33,'Locations & Types'!$E:$F,2,FALSE) -> DC | C33: 27290000 | D33: 16570018.16 | E33: 27290000 | F33: 16570018.16
A34: Blackrod | B34: =VLOOKUP(A34,'Locations & Types'!$E:$F,2,FALSE) -> GDN (NW) | C34: 166545212 | D34: 126857311.7 | E34: 126857311.7 | F34: 48538880.27
A35: Blyborough | B35: =VLOOKUP(A35,'Locations & Types'!$E:$F,2,FALSE) -> GDN (EM) | C35: 79330000 | D35: 63187749.07 | E35: 63187749.07 | F35: 10336260
A36: Blyborough (Brigg) | B36: =VLOOKUP(A36,'Locations & Types'!$E:$F,2,FALSE) -> DC | C36: 16890000 | D36: 304579.7534 | E36: 10526027.4 | F36: 304579.7534
A37: Blyborough (Cottam) | B37: =VLOOKUP(A37,'Locations & Types'!$E:$F,2,FALSE) -> DC | C37: 19300000 | D37: 13117551.23 | E37: 21939726.03 | F37: 13117551.23
A38: Braishfield A | B38: =VLOOKUP(A38,'Locations & Types'!$E:$F,2,FALSE) -> GDN (SO) | C38: 107280000 | D38: 72221179.95 | E38: 72221179.95 | F38: 39450128.77
A39: Braishfield B | B39: =VLOOKUP(A39,'Locations & Types'!$E:$F,2,FALSE) -> GDN (SO) | C39: 58866000 | D39: 57139307 | E39: 57139307 | F39: 15940642.47
A40: Brine Field (Teesside) Power Station | B40: =VLOOKUP(A40,'Locations & Types'!$E:$F,2,FALSE) -> DC | C40: 0 | D40: 0 | E40: 0 | F40: 0
A41: Brisley | B41: =VLOOKUP(A41,'Locations & Types'!$E:$F,2,FALSE) -> GDN (EA) | C41: 3110000 | D41: 2304790.564 | E41: 2304790.564 | F41: 886721.4521
A42: Broxburn | B42: =VLOOKUP(A42,'Locations & Types'!$E:$F,2,FALSE) -> GDN (SC) | C42: 60444108 | D42: 56250554 | E42: 56250554 | F42: 19304397.26
A43: Burley Bank | B43: =VLOOKUP(A43,'Locations & Types'!$E:$F,2,FALSE) -> GDN (NE) | C43: 20310000 | D43: 14453143 | E43: 14453143 | F43: 8288553.041
A44: Burnhervie | B44: =VLOOKUP(A44,'Locations & Types'!$E:$F,2,FALSE) -> GDN (SC) | C44: 22380000 | D44: 20624435 | E44: 20624435 | F44: 84283.20548
A45: Burton Point (Connahs Quay) | B45: =VLOOKUP(A45,'Locations & Types'!$E:$F,2,FALSE) -> DC | C45: 73210000 | D45: 19536466.22 | E45: 71802739.73 | F45: 19536466.22
A46: Caldecott | B46: =VLOOKUP(A46,'Locations & Types'!$E:$F,2,FALSE) -> GDN (EM) | C46: 11080000 | D46: 9097523.814 | E46: 9097523.814 | F46: 3177176.712
A47: Caldecott (Corby Power Station) | B47: =VLOOKUP(A47,'Locations & Types'!$E:$F,2,FALSE) -> DC | C47: 21120000 | D47: 53335.23288 | E47: 21041573.71 | F47: 53335.23288
A48: Cambridge | B48: =VLOOKUP(A48,'Locations & Types'!$E:$F,2,FALSE) -> GDN (EA) | C48: 0 | D48: 0 | E48: 0 | F48: 0
A49: Careston | B49: =VLOOKUP(A49,'Locations & Types'!$E:$F,2,FALSE) -> GDN (SC) | C49: 3851761 | D49: 3576724 | E49: 3576724 | F49: 1601877.562
A50: Carrington (Partington) Power Station | B50: =VLOOKUP(A50,'Locations & Types'!$E:$F,2,FALSE) -> DC | C50: 45000000 | D50: 27840552.77 | E50: 44876712.33 | F50: 27840552.77
A51: Caythorpe | B51: =VLOOKUP(A51,'Locations & Types'!$E:$F,2,FALSE) -> STORAGE SITE | C51: 75000000 | D51: 0 | E51: 0 | F51: 0
A52: Centrax Industrial | B52: =VLOOKUP(A52,'Locations & Types'!$E:$F,2,FALSE) -> DC | C52: 85000 | D52: 21270.9863 | E52: 85000 | F52: 21270.9863
A53: Cirencester | B53: =VLOOKUP(A53,'Locations & Types'!$E:$F,2,FALSE) -> GDN (SW) | C53: 8970000 | D53: 7743399 | E53: 7743399 | F53: 2294873.644
A54: Cockenzie Power Station | B54: =VLOOKUP(A54,'Locations & Types'!$E:$F,2,FALSE) -> DC | C54: 0 | D54: 0 | E54: 0 | F54: 0
A55: Coffinswell | B55: =VLOOKUP(A55,'Locations & Types'!$E:$F,2,FALSE) -> GDN (SW) | C55: 5150000 | D55: 4830571 | E55: 4830571 | F55: 1741179.452
A56: Coldstream | B56: =VLOOKUP(A56,'Locations & Types'!$E:$F,2,FALSE) -> GDN (NO) | C56: 2848927 | D56: 2848927 | E56: 2848927 | F56: 911664.9315
A57: Corbridge | B57: =VLOOKUP(A57,'Locations & Types'!$E:$F,2,FALSE) -> GDN (NO) | C57: 166692 | D57: 166692 | E57: 166692 | F57: 24001.39726
A58: Coryton 2 (Thames Haven) Power Station | B58: =VLOOKUP(A58,'Locations & Types'!$E:$F,2,FALSE) -> DC | C58: 0 | D58: 0 | E58: 0 | F58: 0
A59: Cowpen Bewley | B59: =VLOOKUP(A59,'Locations & Types'!$E:$F,2,FALSE) -> GDN (NO) | C59: 52120008 | D59: 35635800 | E59: 35635800 | F59: 15932110.68
A60: Crawley Down | B60: =VLOOKUP(A60,'Locations & Types'!$E:$F,2,FALSE) -> GDN (SO) | C60: 0 | D60: 0 | E60: 0 | F60: 0
A61: Deborah Storage (Bacton) | B61: =VLOOKUP(A61,'Locations & Types'!$E:$F,2,FALSE) -> STORAGE SITE | C61: 0 | D61: 0 | E61: 0 | F61: 0
A62: Deeside | B62: =VLOOKUP(A62,'Locations & Types'!$E:$F,2,FALSE) -> DC | C62: 28480000 | D62: 3083036.301 | E62: 26726575.34 | F62: 3083036.301
A63: Didcot | B63: =VLOOKUP(A63,'Locations & Types'!$E:$F,2,FALSE) -> DC | C63: 137760000 | D63: 37603017.21 | E63: 89904657.53 | F63: 37603017.21
A64: Dowlais | B64: =VLOOKUP(A64,'Locations & Types'!$E:$F,2,FALSE) -> GDN (WS) | C64: 105977456 | D64: 94743289 | E64: 94743289 | F64: 32842106.3
A65: Drakelow Power Station | B65: =VLOOKUP(A65,'Locations & Types'!$E:$F,2,FALSE) -> DC | C65: 0 | D65: 0 | E65: 0 | F65: 0
A66: Drointon | B66: =VLOOKUP(A66,'Locations & Types'!$E:$F,2,FALSE) -> GDN (EM) | C66: 74272791 | D66: 62266492.25 | E66: 62266492.25 | F66: 40005309.32
A67: Drum | B67: =VLOOKUP(A67,'Locations & Types'!$E:$F,2,FALSE) -> GDN (SC) | C67: 82525354 | D67: 66956781 | E67: 66956781 | F67: 15748293.15
A68: Dyffryn Clydach | B68: =VLOOKUP(A68,'Locations & Types'!$E:$F,2,FALSE) -> GDN (WS) | C68: 40231974 | D68: =IF(LEFT($B68, 3)="GDN", $E68, $F68) -> 40231974 | E68: 40231974 | F68: 13915479.18
A69: Dynevor Max Refill | B69: =VLOOKUP(A69,'Locations & Types'!$E:$F,2,FALSE) -> STORAGE SITE | C69: 2610000 | D69: 0 | E69: 23931 | F69: 0
A70: Eastoft (Keadby Blackstart) | B70: =VLOOKUP(A70,'Locations & Types'!$E:$F,2,FALSE) -> DC | C70: 2380000 | D70: 0 | E70: 1457215 | F70: 0
A71: Eastoft (Keadby) | B71: =VLOOKUP(A71,'Locations & Types'!$E:$F,2,FALSE) -> DC | C71: 36060000 | D71: 13283987.26 | E71: 50380847.91 | F71: 13283987.26
A72: Easton Grey | B72: =VLOOKUP(A72,'Locations & Types'!$E:$F,2,FALSE) -> GDN (SW) | C72: 29600000 | D72: 27391725 | E72: 27391725 | F72: 4550543.288
A73: Ecclestone | B73: =VLOOKUP(A73,'Locations & Types'!$E:$F,2,FALSE) -> GDN (NW) | C73: 21140000 | D73: 16496286.8 | E73: 16496286.8 | F73: 3895338.082
A74: Elton | B74: =VLOOKUP(A74,'Locations & Types'!$E:$F,2,FALSE) -> GDN (NO) | C74: 60212185 | D74: 60212185 | E74: 60212185 | F74: 20949113.34
A75: Enron Billingham | B75: =VLOOKUP(A75,'Locations & Types'!$E:$F,2,FALSE) -> DC | C75: 121510000 | D75: 0 | E75: 2297677 | F75: 0
A76: Epping Green (Enfield Energy, aka Brimsdown) | B76: =VLOOKUP(A76,'Locations & Types'!$E:$F,2,FALSE) -> DC | C76: 19600000 | D76: 7723033.397 | E76: 20967671.23 | F76: 7723033.397
A77: Evesham | B77: =VLOOKUP(A77,'Locations & Types'!$E:$F,2,FALSE) -> GDN (SW) | C77: 6570000 | D77: 5584329 | E77: 5584329 | F77: 2211332.11
A78: Farningham | B78: =VLOOKUP(A78,'Locations & Types'!$E:$F,2,FALSE) -> GDN (SE) | C78: 135120000 | D78: 142075461.8 | E78: 142075461.8 | F78: 63795437.26
A79: Farningham B | B79: =VLOOKUP(A79,'Locations & Types'!$E:$F,2,FALSE) -> GDN (SE) | C79: 117883000 | D79: 74376043.93 | E79: 74376043.93 | F79: 9340506.849
A80: Ferny Knoll (AM Paper) | B80: =VLOOKUP(A80,'Locations & Types'!$E:$F,2,FALSE) -> DC | C80: 1080000 | D80: 301.369863 | E80: 0 | F80: 301.369863
A81: Fiddington | B81: =VLOOKUP(A81,'Locations & Types'!$E:$F,2,FALSE) -> GDN (SW) | C81: 25952278 | D81: 22229864 | E81: 22229864 | F81: 8353903.288
A82: Ganstead | B82: =VLOOKUP(A82,'Locations & Types'!$E:$F,2,FALSE) -> GDN (NE) | C82: 23150000 | D82: 16864011 | E82: 16864011 | F82: 8924797.863
A83: Garton Max Refill (Aldbrough) | B83: =VLOOKUP(A83,'Locations & Types'!$E:$F,2,FALSE) -> STORAGE SITE | C83: 325510001 | D83: 41435157.73 | E83: 377085418.7 | F83: 41435157.73
A84: Gilwern | B84: =VLOOKUP(A84,'Locations & Types'!$E:$F,2,FALSE) -> GDN (WS) | C84: 82680000 | D84: 78188679 | E84: 78188679 | F84: 35737208.66
A85: Glenmavis | B85: =VLOOKUP(A85,'Locations & Types'!$E:$F,2,FALSE) -> GDN (SC) | C85: 145790000 | D85: 128262344 | E85: 128262344 | F85: 55270123.84
A86: Glenmavis Max Refill | B86: =VLOOKUP(A86,'Locations & Types'!$E:$F,2,FALSE) -> STORAGE SITE | C86: 1620000 | D86: 0 | E86: 488720 | F86: 0
A87: Goole (Guardian Glass) | B87: =VLOOKUP(A87,'Locations & Types'!$E:$F,2,FALSE) -> DC | C87: 1620000 | D87: 1437062.301 | E87: 0 | F87: 1437062.301
A88: Gosberton | B88: =VLOOKUP(A88,'Locations & Types'!$E:$F,2,FALSE) -> GDN (EM) | C88: 15230000 | D88: 12360472.56 | E88: 12360472.56 | F88: 5236542.466
A89: Gowkhall (Longannet) | B89: =VLOOKUP(A89,'Locations & Types'!$E:$F,2,FALSE) -> DC | C89: 43320000 | D89: 0 | E89: 43320000 | F89: 0
A90: Grain Power Station | B90: =VLOOKUP(A90,'Locations & Types'!$E:$F,2,FALSE) -> DC | C90: 0 | D90: 30858832.82 | E90: 63813698.63 | F90: 30858832.82
A91: Great Wilbraham | B91: =VLOOKUP(A91,'Locations & Types'!$E:$F,2,FALSE) -> GDN (EA) | C91: 35590000 | D91: 20689216.25 | E91: 20689216.25 | F91: 8985249.041
A92: Guyzance | B92: =VLOOKUP(A92,'Locations & Types'!$E:$F,2,FALSE) -> GDN (NO) | C92: 2190000 | D92: 1806988 | E92: 1806988 | F92: 726532.8219
A93: Hardwick | B93: =VLOOKUP(A93,'Locations & Types'!$E:$F,2,FALSE) -> GDN (SO) | C93: 123699000 | D93: 95134383 | E93: 95134383 | F93: 36918109.59
A94: Harwarden (Shotton, aka Shotton Paper) | B94: =VLOOKUP(A94,'Locations & Types'!$E:$F,2,FALSE) -> DC | C94: 11590000 | D94: 0 | E94: 0 | F94: 0
A95: Hatfield Moor Max Refill | B95: =VLOOKUP(A95,'Locations & Types'!$E:$F,2,FALSE) -> STORAGE SITE | C95: 30210000 | D95: 2828419.452 | E95: 30210000 | F95: 2828419.452
A96: Hatfield Power Station | B96: =VLOOKUP(A96,'Locations & Types'!$E:$F,2,FALSE) -> DC | C96: 0 | D96: 0 | E96: 0 | F96: 0
A97: Hill Top Farm (Hole House Farm) | B97: =VLOOKUP(A97,'Locations & Types'!$E:$F,2,FALSE) -> STORAGE SITE | C97: 0 | D97: 4472448.11 | E97: 64821917.81 | F97: 4472448.11
A98: Hole House Max Refill | B98: =VLOOKUP(A98,'Locations & Types'!$E:$F,2,FALSE) -> STORAGE SITE | C98: 119580000 | D98: 3883902.603 | E98: 131239372.3 | F98: 3883902.603
A99: Holford | B99: =VLOOKUP(A99,'Locations & Types'!$E:$F,2,FALSE) -> STORAGE SITE | C99: 0 | D99: 38083961.01 | E99: 245293783.9 | F99: 38083961.01
A100: Hollingsgreen (Hays Chemicals) | B100: =VLOOKUP(A100,'Locations & Types'!$E:$F,2,FALSE) -> DC | C100: 3250000 | D100: 554885.5068 | E100: 2923219.321 | F100: 554885.5068
A101: Holmes Chapel | B101: =VLOOKUP(A101,'Locations & Types'!$E:$F,2,FALSE) -> GDN (NW) | C101: 22199592 | D101: 18387106 | E101: 18387106 | F101: 8506092.055
A102: Horndon | B102: =VLOOKUP(A102,'Locations & Types'!$E:$F,2,FALSE) -> GDN (NT) | C102: 46410000 | D102: 50333830.9 | E102: 50333830.9 | F102: 10478961.95
A103: Hornsea Max Refill | B103: =VLOOKUP(A103,'Locations & Types'!$E:$F,2,FALSE) -> STORAGE SITE | C103: 44789585 | D103: 20557060.99 | E103: 58239379.01 | F103: 20557060.99
A104: Humbleton | B104: =VLOOKUP(A104,'Locations & Types'!$E:$F,2,FALSE) -> GDN (NO) | C104: 250000 | D104: 250000 | E104: 250000 | F104: 41458.24658
A105: Hume | B105: =VLOOKUP(A105,'Locations & Types'!$E:$F,2,FALSE) -> GDN (SC) | C105: 1684385 | D105: 1684385 | E105: 1684385 | F105: 563662.3014
A106: Ilchester | B106: =VLOOKUP(A106,'Locations & Types'!$E:$F,2,FALSE) -> GDN (SW) | C106: 34960000 | D106: 30242930 | E106: 30242930 | F106: 10910448.85
A107: Ipsden | B107: =VLOOKUP(A107,'Locations & Types'!$E:$F,2,FALSE) -> GDN (SO) | C107: 12390000 | D107: 8958326 | E107: 8958326 | F107: 631183.0137
A108: Ipsden 2 | B108: =VLOOKUP(A108,'Locations & Types'!$E:$F,2,FALSE) -> GDN (SO) | C108: 15678000 | D108: 11667297 | E108: 11667297 | F108: 1539547.945
A109: Keld | B109: =VLOOKUP(A109,'Locations & Types'!$E:$F,2,FALSE) -> GDN (NO) | C109: 1890000 | D109: 1424555 | E109: 1424555 | F109: 689364.8767
A110: Kenn | B110: =VLOOKUP(A110,'Locations & Types'!$E:$F,2,FALSE) -> GDN (SW) | C110: 15430000 | D110: 14000883 | E110: 14000883 | F110: 8790093.973
A111: Kinknockie | B111: =VLOOKUP(A111,'Locations & Types'!$E:$F,2,FALSE) -> GDN (SC) | C111: 3068392 | D111: 3068392 | E111: 3068392 | F111: 1057163.89
A112: Kirkstead | B112: =VLOOKUP(A112,'Locations & Types'!$E:$F,2,FALSE) -> GDN (EM) | C112: 1210000 | D112: 858703 | E112: 858703 | F112: 224817.3973
A113: Langage Power Station | B113: =VLOOKUP(A113,'Locations & Types'!$E:$F,2,FALSE) -> DC | C113: 41616008 | D113: 19805107.62 | E113: 61641250.35 | F113: 19805107.62
A114: Langholm | B114: =VLOOKUP(A114,'Locations & Types'!$E:$F,2,FALSE) -> GDN (SC) | C114: 249796 | D114: 155319 | E114: 155319 | F114: 38498.79452
A115: Lauderhill | B115: =VLOOKUP(A115,'Locations & Types'!$E:$F,2,FALSE) -> GDN (SC) | C115: 1790000 | D115: 0 | E115: 0 | F115: 0
A116: Leamington | B116: =VLOOKUP(A116,'Locations & Types'!$E:$F,2,FALSE) -> GDN (WM) | C116: 4260000 | D116: 2586215 | E116: 2586215 | F116: 98005.78082
A117: Little Burdon | B117: =VLOOKUP(A117,'Locations & Types'!$E:$F,2,FALSE) -> GDN (NO) | C117: 20919521 | D117: 20919521 | E117: 20919521 | F117: 3423966.082
A118: Littleton Drew | B118: =VLOOKUP(A118,'Locations & Types'!$E:$F,2,FALSE) -> GDN (SW) | C118: 2470000 | D118: 2299463 | E118: 2299463 | F118: 293868.7671
A119: Lockerbie | B119: =VLOOKUP(A119,'Locations & Types'!$E:$F,2,FALSE) -> GDN (SC) | C119: 7439745 | D119: 6757111 | E119: 6757111 | F119: 2596254.055
A120: Lower Quinton | B120: =VLOOKUP(A120,'Locations & Types'!$E:$F,2,FALSE) -> GDN (WM) | C120: 29910000 | D120: 26684207 | E120: 26684207 | F120: 7591356.164
A121: Lupton | B121: =VLOOKUP(A121,'Locations & Types'!$E:$F,2,FALSE) -> GDN (NW) | C121: 19815980 | D121: 15464650 | E121: 15464650 | F121: 11509412.71
A122: Luxborough Lane | B122: =VLOOKUP(A122,'Locations & Types'!$E:$F,2,FALSE) -> GDN (NT) | C122: 165300000 | D122: 78757457.86 | E122: 78757457.86 | F122: 51440098.63
A123: Lyneham (Choakford) | B123: =VLOOKUP(A123,'Locations & Types'!$E:$F,2,FALSE) -> GDN (SW) | C123: 50300000 | D123: 40420636 | E123: 40420636 | F123: 9010721.123
A124: Maelor | B124: =VLOOKUP(A124,'Locations & Types'!$E:$F,2,FALSE) -> GDN (WN) | C124: 57560000 | D124: 49258990 | E124: 49258990 | F124: 16875305.53
A125: Malpas | B125: =VLOOKUP(A125,'Locations & Types'!$E:$F,2,FALSE) -> GDN (NW) | C125: 990000 | D125: 685222 | E125: 685222 | F125: 231806.1644
A126: Mappowder | B126: =VLOOKUP(A126,'Locations & Types'!$E:$F,2,FALSE) -> GDN (SO) | C126: 47680000 | D126: 36407083 | E126: 36407083 | F126: 11984180.55
A127: Marchwood Power Station | B127: =VLOOKUP(A127,'Locations & Types'!$E:$F,2,FALSE) -> DC | C127: 39840000 | D127: 29722499.37 | E127: 48594285.93 | F127: 29722499.37
A128: Market Harborough | B128: =VLOOKUP(A128,'Locations & Types'!$E:$F,2,FALSE) -> GDN (EM) | C128: 9480000 | D128: 7174600.408 | E128: 7174600.408 | F128: 1858749.863
A129: Matching Green | B129: =VLOOKUP(A129,'Locations & Types'!$E:$F,2,FALSE) -> GDN (EA) | C129: 92341877 | D129: 68130761.85 | E129: 68130761.85 | F129: 21751580.82
A130: Medway (aka Isle of Grain Power Station, NOT Grain Power) | B130: =VLOOKUP(A130,'Locations & Types'!$E:$F,2,FALSE) -> DC | C130: 38120000 | D130: 13289481.84 | E130: 39718965.88 | F130: 13289481.84
A131: Melkinthorpe | B131: =VLOOKUP(A131,'Locations & Types'!$E:$F,2,FALSE) -> GDN (NO) | C131: 2432914 | D131: 2432914 | E131: 2432914 | F131: 699652.7397
A132: Mickle Trafford | B132: =VLOOKUP(A132,'Locations & Types'!$E:$F,2,FALSE) -> GDN (NW) | C132: 29209411 | D132: =IF(LEFT($B132, 3)="GDN", $E132, $F132) -> 29361375.66 | E132: 29361375.66 | F132: 12942603.01
A133: Middle Stoke (Damhead Creek, aka Kingsnorth Power Station) | B133: =VLOOKUP(A133,'Locations & Types'!$E:$F,2,FALSE) -> DC | C133: 40940000 | D133: 24627581.75 | E133: 95336184 | F133: 24627581.75
A134: Milwich | B134: =VLOOKUP(A134,'Locations & Types'!$E:$F,2,FALSE) -> GDN (WM) | C134: 21635242 | D134: 18949988 | E134: 18949988 | F134: 6272992.603
A135: Moffat (Irish Interconnector) | B135: =VLOOKUP(A135,'Locations & Types'!$E:$F,2,FALSE) -> INTERCONNECTOR | C135: 530089918 | D135: 101783883 | E135: 221513825.5 | F135: 101783883
A136: Netherhowcleugh | B136: =VLOOKUP(A136,'Locations & Types'!$E:$F,2,FALSE) -> GDN (SC) | C136: 322112 | D136: 322112 | E136: 322112 | F136: 78707.26027
A137: Pannal | B137: =VLOOKUP(A137,'Locations & Types'!$E:$F,2,FALSE) -> GDN (NE) | C137: 148410000 | D137: 127560152 | E137: 127560152 | F137: 53598939.64
A138: Partington | B138: =VLOOKUP(A138,'Locations & Types'!$E:$F,2,FALSE) -> GDN (NW) | C138: 87630000 | D138: 54702858 | E138: 54702858 | F138: 7278745.205
A139: Partington Max Refill | B139: =VLOOKUP(A139,'Locations & Types'!$E:$F,2,FALSE) -> STORAGE SITE | C139: 2410000 | D139: 0 | E139: 0 | F139: 0
A140: Paull | B140: =VLOOKUP(A140,'Locations & Types'!$E:$F,2,FALSE) -> GDN (NE) | C140: 46858561 | D140: 46858561 | E140: 46858561 | F140: 13626359.1
A141: Pembroke Power Station | B141: =VLOOKUP(A141,'Locations & Types'!$E:$F,2,FALSE) -> DC | C141: 121200056 | D141: 75132793.7 | E141: 126186301.4 | F141: 75132793.7
A142: Peterborough (Peterborough Power Station) | B142: =VLOOKUP(A142,'Locations & Types'!$E:$F,2,FALSE) -> DC | C142: 23280000 | D142: 328946.7123 | E142: 14701369.86 | F142: 328946.7123
A143: Peterborough Eye (Tee) | B143: =VLOOKUP(A143,'Locations & Types'!$E:$F,2,FALSE) -> GDN (EA) | C143: 25450000 | D143: 20423482 | E143: 20423482 | F143: 6028180.822
A144: Peters Green | B144: =VLOOKUP(A144,'Locations & Types'!$E:$F,2,FALSE) -> GDN (NT) | C144: 151860000 | D144: 112982854.9 | E144: 112982854.9 | F144: 46456441.64
A145: Peters Green South Mimms | B145: =VLOOKUP(A145,'Locations & Types'!$E:$F,2,FALSE) -> GDN (NT) | C145: 197176511 | D145: 165327058.5 | E145: 165327058.5 | F145: 61200832.6
A146: Phillips Petroleum, Teesside | B146: =VLOOKUP(A146,'Locations & Types'!$E:$F,2,FALSE) -> DC | C146: 3690000 | D146: 180530.4932 | E146: 4687260.274 | F146: 180530.4932
A147: Pickering | B147: =VLOOKUP(A147,'Locations & Types'!$E:$F,2,FALSE) -> GDN (NE) | C147: 9380000 | D147: 8379084 | E147: 8379084 | F147: 2915916.164
A148: Pickmere (Winnington Power, aka Brunner Mond) | B148: =VLOOKUP(A148,'Locations & Types'!$E:$F,2,FALSE) -> DC | C148: 15380000 | D148: 5454179.123 | E148: 8000000 | F148: 5454179.123
A149: Pitcairngreen | B149: =VLOOKUP(A149,'Locations & Types'!$E:$F,2,FALSE) -> GDN (SC) | C149: 1915791 | D149: 3432229.356 | E149: 3432229.356 | F149: 584030.6849
A150: Pucklechurch | B150: =VLOOKUP(A150,'Locations & Types'!$E:$F,2,FALSE) -> GDN (SW) | C150: 25794765 | D150: 22688355 | E150: 22688355 | F150: 6886117.534
A151: Rawcliffe | B151: =VLOOKUP(A151,'Locations & Types'!$E:$F,2,FALSE) -> GDN (NE) | C151: 5046154 | D151: 5046154 | E151: 5046154 | F151: 1292399.342
A152: Rollswood Kintore | B152: =VLOOKUP(A152,'Locations & Types'!$E:$F,2,FALSE) -> DC | C152: 0 | D152: 0 | E152: 0 | F152: 0
A153: Roosecote Power Station (Barrow) | B153: =VLOOKUP(A153,'Locations & Types'!$E:$F,2,FALSE) -> DC | C153: 14730000 | D153: 0 | E153: 0 | F153: 0
A154: Rosehill (Saltend Power Station) | B154: =VLOOKUP(A154,'Locations & Types'!$E:$F,2,FALSE) -> DC | C154: 57830000 | D154: 42303853.04 | E154: 57830000 | F154: 42303853.04
A155: Ross (SW) | B155: =VLOOKUP(A155,'Locations & Types'!$E:$F,2,FALSE) -> GDN (SW) | C155: 4530000 | D155: 4023357 | E155: 4023357 | F155: 1613602.356
A156: Ross (WM) | B156: =VLOOKUP(A156,'Locations & Types'!$E:$F,2,FALSE) -> GDN (WM) | C156: 16520000 | D156: 10064779.68 | E156: 10064779.68 | F156: 6064997.671
A157: Roudham Heath | B157: =VLOOKUP(A157,'Locations & Types'!$E:$F,2,FALSE) -> GDN (EA) | C157: 25472176 | D157: 16611750.03 | E157: 16611750.03 | F157: 10683166.85
A158: Royston | B158: =VLOOKUP(A158,'Locations & Types'!$E:$F,2,FALSE) -> GDN (EA) | C158: 2700000 | D158: 2367780 | E158: 2367780 | F158: 1080649.342
A159: Rugby | B159: =VLOOKUP(A159,'Locations & Types'!$E:$F,2,FALSE) -> GDN (WM) | C159: 80080000 | D159: 64098590.29 | E159: 64098590.29 | F159: 32822924.11
A160: Ryehouse | B160: =VLOOKUP(A160,'Locations & Types'!$E:$F,2,FALSE) -> DC | C160: 38660000 | D160: 6914581.918 | E160: 38660000 | F160: 6914581.918
A161: Saddle Bow (Kings Lynn) | B161: =VLOOKUP(A161,'Locations & Types'!$E:$F,2,FALSE) -> DC | C161: 17980000 | D161: 30.1369863 | E161: 14500000 | F161: 30.1369863
A162: Saltend BPHP (BP Saltend HP) | B162: =VLOOKUP(A162,'Locations & Types'!$E:$F,2,FALSE) -> DC | C162: 9100000 | D162: 4454952.082 | E162: 9055895 | F162: 4454952.082
A163: Saltfleetby Storage (Theddlethorpe) | B163: =VLOOKUP(A163,'Locations & Types'!$E:$F,2,FALSE) -> STORAGE SITE | C163: 0 | D163: 0 | E163: 0 | F163: 0
A164: Saltwick Pressure Controlled | B164: =VLOOKUP(A164,'Locations & Types'!$E:$F,2,FALSE) -> GDN (NO) | C164: 9220000 | D164: 5673152 | E164: 5673152 | F164: 10012257.26
A165: Saltwick Volumetric Controlled | B165: =VLOOKUP(A165,'Locations & Types'!$E:$F,2,FALSE) -> GDN (NO) | C165: 69070000 | D165: 39749273 | E165: 39749273 | F165: 2071863.562
A166: Samlesbury | B166: =VLOOKUP(A166,'Locations & Types'!$E:$F,2,FALSE) -> GDN (NW) | C166: 110990000 | D166: 99858652 | E166: 99858652 | F166: 24550584.16
A167: Sandy Lane (Blackburn CHP, aka Sappi Paper Mill) | B167: =VLOOKUP(A167,'Locations & Types'!$E:$F,2,FALSE) -> DC | C167: 4550000 | D167: 300857.5342 | E167: 3433103 | F167: 300857.5342
A168: Seabank (DN) | B168: =VLOOKUP(A168,'Locations & Types'!$E:$F,2,FALSE) -> GDN (SW) | C168: 60740000 | D168: 50999376 | E168: 50999376 | F168: 16855328.63
A169: Seabank (Seabank Power Station phase II) | B169: =VLOOKUP(A169,'Locations & Types'!$E:$F,2,FALSE) -> DC | C169: 19100000 | D169: 7693086.877 | E169: 28289540.74 | F169: 7693086.877
A170: Seal Sands TGPP | B170: =VLOOKUP(A170,'Locations & Types'!$E:$F,2,FALSE) -> DC | C170: 0 | D170: 0 | E170: 0 | F170: 0
A171: Sellafield Power Station | B171: =VLOOKUP(A171,'Locations & Types'!$E:$F,2,FALSE) -> DC | C171: 12350000 | D171: 5429590.356 | E171: 12349999 | F171: 5429590.356
A172: Shellstar (aka Kemira, not Kemira CHP) | B172: =VLOOKUP(A172,'Locations & Types'!$E:$F,2,FALSE) -> DC | C172: 16240000 | D172: 10523405.26 | E172: 11732444 | F172: 10523405.26
A173: Shorne | B173: =VLOOKUP(A173,'Locations & Types'!$E:$F,2,FALSE) -> GDN (SE) | C173: 67060000 | D173: 48279307 | E173: 48279307 | F173: 18549.31507
A174: Shotwick (Bridgewater Paper) | B174: =VLOOKUP(A174,'Locations & Types'!$E:$F,2,FALSE) -> DC | C174: 5520000 | D174: 165445.4247 | E174: 5282300.299 | F174: 165445.4247
A175: Shustoke | B175: =VLOOKUP(A175,'Locations & Types'!$E:$F,2,FALSE) -> GDN (WM) | C175: 44760000 | D175: 1855552.923 | E175: 1855552.923 | F175: 13019.17808
A176: Silk Willoughby | B176: =VLOOKUP(A176,'Locations & Types'!$E:$F,2,FALSE) -> GDN (EM) | C176: 3530000 | D176: 2203090 | E176: 2203090 | F176: 827238.274
A177: Soutra | B177: =VLOOKUP(A177,'Locations & Types'!$E:$F,2,FALSE) -> GDN (SC) | C177: 10726995 | D177: 10726995 | E177: 10726995 | F177: 2058121.096
A178: Spalding 2 (South Holland) Power Station | B178: =VLOOKUP(A178,'Locations & Types'!$E:$F,2,FALSE) -> DC | C178: 0 | D178: 0 | E178: 0 | F178: 0
A179: St Fergus | B179: =VLOOKUP(A179,'Locations & Types'!$E:$F,2,FALSE) -> GDN (SC) | C179: 1058074 | D179: 1055917 | E179: 1055917 | F179: 426658.6575
A180: St. Fergus (Peterhead) | B180: =VLOOKUP(A180,'Locations & Types'!$E:$F,2,FALSE) -> DC | C180: 108300000 | D180: 9197395.342 | E180: 73267750 | F180: 9197395.342
A181: St. Fergus (Shell Blackstart) | B181: =VLOOKUP(A181,'Locations & Types'!$E:$F,2,FALSE) -> DC | C181: 2583336 | D181: 0 | E181: 2583336 | F181: 0
A182: St. Neots (Little Barford) | B182: =VLOOKUP(A182,'Locations & Types'!$E:$F,2,FALSE) -> DC | C182: 35200000 | D182: 22918098.88 | E182: 36451349.04 | F182: 22918098.88
A183: Stallingborough | B183: =VLOOKUP(A183,'Locations & Types'!$E:$F,2,FALSE) -> DC | C183: 68012169 | D183: 13104679.12 | E183: 69310206.57 | F183: 13104679.12
A184: Stanford Le Hope (Coryton) | B184: =VLOOKUP(A184,'Locations & Types'!$E:$F,2,FALSE) -> DC | C184: 38600000 | D184: 15744621.86 | E184: 38494246.58 | F184: 15744621.86
A185: Staythorpe | B185: =VLOOKUP(A185,'Locations & Types'!$E:$F,2,FALSE) -> DC | C185: 82000000 | D185: 44559838.22 | E185: 83903452.05 | F185: 44559838.22
A186: Stranraer | B186: =VLOOKUP(A186,'Locations & Types'!$E:$F,2,FALSE) -> GDN (SC) | C186: 930433 | D186: 742435 | E186: 742435 | F186: 0
A187: Stratford-upon-Avon | B187: =VLOOKUP(A187,'Locations & Types'!$E:$F,2,FALSE) -> GDN (WM) | C187: 4680000 | D187: 3735040 | E187: 3735040 | F187: 1240482.959
A188: Stublach (Cheshire) | B188: =VLOOKUP(A188,'Locations & Types'!$E:$F,2,FALSE) -> STORAGE SITE | C188: 0 | D188: 20472085.23 | E188: 381309315.1 | F188: 20472085.23
A189: Sutton Bridge | B189: =VLOOKUP(A189,'Locations & Types'!$E:$F,2,FALSE) -> GDN (EM) | C189: 1710546 | D189: 1079269 | E189: 1079269 | F189: 411510.6027
A190: Sutton Bridge Power Station | B190: =VLOOKUP(A190,'Locations & Types'!$E:$F,2,FALSE) -> DC | C190: 37470000 | D190: 14243437.7 | E190: 37470000 | F190: 14243437.7
A191: Tatsfield | B191: =VLOOKUP(A191,'Locations & Types'!$E:$F,2,FALSE) -> GDN (SE) | C191: 221742083 | D191: 192774633 | E191: 192774633 | F191: 42243637.53
A192: Teesside (BASF, aka BASF Teesside) | B192: =VLOOKUP(A192,'Locations & Types'!$E:$F,2,FALSE) -> DC | C192: 9750000 | D192: 5571337.562 | E192: 10747260.27 | F192: 5571337.562
A193: Teesside Hydrogen | B193: =VLOOKUP(A193,'Locations & Types'!$E:$F,2,FALSE) -> DC | C193: 13277455 | D193: 3355168.948 | E193: 13276800 | F193: 3355168.948
A194: Terra Nitrogen (aka ICI, Terra Severnside) | B194: =VLOOKUP(A194,'Locations & Types'!$E:$F,2,FALSE) -> DC | C194: 13100000 | D194: 0 | E194: 0 | F194: 0
A195: Thornton Curtis (DN) | B195: =VLOOKUP(A195,'Locations & Types'!$E:$F,2,FALSE) -> GDN (EM) | C195: 118190411 | D195: =IF(LEFT($B195, 3)="GDN", $E195, $F195) -> 95532642 | E195: 95532642 | F195: 43926492.88
A196: Thornton Curtis (Humber Refinery, aka Immingham) | B196: =VLOOKUP(A196,'Locations & Types'!$E:$F,2,FALSE) -> DC | C196: 67000000 | D196: 45203238.16 | E196: 67000000 | F196: 45203238.16
A197: Thornton Curtis (Killingholme) | B197: =VLOOKUP(A197,'Locations & Types'!$E:$F,2,FALSE) -> DC | C197: 91000001 | D197: 7458246.219 | E197: 28177260.27 | F197: 7458246.219
A198: Thrintoft | B198: =VLOOKUP(A198,'Locations & Types'!$E:$F,2,FALSE) -> GDN (NO) | C198: 6921484 | D198: 6921484 | E198: 6921484 | F198: 1847855.945
A199: Tilbury Power Station | B199: =VLOOKUP(A199,'Locations & Types'!$E:$F,2,FALSE) -> DC | C199: 0 | D199: 0 | E199: 0 | F199: 0
A200: Tonna (Baglan Bay) | B200: =VLOOKUP(A200,'Locations & Types'!$E:$F,2,FALSE) -> DC | C200: 48650000 | D200: 9566617.123 | E200: 48650000 | F200: 9566617.123
... 22 more rows

Sheet 20-21 FCC - Exit (hidden)
A1: Exit Point | B1: Exit Point Type | C1: Obligated Exit Capacity | D1: Enduring Exit Capacity Scenario | E1: Historical Sold Exit Capacity Levels | F1: Historical Exit Flow Levels
C2: (kWh/d) | D2: (kWh/d) | E2: (kWh/d) | F2: (kWh/d)
A3: Aberdeen | B3: =VLOOKUP(A3,'Locations & Types'!$E:$F,2,FALSE) -> GDN (SC) | C3: 23536855 | D3: =IF(LEFT($B3, 3)="GDN", $E3, $F3) -> 22903731.56 | E3: 22903731.56 | F3: 8681891.945
A4: Abson (Seabank Power Station phase I) | B4: =VLOOKUP(A4,'Locations & Types'!$E:$F,2,FALSE) -> DC | C4: 36590000 | D4: =IF(LEFT($B4, 3)="GDN", $E4, $F4) -> 24750106.68 | E4: 53562602.74 | F4: 24750106.68
A5: Alrewas (EM) | B5: =VLOOKUP(A5,'Locations & Types'!$E:$F,2,FALSE) -> GDN (EM) | C5: 139912893 | D5: 70420657.79 | E5: 70420657.79 | F5: 19186591.78
A6: Alrewas (WM) | B6: =VLOOKUP(A6,'Locations & Types'!$E:$F,2,FALSE) -> GDN (WM) | C6: 128480000 | D6: 74408500.92 | E6: 74408500.92 | F6: 14251057.53
A7: Apache (Sage Black Start) | B7: =VLOOKUP(A7,'Locations & Types'!$E:$F,2,FALSE) -> DC | C7: 0 | D7: 0 | E7: 0 | F7: 0
A8: Armadale | B8: =VLOOKUP(A8,'Locations & Types'!$E:$F,2,FALSE) -> GDN (SC) | C8: 16011750 | D8: 7519525 | E8: 7519525 | F8: 1855666.849
A9: Aspley | B9: =VLOOKUP(A9,'Locations & Types'!$E:$F,2,FALSE) -> GDN (WM) | C9: 84650000 | D9: 58622167.26 | E9: 58622167.26 | F9: 36227725.48
A10: Asselby | B10: =VLOOKUP(A10,'Locations & Types'!$E:$F,2,FALSE) -> GDN (NE) | C10: 4586470 | D10: 4586470 | E10: 4586470 | F10: 1518337.534
A11: Audley (NW) | B11: =VLOOKUP(A11,'Locations & Types'!$E:$F,2,FALSE) -> GDN (NW) | C11: 12140000 | D11: 8037574 | E11: 8037574 | F11: 3298529.315
A12: Audley (WM) | B12: =VLOOKUP(A12,'Locations & Types'!$E:$F,2,FALSE) -> GDN (WM) | C12: 21830000 | D12: 15330890 | E12: 15330890 | F12: 32261.64384
A13: Austrey | B13: =VLOOKUP(A13,'Locations & Types'!$E:$F,2,FALSE) -> GDN (WM) | C13: 87835508 | D13: 60640352.3 | E13: 60640352.3 | F13: 17373716.44
A14: Avonmouth Max Refill | B14: =VLOOKUP(A14,'Locations & Types'!$E:$F,2,FALSE) -> STORAGE SITE | C14: 2300000 | D14: 0 | E14: 0 | F14: 0
A15: Aylesbeare | B15: =VLOOKUP(A15,'Locations & Types'!$E:$F,2,FALSE) -> GDN (SW) | C15: 22680000 | D15: 19128874 | E15: 19128874 | F15: 6249289.863
A16: Bacton | B16: =VLOOKUP(A16,'Locations & Types'!$E:$F,2,FALSE) -> GDN (EA) | C16: 3660000 | D16: 2483918.827 | E16: 2483918.827 | F16: 915982.0548
A17: Bacton (Baird) | B17: =VLOOKUP(A17,'Locations & Types'!$E:$F,2,FALSE) -> STORAGE SITE | C17: 0 | D17: 0 | E17: 0 | F17: 0
A18: Bacton (BBL) | B18: =VLOOKUP(A18,'Locations & Types'!$E:$F,2,FALSE) -> INTERCONNECTOR | C18: 0 | D18: 297523.7808 | E18: 157931638.4 | F18: 297523.7808
A19: Bacton (Great Yarmouth) | B19: =VLOOKUP(A19,'Locations & Types'!$E:$F,2,FALSE) -> DC | C19: 20040000 | D19: 11660088.78 | E19: 24928850.02 | F19: 11660088.78
A20: Bacton (IUK) | B20: =VLOOKUP(A20,'Locations & Types'!$E:$F,2,FALSE) -> INTERCONNECTOR | C20: 651676940 | D20: 241588739.7 | E20: 670064334.8 | F20: 241588739.7
A21: Baldersby | B21: =VLOOKUP(A21,'Locations & Types'!$E:$F,2,FALSE) -> GDN (NE) | C21: 1340000 | D21: 1126642 | E21: 1126642 | F21: 470479.9452
A22: Balgray | B22: =VLOOKUP(A22,'Locations & Types'!$E:$F,2,FALSE) -> GDN (SC) | C22: 15723362 | D22: 14957981 | E22: 14957981 | F22: 5140480.822
A23: Barking (Horndon) | B23: =VLOOKUP(A23,'Locations & Types'!$E:$F,2,FALSE) -> DC | C23: 58590000 | D23: 5044.931507 | E23: 0 | F23: 5044.931507
A24: Barrow (Bains) | B24: =VLOOKUP(A24,'Locations & Types'!$E:$F,2,FALSE) -> STORAGE SITE | C24: 0 | D24: 0 | E24: 0 | F24: 0
A25: Barrow (Black Start) | B25: =VLOOKUP(A25,'Locations & Types'!$E:$F,2,FALSE) -> DC | C25: 1000000 | D25: 0 | E25: 1974575.342 | F25: 0
A26: Barrow (Gateway) | B26: =VLOOKUP(A26,'Locations & Types'!$E:$F,2,FALSE) -> STORAGE SITE | C26: 0 | D26: 0 | E26: 0 | F26: 0
A27: Barton Stacey Max Refill (Humbly Grove) | B27: =VLOOKUP(A27,'Locations & Types'!$E:$F,2,FALSE) -> STORAGE SITE | C27: 100940000 | D27: 9623690.247 | E27: 91250980.8 | F27: 9623690.247
A28: Bathgate | B28: =VLOOKUP(A28,'Locations & Types'!$E:$F,2,FALSE) -> GDN (SC) | C28: 24176039 | D28: 21081766 | E28: 21081766 | F28: 7227144.658
A29: Billingham ICI (Terra Billingham) | B29: =VLOOKUP(A29,'Locations & Types'!$E:$F,2,FALSE) -> DC | C29: 43540000 | D29: 18854048.82 | E29: 33644543 | F29: 18854048.82
A30: Bishop Auckland | B30: =VLOOKUP(A30,'Locations & Types'!$E:$F,2,FALSE) -> GDN (NO) | C30: 62130000 | D30: 52568615 | E30: 52568615 | F30: 26238975.07
A31: Bishop Auckland (test facility) | B31: =VLOOKUP(A31,'Locations & Types'!$E:$F,2,FALSE) -> DC | C31: 0 | D31: 1144964.384 | E31: 0 | F31: 1144964.384
A32: Blaby | B32: =VLOOKUP(A32,'Locations & Types'!$E:$F,2,FALSE) -> GDN (EM) | C32: 13400271 | D32: 10177324.21 | E32: 10177324.21 | F32: 6404196.986
A33: Blackness (BP Grangemouth) | B33: =VLOOKUP(A33,'Locations & Types'!$E:$F,2,FALSE) -> DC | C33: 27290000 | D33: 16570018.16 | E33: 27290000 | F33: 16570018.16
A34: Blackrod | B34: =VLOOKUP(A34,'Locations & Types'!$E:$F,2,FALSE) -> GDN (NW) | C34: 166545212 | D34: 126857311.7 | E34: 126857311.7 | F34: 48538880.27
A35: Blyborough | B35: =VLOOKUP(A35,'Locations & Types'!$E:$F,2,FALSE) -> GDN (EM) | C35: 79330000 | D35: 63187749.07 | E35: 63187749.07 | F35: 10336260
A36: Blyborough (Brigg) | B36: =VLOOKUP(A36,'Locations & Types'!$E:$F,2,FALSE) -> DC | C36: 16890000 | D36: 304579.7534 | E36: 10526027.4 | F36: 304579.7534
A37: Blyborough (Cottam) | B37: =VLOOKUP(A37,'Locations & Types'!$E:$F,2,FALSE) -> DC | C37: 19300000 | D37: 13117551.23 | E37: 21939726.03 | F37: 13117551.23
A38: Braishfield A | B38: =VLOOKUP(A38,'Locations & Types'!$E:$F,2,FALSE) -> GDN (SO) | C38: 107280000 | D38: 72221179.95 | E38: 72221179.95 | F38: 39450128.77
A39: Braishfield B | B39: =VLOOKUP(A39,'Locations & Types'!$E:$F,2,FALSE) -> GDN (SO) | C39: 58866000 | D39: 57139307 | E39: 57139307 | F39: 15940642.47
A40: Brine Field (Teesside) Power Station | B40: =VLOOKUP(A40,'Locations & Types'!$E:$F,2,FALSE) -> DC | C40: 0 | D40: 0 | E40: 0 | F40: 0
A41: Brisley | B41: =VLOOKUP(A41,'Locations & Types'!$E:$F,2,FALSE) -> GDN (EA) | C41: 3110000 | D41: 2304790.564 | E41: 2304790.564 | F41: 886721.4521
A42: Broxburn | B42: =VLOOKUP(A42,'Locations & Types'!$E:$F,2,FALSE) -> GDN (SC) | C42: 60444108 | D42: 56250554 | E42: 56250554 | F42: 19304397.26
A43: Burley Bank | B43: =VLOOKUP(A43,'Locations & Types'!$E:$F,2,FALSE) -> GDN (NE) | C43: 20310000 | D43: 14453143 | E43: 14453143 | F43: 8288553.041
A44: Burnhervie | B44: =VLOOKUP(A44,'Locations & Types'!$E:$F,2,FALSE) -> GDN (SC) | C44: 22380000 | D44: 20624435 | E44: 20624435 | F44: 84283.20548
A45: Burton Point (Connahs Quay) | B45: =VLOOKUP(A45,'Locations & Types'!$E:$F,2,FALSE) -> DC | C45: 73210000 | D45: 19536466.22 | E45: 71802739.73 | F45: 19536466.22
A46: Caldecott | B46: =VLOOKUP(A46,'Locations & Types'!$E:$F,2,FALSE) -> GDN (EM) | C46: 11080000 | D46: 9097523.814 | E46: 9097523.814 | F46: 3177176.712
A47: Caldecott (Corby Power Station) | B47: =VLOOKUP(A47,'Locations & Types'!$E:$F,2,FALSE) -> DC | C47: 21120000 | D47: 53335.23288 | E47: 21041573.71 | F47: 53335.23288
A48: Cambridge | B48: =VLOOKUP(A48,'Locations & Types'!$E:$F,2,FALSE) -> GDN (EA) | C48: 0 | D48: 0 | E48: 0 | F48: 0
A49: Careston | B49: =VLOOKUP(A49,'Locations & Types'!$E:$F,2,FALSE) -> GDN (SC) | C49: 3851761 | D49: 3576724 | E49: 3576724 | F49: 1601877.562
A50: Carrington (Partington) Power Station | B50: =VLOOKUP(A50,'Locations & Types'!$E:$F,2,FALSE) -> DC | C50: 45000000 | D50: 27840552.77 | E50: 44876712.33 | F50: 27840552.77
A51: Caythorpe | B51: =VLOOKUP(A51,'Locations & Types'!$E:$F,2,FALSE) -> STORAGE SITE | C51: 75000000 | D51: 0 | E51: 0 | F51: 0
A52: Centrax Industrial | B52: =VLOOKUP(A52,'Locations & Types'!$E:$F,2,FALSE) -> DC | C52: 85000 | D52: 21270.9863 | E52: 85000 | F52: 21270.9863
A53: Cirencester | B53: =VLOOKUP(A53,'Locations & Types'!$E:$F,2,FALSE) -> GDN (SW) | C53: 8970000 | D53: 7743399 | E53: 7743399 | F53: 2294873.644
A54: Cockenzie Power Station | B54: =VLOOKUP(A54,'Locations & Types'!$E:$F,2,FALSE) -> DC | C54: 0 | D54: 0 | E54: 0 | F54: 0
A55: Coffinswell | B55: =VLOOKUP(A55,'Locations & Types'!$E:$F,2,FALSE) -> GDN (SW) | C55: 5150000 | D55: 4830571 | E55: 4830571 | F55: 1741179.452
A56: Coldstream | B56: =VLOOKUP(A56,'Locations & Types'!$E:$F,2,FALSE) -> GDN (NO) | C56: 2848927 | D56: 2848927 | E56: 2848927 | F56: 911664.9315
A57: Corbridge | B57: =VLOOKUP(A57,'Locations & Types'!$E:$F,2,FALSE) -> GDN (NO) | C57: 166692 | D57: 166692 | E57: 166692 | F57: 24001.39726
A58: Coryton 2 (Thames Haven) Power Station | B58: =VLOOKUP(A58,'Locations & Types'!$E:$F,2,FALSE) -> DC | C58: 0 | D58: 0 | E58: 0 | F58: 0
A59: Cowpen Bewley | B59: =VLOOKUP(A59,'Locations & Types'!$E:$F,2,FALSE) -> GDN (NO) | C59: 52120008 | D59: 35635800 | E59: 35635800 | F59: 15932110.68
A60: Crawley Down | B60: =VLOOKUP(A60,'Locations & Types'!$E:$F,2,FALSE) -> GDN (SO) | C60: 0 | D60: 0 | E60: 0 | F60: 0
A61: Deborah Storage (Bacton) | B61: =VLOOKUP(A61,'Locations & Types'!$E:$F,2,FALSE) -> STORAGE SITE | C61: 0 | D61: 0 | E61: 0 | F61: 0
A62: Deeside | B62: =VLOOKUP(A62,'Locations & Types'!$E:$F,2,FALSE) -> DC | C62: 28480000 | D62: 3083036.301 | E62: 26726575.34 | F62: 3083036.301
A63: Didcot | B63: =VLOOKUP(A63,'Locations & Types'!$E:$F,2,FALSE) -> DC | C63: 137760000 | D63: 37603017.21 | E63: 89904657.53 | F63: 37603017.21
A64: Dowlais | B64: =VLOOKUP(A64,'Locations & Types'!$E:$F,2,FALSE) -> GDN (WS) | C64: 105977456 | D64: 94743289 | E64: 94743289 | F64: 32842106.3
A65: Drakelow Power Station | B65: =VLOOKUP(A65,'Locations & Types'!$E:$F,2,FALSE) -> DC | C65: 0 | D65: 0 | E65: 0 | F65: 0
A66: Drointon | B66: =VLOOKUP(A66,'Locations & Types'!$E:$F,2,FALSE) -> GDN (EM) | C66: 74272791 | D66: 62266492.25 | E66: 62266492.25 | F66: 40005309.32
A67: Drum | B67: =VLOOKUP(A67,'Locations & Types'!$E:$F,2,FALSE) -> GDN (SC) | C67: 82525354 | D67: 66956781 | E67: 66956781 | F67: 15748293.15
A68: Dyffryn Clydach | B68: =VLOOKUP(A68,'Locations & Types'!$E:$F,2,FALSE) -> GDN (WS) | C68: 40231974 | D68: =IF(LEFT($B68, 3)="GDN", $E68, $F68) -> 40231974 | E68: 40231974 | F68: 13915479.18
A69: Dynevor Max Refill | B69: =VLOOKUP(A69,'Locations & Types'!$E:$F,2,FALSE) -> STORAGE SITE | C69: 2610000 | D69: 0 | E69: 23931 | F69: 0
A70: Eastoft (Keadby Blackstart) | B70: =VLOOKUP(A70,'Locations & Types'!$E:$F,2,FALSE) -> DC | C70: 2380000 | D70: 0 | E70: 1457215 | F70: 0
A71: Eastoft (Keadby) | B71: =VLOOKUP(A71,'Locations & Types'!$E:$F,2,FALSE) -> DC | C71: 36060000 | D71: 13283987.26 | E71: 50380847.91 | F71: 13283987.26
A72: Easton Grey | B72: =VLOOKUP(A72,'Locations & Types'!$E:$F,2,FALSE) -> GDN (SW) | C72: 29600000 | D72: 27391725 | E72: 27391725 | F72: 4550543.288
A73: Ecclestone | B73: =VLOOKUP(A73,'Locations & Types'!$E:$F,2,FALSE) -> GDN (NW) | C73: 21140000 | D73: 16496286.8 | E73: 16496286.8 | F73: 3895338.082
A74: Elton | B74: =VLOOKUP(A74,'Locations & Types'!$E:$F,2,FALSE) -> GDN (NO) | C74: 60212185 | D74: 60212185 | E74: 60212185 | F74: 20949113.34
A75: Enron Billingham | B75: =VLOOKUP(A75,'Locations & Types'!$E:$F,2,FALSE) -> DC | C75: 121510000 | D75: 0 | E75: 2297677 | F75: 0
A76: Epping Green (Enfield Energy, aka Brimsdown) | B76: =VLOOKUP(A76,'Locations & Types'!$E:$F,2,FALSE) -> DC | C76: 19600000 | D76: 7723033.397 | E76: 20967671.23 | F76: 7723033.397
A77: Evesham | B77: =VLOOKUP(A77,'Locations & Types'!$E:$F,2,FALSE) -> GDN (SW) | C77: 6570000 | D77: 5584329 | E77: 5584329 | F77: 2211332.11
A78: Farningham | B78: =VLOOKUP(A78,'Locations & Types'!$E:$F,2,FALSE) -> GDN (SE) | C78: 135120000 | D78: 142075461.8 | E78: 142075461.8 | F78: 63795437.26
A79: Farningham B | B79: =VLOOKUP(A79,'Locations & Types'!$E:$F,2,FALSE) -> GDN (SE) | C79: 117883000 | D79: 74376043.93 | E79: 74376043.93 | F79: 9340506.849
A80: Ferny Knoll (AM Paper) | B80: =VLOOKUP(A80,'Locations & Types'!$E:$F,2,FALSE) -> DC | C80: 1080000 | D80: 301.369863 | E80: 0 | F80: 301.369863
A81: Fiddington | B81: =VLOOKUP(A81,'Locations & Types'!$E:$F,2,FALSE) -> GDN (SW) | C81: 25952278 | D81: 22229864 | E81: 22229864 | F81: 8353903.288
A82: Ganstead | B82: =VLOOKUP(A82,'Locations & Types'!$E:$F,2,FALSE) -> GDN (NE) | C82: 23150000 | D82: 16864011 | E82: 16864011 | F82: 8924797.863
A83: Garton Max Refill (Aldbrough) | B83: =VLOOKUP(A83,'Locations & Types'!$E:$F,2,FALSE) -> STORAGE SITE | C83: 325510001 | D83: 41435157.73 | E83: 377085418.7 | F83: 41435157.73
A84: Gilwern | B84: =VLOOKUP(A84,'Locations & Types'!$E:$F,2,FALSE) -> GDN (WS) | C84: 82680000 | D84: 78188679 | E84: 78188679 | F84: 35737208.66
A85: Glenmavis | B85: =VLOOKUP(A85,'Locations & Types'!$E:$F,2,FALSE) -> GDN (SC) | C85: 145790000 | D85: 128262344 | E85: 128262344 | F85: 55270123.84
A86: Glenmavis Max Refill | B86: =VLOOKUP(A86,'Locations & Types'!$E:$F,2,FALSE) -> STORAGE SITE | C86: 1620000 | D86: 0 | E86: 488720 | F86: 0
A87: Goole (Guardian Glass) | B87: =VLOOKUP(A87,'Locations & Types'!$E:$F,2,FALSE) -> DC | C87: 1620000 | D87: 1437062.301 | E87: 0 | F87: 1437062.301
A88: Gosberton | B88: =VLOOKUP(A88,'Locations & Types'!$E:$F,2,FALSE) -> GDN (EM) | C88: 15230000 | D88: 12360472.56 | E88: 12360472.56 | F88: 5236542.466
A89: Gowkhall (Longannet) | B89: =VLOOKUP(A89,'Locations & Types'!$E:$F,2,FALSE) -> DC | C89: 43320000 | D89: 0 | E89: 43320000 | F89: 0
A90: Grain Power Station | B90: =VLOOKUP(A90,'Locations & Types'!$E:$F,2,FALSE) -> DC | C90: 0 | D90: 30858832.82 | E90: 63813698.63 | F90: 30858832.82
A91: Great Wilbraham | B91: =VLOOKUP(A91,'Locations & Types'!$E:$F,2,FALSE) -> GDN (EA) | C91: 35590000 | D91: 20689216.25 | E91: 20689216.25 | F91: 8985249.041
A92: Guyzance | B92: =VLOOKUP(A92,'Locations & Types'!$E:$F,2,FALSE) -> GDN (NO) | C92: 2190000 | D92: 1806988 | E92: 1806988 | F92: 726532.8219
A93: Hardwick | B93: =VLOOKUP(A93,'Locations & Types'!$E:$F,2,FALSE) -> GDN (SO) | C93: 123699000 | D93: 95134383 | E93: 95134383 | F93: 36918109.59
A94: Harwarden (Shotton, aka Shotton Paper) | B94: =VLOOKUP(A94,'Locations & Types'!$E:$F,2,FALSE) -> DC | C94: 11590000 | D94: 0 | E94: 0 | F94: 0
A95: Hatfield Moor Max Refill | B95: =VLOOKUP(A95,'Locations & Types'!$E:$F,2,FALSE) -> STORAGE SITE | C95: 30210000 | D95: 2828419.452 | E95: 30210000 | F95: 2828419.452
A96: Hatfield Power Station | B96: =VLOOKUP(A96,'Locations & Types'!$E:$F,2,FALSE) -> DC | C96: 0 | D96: 0 | E96: 0 | F96: 0
A97: Hill Top Farm (Hole House Farm) | B97: =VLOOKUP(A97,'Locations & Types'!$E:$F,2,FALSE) -> STORAGE SITE | C97: 0 | D97: 4472448.11 | E97: 64821917.81 | F97: 4472448.11
A98: Hole House Max Refill | B98: =VLOOKUP(A98,'Locations & Types'!$E:$F,2,FALSE) -> STORAGE SITE | C98: 119580000 | D98: 3883902.603 | E98: 131239372.3 | F98: 3883902.603
A99: Holford | B99: =VLOOKUP(A99,'Locations & Types'!$E:$F,2,FALSE) -> STORAGE SITE | C99: 0 | D99: 38083961.01 | E99: 245293783.9 | F99: 38083961.01
A100: Hollingsgreen (Hays Chemicals) | B100: =VLOOKUP(A100,'Locations & Types'!$E:$F,2,FALSE) -> DC | C100: 3250000 | D100: 554885.5068 | E100: 2923219.321 | F100: 554885.5068
A101: Holmes Chapel | B101: =VLOOKUP(A101,'Locations & Types'!$E:$F,2,FALSE) -> GDN (NW) | C101: 22199592 | D101: 18387106 | E101: 18387106 | F101: 8506092.055
A102: Horndon | B102: =VLOOKUP(A102,'Locations & Types'!$E:$F,2,FALSE) -> GDN (NT) | C102: 46410000 | D102: 50333830.9 | E102: 50333830.9 | F102: 10478961.95
A103: Hornsea Max Refill | B103: =VLOOKUP(A103,'Locations & Types'!$E:$F,2,FALSE) -> STORAGE SITE | C103: 44789585 | D103: 20557060.99 | E103: 58239379.01 | F103: 20557060.99
A104: Humbleton | B104: =VLOOKUP(A104,'Locations & Types'!$E:$F,2,FALSE) -> GDN (NO) | C104: 250000 | D104: 250000 | E104: 250000 | F104: 41458.24658
A105: Hume | B105: =VLOOKUP(A105,'Locations & Types'!$E:$F,2,FALSE) -> GDN (SC) | C105: 1684385 | D105: 1684385 | E105: 1684385 | F105: 563662.3014
A106: Ilchester | B106: =VLOOKUP(A106,'Locations & Types'!$E:$F,2,FALSE) -> GDN (SW) | C106: 34960000 | D106: 30242930 | E106: 30242930 | F106: 10910448.85
A107: Ipsden | B107: =VLOOKUP(A107,'Locations & Types'!$E:$F,2,FALSE) -> GDN (SO) | C107: 12390000 | D107: 8958326 | E107: 8958326 | F107: 631183.0137
A108: Ipsden 2 | B108: =VLOOKUP(A108,'Locations & Types'!$E:$F,2,FALSE) -> GDN (SO) | C108: 15678000 | D108: 11667297 | E108: 11667297 | F108: 1539547.945
A109: Keld | B109: =VLOOKUP(A109,'Locations & Types'!$E:$F,2,FALSE) -> GDN (NO) | C109: 1890000 | D109: 1424555 | E109: 1424555 | F109: 689364.8767
A110: Kenn | B110: =VLOOKUP(A110,'Locations & Types'!$E:$F,2,FALSE) -> GDN (SW) | C110: 15430000 | D110: 14000883 | E110: 14000883 | F110: 8790093.973
A111: Kinknockie | B111: =VLOOKUP(A111,'Locations & Types'!$E:$F,2,FALSE) -> GDN (SC) | C111: 3068392 | D111: 3068392 | E111: 3068392 | F111: 1057163.89
A112: Kirkstead | B112: =VLOOKUP(A112,'Locations & Types'!$E:$F,2,FALSE) -> GDN (EM) | C112: 1210000 | D112: 858703 | E112: 858703 | F112: 224817.3973
A113: Langage Power Station | B113: =VLOOKUP(A113,'Locations & Types'!$E:$F,2,FALSE) -> DC | C113: 41616008 | D113: 19805107.62 | E113: 61641250.35 | F113: 19805107.62
A114: Langholm | B114: =VLOOKUP(A114,'Locations & Types'!$E:$F,2,FALSE) -> GDN (SC) | C114: 249796 | D114: 155319 | E114: 155319 | F114: 38498.79452
A115: Lauderhill | B115: =VLOOKUP(A115,'Locations & Types'!$E:$F,2,FALSE) -> GDN (SC) | C115: 1790000 | D115: 0 | E115: 0 | F115: 0
A116: Leamington | B116: =VLOOKUP(A116,'Locations & Types'!$E:$F,2,FALSE) -> GDN (WM) | C116: 4260000 | D116: 2586215 | E116: 2586215 | F116: 98005.78082
A117: Little Burdon | B117: =VLOOKUP(A117,'Locations & Types'!$E:$F,2,FALSE) -> GDN (NO) | C117: 20919521 | D117: 20919521 | E117: 20919521 | F117: 3423966.082
A118: Littleton Drew | B118: =VLOOKUP(A118,'Locations & Types'!$E:$F,2,FALSE) -> GDN (SW) | C118: 2470000 | D118: 2299463 | E118: 2299463 | F118: 293868.7671
A119: Lockerbie | B119: =VLOOKUP(A119,'Locations & Types'!$E:$F,2,FALSE) -> GDN (SC) | C119: 7439745 | D119: 6757111 | E119: 6757111 | F119: 2596254.055
A120: Lower Quinton | B120: =VLOOKUP(A120,'Locations & Types'!$E:$F,2,FALSE) -> GDN (WM) | C120: 29910000 | D120: 26684207 | E120: 26684207 | F120: 7591356.164
A121: Lupton | B121: =VLOOKUP(A121,'Locations & Types'!$E:$F,2,FALSE) -> GDN (NW) | C121: 19815980 | D121: 15464650 | E121: 15464650 | F121: 11509412.71
A122: Luxborough Lane | B122: =VLOOKUP(A122,'Locations & Types'!$E:$F,2,FALSE) -> GDN (NT) | C122: 165300000 | D122: 78757457.86 | E122: 78757457.86 | F122: 51440098.63
A123: Lyneham (Choakford) | B123: =VLOOKUP(A123,'Locations & Types'!$E:$F,2,FALSE) -> GDN (SW) | C123: 50300000 | D123: 40420636 | E123: 40420636 | F123: 9010721.123
A124: Maelor | B124: =VLOOKUP(A124,'Locations & Types'!$E:$F,2,FALSE) -> GDN (WN) | C124: 57560000 | D124: 49258990 | E124: 49258990 | F124: 16875305.53
A125: Malpas | B125: =VLOOKUP(A125,'Locations & Types'!$E:$F,2,FALSE) -> GDN (NW) | C125: 990000 | D125: 685222 | E125: 685222 | F125: 231806.1644
A126: Mappowder | B126: =VLOOKUP(A126,'Locations & Types'!$E:$F,2,FALSE) -> GDN (SO) | C126: 47680000 | D126: 36407083 | E126: 36407083 | F126: 11984180.55
A127: Marchwood Power Station | B127: =VLOOKUP(A127,'Locations & Types'!$E:$F,2,FALSE) -> DC | C127: 39840000 | D127: 29722499.37 | E127: 48594285.93 | F127: 29722499.37
A128: Market Harborough | B128: =VLOOKUP(A128,'Locations & Types'!$E:$F,2,FALSE) -> GDN (EM) | C128: 9480000 | D128: 7174600.408 | E128: 7174600.408 | F128: 1858749.863
A129: Matching Green | B129: =VLOOKUP(A129,'Locations & Types'!$E:$F,2,FALSE) -> GDN (EA) | C129: 92341877 | D129: 68130761.85 | E129: 68130761.85 | F129: 21751580.82
A130: Medway (aka Isle of Grain Power Station, NOT Grain Power) | B130: =VLOOKUP(A130,'Locations & Types'!$E:$F,2,FALSE) -> DC | C130: 38120000 | D130: 13289481.84 | E130: 39718965.88 | F130: 13289481.84
A131: Melkinthorpe | B131: =VLOOKUP(A131,'Locations & Types'!$E:$F,2,FALSE) -> GDN (NO) | C131: 2432914 | D131: 2432914 | E131: 2432914 | F131: 699652.7397
A132: Mickle Trafford | B132: =VLOOKUP(A132,'Locations & Types'!$E:$F,2,FALSE) -> GDN (NW) | C132: 29209411 | D132: =IF(LEFT($B132, 3)="GDN", $E132, $F132) -> 29361375.66 | E132: 29361375.66 | F132: 12942603.01
A133: Middle Stoke (Damhead Creek, aka Kingsnorth Power Station) | B133: =VLOOKUP(A133,'Locations & Types'!$E:$F,2,FALSE) -> DC | C133: 40940000 | D133: 24627581.75 | E133: 95336184 | F133: 24627581.75
A134: Milwich | B134: =VLOOKUP(A134,'Locations & Types'!$E:$F,2,FALSE) -> GDN (WM) | C134: 21635242 | D134: 18949988 | E134: 18949988 | F134: 6272992.603
A135: Moffat (Irish Interconnector) | B135: =VLOOKUP(A135,'Locations & Types'!$E:$F,2,FALSE) -> INTERCONNECTOR | C135: 530089918 | D135: 101783883 | E135: 221513825.5 | F135: 101783883
A136: Netherhowcleugh | B136: =VLOOKUP(A136,'Locations & Types'!$E:$F,2,FALSE) -> GDN (SC) | C136: 322112 | D136: 322112 | E136: 322112 | F136: 78707.26027
A137: Pannal | B137: =VLOOKUP(A137,'Locations & Types'!$E:$F,2,FALSE) -> GDN (NE) | C137: 148410000 | D137: 127560152 | E137: 127560152 | F137: 53598939.64
A138: Partington | B138: =VLOOKUP(A138,'Locations & Types'!$E:$F,2,FALSE) -> GDN (NW) | C138: 87630000 | D138: 54702858 | E138: 54702858 | F138: 7278745.205
A139: Partington Max Refill | B139: =VLOOKUP(A139,'Locations & Types'!$E:$F,2,FALSE) -> STORAGE SITE | C139: 2410000 | D139: 0 | E139: 0 | F139: 0
A140: Paull | B140: =VLOOKUP(A140,'Locations & Types'!$E:$F,2,FALSE) -> GDN (NE) | C140: 46858561 | D140: 46858561 | E140: 46858561 | F140: 13626359.1
A141: Pembroke Power Station | B141: =VLOOKUP(A141,'Locations & Types'!$E:$F,2,FALSE) -> DC | C141: 121200056 | D141: 75132793.7 | E141: 126186301.4 | F141: 75132793.7
A142: Peterborough (Peterborough Power Station) | B142: =VLOOKUP(A142,'Locations & Types'!$E:$F,2,FALSE) -> DC | C142: 23280000 | D142: 328946.7123 | E142: 14701369.86 | F142: 328946.7123
A143: Peterborough Eye (Tee) | B143: =VLOOKUP(A143,'Locations & Types'!$E:$F,2,FALSE) -> GDN (EA) | C143: 25450000 | D143: 20423482 | E143: 20423482 | F143: 6028180.822
A144: Peters Green | B144: =VLOOKUP(A144,'Locations & Types'!$E:$F,2,FALSE) -> GDN (NT) | C144: 151860000 | D144: 112982854.9 | E144: 112982854.9 | F144: 46456441.64
A145: Peters Green South Mimms | B145: =VLOOKUP(A145,'Locations & Types'!$E:$F,2,FALSE) -> GDN (NT) | C145: 197176511 | D145: 165327058.5 | E145: 165327058.5 | F145: 61200832.6
A146: Phillips Petroleum, Teesside | B146: =VLOOKUP(A146,'Locations & Types'!$E:$F,2,FALSE) -> DC | C146: 3690000 | D146: 180530.4932 | E146: 4687260.274 | F146: 180530.4932
A147: Pickering | B147: =VLOOKUP(A147,'Locations & Types'!$E:$F,2,FALSE) -> GDN (NE) | C147: 9380000 | D147: 8379084 | E147: 8379084 | F147: 2915916.164
A148: Pickmere (Winnington Power, aka Brunner Mond) | B148: =VLOOKUP(A148,'Locations & Types'!$E:$F,2,FALSE) -> DC | C148: 15380000 | D148: 5454179.123 | E148: 8000000 | F148: 5454179.123
A149: Pitcairngreen | B149: =VLOOKUP(A149,'Locations & Types'!$E:$F,2,FALSE) -> GDN (SC) | C149: 1915791 | D149: 3432229.356 | E149: 3432229.356 | F149: 584030.6849
A150: Pucklechurch | B150: =VLOOKUP(A150,'Locations & Types'!$E:$F,2,FALSE) -> GDN (SW) | C150: 25794765 | D150: 22688355 | E150: 22688355 | F150: 6886117.534
A151: Rawcliffe | B151: =VLOOKUP(A151,'Locations & Types'!$E:$F,2,FALSE) -> GDN (NE) | C151: 5046154 | D151: 5046154 | E151: 5046154 | F151: 1292399.342
A152: Rollswood Kintore | B152: =VLOOKUP(A152,'Locations & Types'!$E:$F,2,FALSE) -> DC | C152: 0 | D152: 0 | E152: 0 | F152: 0
A153: Roosecote Power Station (Barrow) | B153: =VLOOKUP(A153,'Locations & Types'!$E:$F,2,FALSE) -> DC | C153: 14730000 | D153: 0 | E153: 0 | F153: 0
A154: Rosehill (Saltend Power Station) | B154: =VLOOKUP(A154,'Locations & Types'!$E:$F,2,FALSE) -> DC | C154: 57830000 | D154: 42303853.04 | E154: 57830000 | F154: 42303853.04
A155: Ross (SW) | B155: =VLOOKUP(A155,'Locations & Types'!$E:$F,2,FALSE) -> GDN (SW) | C155: 4530000 | D155: 4023357 | E155: 4023357 | F155: 1613602.356
A156: Ross (WM) | B156: =VLOOKUP(A156,'Locations & Types'!$E:$F,2,FALSE) -> GDN (WM) | C156: 16520000 | D156: 10064779.68 | E156: 10064779.68 | F156: 6064997.671
A157: Roudham Heath | B157: =VLOOKUP(A157,'Locations & Types'!$E:$F,2,FALSE) -> GDN (EA) | C157: 25472176 | D157: 16611750.03 | E157: 16611750.03 | F157: 10683166.85
A158: Royston | B158: =VLOOKUP(A158,'Locations & Types'!$E:$F,2,FALSE) -> GDN (EA) | C158: 2700000 | D158: 2367780 | E158: 2367780 | F158: 1080649.342
A159: Rugby | B159: =VLOOKUP(A159,'Locations & Types'!$E:$F,2,FALSE) -> GDN (WM) | C159: 80080000 | D159: 64098590.29 | E159: 64098590.29 | F159: 32822924.11
A160: Ryehouse | B160: =VLOOKUP(A160,'Locations & Types'!$E:$F,2,FALSE) -> DC | C160: 38660000 | D160: 6914581.918 | E160: 38660000 | F160: 6914581.918
A161: Saddle Bow (Kings Lynn) | B161: =VLOOKUP(A161,'Locations & Types'!$E:$F,2,FALSE) -> DC | C161: 17980000 | D161: 30.1369863 | E161: 14500000 | F161: 30.1369863
A162: Saltend BPHP (BP Saltend HP) | B162: =VLOOKUP(A162,'Locations & Types'!$E:$F,2,FALSE) -> DC | C162: 9100000 | D162: 4454952.082 | E162: 9055895 | F162: 4454952.082
A163: Saltfleetby Storage (Theddlethorpe) | B163: =VLOOKUP(A163,'Locations & Types'!$E:$F,2,FALSE) -> STORAGE SITE | C163: 0 | D163: 0 | E163: 0 | F163: 0
A164: Saltwick Pressure Controlled | B164: =VLOOKUP(A164,'Locations & Types'!$E:$F,2,FALSE) -> GDN (NO) | C164: 9220000 | D164: 5673152 | E164: 5673152 | F164: 10012257.26
A165: Saltwick Volumetric Controlled | B165: =VLOOKUP(A165,'Locations & Types'!$E:$F,2,FALSE) -> GDN (NO) | C165: 69070000 | D165: 39749273 | E165: 39749273 | F165: 2071863.562
A166: Samlesbury | B166: =VLOOKUP(A166,'Locations & Types'!$E:$F,2,FALSE) -> GDN (NW) | C166: 110990000 | D166: 99858652 | E166: 99858652 | F166: 24550584.16
A167: Sandy Lane (Blackburn CHP, aka Sappi Paper Mill) | B167: =VLOOKUP(A167,'Locations & Types'!$E:$F,2,FALSE) -> DC | C167: 4550000 | D167: 300857.5342 | E167: 3433103 | F167: 300857.5342
A168: Seabank (DN) | B168: =VLOOKUP(A168,'Locations & Types'!$E:$F,2,FALSE) -> GDN (SW) | C168: 60740000 | D168: 50999376 | E168: 50999376 | F168: 16855328.63
A169: Seabank (Seabank Power Station phase II) | B169: =VLOOKUP(A169,'Locations & Types'!$E:$F,2,FALSE) -> DC | C169: 19100000 | D169: 7693086.877 | E169: 28289540.74 | F169: 7693086.877
A170: Seal Sands TGPP | B170: =VLOOKUP(A170,'Locations & Types'!$E:$F,2,FALSE) -> DC | C170: 0 | D170: 0 | E170: 0 | F170: 0
A171: Sellafield Power Station | B171: =VLOOKUP(A171,'Locations & Types'!$E:$F,2,FALSE) -> DC | C171: 12350000 | D171: 5429590.356 | E171: 12349999 | F171: 5429590.356
A172: Shellstar (aka Kemira, not Kemira CHP) | B172: =VLOOKUP(A172,'Locations & Types'!$E:$F,2,FALSE) -> DC | C172: 16240000 | D172: 10523405.26 | E172: 11732444 | F172: 10523405.26
A173: Shorne | B173: =VLOOKUP(A173,'Locations & Types'!$E:$F,2,FALSE) -> GDN (SE) | C173: 67060000 | D173: 48279307 | E173: 48279307 | F173: 18549.31507
A174: Shotwick (Bridgewater Paper) | B174: =VLOOKUP(A174,'Locations & Types'!$E:$F,2,FALSE) -> DC | C174: 5520000 | D174: 165445.4247 | E174: 5282300.299 | F174: 165445.4247
A175: Shustoke | B175: =VLOOKUP(A175,'Locations & Types'!$E:$F,2,FALSE) -> GDN (WM) | C175: 44760000 | D175: 1855552.923 | E175: 1855552.923 | F175: 13019.17808
A176: Silk Willoughby | B176: =VLOOKUP(A176,'Locations & Types'!$E:$F,2,FALSE) -> GDN (EM) | C176: 3530000 | D176: 2203090 | E176: 2203090 | F176: 827238.274
A177: Soutra | B177: =VLOOKUP(A177,'Locations & Types'!$E:$F,2,FALSE) -> GDN (SC) | C177: 10726995 | D177: 10726995 | E177: 10726995 | F177: 2058121.096
A178: Spalding 2 (South Holland) Power Station | B178: =VLOOKUP(A178,'Locations & Types'!$E:$F,2,FALSE) -> DC | C178: 0 | D178: 0 | E178: 0 | F178: 0
A179: St Fergus | B179: =VLOOKUP(A179,'Locations & Types'!$E:$F,2,FALSE) -> GDN (SC) | C179: 1058074 | D179: 1055917 | E179: 1055917 | F179: 426658.6575
A180: St. Fergus (Peterhead) | B180: =VLOOKUP(A180,'Locations & Types'!$E:$F,2,FALSE) -> DC | C180: 108300000 | D180: 9197395.342 | E180: 73267750 | F180: 9197395.342
A181: St. Fergus (Shell Blackstart) | B181: =VLOOKUP(A181,'Locations & Types'!$E:$F,2,FALSE) -> DC | C181: 2583336 | D181: 0 | E181: 2583336 | F181: 0
A182: St. Neots (Little Barford) | B182: =VLOOKUP(A182,'Locations & Types'!$E:$F,2,FALSE) -> DC | C182: 35200000 | D182: 22918098.88 | E182: 36451349.04 | F182: 22918098.88
A183: Stallingborough | B183: =VLOOKUP(A183,'Locations & Types'!$E:$F,2,FALSE) -> DC | C183: 68012169 | D183: 13104679.12 | E183: 69310206.57 | F183: 13104679.12
A184: Stanford Le Hope (Coryton) | B184: =VLOOKUP(A184,'Locations & Types'!$E:$F,2,FALSE) -> DC | C184: 38600000 | D184: 15744621.86 | E184: 38494246.58 | F184: 15744621.86
A185: Staythorpe | B185: =VLOOKUP(A185,'Locations & Types'!$E:$F,2,FALSE) -> DC | C185: 82000000 | D185: 44559838.22 | E185: 83903452.05 | F185: 44559838.22
A186: Stranraer | B186: =VLOOKUP(A186,'Locations & Types'!$E:$F,2,FALSE) -> GDN (SC) | C186: 930433 | D186: 742435 | E186: 742435 | F186: 0
A187: Stratford-upon-Avon | B187: =VLOOKUP(A187,'Locations & Types'!$E:$F,2,FALSE) -> GDN (WM) | C187: 4680000 | D187: 3735040 | E187: 3735040 | F187: 1240482.959
A188: Stublach (Cheshire) | B188: =VLOOKUP(A188,'Locations & Types'!$E:$F,2,FALSE) -> STORAGE SITE | C188: 0 | D188: 20472085.23 | E188: 381309315.1 | F188: 20472085.23
A189: Sutton Bridge | B189: =VLOOKUP(A189,'Locations & Types'!$E:$F,2,FALSE) -> GDN (EM) | C189: 1710546 | D189: 1079269 | E189: 1079269 | F189: 411510.6027
A190: Sutton Bridge Power Station | B190: =VLOOKUP(A190,'Locations & Types'!$E:$F,2,FALSE) -> DC | C190: 37470000 | D190: 14243437.7 | E190: 37470000 | F190: 14243437.7
A191: Tatsfield | B191: =VLOOKUP(A191,'Locations & Types'!$E:$F,2,FALSE) -> GDN (SE) | C191: 221742083 | D191: 192774633 | E191: 192774633 | F191: 42243637.53
A192: Teesside (BASF, aka BASF Teesside) | B192: =VLOOKUP(A192,'Locations & Types'!$E:$F,2,FALSE) -> DC | C192: 9750000 | D192: 5571337.562 | E192: 10747260.27 | F192: 5571337.562
A193: Teesside Hydrogen | B193: =VLOOKUP(A193,'Locations & Types'!$E:$F,2,FALSE) -> DC | C193: 13277455 | D193: 3355168.948 | E193: 13276800 | F193: 3355168.948
A194: Terra Nitrogen (aka ICI, Terra Severnside) | B194: =VLOOKUP(A194,'Locations & Types'!$E:$F,2,FALSE) -> DC | C194: 13100000 | D194: 0 | E194: 0 | F194: 0
A195: Thornton Curtis (DN) | B195: =VLOOKUP(A195,'Locations & Types'!$E:$F,2,FALSE) -> GDN (EM) | C195: 118190411 | D195: =IF(LEFT($B195, 3)="GDN", $E195, $F195) -> 95532642 | E195: 95532642 | F195: 43926492.88
A196: Thornton Curtis (Humber Refinery, aka Immingham) | B196: =VLOOKUP(A196,'Locations & Types'!$E:$F,2,FALSE) -> DC | C196: 67000000 | D196: 45203238.16 | E196: 67000000 | F196: 45203238.16
A197: Thornton Curtis (Killingholme) | B197: =VLOOKUP(A197,'Locations & Types'!$E:$F,2,FALSE) -> DC | C197: 91000001 | D197: 7458246.219 | E197: 28177260.27 | F197: 7458246.219
A198: Thrintoft | B198: =VLOOKUP(A198,'Locations & Types'!$E:$F,2,FALSE) -> GDN (NO) | C198: 6921484 | D198: 6921484 | E198: 6921484 | F198: 1847855.945
A199: Tilbury Power Station | B199: =VLOOKUP(A199,'Locations & Types'!$E:$F,2,FALSE) -> DC | C199: 0 | D199: 0 | E199: 0 | F199: 0
A200: Tonna (Baglan Bay) | B200: =VLOOKUP(A200,'Locations & Types'!$E:$F,2,FALSE) -> DC | C200: 48650000 | D200: 9566617.123 | E200: 48650000 | F200: 9566617.123
... 22 more rows

Sheet 21-22 FCC - Exit (hidden)
A1: Exit Point | B1: Exit Point Type | C1: Obligated Exit Capacity | D1: Enduring Exit Capacity Scenario | E1: Historical Sold Exit Capacity Levels | F1: Historical Exit Flow Levels
C2: (kWh/d) | D2: (kWh/d) | E2: (kWh/d) | F2: (kWh/d)
A3: Aberdeen | B3: =VLOOKUP(A3,'Locations & Types'!$E:$F,2,FALSE) -> GDN (SC) | C3: 23536855 | D3: =IF(LEFT($B3, 3)="GDN", $E3, $F3) -> 22903731.56 | E3: 22903731.56 | F3: 8681891.945
A4: Abson (Seabank Power Station phase I) | B4: =VLOOKUP(A4,'Locations & Types'!$E:$F,2,FALSE) -> DC | C4: 36590000 | D4: =IF(LEFT($B4, 3)="GDN", $E4, $F4) -> 24750106.68 | E4: 53562602.74 | F4: 24750106.68
A5: Alrewas (EM) | B5: =VLOOKUP(A5,'Locations & Types'!$E:$F,2,FALSE) -> GDN (EM) | C5: 139912893 | D5: 70420657.79 | E5: 70420657.79 | F5: 19186591.78
A6: Alrewas (WM) | B6: =VLOOKUP(A6,'Locations & Types'!$E:$F,2,FALSE) -> GDN (WM) | C6: 128480000 | D6: 74408500.92 | E6: 74408500.92 | F6: 14251057.53
A7: Apache (Sage Black Start) | B7: =VLOOKUP(A7,'Locations & Types'!$E:$F,2,FALSE) -> DC | C7: 0 | D7: 0 | E7: 0 | F7: 0
A8: Armadale | B8: =VLOOKUP(A8,'Locations & Types'!$E:$F,2,FALSE) -> GDN (SC) | C8: 16011750 | D8: 7519525 | E8: 7519525 | F8: 1855666.849
A9: Aspley | B9: =VLOOKUP(A9,'Locations & Types'!$E:$F,2,FALSE) -> GDN (WM) | C9: 84650000 | D9: 58622167.26 | E9: 58622167.26 | F9: 36227725.48
A10: Asselby | B10: =VLOOKUP(A10,'Locations & Types'!$E:$F,2,FALSE) -> GDN (NE) | C10: 4586470 | D10: 4586470 | E10: 4586470 | F10: 1518337.534
A11: Audley (NW) | B11: =VLOOKUP(A11,'Locations & Types'!$E:$F,2,FALSE) -> GDN (NW) | C11: 12140000 | D11: 8037574 | E11: 8037574 | F11: 3298529.315
A12: Audley (WM) | B12: =VLOOKUP(A12,'Locations & Types'!$E:$F,2,FALSE) -> GDN (WM) | C12: 21830000 | D12: 15330890 | E12: 15330890 | F12: 32261.64384
A13: Austrey | B13: =VLOOKUP(A13,'Locations & Types'!$E:$F,2,FALSE) -> GDN (WM) | C13: 87835508 | D13: 60640352.3 | E13: 60640352.3 | F13: 17373716.44
A14: Avonmouth Max Refill | B14: =VLOOKUP(A14,'Locations & Types'!$E:$F,2,FALSE) -> STORAGE SITE | C14: 2300000 | D14: 0 | E14: 0 | F14: 0
A15: Aylesbeare | B15: =VLOOKUP(A15,'Locations & Types'!$E:$F,2,FALSE) -> GDN (SW) | C15: 22680000 | D15: 19128874 | E15: 19128874 | F15: 6249289.863
A16: Bacton | B16: =VLOOKUP(A16,'Locations & Types'!$E:$F,2,FALSE) -> GDN (EA) | C16: 3660000 | D16: 2483918.827 | E16: 2483918.827 | F16: 915982.0548
A17: Bacton (Baird) | B17: =VLOOKUP(A17,'Locations & Types'!$E:$F,2,FALSE) -> STORAGE SITE | C17: 0 | D17: 0 | E17: 0 | F17: 0
A18: Bacton (BBL) | B18: =VLOOKUP(A18,'Locations & Types'!$E:$F,2,FALSE) -> INTERCONNECTOR | C18: 0 | D18: 297523.7808 | E18: 157931638.4 | F18: 297523.7808
A19: Bacton (Great Yarmouth) | B19: =VLOOKUP(A19,'Locations & Types'!$E:$F,2,FALSE) -> DC | C19: 20040000 | D19: 11660088.78 | E19: 24928850.02 | F19: 11660088.78
A20: Bacton (IUK) | B20: =VLOOKUP(A20,'Locations & Types'!$E:$F,2,FALSE) -> INTERCONNECTOR | C20: 651676940 | D20: 241588739.7 | E20: 670064334.8 | F20: 241588739.7
A21: Baldersby | B21: =VLOOKUP(A21,'Locations & Types'!$E:$F,2,FALSE) -> GDN (NE) | C21: 1340000 | D21: 1126642 | E21: 1126642 | F21: 470479.9452
A22: Balgray | B22: =VLOOKUP(A22,'Locations & Types'!$E:$F,2,FALSE) -> GDN (SC) | C22: 15723362 | D22: 14957981 | E22: 14957981 | F22: 5140480.822
A23: Barking (Horndon) | B23: =VLOOKUP(A23,'Locations & Types'!$E:$F,2,FALSE) -> DC | C23: 58590000 | D23: 5044.931507 | E23: 0 | F23: 5044.931507
A24: Barrow (Bains) | B24: =VLOOKUP(A24,'Locations & Types'!$E:$F,2,FALSE) -> STORAGE SITE | C24: 0 | D24: 0 | E24: 0 | F24: 0
A25: Barrow (Black Start) | B25: =VLOOKUP(A25,'Locations & Types'!$E:$F,2,FALSE) -> DC | C25: 1000000 | D25: 0 | E25: 1974575.342 | F25: 0
A26: Barrow (Gateway) | B26: =VLOOKUP(A26,'Locations & Types'!$E:$F,2,FALSE) -> STORAGE SITE | C26: 0 | D26: 0 | E26: 0 | F26: 0
A27: Barton Stacey Max Refill (Humbly Grove) | B27: =VLOOKUP(A27,'Locations & Types'!$E:$F,2,FALSE) -> STORAGE SITE | C27: 100940000 | D27: 9623690.247 | E27: 91250980.8 | F27: 9623690.247
A28: Bathgate | B28: =VLOOKUP(A28,'Locations & Types'!$E:$F,2,FALSE) -> GDN (SC) | C28: 24176039 | D28: 21081766 | E28: 21081766 | F28: 7227144.658
A29: Billingham ICI (Terra Billingham) | B29: =VLOOKUP(A29,'Locations & Types'!$E:$F,2,FALSE) -> DC | C29: 43540000 | D29: 18854048.82 | E29: 33644543 | F29: 18854048.82
A30: Bishop Auckland | B30: =VLOOKUP(A30,'Locations & Types'!$E:$F,2,FALSE) -> GDN (NO) | C30: 62130000 | D30: 52568615 | E30: 52568615 | F30: 26238975.07
A31: Bishop Auckland (test facility) | B31: =VLOOKUP(A31,'Locations & Types'!$E:$F,2,FALSE) -> DC | C31: 0 | D31: 1144964.384 | E31: 0 | F31: 1144964.384
A32: Blaby | B32: =VLOOKUP(A32,'Locations & Types'!$E:$F,2,FALSE) -> GDN (EM) | C32: 13400271 | D32: 10177324.21 | E32: 10177324.21 | F32: 6404196.986
A33: Blackness (BP Grangemouth) | B33: =VLOOKUP(A33,'Locations & Types'!$E:$F,2,FALSE) -> DC | C33: 27290000 | D33: 16570018.16 | E33: 27290000 | F33: 16570018.16
A34: Blackrod | B34: =VLOOKUP(A34,'Locations & Types'!$E:$F,2,FALSE) -> GDN (NW) | C34: 166545212 | D34: 126857311.7 | E34: 126857311.7 | F34: 48538880.27
A35: Blyborough | B35: =VLOOKUP(A35,'Locations & Types'!$E:$F,2,FALSE) -> GDN (EM) | C35: 79330000 | D35: 63187749.07 | E35: 63187749.07 | F35: 10336260
A36: Blyborough (Brigg) | B36: =VLOOKUP(A36,'Locations & Types'!$E:$F,2,FALSE) -> DC | C36: 16890000 | D36: 304579.7534 | E36: 10526027.4 | F36: 304579.7534
A37: Blyborough (Cottam) | B37: =VLOOKUP(A37,'Locations & Types'!$E:$F,2,FALSE) -> DC | C37: 19300000 | D37: 13117551.23 | E37: 21939726.03 | F37: 13117551.23
A38: Braishfield A | B38: =VLOOKUP(A38,'Locations & Types'!$E:$F,2,FALSE) -> GDN (SO) | C38: 107280000 | D38: 72221179.95 | E38: 72221179.95 | F38: 39450128.77
A39: Braishfield B | B39: =VLOOKUP(A39,'Locations & Types'!$E:$F,2,FALSE) -> GDN (SO) | C39: 58866000 | D39: 57139307 | E39: 57139307 | F39: 15940642.47
A40: Brine Field (Teesside) Power Station | B40: =VLOOKUP(A40,'Locations & Types'!$E:$F,2,FALSE) -> DC | C40: 0 | D40: 0 | E40: 0 | F40: 0
A41: Brisley | B41: =VLOOKUP(A41,'Locations & Types'!$E:$F,2,FALSE) -> GDN (EA) | C41: 3110000 | D41: 2304790.564 | E41: 2304790.564 | F41: 886721.4521
A42: Broxburn | B42: =VLOOKUP(A42,'Locations & Types'!$E:$F,2,FALSE) -> GDN (SC) | C42: 60444108 | D42: 56250554 | E42: 56250554 | F42: 19304397.26
A43: Burley Bank | B43: =VLOOKUP(A43,'Locations & Types'!$E:$F,2,FALSE) -> GDN (NE) | C43: 20310000 | D43: 14453143 | E43: 14453143 | F43: 8288553.041
A44: Burnhervie | B44: =VLOOKUP(A44,'Locations & Types'!$E:$F,2,FALSE) -> GDN (SC) | C44: 22380000 | D44: 20624435 | E44: 20624435 | F44: 84283.20548
A45: Burton Point (Connahs Quay) | B45: =VLOOKUP(A45,'Locations & Types'!$E:$F,2,FALSE) -> DC | C45: 73210000 | D45: 19536466.22 | E45: 71802739.73 | F45: 19536466.22
A46: Caldecott | B46: =VLOOKUP(A46,'Locations & Types'!$E:$F,2,FALSE) -> GDN (EM) | C46: 11080000 | D46: 9097523.814 | E46: 9097523.814 | F46: 3177176.712
A47: Caldecott (Corby Power Station) | B47: =VLOOKUP(A47,'Locations & Types'!$E:$F,2,FALSE) -> DC | C47: 21120000 | D47: 53335.23288 | E47: 21041573.71 | F47: 53335.23288
A48: Cambridge | B48: =VLOOKUP(A48,'Locations & Types'!$E:$F,2,FALSE) -> GDN (EA) | C48: 0 | D48: 0 | E48: 0 | F48: 0
A49: Careston | B49: =VLOOKUP(A49,'Locations & Types'!$E:$F,2,FALSE) -> GDN (SC) | C49: 3851761 | D49: 3576724 | E49: 3576724 | F49: 1601877.562
A50: Carrington (Partington) Power Station | B50: =VLOOKUP(A50,'Locations & Types'!$E:$F,2,FALSE) -> DC | C50: 45000000 | D50: 27840552.77 | E50: 44876712.33 | F50: 27840552.77
A51: Caythorpe | B51: =VLOOKUP(A51,'Locations & Types'!$E:$F,2,FALSE) -> STORAGE SITE | C51: 75000000 | D51: 0 | E51: 0 | F51: 0
A52: Centrax Industrial | B52: =VLOOKUP(A52,'Locations & Types'!$E:$F,2,FALSE) -> DC | C52: 85000 | D52: 21270.9863 | E52: 85000 | F52: 21270.9863
A53: Cirencester | B53: =VLOOKUP(A53,'Locations & Types'!$E:$F,2,FALSE) -> GDN (SW) | C53: 8970000 | D53: 7743399 | E53: 7743399 | F53: 2294873.644
A54: Cockenzie Power Station | B54: =VLOOKUP(A54,'Locations & Types'!$E:$F,2,FALSE) -> DC | C54: 0 | D54: 0 | E54: 0 | F54: 0
A55: Coffinswell | B55: =VLOOKUP(A55,'Locations & Types'!$E:$F,2,FALSE) -> GDN (SW) | C55: 5150000 | D55: 4830571 | E55: 4830571 | F55: 1741179.452
A56: Coldstream | B56: =VLOOKUP(A56,'Locations & Types'!$E:$F,2,FALSE) -> GDN (NO) | C56: 2848927 | D56: 2848927 | E56: 2848927 | F56: 911664.9315
A57: Corbridge | B57: =VLOOKUP(A57,'Locations & Types'!$E:$F,2,FALSE) -> GDN (NO) | C57: 166692 | D57: 166692 | E57: 166692 | F57: 24001.39726
A58: Coryton 2 (Thames Haven) Power Station | B58: =VLOOKUP(A58,'Locations & Types'!$E:$F,2,FALSE) -> DC | C58: 0 | D58: 0 | E58: 0 | F58: 0
A59: Cowpen Bewley | B59: =VLOOKUP(A59,'Locations & Types'!$E:$F,2,FALSE) -> GDN (NO) | C59: 52120008 | D59: 35635800 | E59: 35635800 | F59: 15932110.68
A60: Crawley Down | B60: =VLOOKUP(A60,'Locations & Types'!$E:$F,2,FALSE) -> GDN (SO) | C60: 0 | D60: 0 | E60: 0 | F60: 0
A61: Deborah Storage (Bacton) | B61: =VLOOKUP(A61,'Locations & Types'!$E:$F,2,FALSE) -> STORAGE SITE | C61: 0 | D61: 0 | E61: 0 | F61: 0
A62: Deeside | B62: =VLOOKUP(A62,'Locations & Types'!$E:$F,2,FALSE) -> DC | C62: 28480000 | D62: 3083036.301 | E62: 26726575.34 | F62: 3083036.301
A63: Didcot | B63: =VLOOKUP(A63,'Locations & Types'!$E:$F,2,FALSE) -> DC | C63: 137760000 | D63: 37603017.21 | E63: 89904657.53 | F63: 37603017.21
A64: Dowlais | B64: =VLOOKUP(A64,'Locations & Types'!$E:$F,2,FALSE) -> GDN (WS) | C64: 105977456 | D64: 94743289 | E64: 94743289 | F64: 32842106.3
A65: Drakelow Power Station | B65: =VLOOKUP(A65,'Locations & Types'!$E:$F,2,FALSE) -> DC | C65: 0 | D65: 0 | E65: 0 | F65: 0
A66: Drointon | B66: =VLOOKUP(A66,'Locations & Types'!$E:$F,2,FALSE) -> GDN (EM) | C66: 74272791 | D66: 62266492.25 | E66: 62266492.25 | F66: 40005309.32
A67: Drum | B67: =VLOOKUP(A67,'Locations & Types'!$E:$F,2,FALSE) -> GDN (SC) | C67: 82525354 | D67: 66956781 | E67: 66956781 | F67: 15748293.15
A68: Dyffryn Clydach | B68: =VLOOKUP(A68,'Locations & Types'!$E:$F,2,FALSE) -> GDN (WS) | C68: 40231974 | D68: =IF(LEFT($B68, 3)="GDN", $E68, $F68) -> 40231974 | E68: 40231974 | F68: 13915479.18
A69: Dynevor Max Refill | B69: =VLOOKUP(A69,'Locations & Types'!$E:$F,2,FALSE) -> STORAGE SITE | C69: 2610000 | D69: 0 | E69: 23931 | F69: 0
A70: Eastoft (Keadby Blackstart) | B70: =VLOOKUP(A70,'Locations & Types'!$E:$F,2,FALSE) -> DC | C70: 2380000 | D70: 0 | E70: 1457215 | F70: 0
A71: Eastoft (Keadby) | B71: =VLOOKUP(A71,'Locations & Types'!$E:$F,2,FALSE) -> DC | C71: 36060000 | D71: 13283987.26 | E71: 50380847.91 | F71: 13283987.26
A72: Easton Grey | B72: =VLOOKUP(A72,'Locations & Types'!$E:$F,2,FALSE) -> GDN (SW) | C72: 29600000 | D72: 27391725 | E72: 27391725 | F72: 4550543.288
A73: Ecclestone | B73: =VLOOKUP(A73,'Locations & Types'!$E:$F,2,FALSE) -> GDN (NW) | C73: 21140000 | D73: 16496286.8 | E73: 16496286.8 | F73: 3895338.082
A74: Elton | B74: =VLOOKUP(A74,'Locations & Types'!$E:$F,2,FALSE) -> GDN (NO) | C74: 60212185 | D74: 60212185 | E74: 60212185 | F74: 20949113.34
A75: Enron Billingham | B75: =VLOOKUP(A75,'Locations & Types'!$E:$F,2,FALSE) -> DC | C75: 121510000 | D75: 0 | E75: 2297677 | F75: 0
A76: Epping Green (Enfield Energy, aka Brimsdown) | B76: =VLOOKUP(A76,'Locations & Types'!$E:$F,2,FALSE) -> DC | C76: 19600000 | D76: 7723033.397 | E76: 20967671.23 | F76: 7723033.397
A77: Evesham | B77: =VLOOKUP(A77,'Locations & Types'!$E:$F,2,FALSE) -> GDN (SW) | C77: 6570000 | D77: 5584329 | E77: 5584329 | F77: 2211332.11
A78: Farningham | B78: =VLOOKUP(A78,'Locations & Types'!$E:$F,2,FALSE) -> GDN (SE) | C78: 135120000 | D78: 142075461.8 | E78: 142075461.8 | F78: 63795437.26
A79: Farningham B | B79: =VLOOKUP(A79,'Locations & Types'!$E:$F,2,FALSE) -> GDN (SE) | C79: 117883000 | D79: 74376043.93 | E79: 74376043.93 | F79: 9340506.849
A80: Ferny Knoll (AM Paper) | B80: =VLOOKUP(A80,'Locations & Types'!$E:$F,2,FALSE) -> DC | C80: 1080000 | D80: 301.369863 | E80: 0 | F80: 301.369863
A81: Fiddington | B81: =VLOOKUP(A81,'Locations & Types'!$E:$F,2,FALSE) -> GDN (SW) | C81: 25952278 | D81: 22229864 | E81: 22229864 | F81: 8353903.288
A82: Ganstead | B82: =VLOOKUP(A82,'Locations & Types'!$E:$F,2,FALSE) -> GDN (NE) | C82: 23150000 | D82: 16864011 | E82: 16864011 | F82: 8924797.863
A83: Garton Max Refill (Aldbrough) | B83: =VLOOKUP(A83,'Locations & Types'!$E:$F,2,FALSE) -> STORAGE SITE | C83: 325510001 | D83: 41435157.73 | E83: 377085418.7 | F83: 41435157.73
A84: Gilwern | B84: =VLOOKUP(A84,'Locations & Types'!$E:$F,2,FALSE) -> GDN (WS) | C84: 82680000 | D84: 78188679 | E84: 78188679 | F84: 35737208.66
A85: Glenmavis | B85: =VLOOKUP(A85,'Locations & Types'!$E:$F,2,FALSE) -> GDN (SC) | C85: 145790000 | D85: 128262344 | E85: 128262344 | F85: 55270123.84
A86: Glenmavis Max Refill | B86: =VLOOKUP(A86,'Locations & Types'!$E:$F,2,FALSE) -> STORAGE SITE | C86: 1620000 | D86: 0 | E86: 488720 | F86: 0
A87: Goole (Guardian Glass) | B87: =VLOOKUP(A87,'Locations & Types'!$E:$F,2,FALSE) -> DC | C87: 1620000 | D87: 1437062.301 | E87: 0 | F87: 1437062.301
A88: Gosberton | B88: =VLOOKUP(A88,'Locations & Types'!$E:$F,2,FALSE) -> GDN (EM) | C88: 15230000 | D88: 12360472.56 | E88: 12360472.56 | F88: 5236542.466
A89: Gowkhall (Longannet) | B89: =VLOOKUP(A89,'Locations & Types'!$E:$F,2,FALSE) -> DC | C89: 43320000 | D89: 0 | E89: 43320000 | F89: 0
A90: Grain Power Station | B90: =VLOOKUP(A90,'Locations & Types'!$E:$F,2,FALSE) -> DC | C90: 0 | D90: 30858832.82 | E90: 63813698.63 | F90: 30858832.82
A91: Great Wilbraham | B91: =VLOOKUP(A91,'Locations & Types'!$E:$F,2,FALSE) -> GDN (EA) | C91: 35590000 | D91: 20689216.25 | E91: 20689216.25 | F91: 8985249.041
A92: Guyzance | B92: =VLOOKUP(A92,'Locations & Types'!$E:$F,2,FALSE) -> GDN (NO) | C92: 2190000 | D92: 1806988 | E92: 1806988 | F92: 726532.8219
A93: Hardwick | B93: =VLOOKUP(A93,'Locations & Types'!$E:$F,2,FALSE) -> GDN (SO) | C93: 123699000 | D93: 95134383 | E93: 95134383 | F93: 36918109.59
A94: Harwarden (Shotton, aka Shotton Paper) | B94: =VLOOKUP(A94,'Locations & Types'!$E:$F,2,FALSE) -> DC | C94: 11590000 | D94: 0 | E94: 0 | F94: 0
A95: Hatfield Moor Max Refill | B95: =VLOOKUP(A95,'Locations & Types'!$E:$F,2,FALSE) -> STORAGE SITE | C95: 30210000 | D95: 2828419.452 | E95: 30210000 | F95: 2828419.452
A96: Hatfield Power Station | B96: =VLOOKUP(A96,'Locations & Types'!$E:$F,2,FALSE) -> DC | C96: 0 | D96: 0 | E96: 0 | F96: 0
A97: Hill Top Farm (Hole House Farm) | B97: =VLOOKUP(A97,'Locations & Types'!$E:$F,2,FALSE) -> STORAGE SITE | C97: 0 | D97: 4472448.11 | E97: 64821917.81 | F97: 4472448.11
A98: Hole House Max Refill | B98: =VLOOKUP(A98,'Locations & Types'!$E:$F,2,FALSE) -> STORAGE SITE | C98: 119580000 | D98: 3883902.603 | E98: 131239372.3 | F98: 3883902.603
A99: Holford | B99: =VLOOKUP(A99,'Locations & Types'!$E:$F,2,FALSE) -> STORAGE SITE | C99: 0 | D99: 38083961.01 | E99: 245293783.9 | F99: 38083961.01
A100: Hollingsgreen (Hays Chemicals) | B100: =VLOOKUP(A100,'Locations & Types'!$E:$F,2,FALSE) -> DC | C100: 3250000 | D100: 554885.5068 | E100: 2923219.321 | F100: 554885.5068
A101: Holmes Chapel | B101: =VLOOKUP(A101,'Locations & Types'!$E:$F,2,FALSE) -> GDN (NW) | C101: 22199592 | D101: 18387106 | E101: 18387106 | F101: 8506092.055
A102: Horndon | B102: =VLOOKUP(A102,'Locations & Types'!$E:$F,2,FALSE) -> GDN (NT) | C102: 46410000 | D102: 50333830.9 | E102: 50333830.9 | F102: 10478961.95
A103: Hornsea Max Refill | B103: =VLOOKUP(A103,'Locations & Types'!$E:$F,2,FALSE) -> STORAGE SITE | C103: 44789585 | D103: 20557060.99 | E103: 58239379.01 | F103: 20557060.99
A104: Humbleton | B104: =VLOOKUP(A104,'Locations & Types'!$E:$F,2,FALSE) -> GDN (NO) | C104: 250000 | D104: 250000 | E104: 250000 | F104: 41458.24658
A105: Hume | B105: =VLOOKUP(A105,'Locations & Types'!$E:$F,2,FALSE) -> GDN (SC) | C105: 1684385 | D105: 1684385 | E105: 1684385 | F105: 563662.3014
A106: Ilchester | B106: =VLOOKUP(A106,'Locations & Types'!$E:$F,2,FALSE) -> GDN (SW) | C106: 34960000 | D106: 30242930 | E106: 30242930 | F106: 10910448.85
A107: Ipsden | B107: =VLOOKUP(A107,'Locations & Types'!$E:$F,2,FALSE) -> GDN (SO) | C107: 12390000 | D107: 8958326 | E107: 8958326 | F107: 631183.0137
A108: Ipsden 2 | B108: =VLOOKUP(A108,'Locations & Types'!$E:$F,2,FALSE) -> GDN (SO) | C108: 15678000 | D108: 11667297 | E108: 11667297 | F108: 1539547.945
A109: Keld | B109: =VLOOKUP(A109,'Locations & Types'!$E:$F,2,FALSE) -> GDN (NO) | C109: 1890000 | D109: 1424555 | E109: 1424555 | F109: 689364.8767
A110: Kenn | B110: =VLOOKUP(A110,'Locations & Types'!$E:$F,2,FALSE) -> GDN (SW) | C110: 15430000 | D110: 14000883 | E110: 14000883 | F110: 8790093.973
A111: Kinknockie | B111: =VLOOKUP(A111,'Locations & Types'!$E:$F,2,FALSE) -> GDN (SC) | C111: 3068392 | D111: 3068392 | E111: 3068392 | F111: 1057163.89
A112: Kirkstead | B112: =VLOOKUP(A112,'Locations & Types'!$E:$F,2,FALSE) -> GDN (EM) | C112: 1210000 | D112: 858703 | E112: 858703 | F112: 224817.3973
A113: Langage Power Station | B113: =VLOOKUP(A113,'Locations & Types'!$E:$F,2,FALSE) -> DC | C113: 41616008 | D113: 19805107.62 | E113: 61641250.35 | F113: 19805107.62
A114: Langholm | B114: =VLOOKUP(A114,'Locations & Types'!$E:$F,2,FALSE) -> GDN (SC) | C114: 249796 | D114: 155319 | E114: 155319 | F114: 38498.79452
A115: Lauderhill | B115: =VLOOKUP(A115,'Locations & Types'!$E:$F,2,FALSE) -> GDN (SC) | C115: 1790000 | D115: 0 | E115: 0 | F115: 0
A116: Leamington | B116: =VLOOKUP(A116,'Locations & Types'!$E:$F,2,FALSE) -> GDN (WM) | C116: 4260000 | D116: 2586215 | E116: 2586215 | F116: 98005.78082
A117: Little Burdon | B117: =VLOOKUP(A117,'Locations & Types'!$E:$F,2,FALSE) -> GDN (NO) | C117: 20919521 | D117: 20919521 | E117: 20919521 | F117: 3423966.082
A118: Littleton Drew | B118: =VLOOKUP(A118,'Locations & Types'!$E:$F,2,FALSE) -> GDN (SW) | C118: 2470000 | D118: 2299463 | E118: 2299463 | F118: 293868.7671
A119: Lockerbie | B119: =VLOOKUP(A119,'Locations & Types'!$E:$F,2,FALSE) -> GDN (SC) | C119: 7439745 | D119: 6757111 | E119: 6757111 | F119: 2596254.055
A120: Lower Quinton | B120: =VLOOKUP(A120,'Locations & Types'!$E:$F,2,FALSE) -> GDN (WM) | C120: 29910000 | D120: 26684207 | E120: 26684207 | F120: 7591356.164
A121: Lupton | B121: =VLOOKUP(A121,'Locations & Types'!$E:$F,2,FALSE) -> GDN (NW) | C121: 19815980 | D121: 15464650 | E121: 15464650 | F121: 11509412.71
A122: Luxborough Lane | B122: =VLOOKUP(A122,'Locations & Types'!$E:$F,2,FALSE) -> GDN (NT) | C122: 165300000 | D122: 78757457.86 | E122: 78757457.86 | F122: 51440098.63
A123: Lyneham (Choakford) | B123: =VLOOKUP(A123,'Locations & Types'!$E:$F,2,FALSE) -> GDN (SW) | C123: 50300000 | D123: 40420636 | E123: 40420636 | F123: 9010721.123
A124: Maelor | B124: =VLOOKUP(A124,'Locations & Types'!$E:$F,2,FALSE) -> GDN (WN) | C124: 57560000 | D124: 49258990 | E124: 49258990 | F124: 16875305.53
A125: Malpas | B125: =VLOOKUP(A125,'Locations & Types'!$E:$F,2,FALSE) -> GDN (NW) | C125: 990000 | D125: 685222 | E125: 685222 | F125: 231806.1644
A126: Mappowder | B126: =VLOOKUP(A126,'Locations & Types'!$E:$F,2,FALSE) -> GDN (SO) | C126: 47680000 | D126: 36407083 | E126: 36407083 | F126: 11984180.55
A127: Marchwood Power Station | B127: =VLOOKUP(A127,'Locations & Types'!$E:$F,2,FALSE) -> DC | C127: 39840000 | D127: 29722499.37 | E127: 48594285.93 | F127: 29722499.37
A128: Market Harborough | B128: =VLOOKUP(A128,'Locations & Types'!$E:$F,2,FALSE) -> GDN (EM) | C128: 9480000 | D128: 7174600.408 | E128: 7174600.408 | F128: 1858749.863
A129: Matching Green | B129: =VLOOKUP(A129,'Locations & Types'!$E:$F,2,FALSE) -> GDN (EA) | C129: 92341877 | D129: 68130761.85 | E129: 68130761.85 | F129: 21751580.82
A130: Medway (aka Isle of Grain Power Station, NOT Grain Power) | B130: =VLOOKUP(A130,'Locations & Types'!$E:$F,2,FALSE) -> DC | C130: 38120000 | D130: 13289481.84 | E130: 39718965.88 | F130: 13289481.84
A131: Melkinthorpe | B131: =VLOOKUP(A131,'Locations & Types'!$E:$F,2,FALSE) -> GDN (NO) | C131: 2432914 | D131: 2432914 | E131: 2432914 | F131: 699652.7397
A132: Mickle Trafford | B132: =VLOOKUP(A132,'Locations & Types'!$E:$F,2,FALSE) -> GDN (NW) | C132: 29209411 | D132: =IF(LEFT($B132, 3)="GDN", $E132, $F132) -> 29361375.66 | E132: 29361375.66 | F132: 12942603.01
A133: Middle Stoke (Damhead Creek, aka Kingsnorth Power Station) | B133: =VLOOKUP(A133,'Locations & Types'!$E:$F,2,FALSE) -> DC | C133: 40940000 | D133: 24627581.75 | E133: 95336184 | F133: 24627581.75
A134: Milwich | B134: =VLOOKUP(A134,'Locations & Types'!$E:$F,2,FALSE) -> GDN (WM) | C134: 21635242 | D134: 18949988 | E134: 18949988 | F134: 6272992.603
A135: Moffat (Irish Interconnector) | B135: =VLOOKUP(A135,'Locations & Types'!$E:$F,2,FALSE) -> INTERCONNECTOR | C135: 530089918 | D135: 101783883 | E135: 221513825.5 | F135: 101783883
A136: Netherhowcleugh | B136: =VLOOKUP(A136,'Locations & Types'!$E:$F,2,FALSE) -> GDN (SC) | C136: 322112 | D136: 322112 | E136: 322112 | F136: 78707.26027
A137: Pannal | B137: =VLOOKUP(A137,'Locations & Types'!$E:$F,2,FALSE) -> GDN (NE) | C137: 148410000 | D137: 127560152 | E137: 127560152 | F137: 53598939.64
A138: Partington | B138: =VLOOKUP(A138,'Locations & Types'!$E:$F,2,FALSE) -> GDN (NW) | C138: 87630000 | D138: 54702858 | E138: 54702858 | F138: 7278745.205
A139: Partington Max Refill | B139: =VLOOKUP(A139,'Locations & Types'!$E:$F,2,FALSE) -> STORAGE SITE | C139: 2410000 | D139: 0 | E139: 0 | F139: 0
A140: Paull | B140: =VLOOKUP(A140,'Locations & Types'!$E:$F,2,FALSE) -> GDN (NE) | C140: 46858561 | D140: 46858561 | E140: 46858561 | F140: 13626359.1
A141: Pembroke Power Station | B141: =VLOOKUP(A141,'Locations & Types'!$E:$F,2,FALSE) -> DC | C141: 121200056 | D141: 75132793.7 | E141: 126186301.4 | F141: 75132793.7
A142: Peterborough (Peterborough Power Station) | B142: =VLOOKUP(A142,'Locations & Types'!$E:$F,2,FALSE) -> DC | C142: 23280000 | D142: 328946.7123 | E142: 14701369.86 | F142: 328946.7123
A143: Peterborough Eye (Tee) | B143: =VLOOKUP(A143,'Locations & Types'!$E:$F,2,FALSE) -> GDN (EA) | C143: 25450000 | D143: 20423482 | E143: 20423482 | F143: 6028180.822
A144: Peters Green | B144: =VLOOKUP(A144,'Locations & Types'!$E:$F,2,FALSE) -> GDN (NT) | C144: 151860000 | D144: 112982854.9 | E144: 112982854.9 | F144: 46456441.64
A145: Peters Green South Mimms | B145: =VLOOKUP(A145,'Locations & Types'!$E:$F,2,FALSE) -> GDN (NT) | C145: 197176511 | D145: 165327058.5 | E145: 165327058.5 | F145: 61200832.6
A146: Phillips Petroleum, Teesside | B146: =VLOOKUP(A146,'Locations & Types'!$E:$F,2,FALSE) -> DC | C146: 3690000 | D146: 180530.4932 | E146: 4687260.274 | F146: 180530.4932
A147: Pickering | B147: =VLOOKUP(A147,'Locations & Types'!$E:$F,2,FALSE) -> GDN (NE) | C147: 9380000 | D147: 8379084 | E147: 8379084 | F147: 2915916.164
A148: Pickmere (Winnington Power, aka Brunner Mond) | B148: =VLOOKUP(A148,'Locations & Types'!$E:$F,2,FALSE) -> DC | C148: 15380000 | D148: 5454179.123 | E148: 8000000 | F148: 5454179.123
A149: Pitcairngreen | B149: =VLOOKUP(A149,'Locations & Types'!$E:$F,2,FALSE) -> GDN (SC) | C149: 1915791 | D149: 3432229.356 | E149: 3432229.356 | F149: 584030.6849
A150: Pucklechurch | B150: =VLOOKUP(A150,'Locations & Types'!$E:$F,2,FALSE) -> GDN (SW) | C150: 25794765 | D150: 22688355 | E150: 22688355 | F150: 6886117.534
A151: Rawcliffe | B151: =VLOOKUP(A151,'Locations & Types'!$E:$F,2,FALSE) -> GDN (NE) | C151: 5046154 | D151: 5046154 | E151: 5046154 | F151: 1292399.342
A152: Rollswood Kintore | B152: =VLOOKUP(A152,'Locations & Types'!$E:$F,2,FALSE) -> DC | C152: 0 | D152: 0 | E152: 0 | F152: 0
A153: Roosecote Power Station (Barrow) | B153: =VLOOKUP(A153,'Locations & Types'!$E:$F,2,FALSE) -> DC | C153: 14730000 | D153: 0 | E153: 0 | F153: 0
A154: Rosehill (Saltend Power Station) | B154: =VLOOKUP(A154,'Locations & Types'!$E:$F,2,FALSE) -> DC | C154: 57830000 | D154: 42303853.04 | E154: 57830000 | F154: 42303853.04
A155: Ross (SW) | B155: =VLOOKUP(A155,'Locations & Types'!$E:$F,2,FALSE) -> GDN (SW) | C155: 4530000 | D155: 4023357 | E155: 4023357 | F155: 1613602.356
A156: Ross (WM) | B156: =VLOOKUP(A156,'Locations & Types'!$E:$F,2,FALSE) -> GDN (WM) | C156: 16520000 | D156: 10064779.68 | E156: 10064779.68 | F156: 6064997.671
A157: Roudham Heath | B157: =VLOOKUP(A157,'Locations & Types'!$E:$F,2,FALSE) -> GDN (EA) | C157: 25472176 | D157: 16611750.03 | E157: 16611750.03 | F157: 10683166.85
A158: Royston | B158: =VLOOKUP(A158,'Locations & Types'!$E:$F,2,FALSE) -> GDN (EA) | C158: 2700000 | D158: 2367780 | E158: 2367780 | F158: 1080649.342
A159: Rugby | B159: =VLOOKUP(A159,'Locations & Types'!$E:$F,2,FALSE) -> GDN (WM) | C159: 80080000 | D159: 64098590.29 | E159: 64098590.29 | F159: 32822924.11
A160: Ryehouse | B160: =VLOOKUP(A160,'Locations & Types'!$E:$F,2,FALSE) -> DC | C160: 38660000 | D160: 6914581.918 | E160: 38660000 | F160: 6914581.918
A161: Saddle Bow (Kings Lynn) | B161: =VLOOKUP(A161,'Locations & Types'!$E:$F,2,FALSE) -> DC | C161: 17980000 | D161: 30.1369863 | E161: 14500000 | F161: 30.1369863
A162: Saltend BPHP (BP Saltend HP) | B162: =VLOOKUP(A162,'Locations & Types'!$E:$F,2,FALSE) -> DC | C162: 9100000 | D162: 4454952.082 | E162: 9055895 | F162: 4454952.082
A163: Saltfleetby Storage (Theddlethorpe) | B163: =VLOOKUP(A163,'Locations & Types'!$E:$F,2,FALSE) -> STORAGE SITE | C163: 0 | D163: 0 | E163: 0 | F163: 0
A164: Saltwick Pressure Controlled | B164: =VLOOKUP(A164,'Locations & Types'!$E:$F,2,FALSE) -> GDN (NO) | C164: 9220000 | D164: 5673152 | E164: 5673152 | F164: 10012257.26
A165: Saltwick Volumetric Controlled | B165: =VLOOKUP(A165,'Locations & Types'!$E:$F,2,FALSE) -> GDN (NO) | C165: 69070000 | D165: 39749273 | E165: 39749273 | F165: 2071863.562
A166: Samlesbury | B166: =VLOOKUP(A166,'Locations & Types'!$E:$F,2,FALSE) -> GDN (NW) | C166: 110990000 | D166: 99858652 | E166: 99858652 | F166: 24550584.16
A167: Sandy Lane (Blackburn CHP, aka Sappi Paper Mill) | B167: =VLOOKUP(A167,'Locations & Types'!$E:$F,2,FALSE) -> DC | C167: 4550000 | D167: 300857.5342 | E167: 3433103 | F167: 300857.5342
A168: Seabank (DN) | B168: =VLOOKUP(A168,'Locations & Types'!$E:$F,2,FALSE) -> GDN (SW) | C168: 60740000 | D168: 50999376 | E168: 50999376 | F168: 16855328.63
A169: Seabank (Seabank Power Station phase II) | B169: =VLOOKUP(A169,'Locations & Types'!$E:$F,2,FALSE) -> DC | C169: 19100000 | D169: 7693086.877 | E169: 28289540.74 | F169: 7693086.877
A170: Seal Sands TGPP | B170: =VLOOKUP(A170,'Locations & Types'!$E:$F,2,FALSE) -> DC | C170: 0 | D170: 0 | E170: 0 | F170: 0
A171: Sellafield Power Station | B171: =VLOOKUP(A171,'Locations & Types'!$E:$F,2,FALSE) -> DC | C171: 12350000 | D171: 5429590.356 | E171: 12349999 | F171: 5429590.356
A172: Shellstar (aka Kemira, not Kemira CHP) | B172: =VLOOKUP(A172,'Locations & Types'!$E:$F,2,FALSE) -> DC | C172: 16240000 | D172: 10523405.26 | E172: 11732444 | F172: 10523405.26
A173: Shorne | B173: =VLOOKUP(A173,'Locations & Types'!$E:$F,2,FALSE) -> GDN (SE) | C173: 67060000 | D173: 48279307 | E173: 48279307 | F173: 18549.31507
A174: Shotwick (Bridgewater Paper) | B174: =VLOOKUP(A174,'Locations & Types'!$E:$F,2,FALSE) -> DC | C174: 5520000 | D174: 165445.4247 | E174: 5282300.299 | F174: 165445.4247
A175: Shustoke | B175: =VLOOKUP(A175,'Locations & Types'!$E:$F,2,FALSE) -> GDN (WM) | C175: 44760000 | D175: 1855552.923 | E175: 1855552.923 | F175: 13019.17808
A176: Silk Willoughby | B176: =VLOOKUP(A176,'Locations & Types'!$E:$F,2,FALSE) -> GDN (EM) | C176: 3530000 | D176: 2203090 | E176: 2203090 | F176: 827238.274
A177: Soutra | B177: =VLOOKUP(A177,'Locations & Types'!$E:$F,2,FALSE) -> GDN (SC) | C177: 10726995 | D177: 10726995 | E177: 10726995 | F177: 2058121.096
A178: Spalding 2 (South Holland) Power Station | B178: =VLOOKUP(A178,'Locations & Types'!$E:$F,2,FALSE) -> DC | C178: 0 | D178: 0 | E178: 0 | F178: 0
A179: St Fergus | B179: =VLOOKUP(A179,'Locations & Types'!$E:$F,2,FALSE) -> GDN (SC) | C179: 1058074 | D179: 1055917 | E179: 1055917 | F179: 426658.6575
A180: St. Fergus (Peterhead) | B180: =VLOOKUP(A180,'Locations & Types'!$E:$F,2,FALSE) -> DC | C180: 108300000 | D180: 9197395.342 | E180: 73267750 | F180: 9197395.342
A181: St. Fergus (Shell Blackstart) | B181: =VLOOKUP(A181,'Locations & Types'!$E:$F,2,FALSE) -> DC | C181: 2583336 | D181: 0 | E181: 2583336 | F181: 0
A182: St. Neots (Little Barford) | B182: =VLOOKUP(A182,'Locations & Types'!$E:$F,2,FALSE) -> DC | C182: 35200000 | D182: 22918098.88 | E182: 36451349.04 | F182: 22918098.88
A183: Stallingborough | B183: =VLOOKUP(A183,'Locations & Types'!$E:$F,2,FALSE) -> DC | C183: 68012169 | D183: 13104679.12 | E183: 69310206.57 | F183: 13104679.12
A184: Stanford Le Hope (Coryton) | B184: =VLOOKUP(A184,'Locations & Types'!$E:$F,2,FALSE) -> DC | C184: 38600000 | D184: 15744621.86 | E184: 38494246.58 | F184: 15744621.86
A185: Staythorpe | B185: =VLOOKUP(A185,'Locations & Types'!$E:$F,2,FALSE) -> DC | C185: 82000000 | D185: 44559838.22 | E185: 83903452.05 | F185: 44559838.22
A186: Stranraer | B186: =VLOOKUP(A186,'Locations & Types'!$E:$F,2,FALSE) -> GDN (SC) | C186: 930433 | D186: 742435 | E186: 742435 | F186: 0
A187: Stratford-upon-Avon | B187: =VLOOKUP(A187,'Locations & Types'!$E:$F,2,FALSE) -> GDN (WM) | C187: 4680000 | D187: 3735040 | E187: 3735040 | F187: 1240482.959
A188: Stublach (Cheshire) | B188: =VLOOKUP(A188,'Locations & Types'!$E:$F,2,FALSE) -> STORAGE SITE | C188: 0 | D188: 20472085.23 | E188: 381309315.1 | F188: 20472085.23
A189: Sutton Bridge | B189: =VLOOKUP(A189,'Locations & Types'!$E:$F,2,FALSE) -> GDN (EM) | C189: 1710546 | D189: 1079269 | E189: 1079269 | F189: 411510.6027
A190: Sutton Bridge Power Station | B190: =VLOOKUP(A190,'Locations & Types'!$E:$F,2,FALSE) -> DC | C190: 37470000 | D190: 14243437.7 | E190: 37470000 | F190: 14243437.7
A191: Tatsfield | B191: =VLOOKUP(A191,'Locations & Types'!$E:$F,2,FALSE) -> GDN (SE) | C191: 221742083 | D191: 192774633 | E191: 192774633 | F191: 42243637.53
A192: Teesside (BASF, aka BASF Teesside) | B192: =VLOOKUP(A192,'Locations & Types'!$E:$F,2,FALSE) -> DC | C192: 9750000 | D192: 5571337.562 | E192: 10747260.27 | F192: 5571337.562
A193: Teesside Hydrogen | B193: =VLOOKUP(A193,'Locations & Types'!$E:$F,2,FALSE) -> DC | C193: 13277455 | D193: 3355168.948 | E193: 13276800 | F193: 3355168.948
A194: Terra Nitrogen (aka ICI, Terra Severnside) | B194: =VLOOKUP(A194,'Locations & Types'!$E:$F,2,FALSE) -> DC | C194: 13100000 | D194: 0 | E194: 0 | F194: 0
A195: Thornton Curtis (DN) | B195: =VLOOKUP(A195,'Locations & Types'!$E:$F,2,FALSE) -> GDN (EM) | C195: 118190411 | D195: =IF(LEFT($B195, 3)="GDN", $E195, $F195) -> 95532642 | E195: 95532642 | F195: 43926492.88
A196: Thornton Curtis (Humber Refinery, aka Immingham) | B196: =VLOOKUP(A196,'Locations & Types'!$E:$F,2,FALSE) -> DC | C196: 67000000 | D196: 45203238.16 | E196: 67000000 | F196: 45203238.16
A197: Thornton Curtis (Killingholme) | B197: =VLOOKUP(A197,'Locations & Types'!$E:$F,2,FALSE) -> DC | C197: 91000001 | D197: 7458246.219 | E197: 28177260.27 | F197: 7458246.219
A198: Thrintoft | B198: =VLOOKUP(A198,'Locations & Types'!$E:$F,2,FALSE) -> GDN (NO) | C198: 6921484 | D198: 6921484 | E198: 6921484 | F198: 1847855.945
A199: Tilbury Power Station | B199: =VLOOKUP(A199,'Locations & Types'!$E:$F,2,FALSE) -> DC | C199: 0 | D199: 0 | E199: 0 | F199: 0
A200: Tonna (Baglan Bay) | B200: =VLOOKUP(A200,'Locations & Types'!$E:$F,2,FALSE) -> DC | C200: 48650000 | D200: 9566617.123 | E200: 48650000 | F200: 9566617.123
... 22 more rows

Sheet Distance Matrix
C1: Non-IP | D1: IP | E1: Non-IP | F1: Non-IP | G1: Non-IP | H1: Non-IP | I1: Non-IP | J1: Non-IP | K1: Non-IP | L1: Non-IP | M1: Non-IP | N1: Non-IP | O1: Non-IP | P1: Non-IP | Q1: Non-IP | R1: Non-IP | S1: Non-IP | T1: Non-IP | U1: Non-IP | V1: Non-IP | W1: Non-IP | X1: Non-IP | Y1: Non-IP | Z1: Non-IP | AA1: Non-IP | AB1: Non-IP
B2: DISTANCES (KM) | C2: Avonmouth | D2: Bacton IP | E2: Bacton UKCS | F2: Burton Point | G2: Barrow | H2: Barton Stacey | I2: Canonbie | J2: Cheshire | K2: Caythorpe | L2: Dynevor Arms | M2: Easington | N2: Fleetwood | O2: Glenmavis | P2: Garton | Q2: Hole House Farm | R2: Hatfield Moor (onshore) | S2: Hornsea | T2: Hatfield Moor (storage) | U2: Isle of Grain | V2: Milford Haven | W2: Partington | X2: Moffat (Irish Interconnector) | Y2: St Fergus | Z2: Teesside | AA2: Theddlethorpe | AB2: Wytch Farm | AC2: Average
A3: Non-IP | B3: Aberdeen | C3: 892.01 | D3: 761.26 | E3: 761.26 | F3: 642.84 | G3: 491.81 | H3: 888.26 | I3: 337.77 | J3: 583.33 | K3: 497.14 | L3: 911.05 | M3: 558.59 | N3: 484.8 | O3: 223.74 | P3: 540.8 | Q3: 592.77 | R3: 536.87 | S3: 514.34 | T3: 536.87 | U3: 883.02 | V3: 1062.26 | W3: 565.64 | X3: 291.53 | Y3: 63.9 | Z3: 406.95 | AA3: 621.87 | AB3: 957.3 | AC3: =AVERAGE(C3:AB3) -> 600.3069231
A4: Non-IP | B4: Abson (Seabank Power Station phase I) | C4: 25.62 | D4: 341.05 | E4: 341.05 | F4: 326.26 | G4: 477.08 | H4: 183.26 | I4: 528.82 | J4: 286.71 | K4: 397.32 | L4: 201.7 | M4: 377.32 | N4: 387.76 | O4: 679.49 | P4: 369.54 | Q4: 277.27 | R4: 348.83 | S4: 386.9 | T4: 348.83 | U4: 428.48 | V4: 352.91 | W4: 307.81 | X4: 575.06 | Y4: 930.49 | Z4: 513.1 | AA4: 333.05 | AB4: 90.71 | AC4: =AVERAGE(C4:AB4) -> 377.5546154
A5: Non-IP | B5: Alrewas (EM) | C5: 221.51 | D5: 241.97 | E5: 241.97 | F5: 130.17 | G5: 280.99 | H5: 334.64 | I5: 332.73 | J5: 90.62 | K5: 298.24 | L5: 240.55 | M5: 278.24 | N5: 191.67 | O5: 483.4 | P5: 270.46 | Q5: 81.18 | R5: 249.75 | S5: 287.82 | T5: 249.75 | U5: 329.4 | V5: 391.76 | W5: 111.72 | X5: 378.97 | Y5: 734.4 | Z5: 414.02 | AA5: 233.97 | AB5: 286.8 | AC5: 284.1038462
A6: Non-IP | B6: Alrewas (WM) | C6: 221.51 | D6: 241.97 | E6: 241.97 | F6: 130.17 | G6: 280.99 | H6: 334.64 | I6: 332.73 | J6: 90.62 | K6: 298.24 | L6: 240.55 | M6: 278.24 | N6: 191.67 | O6: 483.4 | P6: 270.46 | Q6: 81.18 | R6: 249.75 | S6: 287.82 | T6: 249.75 | U6: 329.4 | V6: 391.76 | W6: 111.72 | X6: 378.97 | Y6: 734.4 | Z6: 414.02 | AA6: 233.97 | AB6: 286.8 | AC6: 284.1038462
A7: Non-IP | B7: Apache (Sage Black Start) | C7: 955.91 | D7: 825.16 | E7: 825.16 | F7: 706.74 | G7: 555.71 | H7: 952.16 | I7: 401.67 | J7: 647.23 | K7: 561.04 | L7: 974.95 | M7: 622.49 | N7: 548.7 | O7: 287.64 | P7: 604.7 | Q7: 656.67 | R7: 600.77 | S7: 578.24 | T7: 600.77 | U7: 946.92 | V7: 1126.16 | W7: 629.54 | X7: 355.43 | Y7: 0 | Z7: 470.85 | AA7: 685.77 | AB7: 1021.2 | AC7: 659.2915385
A8: Non-IP | B8: Armadale | C8: 692.42 | D8: 632.39 | E8: 632.39 | F8: 443.25 | G8: 292.22 | H8: 759.39 | I8: 138.18 | J8: 383.74 | K8: 368.27 | L8: 711.46 | M8: 429.72 | N8: 285.21 | O8: 24.15 | P8: 411.93 | Q8: 393.18 | R8: 408 | S8: 385.47 | T8: 408 | U8: 754.15 | V8: 862.67 | W8: 366.05 | X8: 91.94 | Y8: 275.15 | Z8: 278.08 | AA8: 493 | AB8: 757.71 | AC8: 449.1584615
A9: Non-IP | B9: Aspley | C9: 265.13 | D9: 285.59 | E9: 285.59 | F9: 86.55 | G9: 237.37 | H9: 378.26 | I9: 289.11 | J9: 47 | K9: 341.86 | L9: 284.17 | M9: 321.86 | N9: 148.05 | O9: 439.78 | P9: 314.08 | Q9: 37.56 | R9: 293.37 | S9: 331.44 | T9: 293.37 | U9: 373.02 | V9: 435.38 | W9: 68.1 | X9: 335.35 | Y9: 690.78 | Z9: 395.33 | AA9: 277.59 | AB9: 330.42 | AC9: 291.7734615
A10: Non-IP | B10: Asselby | C10: 401.64 | D10: 251.78 | E10: 251.78 | F10: 370.08 | G10: 219.05 | H10: 378.78 | I10: 242.43 | J10: 310.57 | K10: 81.64 | L10: 420.68 | M10: 84.51 | N10: 212.04 | O10: 393.1 | P10: 66.72 | Q10: 320.01 | R10: 27.39 | S10: 71.22 | T10: 27.39 | U10: 373.54 | V10: 571.89 | W10: 292.88 | X10: 288.67 | Y10: 573.38 | Z10: 136.88 | AA10: 112.39 | AB10: 466.93 | AC10: 267.2065385
A11: Non-IP | B11: Audley (NW) | C11: 288.91 | D11: 309.37 | E11: 309.37 | F11: 62.77 | G11: 213.59 | H11: 402.04 | I11: 265.33 | J11: 23.22 | K11: 365.64 | L11: 307.95 | M11: 345.64 | N11: 124.27 | O11: 416 | P11: 337.86 | Q11: 13.78 | R11: 317.15 | S11: 355.22 | T11: 317.15 | U11: 396.8 | V11: 459.16 | W11: 44.32 | X11: 311.57 | Y11: 667 | Z11: 371.55 | AA11: 301.37 | AB11: 354.2 | AC11: 295.4319231
A12: Non-IP | B12: Audley (WM) | C12: 288.91 | D12: 309.37 | E12: 309.37 | F12: 62.77 | G12: 213.59 | H12: 402.04 | I12: 265.33 | J12: 23.22 | K12: 365.64 | L12: 307.95 | M12: 345.64 | N12: 124.27 | O12: 416 | P12: 337.86 | Q12: 13.78 | R12: 317.15 | S12: 355.22 | T12: 317.15 | U12: 396.8 | V12: 459.16 | W12: 44.32 | X12: 311.57 | Y12: 667 | Z12: 371.55 | AA12: 301.37 | AB12: 354.2 | AC12: 295.4319231
A13: Non-IP | B13: Austrey | C13: 203.6 | D13: 232.43 | E13: 232.43 | F13: 148.08 | G13: 298.9 | H13: 325.1 | I13: 350.64 | J13: 108.53 | K13: 288.7 | L13: 222.64 | M13: 268.7 | N13: 209.58 | O13: 501.31 | P13: 260.92 | Q13: 99.09 | R13: 240.21 | S13: 278.28 | T13: 240.21 | U13: 319.86 | V13: 373.85 | W13: 129.63 | X13: 396.88 | Y13: 752.31 | Z13: 404.48 | AA13: 224.43 | AB13: 268.89 | AC13: 283.8338462
A14: Non-IP | B14: Avonmouth Max Refill | C14: 0 | D14: 366.47 | E14: 366.47 | F14: 351.68 | G14: 502.5 | H14: 208.88 | I14: 554.24 | J14: 312.13 | K14: 422.74 | L14: 227.12 | M14: 402.74 | N14: 413.18 | O14: 704.91 | P14: 394.96 | Q14: 302.69 | R14: 374.25 | S14: 412.32 | T14: 374.25 | U14: 453.9 | V14: 378.33 | W14: 333.23 | X14: 600.48 | Y14: 955.91 | Z14: 538.52 | AA14: 358.47 | AB14: 116.33 | AC14: 401.0269231
A15: Non-IP | B15: Aylesbeare | C15: 147.94 | D15: 463.37 | E15: 463.37 | F15: 448.58 | G15: 599.4 | H15: 184.84 | I15: 651.14 | J15: 409.03 | K15: 519.64 | L15: 324.02 | M15: 499.64 | N15: 510.08 | O15: 801.81 | P15: 491.86 | Q15: 399.59 | R15: 471.15 | S15: 509.22 | T15: 471.15 | U15: 504.21 | V15: 475.23 | W15: 430.13 | X15: 697.38 | Y15: 1052.81 | Z15: 635.42 | AA15: 455.37 | AB15: 92.29 | AC15: 488.795
A16: Non-IP | B16: Bacton | C16: 366.47 | D16: 0 | E16: 0 | F16: 372.14 | G16: 470.83 | H16: 333.81 | I16: 494.21 | J16: 332.59 | K16: 272.88 | L16: 385.51 | M16: 252.88 | N16: 433.64 | O16: 644.88 | P16: 245.1 | Q16: 323.15 | R16: 224.39 | S16: 262.46 | T16: 224.39 | U16: 216.9 | V16: 536.72 | W16: 353.69 | X16: 540.45 | Y16: 825.16 | Z16: 388.66 | AA16: 208.61 | AB16: 426.36 | AC16: 351.38
A17: Non-IP | B17: Bacton (Baird) | C17: 366.47 | D17: 0 | E17: 0 | F17: 372.14 | G17: 470.83 | H17: 333.81 | I17: 494.21 | J17: 332.59 | K17: 272.88 | L17: 385.51 | M17: 252.88 | N17: 433.64 | O17: 644.88 | P17: 245.1 | Q17: 323.15 | R17: 224.39 | S17: 262.46 | T17: 224.39 | U17: 216.9 | V17: 536.72 | W17: 353.69 | X17: 540.45 | Y17: 825.16 | Z17: 388.66 | AA17: 208.61 | AB17: 426.36 | AC17: 351.38
A18: IP | B18: Bacton (BBL) | C18: 366.47 | D18: 0 | E18: 0 | F18: 372.14 | G18: 470.83 | H18: 333.81 | I18: 494.21 | J18: 332.59 | K18: 272.88 | L18: 385.51 | M18: 252.88 | N18: 433.64 | O18: 644.88 | P18: 245.1 | Q18: 323.15 | R18: 224.39 | S18: 262.46 | T18: 224.39 | U18: 216.9 | V18: 536.72 | W18: 353.69 | X18: 540.45 | Y18: 825.16 | Z18: 388.66 | AA18: 208.61 | AB18: 426.36 | AC18: 351.38
A19: Non-IP | B19: Bacton (Great Yarmouth) | C19: 366.47 | D19: 0 | E19: 0 | F19: 372.14 | G19: 470.83 | H19: 333.81 | I19: 494.21 | J19: 332.59 | K19: 272.88 | L19: 385.51 | M19: 252.88 | N19: 433.64 | O19: 644.88 | P19: 245.1 | Q19: 323.15 | R19: 224.39 | S19: 262.46 | T19: 224.39 | U19: 216.9 | V19: 536.72 | W19: 353.69 | X19: 540.45 | Y19: 825.16 | Z19: 388.66 | AA19: 208.61 | AB19: 426.36 | AC19: 351.38
A20: IP | B20: Bacton (IUK) | C20: 366.47 | D20: 0 | E20: 0 | F20: 372.14 | G20: 470.83 | H20: 333.81 | I20: 494.21 | J20: 332.59 | K20: 272.88 | L20: 385.51 | M20: 252.88 | N20: 433.64 | O20: 644.88 | P20: 245.1 | Q20: 323.15 | R20: 224.39 | S20: 262.46 | T20: 224.39 | U20: 216.9 | V20: 536.72 | W20: 353.69 | X20: 540.45 | Y20: 825.16 | Z20: 388.66 | AA20: 208.61 | AB20: 426.36 | AC20: 351.38
A21: Non-IP | B21: Baldersby | C21: 476.14 | D21: 326.28 | E21: 326.28 | F21: 381.12 | G21: 230.09 | H21: 453.28 | I21: 167.93 | J21: 321.61 | K21: 142.64 | L21: 495.18 | M21: 159.01 | N21: 223.08 | O21: 318.6 | P21: 141.22 | Q21: 331.05 | R21: 101.89 | S21: 145.72 | T21: 101.89 | U21: 448.04 | V21: 646.39 | W21: 303.92 | X21: 214.17 | Y21: 498.88 | Z21: 62.38 | AA21: 186.89 | AB21: 541.43 | AC21: 297.8888462
A22: Non-IP | B22: Balgray | C22: 800.46 | D22: 740.43 | E22: 740.43 | F22: 551.29 | G22: 400.26 | H22: 867.43 | I22: 246.22 | J22: 491.78 | K22: 476.31 | L22: 819.5 | M22: 537.76 | N22: 393.25 | O22: 132.19 | P22: 519.97 | Q22: 501.22 | R22: 516.04 | S22: 493.51 | T22: 516.04 | U22: 862.19 | V22: 970.71 | W22: 474.09 | X22: 199.98 | Y22: 155.45 | Z22: 386.12 | AA22: 601.04 | AB22: 865.75 | AC22: 548.4392308
A23: Non-IP | B23: Barking (Horndon) | C23: 421.33 | D23: 184.33 | E23: 184.33 | F23: 427 | G23: 560.02 | H23: 286.8 | I23: 583.4 | J23: 387.45 | K23: 362.07 | L23: 440.37 | M23: 342.07 | N23: 488.5 | O23: 734.07 | P23: 334.29 | Q23: 378.01 | R23: 313.58 | S23: 351.65 | T23: 313.58 | U23: 32.57 | V23: 591.58 | W23: 408.55 | X23: 629.64 | Y23: 914.35 | Z23: 477.85 | AA23: 297.8 | AB23: 379.35 | AC23: 416.3284615
A24: Non-IP | B24: Barrow (Bains) | C24: 502.5 | D24: 470.83 | E24: 470.83 | F24: 253.33 | G24: 0 | H24: 597.83 | I24: 154.04 | J24: 193.82 | K24: 300.69 | L24: 521.54 | M24: 303.56 | N24: 95.29 | O24: 304.71 | P24: 285.77 | Q24: 203.26 | R24: 246.44 | S24: 290.27 | T24: 246.44 | U24: 592.59 | V24: 672.75 | W24: 176.13 | X24: 200.28 | Y24: 555.71 | Z24: 260.26 | AA24: 331.44 | AB24: 567.79 | AC24: 338.3884615
A25: Non-IP | B25: Barrow (Black Start) | C25: 502.5 | D25: 470.83 | E25: 470.83 | F25: 253.33 | G25: 0 | H25: 597.83 | I25: 154.04 | J25: 193.82 | K25: 300.69 | L25: 521.54 | M25: 303.56 | N25: 95.29 | O25: 304.71 | P25: 285.77 | Q25: 203.26 | R25: 246.44 | S25: 290.27 | T25: 246.44 | U25: 592.59 | V25: 672.75 | W25: 176.13 | X25: 200.28 | Y25: 555.71 | Z25: 260.26 | AA25: 331.44 | AB25: 567.79 | AC25: 338.3884615
A26: Non-IP | B26: Barrow (Gateway) | C26: 502.5 | D26: 470.83 | E26: 470.83 | F26: 253.33 | G26: 0 | H26: 597.83 | I26: 154.04 | J26: 193.82 | K26: 300.69 | L26: 521.54 | M26: 303.56 | N26: 95.29 | O26: 304.71 | P26: 285.77 | Q26: 203.26 | R26: 246.44 | S26: 290.27 | T26: 246.44 | U26: 592.59 | V26: 672.75 | W26: 176.13 | X26: 200.28 | Y26: 555.71 | Z26: 260.26 | AA26: 331.44 | AB26: 567.79 | AC26: 338.3884615
A27: Non-IP | B27: Barton Stacey Max Refill (Humbly Grove) | C27: 208.88 | D27: 333.81 | E27: 333.81 | F27: 464.81 | G27: 597.83 | H27: 0 | I27: 621.21 | J27: 425.26 | K27: 399.88 | L27: 384.96 | M27: 379.88 | N27: 526.31 | O27: 771.88 | P27: 372.1 | Q27: 415.82 | R27: 351.39 | S27: 389.46 | T27: 351.39 | U27: 319.37 | V27: 536.17 | W27: 446.36 | X27: 667.45 | Y27: 952.16 | Z27: 515.66 | AA27: 335.61 | AB27: 92.55 | AC27: 430.5388462
A28: Non-IP | B28: Bathgate | C28: 686.59 | D28: 626.56 | E28: 626.56 | F28: 437.42 | G28: 286.39 | H28: 753.56 | I28: 132.35 | J28: 377.91 | K28: 362.44 | L28: 705.63 | M28: 423.89 | N28: 279.38 | O28: 18.32 | P28: 406.1 | Q28: 387.35 | R28: 402.17 | S28: 379.64 | T28: 402.17 | U28: 748.32 | V28: 856.84 | W28: 360.22 | X28: 86.11 | Y28: 269.32 | Z28: 272.25 | AA28: 487.17 | AB28: 751.88 | AC28: 443.3284615
A29: Non-IP | B29: Billingham ICI (Terra Billingham) | C29: 535.88 | D29: 386.02 | E29: 386.02 | F29: 408.65 | G29: 257.62 | H29: 513.02 | I29: 137.26 | J29: 349.14 | K29: 121.9 | L29: 554.92 | M29: 183.35 | N29: 250.61 | O29: 287.93 | P29: 165.56 | Q29: 358.58 | R29: 161.63 | S29: 139.1 | T29: 161.63 | U29: 507.78 | V29: 706.13 | W29: 331.45 | X29: 183.5 | Y29: 468.21 | Z29: 8.7 | AA29: 246.63 | AB29: 601.17 | AC29: 323.5534615
A30: Non-IP | B30: Bishop Auckland | C30: 538.34 | D30: 388.48 | E30: 388.48 | F30: 400.84 | G30: 249.81 | H30: 515.48 | I30: 105.73 | J30: 341.33 | K30: 124.36 | L30: 557.38 | M30: 185.81 | N30: 242.8 | O30: 256.4 | P30: 168.02 | Q30: 350.77 | R30: 164.09 | S30: 141.56 | T30: 164.09 | U30: 510.24 | V30: 708.59 | W30: 323.64 | X30: 151.97 | Y30: 436.68 | Z30: 34.17 | AA30: 249.09 | AB30: 603.63 | AC30: 319.2992308
A31: Non-IP | B31: Bishop Auckland (test facility) | C31: 538.34 | D31: 388.48 | E31: 388.48 | F31: 400.84 | G31: 249.81 | H31: 515.48 | I31: 105.73 | J31: 341.33 | K31: 124.36 | L31: 557.38 | M31: 185.81 | N31: 242.8 | O31: 256.4 | P31: 168.02 | Q31: 350.77 | R31: 164.09 | S31: 141.56 | T31: 164.09 | U31: 510.24 | V31: 708.59 | W31: 323.64 | X31: 151.97 | Y31: 436.68 | Z31: 34.17 | AA31: 249.09 | AB31: 603.63 | AC31: 319.2992308
A32: Non-IP | B32: Blaby | C32: 272.41 | D32: 191.07 | E32: 191.07 | F32: 181.07 | G32: 331.89 | H32: 283.74 | I32: 383.63 | J32: 141.52 | K32: 247.34 | L32: 291.45 | M32: 227.34 | N32: 242.57 | O32: 534.3 | P32: 219.56 | Q32: 132.08 | R32: 198.85 | S32: 236.92 | T32: 198.85 | U32: 278.5 | V32: 442.66 | W32: 162.62 | X32: 429.87 | Y32: 785.3 | Z32: 363.12 | AA32: 183.07 | AB32: 337.7 | AC32: 288.0192308
